Workbook

Sheet 1.1-3 Annualized Volatility
A1: ='4.1 Size Study'!A1 -> Utilities, Inc of Florida
A2: Calculation of Daily Returns and Annual Volatility
A3: for the Proxy Group and the S&P 500
B5: American States Water Company | D5: American Water Works Company, Inc | F5: California Water Service Group | H5: Essential Utilities, Inc | J5: Middlsex Water Company | L5: SJW Group | N5: York Water Company | P5: Proxy Group | R5: DJU | T5: XLU | V5: DJIA | X5: S&P 500
B6: Price | C6: Return | D6: Price | E6: Return | F6: Price | G6: Return | H6: Price | I6: Return | J6: Price | K6: Return | L6: Price | M6: Return | N6: Price | O6: Return | P6: Price | Q6: Return | R6: Price | S6: Return | T6: Price | U6: Return | V6: Price | W6: Return | X6: Price | Y6: Return
A8: 43861 | B8: 88.56 | D8: 136.2 | F8: 52.56 | H8: 51.94 | J8: 65.26 | L8: 73.35 | N8: 47.36 | R8: 938.57 | T8: 68.98 | V8: 28256.03 | X8: 3225.5163
A9: 43864 | B9: 89.32 | C9: =(B9-B8)/B8 -> 0.008581752484 | D9: 136.52 | E9: =IFERROR((D9-D8)/D8, "NA") -> 0.00234948605 | F9: 53.49 | G9: =(F9-F8)/F8 -> 0.01769406393 | H9: 53.73 | I9: =(H9-H8)/H8 -> 0.03446284174 | J9: 66.44 | K9: =(J9-J8)/J8 -> 0.01808152007 | L9: 73.73 | M9: =(L9-L8)/L8 -> 0.005180640763 | N9: 48.2 | O9: =(N9-N8)/N8 -> 0.01773648649 | R9: 940.67 | S9: =(R9-R8)/R8 -> 0.002237446328 | T9: 69.2 | U9: =(T9-T8)/T8 -> 0.003189330241 | V9: 28399.81 | W9: =(V9-V8)/V8 -> 0.005088471381 | X9: 3248.925 | Y9: =(X9-X8)/X8 -> 0.007257349777
A10: 43865 | B10: 88.47 | C10: -0.009516345723 | D10: 134.84 | E10: -0.01230588925 | F10: 53.5 | G10: 0.0001869508319 | H10: 52.99 | I10: -0.01377256654 | J10: 66.57 | K10: 0.001956652619 | L10: 72.62 | M10: -0.01505493015 | N10: 47.8 | O10: -0.008298755187 | R10: 930.34 | S10: -0.01098153444 | T10: 68.51 | U10: -0.009971098266 | V10: 28807.63 | W10: 0.01435995523 | X10: 3297.5882 | Y10: 0.01497824665
A11: 43866 | B11: 89.18 | C11: 0.008025319317 | D11: 135.07 | E11: 0.001705725304 | F11: 53.86 | G11: 0.006728971963 | H11: 53.34 | I11: 0.006605019815 | J11: 67.46 | K11: 0.01336938561 | L11: 73.48 | M11: 0.01184246764 | N11: 48.44 | O11: 0.01338912134 | R11: 934.85 | S11: 0.004847690092 | T11: 68.79 | U11: 0.004086994599 | V11: 29290.85 | W11: 0.01677402827 | X11: 3334.6943 | Y11: 0.0112524966
A12: 43867 | B12: 89.83 | C12: 0.007288629738 | D12: 135 | E12: -0.0005182497964 | F12: 54.02 | G12: 0.002970664686 | H12: 53.2 | I12: -0.002624671916 | J12: 67.97 | K12: 0.007560035577 | L12: 72.89 | M12: -0.008029395754 | N12: 48.1 | O12: -0.007018992568 | R12: 935.16 | S12: 0.0003316040006 | T12: 68.81 | U12: 0.0002907399331 | V12: 29379.77 | W12: 0.003035760314 | X12: 3345.7809 | Y12: 0.00332462259
A13: 43868 | B13: 90.28 | C13: 0.005009462318 | D13: 134.45 | E13: -0.004074074074 | F13: 54.29 | G13: 0.004998148834 | H13: 53.22 | I13: 0.0003759398496 | J13: 68.15 | K13: 0.002648227159 | L13: 72.49 | M13: -0.005487721224 | N13: 48.25 | O13: 0.003118503119 | R13: 931.83 | S13: -0.003560887976 | T13: 68.59 | U13: -0.003197209708 | V13: 29102.51 | W13: -0.009437105873 | X13: 3327.7069 | Y13: -0.005402027371
A14: 43871 | B14: 91.08 | C14: 0.008861320337 | D14: 135.21 | E14: 0.005652658981 | F14: 54.97 | G14: 0.01252532695 | H14: 53.73 | I14: 0.009582863585 | J14: 68.72 | K14: 0.008363903155 | L14: 72.79 | M14: 0.004138501862 | N14: 48.85 | O14: 0.01243523316 | R14: 934.97 | S14: 0.00336971336 | T14: 68.85 | U14: 0.003790640035 | V14: 29276.82 | W14: 0.005989517743 | X14: 3352.094 | Y14: 0.007328499995
A15: 43872 | B15: 91.05 | C15: -0.0003293807642 | D15: 135.34 | E15: 0.0009614673471 | F15: 55.05 | G15: 0.001455339276 | H15: 53.27 | I15: -0.008561325144 | J15: 67.71 | K15: -0.01469732247 | L15: 72.27 | M15: -0.007143838439 | N15: 48.11 | O15: -0.01514841351 | R15: 938.48 | S15: 0.003754131149 | T15: 69.1 | U15: 0.003631082062 | V15: 29276.34 | W15: -1.639522325e-05 | X15: 3357.7473 | Y15: 0.001686498052
A16: 43873 | B16: 91.51 | C16: 0.005052169138 | D16: 135.7 | E16: 0.002659967489 | F16: 55.07 | G16: 0.0003633060854 | H16: 53.17 | I16: -0.00187722921 | J16: 68.14 | K16: 0.006350612908 | L16: 72.42 | M16: 0.002075550021 | N16: 48.59 | O16: 0.009977135731 | R16: 938.12 | S16: -0.0003835990112 | T16: 69.15 | U16: 0.0007235890014 | V16: 29551.42 | W16: 0.009395983241 | X16: 3379.4522 | Y16: 0.006464125517
A17: 43874 | B17: 92.53 | C17: 0.01114632281 | D17: 136.95 | E17: 0.009211495947 | F17: 55.91 | G17: 0.01525331396 | H17: 53.18 | I17: 0.0001880759827 | J17: 69.44 | K17: 0.01907836807 | L17: 73.31 | M17: 0.01228942281 | N17: 48.77 | O17: 0.003704465939 | R17: 947.38 | S17: 0.009870805441 | T17: 69.92 | U17: 0.0111352133 | V17: 29423.31 | W17: -0.004335155468 | X17: 3373.9374 | Y17: -0.001631862111
A18: 43875 | B18: 93.85 | C18: 0.01426564358 | D18: 139.32 | E18: 0.01730558598 | F18: 56.77 | G18: 0.01538186371 | H18: 53.72 | I18: 0.01015419331 | J18: 69.26 | K18: -0.002592165899 | L18: 73.55 | M18: 0.003273768926 | N18: 48.5 | O18: -0.005536190281 | R18: 955.35 | S18: 0.008412674956 | T18: 70.39 | U18: 0.006721967963 | V18: 29398.08 | W18: -0.0008574834035 | X18: 3380.1574 | Y18: 0.001843543392
A19: 43879 | B19: 93.64 | C19: -0.002237613213 | D19: 139.26 | E19: -0.0004306632214 | F19: 56.8 | G19: 0.000528448124 | H19: 54.07 | I19: 0.006515264334 | J19: 69.45 | K19: 0.002743286168 | L19: 73.4 | M19: -0.00203942896 | N19: 48.68 | O19: 0.003711340206 | R19: 960.89 | S19: 0.005798921861 | T19: 70.98 | U19: 0.008381872425 | V19: 29232.19 | W19: -0.005642885522 | X19: 3370.2865 | Y19: -0.002920248625
A20: 43880 | B20: 91.5 | C20: -0.02285348142 | D20: 138.7 | E20: -0.004021255206 | F20: 55.52 | G20: -0.02253521127 | H20: 53.62 | I20: -0.008322544849 | J20: 67.88 | K20: -0.0226061915 | L20: 71.81 | M20: -0.02166212534 | N20: 48.6 | O20: -0.001643385374 | R20: 950.01 | S20: -0.01132283612 | T20: 70.21 | U20: -0.01084812623 | V20: 29348.03 | W20: 0.003962754758 | X20: 3386.1527 | Y20: 0.004707670995
A21: 43881 | B21: 90.23 | C21: -0.01387978142 | D21: 137.3 | E21: -0.01009372747 | F21: 54.48 | G21: -0.01873198847 | H21: 53.5 | I21: -0.002237970906 | J21: 67.61 | K21: -0.003977607543 | L21: 71.54 | M21: -0.003759922016 | N21: 48.7 | O21: 0.002057613169 | R21: 952.4 | S21: 0.002515762992 | T21: 70.46 | U21: 0.003560746332 | V21: 29219.98 | W21: -0.004363154869 | X21: 3373.2315 | Y21: -0.003815894068
A22: 43882 | B22: 90.16 | C22: -0.0007757951901 | D22: 137.77 | E22: 0.003423160961 | F22: 54.5 | G22: 0.0003671071953 | H22: 53.06 | I22: -0.008224299065 | J22: 68.26 | K22: 0.009613962432 | L22: 71.74 | M22: 0.002795638803 | N22: 48.72 | O22: 0.0004106776181 | R22: 948.74 | S22: -0.003842923142 | T22: 70.33 | U22: -0.00184501845 | V22: 28992.41 | W22: -0.007788164126 | X22: 3337.747 | Y22: -0.01051943811
A23: 43885 | B23: 89.32 | C23: -0.009316770186 | D23: 136.53 | E23: -0.009000508093 | F23: 54.27 | G23: -0.004220183486 | H23: 51.67 | I23: -0.02619675839 | J23: 66.84 | K23: -0.02080281277 | L23: 71.46 | M23: -0.003902982994 | N23: 47.05 | O23: -0.03427750411 | R23: 935.91 | S23: -0.01352319919 | T23: 69.51 | U23: -0.01165932035 | V23: 27960.8 | W23: -0.03558207131 | X23: 3225.8864 | Y23: -0.03351380437
A24: 43886 | B24: 87.67 | C24: -0.0184729064 | D24: 133.09 | E24: -0.02519592763 | F24: 52.89 | G24: -0.02542841349 | H24: 50.43 | I24: -0.02399845171 | J24: 64.84 | K24: -0.02992220227 | L24: 69.16 | M24: -0.03218583823 | N24: 46.22 | O24: -0.01764080765 | R24: 915.77 | S24: -0.02151916317 | T24: 68.05 | U24: -0.02100417206 | V24: 27081.36 | W24: -0.03145260508 | X24: 3128.2066 | Y24: -0.03027998754
A25: 43887 | B25: 87.31 | C25: -0.004106307745 | D25: 133.04 | E25: -0.0003756856263 | F25: 52.67 | G25: -0.004159576479 | H25: 50.31 | I25: -0.00237953599 | J25: 65.53 | K25: 0.01064157927 | L25: 69.2 | M25: 0.0005783689994 | N25: 47.18 | O25: 0.02077022934 | R25: 906.97 | S25: -0.00960939974 | T25: 67.36 | U25: -0.01013960323 | V25: 26957.59 | W25: -0.00457030223 | X25: 3116.3898 | Y25: -0.003777499862
A26: 43888 | B26: 81.99 | C26: -0.06093231016 | D26: 127.78 | E26: -0.03953698136 | F26: 49.92 | G26: -0.05221188532 | H26: 46.34 | I26: -0.07891075333 | J26: 61.9 | K26: -0.05539447581 | L26: 64.36 | M26: -0.06994219653 | N26: 43.18 | O26: -0.08478168716 | R26: 865.47 | S26: -0.0457567505 | T26: 64.33 | U26: -0.04498218527 | V26: 25766.64 | W26: -0.04417865247 | X26: 2978.7578 | Y26: -0.04416392327
A27: 43889 | B27: 76.59 | C27: -0.06586169045 | D27: 123.66 | E27: -0.03224291751 | F27: 47.96 | G27: -0.03926282051 | H27: 43.01 | I27: -0.07186016401 | J27: 59.47 | K27: -0.03925686591 | L27: 61.18 | M27: -0.04940957116 | N27: 42.29 | O27: -0.02061139416 | R27: 839.96 | S27: -0.02947531399 | T27: 62.18 | U27: -0.0334214208 | V27: 25409.36 | W27: -0.01386599106 | X27: 2954.2237 | Y27: -0.008236352751
A28: 43892 | B28: 80.49 | C28: 0.0509204857 | D28: 130.84 | E28: 0.05806242924 | F28: 50.34 | G28: 0.04962468724 | H28: 45.44 | I28: 0.05649848872 | J28: 64.43 | K28: 0.08340339667 | L28: 63.1 | M28: 0.03138280484 | N28: 45.68 | O28: 0.08016079451 | R28: 886.52 | S28: 0.05543121101 | T28: 65.84 | U28: 0.05886137022 | V28: 26703.32 | W28: 0.05092454119 | X28: 3090.2328 | Y28: 0.04603886293
A29: 43893 | B29: 81.16 | C29: 0.008324015406 | D29: 131.42 | E29: 0.004432895139 | F29: 51.41 | G29: 0.02125546285 | H29: 45.31 | I29: -0.002860915493 | J29: 63.26 | K29: -0.01815924259 | L29: 63.75 | M29: 0.01030110935 | N29: 44.44 | O29: -0.02714535902 | R29: 877.25 | S29: -0.01045661688 | T29: 65.03 | U29: -0.01230255164 | V29: 25917.41 | W29: -0.02943117185 | X29: 3003.3652 | Y29: -0.02811037408
A30: 43894 | B30: 87.34 | C30: 0.07614588467 | D30: 140.31 | E30: 0.06764571602 | F30: 54.55 | G30: 0.06107761136 | H30: 48.45 | I30: 0.06930037519 | J30: 66.47 | K30: 0.05074296554 | L30: 67.67 | M30: 0.06149019608 | N30: 46.79 | O30: 0.05288028803 | R30: 926.14 | S30: 0.05573097749 | T30: 68.72 | U30: 0.05674304167 | V30: 27090.86 | W30: 0.0452765149 | X30: 3130.1169 | Y30: 0.0422032259
A31: 43895 | B31: 87.13 | C31: -0.002404396611 | D31: 139.36 | E31: -0.006770721973 | F31: 53.99 | G31: -0.01026581118 | H31: 47.57 | I31: -0.0181630547 | J31: 65.67 | K31: -0.01203550474 | L31: 66.27 | M31: -0.02068863603 | N31: 46.8 | O31: 0.0002137208805 | R31: 908.14 | S31: -0.01943550651 | T31: 67.66 | U31: -0.01542491269 | V31: 26121.28 | W31: -0.03578993063 | X31: 3023.9403 | Y31: -0.03392096953
A32: 43896 | B32: 87.78 | C32: 0.007460117066 | D32: 141 | E32: 0.01176808266 | F32: 54.37 | G32: 0.007038340433 | H32: 46.67 | I32: -0.01891948707 | J32: 67.61 | K32: 0.02954164763 | L32: 69.33 | M32: 0.0461747397 | N32: 48.78 | O32: 0.04230769231 | R32: 901.7 | S32: -0.007091417623 | T32: 67.11 | U32: -0.008128879693 | V32: 25864.78 | W32: -0.009819580051 | X32: 2972.3719 | Y32: -0.017053379
A33: 43899 | B33: 82.36 | C33: -0.06174527227 | D33: 137.19 | E33: -0.0270212766 | F33: 52.15 | G33: -0.04083134081 | H33: 44.05 | I33: -0.05613884723 | J33: 64.08 | K33: -0.05221121136 | L33: 65.49 | M33: -0.05538727823 | N33: 45.92 | O33: -0.05863058631 | R33: 852.8 | S33: -0.05423089719 | T33: 63.46 | U33: -0.05438831769 | V33: 23851.02 | W33: -0.07785722515 | X33: 2746.5596 | Y33: -0.07597040599
A34: 43900 | B34: 83.47 | C34: 0.01347741622 | D34: 137.71 | E34: 0.003790363729 | F34: 52.38 | G34: 0.004410354746 | H34: 44.41 | I34: 0.008172531215 | J34: 65.08 | K34: 0.01560549313 | L34: 66.1 | M34: 0.009314399145 | N34: 45.55 | O34: -0.008057491289 | R34: 860.03 | S34: 0.008477954972 | T34: 64.05 | U34: 0.009297195084 | V34: 25018.16 | W34: 0.04893459483 | X34: 2882.2255 | Y34: 0.0493948502
A35: 43901 | B35: 79.8 | C35: -0.04396789266 | D35: 129.67 | E35: -0.05838355965 | F35: 48.41 | G35: -0.07579228713 | H35: 40.03 | I35: -0.09862643549 | J35: 58.52 | K35: -0.1007990166 | L35: 61.08 | M35: -0.07594553707 | N35: 40.62 | O35: -0.1082327113 | R35: 812.44 | S35: -0.055335279 | T35: 60.83 | U35: -0.05027322404 | V35: 23553.22 | W35: -0.0585550656 | X35: 2741.3836 | Y35: -0.04886567689
A36: 43902 | B36: 71.88 | C36: -0.0992481203 | D36: 117.97 | E36: -0.09022904296 | F36: 44.62 | G36: -0.07828960958 | H36: 36.7 | I36: -0.08318760929 | J36: 53.61 | K36: -0.08390293917 | L36: 58.33 | M36: -0.04502292076 | N36: 36.19 | O36: -0.1090595766 | R36: 723.88 | S36: -0.1090049727 | T36: 54.69 | U36: -0.1009370376 | V36: 21200.62 | W36: -0.09988443194 | X36: 2480.6411 | Y36: -0.09511346752
A37: 43903 | B37: 76.76 | C37: 0.06789092933 | D37: 128.29 | E37: 0.08747986776 | F37: 45.79 | G37: 0.02622142537 | H37: 38.43 | I37: 0.04713896458 | J37: 55.54 | K37: 0.03600074613 | L37: 62.21 | M37: 0.06651808675 | N37: 40.41 | O37: 0.1166067975 | R37: 762.6 | S37: 0.05348952865 | T37: 57.67 | U37: 0.05448893765 | V37: 23185.62 | W37: 0.09362933726 | X37: 2711.0217 | Y37: 0.09287139522
A38: 43906 | B38: 65.41 | C38: -0.1478634706 | D38: 118.81 | E38: -0.07389508146 | F38: 42.85 | G38: -0.06420615855 | H38: 33.47 | I38: -0.129065834 | J38: 49.45 | K38: -0.1096507022 | L38: 50.96 | M38: -0.1808390934 | N38: 35.6 | O38: -0.1190299431 | R38: 678.03 | S38: -0.1108969315 | T38: 51.12 | U38: -0.1135772499 | V38: 20188.52 | W38: -0.1292654671 | X38: 2386.1339 | Y38: -0.1198396162
A39: 43907 | B39: 78.43 | C39: 0.1990521327 | D39: 138.5 | E39: 0.1657267907 | F39: 55.43 | G39: 0.2935822637 | H39: 40.04 | I39: 0.1962951897 | J39: 61.35 | K39: 0.2406471183 | L39: 64.37 | M39: 0.2631475667 | N39: 44.13 | O39: 0.2396067416 | R39: 769.69 | S39: 0.1351857587 | T39: 57.66 | U39: 0.1279342723 | V39: 21237.38 | W39: 0.0519532883 | X39: 2529.1942 | Y39: 0.05995484998
A40: 43908 | B40: 93.03 | C40: 0.1861532577 | D40: 130.08 | E40: -0.06079422383 | F40: 54.12 | G40: -0.02363341151 | H40: 40.59 | I40: 0.01373626374 | J40: 56.31 | K40: -0.08215158924 | L40: 57.4 | M40: -0.1082802548 | N40: 40.2 | O40: -0.08905506458 | R40: 737.25 | S40: -0.04214683834 | T40: 55.15 | U40: -0.04353104405 | V40: 19898.92 | W40: -0.06302378165 | X40: 2398.0952 | Y40: -0.05183429568
A41: 43909 | B41: 92.4 | C41: =(B41-B40)/B40 -> -0.006772009029 | D41: 115.12 | E41: =IFERROR((D41-D40)/D40, "NA") -> -0.1150061501 | F41: 55.45 | G41: =(F41-F40)/F40 -> 0.02457501848 | H41: 39.52 | I41: =(H41-H40)/H40 -> -0.0263611727 | J41: 57.39 | K41: =(J41-J40)/J40 -> 0.01917954182 | L41: 58.42 | M41: =(L41-L40)/L40 -> 0.01777003484 | N41: 39.35 | O41: =(N41-N40)/N40 -> -0.02114427861 | R41: 695.92 | S41: =(R41-R40)/R40 -> -0.05605968125 | T41: 51.94 | U41: =(T41-T40)/T40 -> -0.05820489574 | V41: 20087.19 | W41: =(V41-V40)/V40 -> 0.009461317499 | X41: 2409.3866 | Y41: =(X41-X40)/X40 -> 0.004708486969
A42: 43910 | B42: 86 | C42: -0.06926406926 | D42: 100.69 | E42: -0.1253474635 | F42: 53 | G42: -0.0441839495 | H42: 34.92 | I42: -0.1163967611 | J42: 56.86 | K42: -0.009235058373 | L42: 52.67 | M42: -0.09842519685 | N42: 36.93 | O42: -0.06149936468 | R42: 646.13 | S42: -0.07154557995 | T42: 47.82 | U42: -0.07932229496 | V42: 19173.98 | W42: -0.04546230707 | X42: 2304.9163 | Y42: -0.04335970823
A43: 43913 | B43: 74.9 | C43: -0.1290697674 | D43: 97.07 | E43: -0.03595193167 | F43: 47.33 | G43: -0.1069811321 | H43: 32.65 | I43: -0.06500572738 | J43: 54.88 | K43: -0.03482237074 | L43: 49.48 | M43: -0.06056578698 | N43: 37 | O43: 0.001895477931 | R43: 610.89 | S43: -0.05454010803 | T43: 44.93 | U43: -0.06043496445 | V43: 18591.93 | W43: -0.0303562432 | X43: 2237.3954 | Y43: -0.02929429585
A44: 43914 | B44: 79.61 | C44: 0.06288384513 | D44: 103.95 | E44: 0.07087668693 | F44: 48.03 | G44: 0.01478977393 | H44: 36.59 | I44: 0.1206738132 | J44: 56.39 | K44: 0.02751457726 | L44: 54.72 | M44: 0.1059013743 | N44: 39.66 | O44: 0.07189189189 | R44: 673.89 | S44: 0.1031282228 | T44: 49.76 | U44: 0.1075005564 | V44: 20704.91 | W44: 0.1136503849 | X44: 2447.3304 | Y44: 0.09383008475
A45: 43915 | B45: 77.02 | C45: -0.03253360131 | D45: 110.45 | E45: 0.06253006253 | F45: 45.66 | G45: -0.0493441599 | H45: 38.52 | I45: 0.05274665209 | J45: 53.82 | K45: -0.04557545664 | L45: 52.02 | M45: -0.04934210526 | N45: 37.3 | O45: -0.05950579929 | R45: 697.96 | S45: 0.03571799552 | T45: 51.03 | U45: 0.02552250804 | V45: 21200.55 | W45: 0.02393828324 | X45: 2475.5583 | Y45: 0.01153415983
A46: 43916 | B46: 80.99 | C46: 0.05154505323 | D46: 119.32 | E46: 0.0803078316 | F46: 48.74 | G46: 0.06745510293 | H46: 42.25 | I46: 0.09683281412 | J46: 55.65 | K46: 0.03400222965 | L46: 57.22 | M46: 0.09996155325 | N46: 42.53 | O46: 0.1402144772 | R46: 757.92 | S46: 0.08590750186 | T46: 55.38 | U46: 0.08524397413 | V46: 22552.17 | W46: 0.06375400638 | X46: 2630.0672 | Y46: 0.06241375935
A47: 43917 | B47: 80.98 | C47: -0.0001234720336 | D47: 120.77 | E47: 0.01215219578 | F47: 47.96 | G47: -0.01600328272 | H47: 40.42 | I47: -0.04331360947 | J47: 57.23 | K47: 0.02839173405 | L47: 55.87 | M47: -0.02359314925 | N47: 42.63 | O47: 0.002351281448 | R47: 758.93 | S47: 0.001332594469 | T47: 55.68 | U47: 0.005417118093 | V47: 21636.78 | W47: -0.04058988559 | X47: 2541.4697 | Y47: -0.03368640163
A48: 43920 | B48: 84.6 | C48: 0.04470239565 | D48: 126.72 | E48: 0.04926720212 | F48: 52.32 | G48: 0.09090909091 | H48: 43.05 | I48: 0.06506679861 | J48: 61.47 | K48: 0.0740870173 | L48: 59.78 | M48: 0.06998389118 | N48: 46.77 | O48: 0.09711470795 | R48: 785.14 | S48: 0.0345354644 | T48: 57.74 | U48: 0.03699712644 | V48: 22327.48 | W48: 0.03192249494 | X48: 2626.6458 | Y48: 0.03351450541
A49: 43921 | B49: 81.74 | C49: -0.03380614657 | D49: 119.56 | E49: -0.05650252525 | F49: 50.32 | G49: -0.03822629969 | H49: 40.7 | I49: -0.05458768873 | J49: 60.12 | K49: -0.02196193265 | L49: 57.77 | M49: -0.03362328538 | N49: 43.46 | O49: -0.0707718623 | R49: 756.16 | S49: -0.03691061467 | T49: 55.41 | U49: -0.04035330793 | V49: 21917.16 | W49: -0.01837735383 | X49: 2584.5908 | Y49: -0.016010914
A50: 43922 | B50: 74.93 | C50: -0.08331294348 | D50: 112.8 | E50: -0.05654064905 | F50: 45.01 | G50: -0.1055246423 | H50: 38.62 | I50: -0.05110565111 | J50: 54.24 | K50: -0.09780439122 | L50: 53.75 | M50: -0.06958629046 | N50: 38.9 | O50: -0.1049240681 | R50: 708.04 | S50: -0.06363732543 | T50: 52.08 | U50: -0.06009745533 | V50: 20943.51 | W50: -0.04442409509 | X50: 2470.5044 | Y50: -0.04414099129
A51: 43923 | B51: 77.44 | C51: 0.0334979314 | D51: 117.64 | E51: 0.04290780142 | F51: 46.01 | G51: 0.02221728505 | H51: 40.1 | I51: 0.03832211289 | J51: 57.64 | K51: 0.06268436578 | L51: 55.74 | M51: 0.03702325581 | N51: 41.32 | O51: 0.06221079692 | R51: 729.36 | S51: 0.03011129315 | T51: 53.71 | U51: 0.03129800307 | V51: 21413.44 | W51: 0.02243797721 | X51: 2526.9028 | Y51: 0.02282869846
A52: 43924 | B52: 78.57 | C52: 0.01459194215 | D52: 113.32 | E52: -0.03672220333 | F52: 46.26 | G52: 0.005433601391 | H52: 38.5 | I52: -0.03990024938 | J52: 56.66 | K52: -0.01700208189 | L52: 54.91 | M52: -0.01489056333 | N52: 40.09 | O52: -0.02976766699 | R52: 706.01 | S52: -0.03201436876 | T52: 51.79 | U52: -0.03574753305 | V52: 21052.53 | W52: -0.0168543681 | X52: 2488.6484 | Y52: -0.01513884903
A53: 43927 | B53: 85.06 | C53: 0.08260150185 | D53: 121.52 | E53: 0.07236145429 | F53: 50.77 | G53: 0.09749243407 | H53: 42.26 | I53: 0.09766233766 | J53: 60.88 | K53: 0.07447935051 | L53: 61.01 | M53: 0.111090876 | N53: 43.74 | O53: 0.09104514842 | R53: 758.06 | S53: 0.07372416821 | T53: 55.79 | U53: 0.07723498745 | V53: 22679.99 | W53: 0.077304723 | X53: 2663.6838 | Y53: 0.07033351919
A54: 43928 | B54: 80.11 | C54: -0.05819421585 | D54: 118.27 | E54: -0.0267445688 | F54: 49.15 | G54: -0.03190860745 | H54: 40.78 | I54: -0.03502129673 | J54: 58.28 | K54: -0.04270696452 | L54: 57.02 | M54: -0.0653991149 | N54: 40.17 | O54: -0.08161865569 | R54: 750.81 | S54: -0.009563886764 | T54: 55.09 | U54: -0.01254705144 | V54: 22653.86 | W54: -0.00115211691 | X54: 2659.4106 | Y54: -0.001604244468
A55: 43929 | B55: 83.99 | C55: 0.04843340407 | D55: 125.35 | E55: 0.05986302528 | F55: 50.51 | G55: 0.02767039674 | H55: 42.67 | I55: 0.04634624816 | J55: 60.56 | K55: 0.0391214825 | L55: 58.69 | M55: 0.02928796913 | N55: 40.56 | O55: 0.009708737864 | R55: 789.15 | S55: 0.05106484996 | T55: 58.09 | U55: 0.05445634416 | V55: 23433.57 | W55: 0.03441841699 | X55: 2749.9777 | Y55: 0.0340553279
A56: 43930 | B56: 87.97 | C56: 0.04738659364 | D56: 131.75 | E56: 0.05105704029 | F56: 54.05 | G56: 0.07008513166 | H56: 44.61 | I56: 0.04546519803 | J56: 62.94 | K56: 0.0392998679 | L56: 61.97 | M56: 0.05588686318 | N56: 43.06 | O56: 0.06163708087 | R56: 827.83 | S56: 0.04901476272 | T56: 60.83 | U56: 0.0471681873 | V56: 23719.37 | W56: 0.01219617839 | X56: 2789.8173 | Y56: 0.01448724475
A57: 43934 | B57: 86.42 | C57: -0.01761964306 | D57: 127.24 | E57: -0.03423149905 | F57: 52.87 | G57: -0.02183163737 | H57: 42.8 | I57: -0.04057386236 | J57: 62.37 | K57: -0.009056244042 | L57: 62.66 | M57: 0.01113441988 | N57: 42.39 | O57: -0.01555968416 | R57: 801.39 | S57: -0.03193892466 | T57: 58.9 | U57: -0.0317277659 | V57: 23390.77 | W57: -0.01385365632 | X57: 2761.6272 | Y57: -0.01010464019
A58: 43935 | B58: 90.1 | C58: 0.04258273548 | D58: 133.61 | E58: 0.05006287331 | F58: 54.45 | G58: 0.02988462266 | H58: 44.3 | I58: 0.03504672897 | J58: 63.3 | K58: 0.01491101491 | L58: 64.37 | M58: 0.02729013725 | N58: 43.31 | O58: 0.02170323189 | R58: 811.46 | S58: 0.01256566715 | T58: 60.63 | U58: 0.02937181664 | V58: 23686.11 | W58: 0.01262634791 | X58: 2846.0611 | Y58: 0.03057396741
A59: 43936 | B59: 86.11 | C59: -0.04428412875 | D59: 129.21 | E59: -0.03293166679 | F59: 51.54 | G59: -0.05344352617 | H59: 42 | I59: -0.05191873589 | J59: 59 | K59: -0.06793048973 | L59: 59.25 | M59: -0.07954015846 | N59: 41.64 | O59: -0.0385592242 | R59: 796.95 | S59: -0.01788134967 | T59: 58.63 | U59: -0.03298697015 | V59: 23504.35 | W59: -0.007673695681 | X59: 2783.3621 | Y59: -0.02203009626
A60: 43937 | B60: 86.16 | C60: 0.0005806526536 | D60: 131.24 | E60: 0.01571085829 | F60: 52.17 | G60: 0.01222351572 | H60: 42.83 | I60: 0.01976190476 | J60: 60.29 | K60: 0.02186440678 | L60: 59.07 | M60: -0.003037974684 | N60: 41.94 | O60: 0.007204610951 | R60: 797.54 | S60: 0.0007403224795 | T60: 58.64 | U60: 0.0001705611462 | V60: 23537.68 | W60: 0.001418035385 | X60: 2799.5523 | Y60: 0.005816778205
A61: 43938 | B61: 89.09 | C61: 0.03400649954 | D61: 131.76 | E61: 0.003962206644 | F61: 53.63 | G61: 0.02798543224 | H61: 43.36 | I61: 0.01237450385 | J61: 61.36 | K61: 0.01774755349 | L61: 60.68 | M61: 0.02725579821 | N61: 44 | O61: 0.04911778732 | R61: 823.98 | S61: 0.03315194222 | T61: 60.53 | U61: 0.03223055935 | V61: 24242.49 | W61: 0.02994390271 | X61: 2874.5646 | Y61: 0.02679439137
A62: 43941 | B62: 83.19 | C62: -0.06622516556 | D62: 126.46 | E62: -0.04022465088 | F62: 50.03 | G62: -0.06712660824 | H62: 42.24 | I62: -0.0258302583 | J62: 58.52 | K62: -0.04628422425 | L62: 58.73 | M62: -0.03213579433 | N62: 42.12 | O62: -0.04272727273 | R62: 794.85 | S62: -0.03535279983 | T62: 58.24 | U62: -0.03783247976 | V62: 23650.44 | W62: -0.02442199626 | X62: 2823.1564 | Y62: -0.01788382143
A63: 43942 | B63: 82.27 | C63: -0.01105902152 | D63: 125.43 | E63: -0.008144867942 | F63: 49.27 | G63: -0.01519088547 | H63: 41.29 | I63: -0.0224905303 | J63: 57 | K63: -0.02597402597 | L63: 58.8 | M63: 0.001191895113 | N63: 41.4 | O63: -0.01709401709 | R63: 780.99 | S63: -0.01743725231 | T63: 57.28 | U63: -0.01648351648 | V63: 23018.88 | W63: -0.02670394293 | X63: 2736.5632 | Y63: -0.03067247709
A64: 43943 | B64: 83.71 | C64: 0.01750334265 | D64: 127.89 | E64: 0.01961253289 | F64: 50.12 | G64: 0.01725187741 | H64: 42.45 | I64: 0.02809396948 | J64: 58.77 | K64: 0.03105263158 | L64: 60.25 | M64: 0.02465986395 | N64: 42.01 | O64: 0.01473429952 | R64: 804.41 | S64: 0.02998757987 | T64: 58.95 | U64: 0.02915502793 | V64: 23475.82 | W64: 0.01985066172 | X64: 2799.3148 | Y64: 0.02293080606
A65: 43944 | B65: 81.84 | C65: -0.0223390276 | D65: 124.68 | E65: -0.02509969505 | F65: 49.03 | G65: -0.02174780527 | H65: 42.62 | I65: 0.004004711425 | J65: 58.66 | K65: -0.00187170325 | L65: 57.81 | M65: -0.04049792531 | N65: 41.85 | O65: -0.003808616996 | R65: 790.75 | S65: -0.01698139009 | T65: 57.96 | U65: -0.01679389313 | V65: 23515.26 | W65: 0.001680026512 | X65: 2797.7966 | Y65: -0.0005423470058
A66: 43945 | B66: 82.19 | C66: 0.004276637341 | D66: 125.01 | E66: 0.002646775746 | F66: 49 | G66: -0.0006118702835 | H66: 43.68 | I66: 0.0248709526 | J66: 59.1 | K66: 0.00750085237 | L66: 59.6 | M66: 0.03096350112 | N66: 41.83 | O66: -0.0004778972521 | R66: 795.09 | S66: 0.005488460322 | T66: 58.32 | U66: 0.006211180124 | V66: 23775.27 | W66: 0.01105707528 | X66: 2836.7397 | Y66: 0.01391920342
A67: 43948 | B67: 82 | C67: -0.002311716754 | D67: 125.75 | E67: 0.005919526438 | F67: 48.64 | G67: -0.007346938776 | H67: 44 | I67: 0.007326007326 | J67: 59.2 | K67: 0.001692047377 | L67: 60.92 | M67: 0.02214765101 | N67: 42.34 | O67: 0.01219220655 | R67: 805.8 | S67: 0.01347017319 | T67: 58.93 | U67: 0.01045953361 | V67: 24133.78 | W67: 0.01507911372 | X67: 2878.4799 | Y67: 0.01471414526
A68: 43949 | B68: 82.97 | C68: 0.01182926829 | D68: 126.52 | E68: 0.006123260437 | F68: 49.73 | G68: 0.02240953947 | H68: 43.86 | I68: -0.003181818182 | J68: 60.5 | K68: 0.02195945946 | L68: 59.78 | M68: -0.01871306632 | N68: 42.36 | O68: 0.0004723665564 | R68: 804.93 | S68: -0.001079672375 | T68: 59.15 | U68: 0.00373324283 | V68: 24101.55 | W68: -0.00133547252 | X68: 2863.3918 | Y68: -0.005241690241
A69: 43950 | B69: 83.83 | C69: 0.01036519224 | D69: 125.72 | E69: -0.006323110971 | F69: 50.55 | G69: 0.01648904082 | H69: 43.29 | I69: -0.01299589603 | J69: 62.75 | K69: 0.03719008264 | L69: 62.46 | M69: 0.04483104717 | N69: 42.96 | O69: 0.01416430595 | R69: 798.48 | S69: -0.008013119153 | T69: 58.61 | U69: -0.009129332206 | V69: 24633.86 | W69: 0.02208613139 | X69: 2939.5054 | Y69: 0.02658162254
A70: 43951 | B70: 79.37 | C70: -0.05320291065 | D70: 121.69 | E70: -0.03205536112 | F70: 44.92 | G70: -0.1113748764 | H70: 41.79 | I70: -0.03465003465 | J70: 60.3 | K70: -0.0390438247 | L70: 59.53 | M70: -0.04691002241 | N70: 40.32 | O70: -0.06145251397 | R70: 778.29 | S70: -0.02528554253 | T70: 57.26 | U70: -0.02303361201 | V70: 24345.72 | W70: -0.01169690824 | X70: 2912.4305 | Y70: -0.009210699188
A71: 43952 | B71: 77.77 | C71: -0.02015875016 | D71: 119.2 | E71: -0.02046182924 | F71: 46.28 | G71: 0.0302760463 | H71: 40.39 | I71: -0.03350083752 | J71: 60.01 | K71: -0.004809286899 | L71: 59.77 | M71: 0.004031580716 | N71: 40.57 | O71: 0.006200396825 | R71: 759.08 | S71: -0.02468231636 | T71: 55.88 | U71: -0.02410059378 | V71: 23723.69 | W71: -0.02554987078 | X71: 2830.705 | Y71: -0.02806092712
A72: 43955 | B72: 77.15 | C72: -0.007972225794 | D72: 121.46 | E72: 0.01895973154 | F72: 45.62 | G72: -0.01426101988 | H72: 41.22 | I72: 0.020549641 | J72: 61.04 | K72: 0.01716380603 | L72: 58.8 | M72: -0.01622887736 | N72: 40.54 | O72: -0.0007394626571 | R72: 767.37 | S72: 0.01092111503 | T72: 56.3 | U72: 0.007516105941 | V72: 23749.76 | W72: 0.001098901562 | X72: 2842.7391 | Y72: 0.004251273093
A73: 43956 | B73: 77.96 | C73: =(B73-B72)/B72 -> 0.01049902787 | D73: 123.43 | E73: =IFERROR((D73-D72)/D72, "NA") -> 0.01621933147 | F73: 46.39 | G73: =(F73-F72)/F72 -> 0.01687856203 | H73: 41.97 | I73: =(H73-H72)/H72 -> 0.01819505095 | J73: 61.81 | K73: =(J73-J72)/J72 -> 0.0126146789 | L73: 58.24 | M73: =(L73-L72)/L72 -> -0.009523809524 | N73: 41.23 | O73: =(N73-N72)/N72 -> 0.01702022694 | R73: 773.21 | S73: =(R73-R72)/R72 -> 0.007610409581 | T73: 56.76 | U73: =(T73-T72)/T72 -> 0.008170515098 | V73: 23883.09 | W73: =(V73-V72)/V72 -> 0.005613951467 | X73: 2868.4354 | Y73: =(X73-X72)/X72 -> 0.009039274832
A74: 43957 | B74: 74.18 | C74: -0.04848640328 | D74: 117.78 | E74: -0.04577493316 | F74: 44.63 | G74: -0.03793921104 | H74: 40.67 | I74: -0.0309745056 | J74: 61.11 | K74: -0.01132502831 | L74: 57.03 | M74: -0.0207760989 | N74: 41.06 | O74: -0.004123211254 | R74: 746.35 | S74: -0.03473829878 | T74: 54.83 | U74: -0.03400281889 | V74: 23664.64 | W74: -0.009146638898 | X74: 2848.4207 | Y74: -0.006977566934
A75: 43958 | B75: 74.04 | C75: -0.001887301159 | D75: 119.08 | E75: 0.01103752759 | F75: 45.12 | G75: 0.010979162 | H75: 40.53 | I75: -0.003442340792 | J75: 61.88 | K75: 0.0126002291 | L75: 58.27 | M75: 0.02174294231 | N75: 41.2 | O75: 0.003409644423 | R75: 751.97 | S75: 0.007529979232 | T75: 55.05 | U75: 0.00401240197 | V75: 23875.89 | W75: 0.008926820776 | X75: 2881.1914 | Y75: 0.01150486654
A76: 43959 | B76: 75.74 | C76: 0.02296056186 | D76: 118.03 | E76: -0.008817601612 | F76: 45.36 | G76: 0.005319148936 | H76: 40.3 | I76: -0.005674808784 | J76: 62.1 | K76: 0.003555268261 | L76: 58.74 | M76: 0.00806590012 | N76: 42.9 | O76: 0.04126213592 | R76: 764.11 | S76: 0.01614426107 | T76: 56.16 | U76: 0.02016348774 | V76: 24331.32 | W76: 0.01907489103 | X76: 2929.8047 | Y76: 0.01687263817
A77: 43962 | B77: 76.67 | C77: 0.01227884869 | D77: 119.49 | E77: 0.01236973651 | F77: 45.24 | G77: -0.002645502646 | H77: 40.16 | I77: -0.003473945409 | J77: 61.77 | K77: -0.005314009662 | L77: 58.21 | M77: -0.009022812394 | N77: 42.53 | O77: -0.008624708625 | R77: 761.83 | S77: -0.00298386358 | T77: 55.92 | U77: -0.004273504274 | V77: 24221.99 | W77: -0.00449338548 | X77: 2930.3228 | Y77: 0.0001768377257
A78: 43963 | B78: 75.29 | C78: -0.01799921743 | D78: 117.07 | E78: -0.02025274082 | F78: 43.85 | G78: -0.0307250221 | H78: 39.22 | I78: -0.0234063745 | J78: 61.15 | K78: -0.0100372349 | L78: 55.86 | M78: -0.04037107026 | N78: 41.56 | O78: -0.02280743005 | R78: 753.3 | S78: -0.01119672368 | T78: 55.43 | U78: -0.008762517883 | V78: 23764.78 | W78: -0.01887582317 | X78: 2870.1174 | Y78: -0.02054565456
A79: 43964 | B79: 76.05 | C79: 0.01009430203 | D79: 116.51 | E79: -0.004783462885 | F79: 43.87 | G79: 0.0004561003421 | H79: 38.81 | I79: -0.01045385008 | J79: 61.25 | K79: 0.001635322976 | L79: 53.98 | M79: -0.03365556749 | N79: 41.53 | O79: -0.0007218479307 | R79: 747.54 | S79: -0.007646356033 | T79: 54.96 | U79: -0.008479162908 | V79: 23247.97 | W79: -0.02174688762 | X79: 2819.9958 | Y79: -0.01746325777
A80: 43965 | B80: 75.68 | C80: -0.00486522025 | D80: 116.27 | E80: -0.002059909021 | F80: 43.39 | G80: -0.01094141783 | H80: 39.32 | I80: 0.01314094306 | J80: 59.62 | K80: -0.0266122449 | L80: 53.11 | M80: -0.0161170804 | N80: 40.98 | O80: -0.01324343848 | R80: 754.78 | S80: 0.009685100463 | T80: 55.55 | U80: 0.01073508006 | V80: 23625.34 | W80: 0.01623238502 | X80: 2852.5042 | Y80: 0.01152781859
A81: 43966 | B81: 74.96 | C81: -0.009513742072 | D81: 117.76 | E81: 0.01281499957 | F81: 43.14 | G81: -0.005761696243 | H81: 39.11 | I81: -0.005340793489 | J81: 60.22 | K81: 0.010063737 | L81: 53.45 | M81: 0.006401807569 | N81: 41 | O81: 0.0004880429478 | R81: 744.49 | S81: -0.01363311164 | T81: 54.81 | U81: -0.01332133213 | V81: 23685.42 | W81: 0.002543032185 | X81: 2863.6975 | Y81: 0.003924025774
A82: 43969 | B82: 78.71 | C82: 0.0500266809 | D82: 122.51 | E82: 0.04033627717 | F82: 45.24 | G82: 0.04867872045 | H82: 41.23 | I82: 0.0542060854 | J82: 63.55 | K82: 0.05529724344 | L82: 56.98 | M82: 0.06604303087 | N82: 42.95 | O82: 0.04756097561 | R82: 773.18 | S82: 0.03853644777 | T82: 57.06 | U82: 0.04105090312 | V82: 24597.37 | W82: 0.03850258936 | X82: 2953.9083 | Y82: 0.03150151159
A83: 43970 | B83: 75.62 | C83: -0.03925803583 | D83: 120.17 | E83: -0.01910048159 | F83: 43.58 | G83: -0.03669319187 | H83: 39.9 | I83: -0.03225806452 | J83: 61.28 | K83: -0.03571990559 | L83: 55.44 | M83: -0.02702702703 | N83: 41.14 | O83: -0.04214202561 | R83: 761.4 | S83: -0.01523577951 | T83: 56.12 | U83: -0.01647388714 | V83: 24206.86 | W83: -0.01587608757 | X83: 2922.9397 | Y83: -0.01048394089
A84: 43971 | B84: 77.98 | C84: 0.03120867495 | D84: 120.6 | E84: 0.003578264126 | F84: 44.24 | G84: 0.01514456173 | H84: 40.51 | I84: 0.01528822055 | J84: 62.36 | K84: 0.01762402089 | L84: 57.49 | M84: 0.03697691198 | N84: 42.45 | O84: 0.03184248906 | R84: 761.59 | S84: 0.0002495403205 | T84: 56.43 | U84: 0.005523877406 | V84: 24575.9 | W84: 0.01524526519 | X84: 2971.6122 | Y84: 0.01665190014
A85: 43972 | B85: 78.93 | C85: 0.01218261093 | D85: 120.62 | E85: 0.0001658374793 | F85: 45.1 | G85: 0.01943942134 | H85: 41.03 | I85: 0.01283633671 | J85: 62.52 | K85: 0.002565747274 | L85: 59.32 | M85: 0.03183162289 | N85: 42.45 | O85: 0 | R85: 754.02 | S85: -0.009939731352 | T85: 55.86 | U85: -0.0101010101 | V85: 24474.12 | W85: -0.004141455654 | X85: 2948.5056 | Y85: -0.007775779087
A86: 43973 | B86: 79.61 | C86: 0.008615228684 | D86: 120.71 | E86: 0.0007461449179 | F86: 45.17 | G86: 0.00155210643 | H86: 41.03 | I86: 0 | J86: 63.8 | K86: 0.0204734485 | L86: 59.8 | M86: 0.008091706001 | N86: 43.02 | O86: 0.01342756184 | R86: 763.93 | S86: 0.01314288746 | T86: 56.48 | U86: 0.01109917651 | V86: 24465.16 | W86: -0.0003661010079 | X86: 2955.4527 | Y86: 0.002356142719
A87: 43977 | B87: 79.12 | C87: -0.006155005653 | D87: 120.74 | E87: 0.0002485295336 | F87: 45.53 | G87: 0.007969891521 | H87: 41.31 | I87: 0.006824274921 | J87: 65.35 | K87: 0.02429467085 | L87: 60.02 | M87: 0.003678929766 | N87: 43.73 | O87: 0.01650395165 | R87: 769.03 | S87: 0.006676004346 | T87: 56.85 | U87: 0.006550991501 | V87: 24995.11 | W87: 0.02166141566 | X87: 2991.7651 | Y87: 0.01228657796
A88: 43978 | B88: 79.52 | C88: 0.005055611729 | D88: 120.54 | E88: -0.00165645188 | F88: 45.86 | G88: 0.007247968373 | H88: 41.92 | I88: 0.01476640039 | J88: 66.52 | K88: 0.01790359602 | L88: 59.87 | M88: -0.002499166944 | N88: 44.16 | O88: 0.009833066545 | R88: 777.69 | S88: 0.01126093911 | T88: 57.53 | U88: 0.01196130167 | V88: 25548.27 | W88: 0.02213072877 | X88: 3036.1332 | Y88: 0.01483007473
A89: 43979 | B89: 80.61 | C89: 0.01370724346 | D89: 123.72 | E89: 0.02638128422 | F89: 46.52 | G89: 0.01439162669 | H89: 42.97 | I89: 0.02504770992 | J89: 65.94 | K89: -0.008719182201 | L89: 61.21 | M89: 0.02238182729 | N89: 44.58 | O89: 0.009510869565 | R89: 800.8 | S89: 0.02971621083 | T89: 59.23 | U89: 0.0295498001 | V89: 25400.64 | W89: -0.005778473454 | X89: 3029.7331 | Y89: -0.002107977344
A90: 43980 | B90: 82.01 | C90: 0.01736757226 | D90: 127 | E90: 0.02651147753 | F90: 47 | G90: 0.01031814273 | H90: 43.76 | I90: 0.01838491971 | J90: 67.86 | K90: 0.02911737944 | L90: 62.84 | M90: 0.02662963568 | N90: 44.4 | O90: -0.004037685061 | R90: 806.92 | S90: 0.007642357642 | T90: 59.69 | U90: 0.007766334628 | V90: 25383.11 | W90: -0.000690140091 | X90: 3044.3052 | Y90: 0.004809697593
A91: 43983 | B91: 81.16 | C91: -0.01036458968 | D91: 127.77 | E91: 0.006062992126 | F91: 46.24 | G91: -0.01617021277 | H91: 43.2 | I91: -0.01279707495 | J91: 67.26 | K91: -0.00884173298 | L91: 62.73 | M91: -0.001750477403 | N91: 43.55 | O91: -0.01914414414 | R91: 815.33 | S91: 0.0104223467 | T91: 60.4 | U91: 0.01189478975 | V91: 25475.02 | W91: 0.003620911701 | X91: 3055.7329 | Y91: 0.003753795776
A92: 43984 | B92: 80.92 | C92: -0.002957121735 | D92: 130.09 | E92: 0.01815762699 | F92: 46.69 | G92: 0.00973183391 | H92: 44.44 | I92: 0.0287037037 | J92: 68.29 | K92: 0.015313708 | L92: 63.52 | M92: 0.01259365535 | N92: 44.5 | O92: 0.02181400689 | R92: 820.4 | S92: 0.00621834104 | T92: 60.79 | U92: 0.006456953642 | V92: 25742.65 | W92: 0.01050558547 | X92: 3080.8222 | Y92: 0.008210567095
A93: 43985 | B93: 81.48 | C93: 0.006920415225 | D93: 132.35 | E93: 0.01737258821 | F93: 47.31 | G93: 0.01327907475 | H93: 45.11 | I93: 0.01507650765 | J93: 69.74 | K93: 0.02123297701 | L93: 64.87 | M93: 0.02125314861 | N93: 46.13 | O93: 0.03662921348 | R93: 831.27 | S93: 0.01324963432 | T93: 61.52 | U93: 0.01200855404 | V93: 26269.89 | W93: 0.02048118589 | X93: 3122.8702 | Y93: 0.01364830466
A94: 43986 | B94: 81.08 | C94: -0.004909180167 | D94: 130.7 | E94: -0.01246694371 | F94: 47.3 | G94: -0.000211371803 | H94: 44.51 | I94: -0.01330082022 | J94: 68.45 | K94: -0.0184972756 | L94: 63.89 | M94: -0.01510713735 | N94: 45.11 | O94: -0.02211142424 | R94: 814.06 | S94: -0.02070326127 | T94: 60.42 | U94: -0.01788036411 | V94: 26281.82 | W94: 0.0004541320881 | X94: 3112.3464 | Y94: -0.003369912717
A95: 43987 | B95: 82.39 | C95: 0.01615688209 | D95: 131.56 | E95: 0.006579954093 | F95: 48.45 | G95: 0.02431289641 | H95: 45.67 | I95: 0.0260615592 | J95: 69.95 | K95: 0.0219138057 | L95: 65.22 | M95: 0.02081702927 | N95: 46.85 | O95: 0.03857237863 | R95: 826.52 | S95: 0.0153059971 | T95: 61.19 | U95: 0.01274412446 | V95: 27110.98 | W95: 0.03154880446 | X95: 3193.9278 | Y95: 0.02621218512
A96: 43990 | B96: 81.59 | C96: -0.009709916252 | D96: 132.5 | E96: 0.007145028884 | F96: 48.01 | G96: -0.009081527348 | H96: 46.61 | I96: 0.02058243924 | J96: 69.42 | K96: -0.0075768406 | L96: 65.58 | M96: 0.005519779209 | N96: 46.87 | O96: 0.0004268943436 | R96: 847.26 | S96: 0.02509316169 | T96: 62.83 | U96: 0.02680176499 | V96: 27572.44 | W96: 0.01702114789 | X96: 3232.3857 | Y96: 0.01204094219
A97: 43991 | B97: 79.5 | C97: -0.0256158843 | D97: 130.7 | E97: -0.01358490566 | F97: 47.5 | G97: -0.01062278692 | H97: 46.06 | I97: -0.01180004291 | J97: 68.75 | K97: -0.009651397292 | L97: 65.93 | M97: 0.005336992986 | N97: 45.97 | O97: -0.01920204822 | R97: 830.34 | S97: -0.01997025706 | T97: 61.57 | U97: -0.02005411428 | V97: 27272.3 | W97: -0.01088550741 | X97: 3207.1781 | Y97: -0.007798450538
A98: 43992 | B98: 79.85 | C98: 0.004402515723 | D98: 131.06 | E98: 0.002754399388 | F98: 47.58 | G98: 0.001684210526 | H98: 45.72 | I98: -0.007381676075 | J98: 68.85 | K98: 0.001454545455 | L98: 64.85 | M98: -0.01638101016 | N98: 45.63 | O98: -0.00739612791 | R98: 824.72 | S98: -0.006768311776 | T98: 61.21 | U98: -0.005847003411 | V98: 26989.99 | W98: -0.01035152884 | X98: 3190.136 | Y98: -0.005313736708
A99: 43993 | B99: 75.57 | C99: -0.05360050094 | D99: 127.5 | E99: -0.02716313139 | F99: 45.49 | G99: -0.04392601934 | H99: 43.54 | I99: -0.04768153981 | J99: 67.68 | K99: -0.01699346405 | L99: 63.04 | M99: -0.02791056284 | N99: 43.09 | O99: -0.05566513259 | R99: 793.23 | S99: -0.03818265593 | T99: 58.82 | U99: -0.03904590753 | V99: 25128.17 | W99: -0.06898187069 | X99: 3002.0954 | Y99: -0.05894438356
A100: 43994 | B100: 76.49 | C100: 0.01217414318 | D100: 127.29 | E100: -0.001647058824 | F100: 45.95 | G100: 0.01011211255 | H100: 43.97 | I100: 0.009875976114 | J100: 68.04 | K100: 0.005319148936 | L100: 62.78 | M100: -0.004124365482 | N100: 43.74 | O100: 0.01508470643 | R100: 793 | S100: -0.0002899537335 | T100: 58.67 | U100: -0.002550153009 | V100: 25605.539 | W100: 0.01899736431 | X100: 3041.3123 | Y100: 0.01306317581
A101: 43997 | B101: 78.95 | C101: 0.03216106681 | D101: 129.22 | E101: 0.01516222798 | F101: 47.31 | G101: 0.02959738847 | H101: 44.67 | I101: 0.01591994542 | J101: 70.56 | K101: 0.03703703704 | L101: 63.87 | M101: 0.01736221727 | N101: 46.8 | O101: 0.06995884774 | R101: 799.76 | S101: 0.008524590164 | T101: 59.07 | U101: 0.006817794443 | V101: 25763.16 | W101: 0.006155738413 | X101: 3066.5888 | Y101: 0.008311050463
A102: 43998 | B102: 78.38 | C102: -0.007219759341 | D102: 129.66 | E102: 0.003405045659 | F102: 47.02 | G102: -0.006129782287 | H102: 43.98 | I102: -0.01544660846 | J102: 69.38 | K102: -0.01672335601 | L102: 63.42 | M102: -0.007045561296 | N102: 45.61 | O102: -0.02542735043 | R102: 802.37 | S102: 0.003263479044 | T102: 59.34 | U102: 0.004570848146 | V102: 26289.98 | W102: 0.02044857851 | X102: 3124.7399 | Y102: 0.01896279671
A103: 43999 | B103: 77.65 | C103: -0.009313600408 | D103: 129.86 | E103: 0.001542495758 | F103: 46.76 | G103: -0.005529561889 | H103: 43.59 | I103: -0.008867667121 | J103: 68.56 | K103: -0.011818968 | L103: 63.11 | M103: -0.004888047934 | N103: 45.18 | O103: -0.009427757071 | R103: 800.36 | S103: -0.002505078704 | T103: 59.16 | U103: -0.003033367037 | V103: 26119.61 | W103: -0.006480415733 | X103: 3113.4891 | Y103: -0.003600555681
A104: 44000 | B104: 77.59 | C104: -0.0007726980039 | D104: 129.17 | E104: -0.005313414446 | F104: 46.9 | G104: 0.002994011976 | H104: 43.6 | I104: 0.0002294104152 | J104: 68.1 | K104: -0.006709451575 | L104: 61.97 | M104: -0.0180636983 | N104: 45.37 | O104: 0.00420540062 | R104: 798.74 | S104: -0.00202408916 | T104: 59.15 | U104: -0.0001690331305 | V104: 26080.1 | W104: -0.001512656583 | X104: 3115.3448 | Y104: 0.0005960194304
A105: 44001 | B105: 77 | C105: =(B105-B104)/B104 -> -0.00760407269 | D105: 126.36 | E105: =IFERROR((D105-D104)/D104, "NA") -> -0.02175427731 | F105: 45.83 | G105: =(F105-F104)/F104 -> -0.02281449893 | H105: 42.01 | I105: =(H105-H104)/H104 -> -0.03646788991 | J105: 67.54 | K105: =(J105-J104)/J104 -> -0.008223201175 | L105: 61.22 | M105: =(L105-L104)/L104 -> -0.0121026303 | N105: 46.38 | O105: =(N105-N104)/N104 -> 0.02226140622 | R105: 770.61 | S105: =(R105-R104)/R104 -> -0.0352179683 | T105: 57.49 | U105: =(T105-T104)/T104 -> -0.02806424345 | V105: 25871.46 | W105: =(V105-V104)/V104 -> -0.007999969325 | X105: 3097.7425 | Y105: =(X105-X104)/X104 -> -0.005650193199
A106: 44004 | B106: 77.63 | C106: 0.008181818182 | D106: 126.83 | E106: 0.003719531497 | F106: 46.43 | G106: 0.01309186123 | H106: 41.98 | I106: -0.0007141156867 | J106: 66.48 | K106: -0.01569440332 | L106: 60.62 | M106: -0.009800718719 | N106: 45.93 | O106: -0.009702457956 | R106: 780.42 | S106: 0.0127301748 | T106: 57.57 | U106: 0.001391546356 | V106: 26024.96 | W106: 0.005933178877 | X106: 3117.8608 | Y106: 0.006494503659
A107: 44005 | B107: 77.32 | C107: -0.003993301559 | D107: 125.22 | E107: -0.01269415753 | F107: 45.9 | G107: -0.01141503338 | H107: 41.64 | I107: -0.008099094807 | J107: 66.31 | K107: -0.002557160048 | L107: 61.15 | M107: 0.008742989113 | N107: 46.91 | O107: 0.0213368169 | R107: 773.47 | S107: -0.008905461162 | T107: 56.99 | U107: -0.01007469168 | V107: 26156.1 | W107: 0.005039008705 | X107: 3131.2856 | Y107: 0.004305772727
A108: 44006 | B108: 76.57 | C108: -0.009699948267 | D108: 124.4 | E108: -0.006548474685 | F108: 45.57 | G108: -0.007189542484 | H108: 41.43 | I108: -0.005043227666 | J108: 64.73 | K108: -0.023827477 | L108: 59.85 | M108: -0.02125919869 | N108: 46.29 | O108: -0.01321679812 | R108: 767.6 | S108: -0.007589176051 | T108: 56.47 | U108: -0.009124407791 | V108: 25445.94 | W108: -0.02715083671 | X108: 3050.3347 | Y108: -0.02585228891
A109: 44007 | B109: 75.67 | C109: -0.01175395063 | D109: 122.22 | E109: -0.01752411576 | F109: 45.38 | G109: -0.004169409699 | H109: 40.74 | I109: -0.01665459812 | J109: 63.76 | K109: -0.01498532365 | L109: 59.59 | M109: -0.004344193818 | N109: 47.3 | O109: 0.02181896738 | R109: 757.34 | S109: -0.01336633663 | T109: 55.77 | U109: -0.01239596246 | V109: 25745.6 | W109: 0.01177633839 | X109: 3083.7577 | Y109: 0.01095715824
A110: 44008 | B110: 73.85 | C110: -0.02405180389 | D110: 124.08 | E110: 0.01521845852 | F110: 44.28 | G110: -0.0242397532 | H110: 41.14 | I110: 0.009818360334 | J110: 61.5 | K110: -0.03544542033 | L110: 57.02 | M110: -0.04312804162 | N110: 47.53 | O110: 0.004862579281 | R110: 749.4 | S110: -0.01048406264 | T110: 55.18 | U110: -0.01057916443 | V110: 25015.55 | W110: -0.02835630166 | X110: 3009.0524 | Y110: -0.02422541174
A111: 44011 | B111: 77.29 | C111: 0.04658090724 | D111: 125.37 | E111: 0.01039651838 | F111: 46.39 | G111: 0.04765130985 | H111: 41.67 | I111: 0.01288283909 | J111: 65.92 | K111: 0.0718699187 | L111: 60.01 | M111: 0.05243774114 | N111: 47.02 | O111: -0.01073006522 | R111: 764.39 | S111: 0.0200026688 | T111: 56.22 | U111: 0.01884740848 | V111: 25595.8 | W111: 0.02319557235 | X111: 3053.2389 | Y111: 0.01468452327
A112: 44012 | B112: 78.63 | C112: 0.01733730107 | D112: 128.66 | E112: 0.02624232272 | F112: 47.7 | G112: 0.02823884458 | H112: 42.24 | I112: 0.01367890569 | J112: 67.18 | K112: 0.01911407767 | L112: 62.11 | M112: 0.03499416764 | N112: 47.96 | O112: 0.01999149298 | R112: 767.5 | S112: 0.004068603723 | T112: 56.43 | U112: 0.003735325507 | V112: 25812.88 | W112: 0.008481078927 | X112: 3100.2851 | Y112: 0.01540862066
A113: 44013 | B113: 78.47 | C113: -0.002034846751 | D113: 130.62 | E113: 0.01523394995 | F113: 48.03 | G113: 0.006918238994 | H113: 43.31 | I113: 0.02533143939 | J113: 67.21 | K113: 0.0004465614766 | L113: 62.5 | M113: 0.006279182096 | N113: 48.04 | O113: 0.001668056714 | R113: 785.15 | S113: 0.02299674267 | T113: 57.75 | U113: 0.02339181287 | V113: 25734.97 | W113: -0.003018260651 | X113: 3115.8584 | Y113: 0.00502318319
A114: 44014 | B114: 79.59 | C114: 0.01427297056 | D114: 131.06 | E114: 0.003368549992 | F114: 48.35 | G114: 0.006662502603 | H114: 43.44 | I114: 0.003001616255 | J114: 67.65 | K114: 0.006546644845 | L114: 63.44 | M114: 0.01504 | N114: 48.87 | O114: 0.01727726894 | R114: 786.89 | S114: 0.002216137044 | T114: 57.9 | U114: 0.002597402597 | V114: 25827.36 | W114: 0.003590056643 | X114: 3130.0127 | Y114: 0.004542664712
A115: 44018 | B115: 78.27 | C115: -0.01658499812 | D115: 131.04 | E115: -0.0001526018617 | F115: 48.19 | G115: -0.003309203723 | H115: 43.68 | I115: 0.005524861878 | J115: 66.6 | K115: -0.0155210643 | L115: 62.12 | M115: -0.02080706179 | N115: 47.72 | O115: -0.02353181911 | R115: 779.03 | S115: -0.009988689652 | T115: 57.19 | U115: -0.01226252159 | V115: 26287.03 | W115: 0.01779779273 | X115: 3179.7188 | Y115: 0.0158804787
A116: 44019 | B116: 77.27 | C116: -0.01277628721 | D116: 130.31 | E116: -0.005570818071 | F116: 47.79 | G116: -0.008300477277 | H116: 42.9 | I116: -0.01785714286 | J116: 64.58 | K116: -0.03033033033 | L116: 61.28 | M116: -0.01352221507 | N116: 46.24 | O116: -0.03101424979 | R116: 775.59 | S116: -0.004415747789 | T116: 56.96 | U116: -0.004021682112 | V116: 25890.18 | W116: -0.01509679869 | X116: 3145.318 | Y116: -0.01081881832
A117: 44020 | B117: 77.52 | C117: 0.003235408309 | D117: 131.76 | E117: 0.01112731179 | F117: 47.69 | G117: -0.002092487968 | H117: 43.1 | I117: 0.004662004662 | J117: 64.44 | K117: -0.002167853825 | L117: 61.64 | M117: 0.005874673629 | N117: 46.46 | O117: 0.004757785467 | R117: 783.15 | S117: 0.009747418095 | T117: 57.47 | U117: 0.008953651685 | V117: 26067.28 | W117: 0.006840431391 | X117: 3169.9432 | Y117: 0.007829160676
A118: 44021 | B118: 76.44 | C118: -0.01393188854 | D118: 130.69 | E118: -0.008120825744 | F118: 46.71 | G118: -0.02054938142 | H118: 42.53 | I118: -0.013225058 | J118: 62.54 | K118: -0.02948479205 | L118: 60.98 | M118: -0.0107073329 | N118: 45.27 | O118: -0.02561343091 | R118: 774.23 | S118: -0.01138989976 | T118: 56.7 | U118: -0.01339829476 | V118: 25706.09 | W118: -0.01385606784 | X118: 3152.0486 | Y118: -0.005645085376
A119: 44022 | B119: 77.87 | C119: 0.01870748299 | D119: 133.39 | E119: 0.0206595761 | F119: 47.99 | G119: 0.02740312567 | H119: 43.28 | I119: 0.01763461086 | J119: 63.64 | K119: 0.0175887432 | L119: 62.03 | M119: 0.01721876025 | N119: 46.34 | O119: 0.02363596201 | R119: 791.35 | S119: 0.02211229221 | T119: 57.77 | U119: 0.0188712522 | V119: 26075.3 | W119: 0.01436274439 | X119: 3185.0423 | Y119: 0.01046738302
A120: 44025 | B120: 76.91 | C120: -0.01232823937 | D120: 132.97 | E120: -0.003148661819 | F120: 46.95 | G120: -0.0216711815 | H120: 43.37 | I120: 0.00207948244 | J120: 62.76 | K120: -0.01382778127 | L120: 62.12 | M120: 0.00145091085 | N120: 45.92 | O120: -0.009063444109 | R120: 791.24 | S120: -0.0001390029696 | T120: 57.83 | U120: 0.00103860135 | V120: 26085.8 | W120: 0.0004026799308 | X120: 3155.2236 | Y120: -0.009362104861
A121: 44026 | B121: 76.57 | C121: -0.004420751528 | D121: 134.84 | E121: 0.01406332255 | F121: 47.47 | G121: 0.01107561235 | H121: 43.38 | I121: 0.0002305741296 | J121: 63.06 | K121: 0.004780114723 | L121: 62.7 | M121: 0.009336767547 | N121: 46.72 | O121: 0.01742160279 | R121: 799.91 | S121: 0.01095748445 | T121: 58.37 | U121: 0.009337713989 | V121: 26642.59 | W121: 0.02134456294 | X121: 3197.5224 | Y121: 0.01340595956
A122: 44027 | B122: 77.21 | C122: 0.008358364895 | D122: 134.06 | E122: -0.00578463364 | F122: 48 | G122: 0.01116494628 | H122: 43.04 | I122: -0.007837713232 | J122: 64.02 | K122: 0.01522359657 | L122: 62.63 | M122: -0.001116427432 | N122: 47.32 | O122: 0.01284246575 | R122: 796.47 | S122: -0.004300483804 | T122: 58.14 | U122: -0.003940380332 | V122: 26870.1 | W122: 0.008539334952 | X122: 3226.5593 | Y122: 0.009081062262
A123: 44028 | B123: 77.59 | C123: 0.004921642274 | D123: 138.32 | E123: 0.03177681635 | F123: 48.28 | G123: 0.005833333333 | H123: 43.88 | I123: 0.01951672862 | J123: 64.68 | K123: 0.01030927835 | L123: 63.02 | M123: 0.006227047741 | N123: 47.72 | O123: 0.008453085376 | R123: 809.52 | S123: 0.01638479792 | T123: 58.88 | U123: 0.01272789818 | V123: 26734.71 | W123: -0.005038686123 | X123: 3215.574 | Y123: -0.003404648413
A124: 44029 | B124: 79.92 | C124: 0.030029643 | D124: 141.22 | E124: 0.02096587623 | F124: 49.32 | G124: 0.02154101077 | H124: 44.71 | I124: 0.01891522334 | J124: 66.53 | K124: 0.02860235003 | L124: 65.06 | M124: 0.03237067598 | N124: 49.93 | O124: 0.04631181894 | R124: 828.6 | S124: 0.02356952268 | T124: 60.21 | U124: 0.02258831522 | V124: 26671.95 | W124: -0.002347510035 | X124: 3224.7307 | Y124: 0.002847609789
A125: 44032 | B125: 78.89 | C125: -0.01288788789 | D125: 139.71 | E125: -0.01069253647 | F125: 48.55 | G125: -0.01561232766 | H125: 44.41 | I125: -0.006709908298 | J125: 66.08 | K125: -0.006763865925 | L125: 63.83 | M125: -0.01890562558 | N125: 49.87 | O125: -0.001201682355 | R125: 817.04 | S125: -0.01395124306 | T125: 59.42 | U125: -0.01312074406 | V125: 26680.87 | W125: 0.0003344337403 | X125: 3251.8421 | Y125: 0.008407337704
A126: 44033 | B126: 80.66 | C126: 0.02243630371 | D126: 141.18 | E126: 0.01052179515 | F126: 49.67 | G126: 0.02306900103 | H126: 44.7 | I126: 0.006530060797 | J126: 67 | K126: 0.01392251816 | L126: 64.75 | M126: 0.01441328529 | N126: 50.65 | O126: 0.01564066573 | R126: 820.47 | S126: 0.004198080877 | T126: 59.69 | U126: 0.004543924605 | V126: 26840.4 | W126: 0.005979190334 | X126: 3257.298 | Y126: 0.001677787492
A127: 44034 | B127: 80.96 | C127: 0.003719315646 | D127: 143.79 | E127: 0.01848703782 | F127: 50.02 | G127: 0.007046506946 | H127: 45.71 | I127: 0.0225950783 | J127: 67.15 | K127: 0.00223880597 | L127: 65.61 | M127: 0.01328185328 | N127: 49.25 | O127: -0.02764067127 | R127: 829.5 | S127: 0.01100588687 | T127: 60.61 | U127: 0.015412967 | V127: 27005.84 | W127: 0.006163842566 | X127: 3276.016 | Y127: 0.005746480672
A128: 44035 | B128: 81.34 | C128: 0.004693675889 | D128: 144.89 | E128: 0.007650045205 | F128: 50.54 | G128: 0.01039584166 | H128: 45.88 | I128: 0.003719098665 | J128: 67.11 | K128: -0.0005956813105 | L128: 65.91 | M128: 0.004572473708 | N128: 48.45 | O128: -0.01624365482 | R128: 830.7 | S128: 0.001446654611 | T128: 60.68 | U128: 0.00115492493 | V128: 26652.33 | W128: -0.01309013162 | X128: 3235.6632 | Y128: -0.01231764436
A129: 44036 | B129: 80.2 | C129: -0.01401524465 | D129: 144.52 | E129: -0.002553661398 | F129: 49.72 | G129: -0.01622477246 | H129: 45.7 | I129: -0.003923278117 | J129: 66.95 | K129: -0.002384145433 | L129: 64.71 | M129: -0.01820664543 | N129: 48.46 | O129: 0.0002063983488 | R129: 825.74 | S129: -0.005970867943 | T129: 60.28 | U129: -0.006591957811 | V129: 26469.891 | W129: -0.00684514262 | X129: 3215.6298 | Y129: -0.006191435499
A130: 44039 | B130: 79.21 | C130: -0.01234413965 | D130: 144.33 | E130: -0.001314696928 | F130: 49.25 | G130: -0.009452936444 | H130: 45.26 | I130: -0.009628008753 | J130: 66.08 | K130: -0.01299477222 | L130: 64.14 | M130: -0.008808530366 | N130: 48.43 | O130: -0.000619067272 | R130: 813.02 | S130: -0.01540436457 | T130: 59.55 | U130: -0.01211015262 | V130: 26584.77 | W130: 0.004339987649 | X130: 3239.4063 | Y130: 0.007394041441
A131: 44040 | B131: 79.22 | C131: 0.000126246686 | D131: 145.36 | E131: 0.007136423474 | F131: 48.95 | G131: -0.006091370558 | H131: 45.54 | I131: 0.006186478126 | J131: 65.92 | K131: -0.002421307506 | L131: 64.69 | M131: 0.008574992205 | N131: 48.13 | O131: -0.006194507537 | R131: 825.47 | S131: 0.01531327643 | T131: 60.45 | U131: 0.01511335013 | V131: 26379.28 | W131: -0.00772961361 | X131: 3218.4352 | Y131: -0.006473747983
A132: 44041 | B132: 79.87 | C132: 0.008204998738 | D132: 147.99 | E132: 0.01809301046 | F132: 49.38 | G132: 0.008784473953 | H132: 45.87 | I132: 0.007246376812 | J132: 67.36 | K132: 0.02184466019 | L132: 65.23 | M132: 0.008347503478 | N132: 48.44 | O132: 0.006440889258 | R132: 828.96 | S132: 0.004227894412 | T132: 60.73 | U132: 0.004631927213 | V132: 26539.57 | W132: 0.006076359931 | X132: 3258.439 | Y132: 0.01242958069
A133: 44042 | B133: 78.33 | C133: -0.01928133216 | D133: 146.63 | E133: -0.009189810122 | F133: 48.04 | G133: -0.02713649251 | H133: 45.55 | I133: -0.006976237192 | J133: 64.9 | K133: -0.03652019002 | L133: 63.57 | M133: -0.02544841331 | N133: 47.21 | O133: -0.02539223782 | R133: 828.13 | S133: -0.001001254584 | T133: 60.73 | U133: 0 | V133: 26313.65 | W133: -0.008512571982 | X133: 3246.2246 | Y133: -0.003748543398
A134: 44043 | B134: 76.88 | C134: -0.01851142602 | D134: 147.27 | E134: 0.004364727546 | F134: 46.87 | G134: -0.02435470441 | H134: 45.35 | I134: -0.004390779363 | J134: 64.06 | K134: -0.01294298921 | L134: 62.46 | M134: -0.01746106654 | N134: 46.31 | O134: -0.01906375768 | R134: 830.77 | S134: 0.003187905281 | T134: 60.83 | U134: 0.001646632636 | V134: 26428.32 | W134: 0.00435781429 | X134: 3271.1249 | Y134: 0.007670541342
A135: 44046 | B135: 77 | C135: 0.001560874089 | D135: 147.06 | E135: -0.001425952332 | F135: 46.98 | G135: 0.002346917004 | H135: 44.93 | I135: -0.009261300992 | J135: 66.02 | K135: 0.03059631595 | L135: 62.66 | M135: 0.003202049312 | N135: 45.64 | O135: -0.01446771756 | R135: 822.34 | S135: -0.01014721283 | T135: 60.17 | U135: -0.01084990958 | V135: 26664.4 | W135: 0.008932841739 | X135: 3294.6134 | Y135: 0.007180557367
A136: 44047 | B136: 76.03 | C136: -0.0125974026 | D136: 147.5 | E136: 0.002991976064 | F136: 46.65 | G136: -0.007024265645 | H136: 45.09 | I136: 0.003561095037 | J136: 65.6 | K136: -0.006361708573 | L136: 63.23 | M136: 0.009096712416 | N136: 45.04 | O136: -0.01314636284 | R136: 832.49 | S136: 0.01234282657 | T136: 60.83 | U136: 0.01096892139 | V136: 26828.47 | W136: 0.006153148018 | X136: 3306.5076 | Y136: 0.003610195964
A137: 44048 | B137: 76.64 | C137: =(B137-B136)/B136 -> 0.008023148757 | D137: 147.25 | E137: =IFERROR((D137-D136)/D136, "NA") -> -0.001694915254 | F137: 46.91 | G137: =(F137-F136)/F136 -> 0.005573419078 | H137: 44.69 | I137: =(H137-H136)/H136 -> -0.008871146596 | J137: 65.74 | K137: =(J137-J136)/J136 -> 0.002134146341 | L137: 63.96 | M137: =(L137-L136)/L136 -> 0.01154515262 | N137: 45.01 | O137: =(N137-N136)/N136 -> -0.0006660746004 | R137: 825.37 | S137: =(R137-R136)/R136 -> -0.008552655287 | T137: 60.05 | U137: =(T137-T136)/T136 -> -0.01282262042 | V137: 27201.52 | W137: =(V137-V136)/V136 -> 0.01390500465 | X137: 3327.7711 | Y137: =(X137-X136)/X136 -> 0.006430803304
A138: 44049 | B138: 76.65 | C138: 0.000130480167 | D138: 146.97 | E138: -0.001901528014 | F138: 46.96 | G138: 0.001065870816 | H138: 45.56 | I138: 0.01946744238 | J138: 66.1 | K138: 0.005476118041 | L138: 64.76 | M138: 0.01250781739 | N138: 45.98 | O138: 0.0215507665 | R138: 828.87 | S138: 0.004240522432 | T138: 60.4 | U138: 0.00582847627 | V138: 27386.98 | W138: 0.006818001347 | X138: 3349.156 | Y138: 0.006426193196
A139: 44050 | B139: 79.87 | C139: 0.04200913242 | D139: 149.79 | E139: 0.0191875893 | F139: 48.82 | G139: 0.03960817717 | H139: 47.27 | I139: 0.03753292362 | J139: 69.58 | K139: 0.05264750378 | L139: 70.04 | M139: 0.08153180976 | N139: 48.1 | O139: 0.04610700304 | R139: 843.23 | S139: 0.01732479158 | T139: 61.49 | U139: 0.01804635762 | V139: 27433.48 | W139: 0.001697887098 | X139: 3351.2832 | Y139: 0.0006351450933
A140: 44053 | B140: 79.85 | C140: -0.0002504069112 | D140: 149.11 | E140: -0.004539688898 | F140: 48.98 | G140: 0.00327734535 | H140: 47.81 | I140: 0.01142373598 | J140: 69.35 | K140: -0.003305547571 | L140: 71.06 | M140: 0.0145631068 | N140: 47.74 | O140: -0.007484407484 | R140: 841.03 | S140: -0.002609015334 | T140: 61.47 | U140: -0.0003252561392 | V140: 27791.44 | W140: 0.0130482899 | X140: 3360.4727 | Y140: 0.002742083987
A141: 44054 | B141: 78.13 | C141: -0.02154038823 | D141: 142.42 | E141: -0.04486620616 | F141: 47.93 | G141: -0.02143732136 | H141: 45.68 | I141: -0.04455134909 | J141: 67.83 | K141: -0.02191780822 | L141: 66.43 | M141: -0.06515620602 | N141: 47.09 | O141: -0.01361541684 | R141: 821.99 | S141: -0.02263890705 | T141: 60.14 | U141: -0.02163657068 | V141: 27686.91 | W141: -0.003761230077 | X141: 3333.6891 | Y141: -0.007970188242
A142: 44055 | B142: 80.29 | C142: 0.02764623064 | D142: 145.87 | E142: 0.02422412583 | F142: 48.63 | G142: 0.01460463175 | H142: 46.02 | I142: 0.007443082312 | J142: 68.16 | K142: 0.004865103936 | L142: 68.49 | M142: 0.0310100858 | N142: 48.15 | O142: 0.02251008707 | R142: 836.74 | S142: 0.01794425723 | T142: 61.01 | U142: 0.01446624543 | V142: 27976.84 | W142: 0.01047173556 | X142: 3380.3498 | Y142: 0.01399671613
A143: 44056 | B143: 78.95 | C143: -0.01668950056 | D143: 146.51 | E143: 0.004387468294 | F143: 48.37 | G143: -0.005346493934 | H143: 45.31 | I143: -0.01542807475 | J143: 67.91 | K143: -0.003667840376 | L143: 68.64 | M143: 0.002190100745 | N143: 47.33 | O143: -0.01703011423 | R143: 834.39 | S143: -0.002808518775 | T143: 60.91 | U143: -0.001639075561 | V143: 27896.72 | W143: -0.002863797341 | X143: 3373.4257 | Y143: -0.002048338311
A144: 44057 | B144: 78.74 | C144: -0.002659911336 | D144: 145.31 | E144: -0.008190567197 | F144: 48.44 | G144: 0.001447178003 | H144: 45.35 | I144: 0.0008828073273 | J144: 67.43 | K144: -0.007068178472 | L144: 69.05 | M144: 0.005973193473 | N144: 47.05 | O144: -0.005915909571 | R144: 824.87 | S144: -0.01140953271 | T144: 60.38 | U144: -0.008701362666 | V144: 27931.02 | W144: 0.001229535229 | X144: 3372.8468 | Y144: -0.0001716059731
A145: 44060 | B145: 78.67 | C145: -0.000889001778 | D145: 146.56 | E145: 0.008602298534 | F145: 48.24 | G145: -0.004128819158 | H145: 44.75 | I145: -0.01323042999 | J145: 66.81 | K145: -0.009194720451 | L145: 67.46 | M145: -0.02302679218 | N145: 47.02 | O145: -0.0006376195537 | R145: 823.96 | S145: -0.001103204141 | T145: 60.3 | U145: -0.001324942034 | V145: 27844.91 | W145: -0.003082952216 | X145: 3381.995 | Y145: 0.00271230819
A146: 44061 | B146: 78.12 | C146: -0.006991229185 | D146: 146 | E146: -0.003820960699 | F146: 48.16 | G146: -0.001658374793 | H146: 44.7 | I146: -0.001117318436 | J146: 66.55 | K146: -0.003891632989 | L146: 66.2 | M146: -0.01867773495 | N146: 46.28 | O146: -0.01573798384 | R146: 820.37 | S146: -0.004357007622 | T146: 60.03 | U146: -0.00447761194 | V146: 27778.07 | W146: -0.002400438716 | X146: 3389.775 | Y146: 0.002300417357
A147: 44062 | B147: 77.09 | C147: -0.01318484383 | D147: 143.92 | E147: -0.01424657534 | F147: 47.2 | G147: -0.01993355482 | H147: 43.97 | I147: -0.0163310962 | J147: 65.49 | K147: -0.01592787378 | L147: 64.82 | M147: -0.02084592145 | N147: 45.84 | O147: -0.009507346586 | R147: 817.16 | S147: -0.003912868584 | T147: 59.85 | U147: -0.00299850075 | V147: 27692.88 | W147: -0.003066807737 | X147: 3374.8503 | Y147: -0.004402858597
A148: 44063 | B148: 77.02 | C148: -0.0009080295758 | D148: 144.28 | E148: 0.002501389661 | F148: 47.11 | G148: -0.001906779661 | H148: 43.61 | I148: -0.0081874005 | J148: 65.24 | K148: -0.003817376699 | L148: 64.6 | M148: -0.003394014193 | N148: 45.8 | O148: -0.000872600349 | R148: 810.59 | S148: -0.008040041118 | T148: 59.32 | U148: -0.008855472013 | V148: 27739.73 | W148: 0.001691770592 | X148: 3385.5135 | Y148: 0.003159606813
A149: 44064 | B149: 76.51 | C149: -0.006621656713 | D149: 143.64 | E149: -0.00443581924 | F149: 46.63 | G149: -0.01018891955 | H149: 43.2 | I149: -0.009401513414 | J149: 64.79 | K149: -0.006897608829 | L149: 63.83 | M149: -0.01191950464 | N149: 45.65 | O149: -0.00327510917 | R149: 809.61 | S149: -0.001208995917 | T149: 59.42 | U149: 0.001685772084 | V149: 27930.33 | W149: 0.006871011362 | X149: 3397.1577 | Y149: 0.00343941916
A150: 44067 | B150: 77.78 | C150: 0.01659913737 | D150: 143.88 | E150: 0.001670843776 | F150: 47.12 | G150: 0.01050825649 | H150: 43.6 | I150: 0.009259259259 | J150: 64.78 | K150: -0.0001543448063 | L150: 64.18 | M150: 0.005483315056 | N150: 45.91 | O150: 0.00569550931 | R150: 817.71 | S150: 0.01000481713 | T150: 59.94 | U150: 0.008751262201 | V150: 28308.46 | W150: 0.01353832912 | X150: 3431.2821 | Y150: 0.01004498555
A151: 44068 | B151: 78.05 | C151: 0.003471329391 | D151: 143.53 | E151: -0.002432582708 | F151: 47.41 | G151: 0.006154499151 | H151: 43.28 | I151: -0.007339449541 | J151: 64.66 | K151: -0.001852423588 | L151: 63.83 | M151: -0.005453412278 | N151: 45.84 | O151: -0.001524722283 | R151: 810.8 | S151: -0.008450428636 | T151: 59.37 | U151: -0.00950950951 | V151: 28248.44 | W151: -0.00212021424 | X151: 3443.6221 | Y151: 0.003596323368
A152: 44069 | B152: 76.43 | C152: -0.02075592569 | D152: 140.9 | E152: -0.01832369539 | F152: 46.25 | G152: -0.02446741194 | H152: 42.62 | I152: -0.01524953789 | J152: 64.09 | K152: -0.008815341788 | L152: 62.92 | M152: -0.01425661914 | N152: 45.12 | O152: -0.01570680628 | R152: 798.89 | S152: -0.01468919586 | T152: 58.71 | U152: -0.01111672562 | V152: 28331.92 | W152: 0.002955207438 | X152: 3478.7323 | Y152: 0.01019571805
A153: 44070 | B153: 77.01 | C153: 0.007588643203 | D153: 141.37 | E153: 0.003335699077 | F153: 46.7 | G153: 0.00972972973 | H153: 42.4 | I153: -0.005161895824 | J153: 65.33 | K153: 0.01934779217 | L153: 63.47 | M153: 0.008741258741 | N153: 45.39 | O153: 0.005984042553 | R153: 800.69 | S153: 0.002253126213 | T153: 58.9 | U153: 0.003236245955 | V153: 28492.27 | W153: 0.005659694084 | X153: 3484.5503 | Y153: 0.001672448323
A154: 44071 | B154: 76.51 | C154: -0.00649266329 | D154: 140.79 | E154: -0.004102709203 | F154: 46.05 | G154: -0.01391862955 | H154: 42.62 | I154: 0.005188679245 | J154: 64.83 | K154: -0.007653451707 | L154: 63.4 | M154: -0.001102883252 | N154: 44.87 | O154: -0.0114562679 | R154: 800.73 | S154: 4.995691216e-05 | T154: 59.07 | U154: 0.002886247878 | V154: 28653.87 | W154: 0.005671713767 | X154: 3508.0147 | Y154: 0.006733838797
A155: 44074 | B155: 76.08 | C155: -0.005620180369 | D155: 141.34 | E155: 0.003906527452 | F155: 45.34 | G155: -0.01541802389 | H155: 42.5 | I155: -0.00281557954 | J155: 64.13 | K155: -0.01079747031 | L155: 62.53 | M155: -0.01372239748 | N155: 45.61 | O155: 0.01649208825 | R155: 803.22 | S155: 0.003109662433 | T155: 59.25 | U155: 0.003047232098 | V155: 28430.05 | W155: -0.007811161285 | X155: 3500.3085 | Y155: -0.00219674108
A156: 44075 | B156: 75.2 | C156: -0.01156677182 | D156: 140.17 | E156: -0.008277911419 | F156: 44.86 | G156: -0.01058667843 | H156: 41.91 | I156: -0.01388235294 | J156: 64.1 | K156: -0.0004677997817 | L156: 61.52 | M156: -0.01615224692 | N156: 44.82 | O156: -0.01732076299 | R156: 794.08 | S156: -0.01137919873 | T156: 58.57 | U156: -0.01147679325 | V156: 28645.66 | W156: 0.007583876919 | X156: 3526.6513 | Y156: 0.007525850936
A157: 44076 | B157: 77.23 | C157: 0.02699468085 | D157: 144.15 | E157: 0.02839409289 | F157: 45.96 | G157: 0.02452073116 | H157: 42.21 | I157: 0.007158196135 | J157: 65.41 | K157: 0.02043681747 | L157: 63.24 | M157: 0.02795838752 | N157: 45.86 | O157: 0.02320392682 | R157: 818.68 | S157: 0.03097924642 | T157: 60.39 | U157: 0.03107392863 | V157: 29100.5 | W157: 0.01587814699 | X157: 3580.8443 | Y157: 0.01536670212
A158: 44077 | B158: 77.35 | C158: 0.001553800337 | D158: 142.48 | E158: -0.01158515435 | F158: 45.95 | G158: -0.0002175805048 | H158: 41.99 | I158: -0.005212035063 | J158: 64.52 | K158: -0.01360648219 | L158: 62.8 | M158: -0.006957621758 | N158: 45.18 | O158: -0.01482773659 | R158: 808.12 | S158: -0.01289881272 | T158: 59.71 | U158: -0.01126014241 | V158: 28292.73 | W158: -0.0277579423 | X158: 3455.0649 | Y158: -0.03512562666
A159: 44078 | B159: 76.99 | C159: -0.00465416936 | D159: 143.17 | E159: 0.004842784952 | F159: 45.88 | G159: -0.001523394995 | H159: 41.59 | I159: -0.009526077638 | J159: 63.9 | K159: -0.009609423435 | L159: 62.41 | M159: -0.006210191083 | N159: 44.65 | O159: -0.01173085436 | R159: 803.7 | S159: -0.00546948473 | T159: 59.37 | U159: -0.005694188578 | V159: 28133.31 | W159: -0.005634663039 | X159: 3426.9639 | Y159: -0.008133277033
A160: 44082 | B160: 75.3 | C160: -0.02195090271 | D160: 140.77 | E160: -0.0167632884 | F160: 45.16 | G160: -0.01569311247 | H160: 39.95 | I160: -0.0394325559 | J160: 62.36 | K160: -0.02410015649 | L160: 60.72 | M160: -0.02707899375 | N160: 43.74 | O160: -0.02038073908 | R160: 798.63 | S160: -0.006308324001 | T160: 59.04 | U160: -0.005558362809 | V160: 27500.89 | W160: -0.02247940253 | X160: 3331.8428 | Y160: -0.02775666823
A161: 44083 | B161: 75.64 | C161: 0.004515272244 | D161: 143.2 | E161: 0.01726220075 | F161: 44.92 | G161: -0.005314437555 | H161: 39.94 | I161: -0.0002503128911 | J161: 64.02 | K161: 0.02661962797 | L161: 61.08 | M161: 0.005928853755 | N161: 44.67 | O161: 0.02126200274 | R161: 809.51 | S161: 0.01362332995 | T161: 59.82 | U161: 0.01321138211 | V161: 27940.47 | W161: 0.01598420997 | X161: 3398.9593 | Y161: 0.02014395757
A162: 44084 | B162: 74.06 | C162: -0.02088841883 | D162: 140.77 | E162: -0.01696927374 | F162: 44.26 | G162: -0.01469278718 | H162: 39.22 | I162: -0.01802704056 | J162: 63.04 | K162: -0.01530771634 | L162: 60.17 | M162: -0.01489849378 | N162: 43.5 | O162: -0.02619207522 | R162: 796.34 | S162: -0.01626910106 | T162: 58.79 | U162: -0.01721832163 | V162: 27534.58 | W162: -0.01452695678 | X162: 3339.1851 | Y162: -0.01758602994
A163: 44085 | B163: 73.44 | C163: -0.008371590602 | D163: 141.1 | E163: 0.002344249485 | F163: 43.71 | G163: -0.01242657027 | H163: 39.35 | I163: 0.00331463539 | J163: 61.87 | K163: -0.01855964467 | L163: 59.72 | M163: -0.007478810038 | N163: 43.21 | O163: -0.006666666667 | R163: 799.93 | S163: 0.00450812467 | T163: 58.93 | U163: 0.002381357374 | V163: 27665.64 | W163: 0.004759832908 | X163: 3340.9662 | Y163: 0.0005333936115
A164: 44088 | B164: 73.55 | C164: 0.001497821351 | D164: 142.88 | E164: 0.01261516655 | F164: 43.75 | G164: 0.0009151223976 | H164: 39.82 | I164: 0.01194409149 | J164: 63.75 | K164: 0.03038629384 | L164: 60.29 | M164: 0.009544541192 | N164: 43.51 | O164: 0.006942837306 | R164: 810.94 | S164: 0.01376370432 | T164: 59.74 | U164: 0.01374512133 | V164: 27993.33 | W164: 0.0118446564 | X164: 3383.5416 | Y164: 0.01274343931
A165: 44089 | B165: 72.48 | C165: -0.01454792658 | D165: 143.59 | E165: 0.004969204927 | F165: 43.19 | G165: -0.0128 | H165: 39.41 | I165: -0.0102963335 | J165: 64.52 | K165: 0.01207843137 | L165: 60.08 | M165: -0.003483164704 | N165: 43.46 | O165: -0.001149161112 | R165: 818.68 | S165: 0.009544479246 | T165: 60.14 | U165: 0.006695681286 | V165: 27995.6 | W165: 8.109074555e-05 | X165: 3401.201 | Y165: 0.005219205817
A166: 44090 | B166: 72.36 | C166: -0.001655629139 | D166: 142.77 | E166: -0.005710704088 | F166: 43.19 | G166: 0 | H166: 39.6 | I166: 0.004821111393 | J166: 63.82 | K166: -0.01084934904 | L166: 60.84 | M166: 0.01264980027 | N166: 43.13 | O166: -0.007593189139 | R166: 814.51 | S166: -0.005093565251 | T166: 60.06 | U166: -0.001330229465 | V166: 28032.38 | W166: 0.001313777879 | X166: 3385.491 | Y166: -0.004618956657
A167: 44091 | B167: 71.23 | C167: -0.01561636263 | D167: 141.02 | E167: -0.01225747706 | F167: 42.27 | G167: -0.02130122714 | H167: 39.77 | I167: 0.004292929293 | J167: 62.8 | K167: -0.01598245064 | L167: 61.1 | M167: 0.004273504274 | N167: 42.87 | O167: -0.006028286575 | R167: 810.81 | S167: -0.004542608439 | T167: 59.57 | U167: -0.008158508159 | V167: 27901.98 | W167: -0.004651763425 | X167: 3357.01 | Y167: -0.008412664515
A168: 44092 | B168: 69.99 | C168: -0.01740839534 | D168: 138.28 | E168: -0.0194298681 | F168: 41.85 | G168: -0.009936124911 | H168: 39.19 | I168: -0.01458385718 | J168: 62.42 | K168: -0.006050955414 | L168: 59.91 | M168: -0.01947626841 | N168: 44.07 | O168: 0.02799160252 | R168: 797.95 | S168: -0.01586068253 | T168: 58.52 | U168: -0.01762632197 | V168: 27657.42 | W168: -0.008764969368 | X168: 3319.4658 | Y168: -0.01118382132
A169: 44095 | B169: 74.37 | C169: =(B169-B168)/B168 -> 0.06258036862 | D169: 139.72 | E169: =IFERROR((D169-D168)/D168, "NA") -> 0.01041365346 | F169: 42.79 | G169: =(F169-F168)/F168 -> 0.02246117085 | H169: 39.31 | I169: =(H169-H168)/H168 -> 0.003062005614 | J169: 62.09 | K169: =(J169-J168)/J168 -> -0.005286767062 | L169: 60.62 | M169: =(L169-L168)/L168 -> 0.01185111 | N169: 42.32 | O169: =(N169-N168)/N168 -> -0.03970955298 | R169: 793.72 | S169: =(R169-R168)/R168 -> -0.005301084028 | T169: 57.66 | U169: =(T169-T168)/T168 -> -0.01469583049 | V169: 27147.7 | W169: =(V169-V168)/V168 -> -0.018429774 | X169: 3281.059 | Y169: =(X169-X168)/X168 -> -0.01157017494
A170: 44096 | B170: 73.49 | C170: -0.01183272825 | D170: 140.17 | E170: 0.003220727169 | F170: 42.87 | G170: 0.0018695957 | H170: 39.39 | I170: 0.002035105571 | J170: 61.57 | K170: -0.008374939604 | L170: 60.66 | M170: 0.0006598482349 | N170: 41.87 | O170: -0.01063327032 | R170: 799.37 | S170: 0.007118379277 | T170: 58.02 | U170: 0.006243496358 | V170: 27288.18 | W170: 0.00517465568 | X170: 3315.5663 | Y170: 0.01051712267
A171: 44097 | B171: 72.03 | C171: -0.01986664852 | D171: 138.05 | E171: -0.01512449169 | F171: 41.66 | G171: -0.02822486587 | H171: 38.53 | I171: -0.02183295253 | J171: 59.64 | K171: -0.03134643495 | L171: 58.56 | M171: -0.03461918892 | N171: 40.67 | O171: -0.02866013852 | R171: 785.16 | S171: -0.01777649899 | T171: 57.13 | U171: -0.01533953809 | V171: 26763.13 | W171: -0.01924093142 | X171: 3236.9204 | Y171: -0.02372020128
A172: 44098 | B172: 72.92 | C172: 0.01235596279 | D172: 140.66 | E172: 0.01890619341 | F172: 42.23 | G172: 0.01368218915 | H172: 39.05 | I172: 0.01349597716 | J172: 60.63 | K172: 0.01659959759 | L172: 59.81 | M172: 0.02134562842 | N172: 41.14 | O172: 0.0115564298 | R172: 795.93 | S172: 0.01371694941 | T172: 57.77 | U172: 0.01120252057 | V172: 26815.44 | W172: 0.001954554643 | X172: 3246.5876 | Y172: 0.002986542394
A173: 44099 | B173: 73.84 | C173: 0.0126165661 | D173: 144.23 | E173: 0.02538034978 | F173: 42.73 | G173: 0.01183992422 | H173: 39.57 | I173: 0.0133162612 | J173: 61.57 | K173: 0.01550387597 | L173: 60.81 | M173: 0.0167196121 | N173: 41.86 | O173: 0.01750121536 | R173: 808.13 | S173: 0.0153279811 | T173: 58.72 | U173: 0.01644452138 | V173: 27173.96 | W173: 0.01336990928 | X173: 3298.4569 | Y173: 0.01597655951
A174: 44102 | B174: 74.33 | C174: 0.006635969664 | D174: 144.55 | E174: 0.0022186785 | F174: 43.55 | G174: 0.01919026445 | H174: 39.93 | I174: 0.009097801365 | J174: 62.37 | K174: 0.01299334091 | L174: 61.23 | M174: 0.006906758757 | N174: 43.39 | O174: 0.03655040612 | R174: 810.2 | S174: 0.002561469071 | T174: 58.87 | U174: 0.002554495913 | V174: 27584.06 | W174: 0.01509165392 | X174: 3351.5996 | Y174: 0.01611138226
A175: 44103 | B175: 74.45 | C175: 0.001614422171 | D175: 143.7 | E175: -0.005880318229 | F175: 43.44 | G175: -0.002525832377 | H175: 39.78 | I175: -0.003756574005 | J175: 62.48 | K175: 0.00176366843 | L175: 61.1 | M175: -0.002123142251 | N175: 42.95 | O175: -0.01014058539 | R175: 808.99 | S175: -0.001493458405 | T175: 58.85 | U175: -0.000339731612 | V175: 27452.66 | W175: -0.004763620729 | X175: 3335.4749 | Y175: -0.004811046045
A176: 44104 | B176: 74.95 | C176: 0.006715916723 | D176: 144.88 | E176: 0.008211551844 | F176: 43.45 | G176: 0.0002302025783 | H176: 40.25 | I176: 0.0118149824 | J176: 62.15 | K176: -0.005281690141 | L176: 60.86 | M176: -0.003927986907 | N176: 42.27 | O176: -0.01583236321 | R176: 814.7 | S176: 0.007058183661 | T176: 59.38 | U176: 0.009005947324 | V176: 27781.7 | W176: 0.01198572379 | X176: 3362.999 | Y176: 0.008251928384
A177: 44105 | B177: 76.1 | C177: 0.01534356237 | D177: 148.57 | E177: 0.02546935395 | F177: 44.64 | G177: 0.02738780207 | H177: 40.83 | I177: 0.01440993789 | J177: 63.42 | K177: 0.02043443282 | L177: 61.6 | M177: 0.01215905357 | N177: 42.6 | O177: 0.007806955287 | R177: 824.27 | S177: 0.01174665521 | T177: 59.98 | U177: 0.01010441226 | V177: 27816.9 | W177: 0.001267021097 | X177: 3380.7986 | Y177: 0.005292775882
A178: 44106 | B178: 76.72 | C178: 0.00814717477 | D178: 148.96 | E178: 0.002625025241 | F178: 44.9 | G178: 0.00582437276 | H178: 41.66 | I178: 0.02032819006 | J178: 63.02 | K178: -0.006307158625 | L178: 61.56 | M178: -0.0006493506494 | N178: 42.68 | O178: 0.001877934272 | R178: 832.49 | S178: 0.00997246048 | T178: 60.69 | U178: 0.01183727909 | V178: 27682.81 | W178: -0.004820450877 | X178: 3348.4437 | Y178: -0.009570194451
A179: 44109 | B179: 76.4 | C179: -0.00417101147 | D179: 151.89 | E179: 0.01966970999 | F179: 44.83 | G179: -0.001559020045 | H179: 41.78 | I179: 0.002880460874 | J179: 63.18 | K179: 0.002538876547 | L179: 61.93 | M179: 0.006010396361 | N179: 42.94 | O179: 0.006091846298 | R179: 844.57 | S179: 0.01451068481 | T179: 61.45 | U179: 0.01252265612 | V179: 28148.64 | W179: 0.01682741022 | X179: 3408.6268 | Y179: 0.01797345435
A180: 44110 | B180: 76.78 | C180: 0.00497382199 | D180: 152.49 | E180: 0.003950227138 | F180: 45.02 | G180: 0.004238233326 | H180: 41.13 | I180: -0.0155576831 | J180: 62.94 | K180: -0.003798670465 | L180: 60.11 | M180: -0.02938801873 | N180: 42.54 | O180: -0.009315323707 | R180: 850.89 | S180: 0.007483097908 | T180: 61.97 | U180: 0.008462164361 | V180: 27772.76 | W180: -0.01335339825 | X180: 3360.9521 | Y180: -0.01398648277
A181: 44111 | B181: 75.92 | C181: -0.01120083355 | D181: 154.51 | E181: 0.01324677028 | F181: 44.63 | G181: -0.008662816526 | H181: 41.03 | I181: -0.002431315342 | J181: 63.35 | K181: 0.006514140451 | L181: 61.27 | M181: 0.01929795375 | N181: 43.21 | O181: 0.01574988246 | R181: 859.99 | S181: 0.01069468439 | T181: 62.35 | U181: 0.006131999355 | V181: 28303.46 | W181: 0.01910865179 | X181: 3419.4493 | Y181: 0.01740494903
A182: 44112 | B182: 76.54 | C182: 0.008166491043 | D182: 155.85 | E182: 0.008672577827 | F182: 45.01 | G182: 0.008514452162 | H182: 41.71 | I182: 0.01657323909 | J182: 64.32 | K182: 0.01531176006 | L182: 61.27 | M182: 0 | N182: 43.66 | O182: 0.01041425596 | R182: 875.3 | S182: 0.01780253259 | T182: 63.49 | U182: 0.01828388132 | V182: 28425.51 | W182: 0.004312193633 | X182: 3446.8284 | Y182: 0.008006874089
A183: 44113 | B183: 76.67 | C183: 0.001698458322 | D183: 155.75 | E183: -0.0006416426051 | F183: 44.93 | G183: -0.001777382804 | H183: 41.64 | I183: -0.001678254615 | J183: 64.28 | K183: -0.0006218905473 | L183: 61.28 | M183: 0.0001632120124 | N183: 43.58 | O183: -0.001832340815 | R183: 875.81 | S183: 0.0005826573746 | T183: 63.48 | U183: -0.0001575051189 | V183: 28586.9 | W183: 0.005677646593 | X183: 3477.1343 | Y183: 0.008792401734
A184: 44116 | B184: 79.11 | C184: 0.03182470327 | D184: 158.32 | E184: 0.01650080257 | F184: 46.43 | G184: 0.03338526597 | H184: 42.25 | I184: 0.0146493756 | J184: 67.04 | K184: 0.04293714997 | L184: 62.56 | M184: 0.02088772846 | N184: 45.33 | O184: 0.04015603488 | R184: 882.82 | S184: 0.008004019137 | T184: 63.88 | U184: 0.006301197227 | V184: 28837.52 | W184: 0.008766952695 | X184: 3534.216 | Y184: 0.01641630581
A185: 44117 | B185: 78.28 | C185: -0.01049172039 | D185: 156.08 | E185: -0.01414855988 | F185: 45.72 | G185: -0.01529183717 | H185: 42.1 | I185: -0.003550295858 | J185: 65.52 | K185: -0.02267303103 | L185: 62.24 | M185: -0.005115089514 | N185: 45.02 | O185: -0.006838738143 | R185: 876.05 | S185: -0.007668607417 | T185: 63.44 | U185: -0.00688791484 | V185: 28679.81 | W185: -0.005468916883 | X185: 3511.9299 | Y185: -0.006305811529
A186: 44118 | B186: 77.37 | C186: -0.01162493613 | D186: 155.76 | E186: -0.002050230651 | F186: 45.36 | G186: -0.007874015748 | H186: 41.59 | I186: -0.01211401425 | J186: 64.65 | K186: -0.01327838828 | L186: 61.3 | M186: -0.01510282776 | N186: 44.48 | O186: -0.01199466904 | R186: 875.19 | S186: -0.0009816791279 | T186: 63.36 | U186: -0.001261034048 | V186: 28514 | W186: -0.005781419054 | X186: 3488.666 | Y186: -0.006624249533
A187: 44119 | B187: 77.31 | C187: -0.0007754943777 | D187: 155.86 | E187: 0.0006420133539 | F187: 45.71 | G187: 0.007716049383 | H187: 41.47 | I187: -0.002885308969 | J187: 65.78 | K187: 0.01747873163 | L187: 61.49 | M187: 0.003099510604 | N187: 44.92 | O187: 0.009892086331 | R187: 875.22 | S187: 3.4278271e-05 | T187: 63.32 | U187: -0.0006313131313 | V187: 28494.2 | W187: -0.0006943957354 | X187: 3483.3414 | Y187: -0.001526256741
A188: 44120 | B188: 77.62 | C188: 0.004009830552 | D188: 155.72 | E188: -0.0008982420121 | F188: 46.27 | G188: 0.01225114855 | H188: 41.85 | I188: 0.009163250543 | J188: 66.88 | K188: 0.01672240803 | L188: 61.65 | M188: 0.002602049114 | N188: 45.23 | O188: 0.006901157614 | R188: 884.52 | S188: 0.01062589977 | T188: 64 | U188: 0.01073910297 | V188: 28606.31 | W188: 0.003934484913 | X188: 3483.8078 | Y188: 0.0001338944268
A189: 44123 | B189: 76.68 | C189: -0.01211028086 | D189: 154.52 | E189: -0.007706139224 | F189: 45.66 | G189: -0.01318348822 | H189: 41.55 | I189: -0.007168458781 | J189: 67.33 | K189: 0.0067284689 | L189: 61.03 | M189: -0.0100567721 | N189: 45.11 | O189: -0.002653106345 | R189: 877.6 | S189: -0.007823452268 | T189: 63.46 | U189: -0.0084375 | V189: 28195.42 | W189: -0.01436361418 | X189: 3426.9241 | Y189: -0.01632802475
A190: 44124 | B190: 76.52 | C190: -0.002086593636 | D190: 153.15 | E190: -0.008866166192 | F190: 46.16 | G190: 0.01095050372 | H190: 42.1 | I190: 0.01323706378 | J190: 66.47 | K190: -0.01277290955 | L190: 60.66 | M190: -0.006062592168 | N190: 45.37 | O190: 0.005763688761 | R190: 881.15 | S190: 0.004045123063 | T190: 63.84 | U190: 0.005988023952 | V190: 28308.79 | W190: 0.0040208658 | X190: 3443.1168 | Y190: 0.004725141126
A191: 44125 | B191: 77.14 | C191: 0.008102456874 | D191: 152.25 | E191: -0.005876591577 | F191: 46.69 | G191: 0.01148180243 | H191: 42.57 | I191: 0.01116389549 | J191: 67.43 | K191: 0.01444260569 | L191: 61.57 | M191: 0.01500164853 | N191: 45.48 | O191: 0.002424509588 | R191: 877.1 | S191: -0.004596266243 | T191: 63.67 | U191: -0.002662907268 | V191: 28210.82 | W191: -0.003460762541 | X191: 3435.5555 | Y191: -0.002196062591
A192: 44126 | B192: 77.77 | C192: 0.008166969147 | D192: 153.61 | E192: 0.008932676519 | F192: 47.55 | G192: 0.01841936175 | H192: 44 | I192: 0.03359173127 | J192: 68.61 | K192: 0.01749962925 | L192: 62.88 | M192: 0.02127659574 | N192: 45.74 | O192: 0.005716798593 | R192: 891.28 | S192: 0.01616691369 | T192: 64.57 | U192: 0.01413538558 | V192: 28363.66 | W192: 0.005417779419 | X192: 3453.4902 | Y192: 0.005220320266
A193: 44127 | B193: 79.23 | C193: 0.0187733059 | D193: 154.08 | E193: 0.003059696634 | F193: 48.18 | G193: 0.01324921136 | H193: 44.5 | I193: 0.01136363636 | J193: 69.7 | K193: 0.01588689695 | L193: 64.29 | M193: 0.02242366412 | N193: 46.27 | O193: 0.01158723218 | R193: 893.68 | S193: 0.002692756485 | T193: 64.75 | U193: 0.002787672294 | V193: 28335.57 | W193: -0.0009903517388 | X193: 3465.3872 | Y193: 0.003444920736
A194: 44130 | B194: 77.8 | C194: -0.01804871892 | D194: 154.01 | E194: -0.0004543094496 | F194: 47.34 | G194: -0.01743462017 | H194: 43.9 | I194: -0.01348314607 | J194: 68.74 | K194: -0.0137733142 | L194: 63.54 | M194: -0.01166588894 | N194: 45.69 | O194: -0.01253511995 | R194: 891.98 | S194: -0.001902246889 | T194: 64.73 | U194: -0.0003088803089 | V194: 27685.38 | W194: -0.02294607096 | X194: 3400.9682 | Y194: -0.01858926471
A195: 44131 | B195: 78.09 | C195: 0.003727506427 | D195: 154.62 | E195: 0.003960781767 | F195: 47.3 | G195: -0.0008449514153 | H195: 43.46 | I195: -0.01002277904 | J195: 68.97 | K195: 0.003345941228 | L195: 63.79 | M195: 0.00393452943 | N195: 45.19 | O195: -0.01094331364 | R195: 890.68 | S195: -0.001457431781 | T195: 64.68 | U195: -0.0007724393635 | V195: 27463.19 | W195: -0.008025535499 | X195: 3390.6844 | Y195: -0.003023785991
A196: 44132 | B196: 75.8 | C196: -0.02932513766 | D196: 153 | E196: -0.01047729919 | F196: 45.72 | G196: -0.0334038055 | H196: 42.39 | I196: -0.02462034054 | J196: 66.82 | K196: -0.03117297376 | L196: 61.84 | M196: -0.03056905471 | N196: 43.8 | O196: -0.03075901748 | R196: 865.33 | S196: -0.02846140028 | T196: 62.8 | U196: -0.02906617192 | V196: 26519.95 | W196: -0.03434560952 | X196: 3271.0274 | Y196: -0.03528992554
A197: 44133 | B197: 75.84 | C197: 0.0005277044855 | D197: 152.16 | E197: -0.005490196078 | F197: 45.38 | G197: -0.007436570429 | H197: 41.95 | I197: -0.01037980656 | J197: 66.32 | K197: -0.007482789584 | L197: 61.63 | M197: -0.003395860285 | N197: 42.87 | O197: -0.02123287671 | R197: 867.65 | S197: 0.002681058093 | T197: 62.97 | U197: 0.002707006369 | V197: 26659.11 | W197: 0.005247370376 | X197: 3310.1128 | Y197: 0.01194896747
A198: 44134 | B198: 74.69 | C198: -0.01516350211 | D198: 150.51 | E198: -0.01084384858 | F198: 44.57 | G198: -0.01784927281 | H198: 41.2 | I198: -0.0178784267 | J198: 64.14 | K198: -0.03287092883 | L198: 60.69 | M198: -0.01525231219 | N198: 42.25 | O198: -0.01446232797 | R198: 857.77 | S198: -0.01138708004 | T198: 62.38 | U198: -0.009369541051 | V198: 26501.602 | W198: -0.005908224243 | X198: 3269.9591 | Y198: -0.0121306138
A199: 44137 | B199: 76.15 | C199: 0.01954746285 | D199: 154.3 | E199: 0.02518105109 | F199: 45.73 | G199: 0.02602647521 | H199: 41.83 | I199: 0.01529126214 | J199: 67.74 | K199: 0.0561272217 | L199: 62.3 | M199: 0.02652825836 | N199: 43.79 | O199: 0.03644970414 | R199: 876.56 | S199: 0.02190563904 | T199: 63.75 | U199: 0.02196216736 | V199: 26925.05 | W199: 0.01597820388 | X199: 3310.2414 | Y199: 0.01231890026
A200: 44138 | B200: 75.28 | C200: -0.01142481944 | D200: 157.1 | E200: 0.01814646792 | F200: 46.54 | G200: 0.01771266127 | H200: 42.33 | I200: 0.01195314368 | J200: 67.9 | K200: 0.002361972247 | L200: 64.07 | M200: 0.02841091493 | N200: 44.95 | O200: 0.02649006623 | R200: 889.78 | S200: 0.01508168294 | T200: 64.67 | U200: 0.01443137255 | V200: 27480.03 | W200: 0.02061203229 | X200: 3369.0242 | Y200: 0.01775785899
A201: 44139 | B201: 72.45 | C201: =(B201-B200)/B200 -> -0.03759298618 | D201: 155.41 | E201: =IFERROR((D201-D200)/D200, "NA") -> -0.01075747931 | F201: 45.48 | G201: =(F201-F200)/F200 -> -0.02277610657 | H201: 41.19 | I201: =(H201-H200)/H200 -> -0.02693125443 | J201: 65.56 | K201: =(J201-J200)/J200 -> -0.03446244477 | L201: 61.54 | M201: =(L201-L200)/L200 -> -0.03948805993 | N201: 43.5 | O201: =(N201-N200)/N200 -> -0.03225806452 | R201: 877.69 | S201: =(R201-R200)/R200 -> -0.0135876284 | T201: 63.7 | U201: =(T201-T200)/T200 -> -0.01499922684 | V201: 27847.66 | W201: =(V201-V200)/V200 -> 0.01337807855 | X201: 3443.4371 | Y201: =(X201-X200)/X200 -> 0.02208737474
A202: 44140 | B202: 72.88 | C202: 0.005935127674 | D202: 158.21 | E202: 0.01801685863 | F202: 46.01 | G202: 0.01165347405 | H202: 42.23 | I202: 0.02524884681 | J202: 67.56 | K202: 0.03050640635 | L202: 63.02 | M202: 0.02404939877 | N202: 44.13 | O202: 0.01448275862 | R202: 885.44 | S202: 0.008829996924 | T202: 64.27 | U202: 0.008948194662 | V202: 28390.18 | W202: 0.0194817087 | X202: 3510.4476 | Y202: 0.01946035256
... 15 more rows

Sheet 2.1 GDP CAGRs
B1: ='1.1-3 Annualized Volatility'!A1 -> Utilities, Inc of Florida
B2: Gross Domestic Product by Industry
B4: Industry | C4: 1947 | D4: 2019 | E4: CAGR
B5: Agriculture, forestry, fishing, and hunting | C5: 19.9 | D5: 169.2 | E5: =(D5/C5)^(1/(D$4-C$4))-1 -> 0.03017351173
B6: Mining | C6: 5.8 | D6: 320.3 | E6: 0.05729513861
B7: Utilities | C7: 3.5 | D7: 334.6 | E7: 0.06538446457
B8: Construction | C8: 8.9 | D8: 886.6 | E8: 0.06599382894
B9: Manufacturing | C9: 63.4 | D9: 2359.9 | E9: 0.05151803775
B10: Wholesale trade | C10: 15.6 | D10: 1278.1 | E10: 0.06310352664
B11: Retail trade | C11: 23.2 | D11: 1172.9 | E11: 0.05599901696
B12: Transportation and warehousing | C12: 14.1 | D12: 684.5 | E12: 0.05540418092
B13: Information | C13: 7.7 | D13: 1120.3 | E13: 0.07161675327
B14: Finance, insurance, real estate, rental, and leasing | C14: 25.8 | D14: 4491.7 | E14: 0.0742913966
B15: Professional and business services | C15: 8.2 | D15: 2742.2 | E15: 0.08407547049
B16: Educational services, health care, and social assistance | C16: 4.6 | D16: 1881.4 | E16: 0.08711111172
B17: Arts, entertainment, recreation, accommodation, and food services | C17: 8 | D17: 898.5 | E17: 0.06777111424
B18: Other services, except government | C18: 7.5 | D18: 456.6 | E18: 0.05872792957
B19: Government | C19: 33.5 | D19: 2630.9 | E19: 0.0624787954
B20: Total Gross Domestic Product | C20: =SUM(C5:C19) -> 249.7 | D20: =SUM(D5:D19) -> 21427.7 | E20: 0.0637876854
B24: Source: Bureau of Economic Analysis

Sheet 3.1 Garrett ERP Replicate
B1: ='2.1 GDP CAGRs'!B1 -> Utilities, Inc of Florida
B2: Mr. Garrett's Implied ERP Calculation
D4: [1] | F4: [2] | H4: [3] | J4: [4] | L4: [5] | N4: [6] | P4: [7] | R4: [8]
B6: Year | D6: Market Value | F6: Operating Earnings | H6: Dividends | J6: Buybacks | L6: Earnings Yield | N6: Dividend Yield | P6: Buyback Yield | R6: Gross Cash Yield
B7: 2014 | D7: 18245.16292 | F7: 1004.223307 | H7: 350.4320904 | J7: 553.275314 | L7: =F7/D7 -> 0.05504052287 | N7: =H7/D7 -> 0.01920684907 | P7: =J7/D7 -> 0.03032449294 | R7: =N7+P7 -> 0.04953134201
B8: 2015 | D8: 17899.55624 | F8: 885.38 | H8: 382.32 | J8: 572.16 | L8: 0.04946379608 | N8: 0.02135918873 | P8: 0.03196503825 | R8: 0.05332422698
B9: 2016 | D9: 19268 | F9: 919.85 | H9: 397.22 | J9: 536.38 | L9: 0.04773977579 | N9: 0.02061552834 | P9: 0.02783786589 | R9: 0.04845339423
B10: 2017 | D10: 22821.24033 | F10: 1065.995204 | H10: 419.77 | J10: 519.4 | L10: 0.04671066027 | N10: 0.01839382934 | P10: 0.02275949915 | R10: 0.04115332849
B11: 2018 | D11: 21026.90163 | F11: 1281.66 | H11: 456.31 | J11: 806.41 | L11: 0.0609533455 | N11: 0.02170124767 | P11: 0.03835134696 | R11: 0.06005259462
B12: 2019 | D12: 26759.68679 | F12: 1304.59 | H12: 485.48 | J12: 728.74 | L12: 0.04875206539 | N12: 0.01814221534 | P12: 0.02723275522 | R12: 0.04537497055
B14: Growth Rate | F14: =(F12/F7)^(1/5)-1 -> 0.05372855639 | H14: =(H12/H7)^(1/5)-1 -> 0.06736631994 | J14: =(J12/J7)^(1/5)-1 -> 0.05663809191
B15: Cash Yield | D15: =AVERAGE(R7:R12) -> 0.04964830948 | F15: [9]
B16: Growth Rate | D16: =(F12/F7)^(1/5)-1 -> 0.05372855639 | F16: [10]
B17: Risk-free Rate | D17: 0.0151 | F17: [11]
B18: Current Index Value | D18: 3391 | F18: [12]
D21: [13] | F21: [14] | H21: [15] | J21: [16] | L21: [17]
B23: Year | D23: 1 | F23: 2 | H23: 3 | J23: 4 | L23: 5
B25: Expected Dividends | D25: =$D$15*$D$18*(1+$D$16)^D23 -> 177.4030184 | F25: =$D$15*$D$18*(1+$D$16)^F23 -> 186.9346265 | H25: =$D$15*$D$18*(1+$D$16)^H23 -> 196.9783541 | J25: =$D$15*$D$18*(1+$D$16)^J23 -> 207.5617168 | L25: =$D$15*$D$18*(1+$D$16)^L23 -> 218.7137082
B26: Expected Terminal Value | L26: =L25*(1+D17)/D33 -> 3723.86423
B27: Present Value | D27: =D25/(1+$D$17+$D$33)^D23 -> 165.069079 | F27: =F25/(1+$D$17+$D$33)^F23 -> 161.8449681 | H27: =H25/(1+$D$17+$D$33)^H23 -> 158.6838301 | J27: =J25/(1+$D$17+$D$33)^J23 -> 155.5844351 | L27: =(L25+L26)/(1+$D$17+D33)^L23 -> 2749.817705
B29: Intrinsic Index Value | D29: =SUM(D27,F27,H27,J27,L27) -> 3391.000018 | F29: [18]
B30: % Terminal Value | D30: =((L26/(1+D31)^L23))/D29 -> 0.7659310276
B31: Required Return on Market | D31: =D33+D17 -> 0.07471986567 | F31: [19]
B33: Implied Equity Risk Premium | D33: 0.05961986567 | F33: [20]
B36: Notes:
B37: [1-4] S&P Quarterly Press Releases, data found at www.spdji.com/indices/equity/sp-500 (all dollar figures are in $ billions)
B38: [1] Market value of S&P 500
B39: [5] = [2] / [1]
B40: [6] = [3] / [1]
B41: [7] = [4] / [1]
B42: [8] = [6] + [7]
B43: [9] = Average of [8]
B44: [10] = Compound annual growth rate of [2] = (end value / beginning value)^1/5-1
B45: [11] Risk-free rate calculated in Exhibit DJG-7
B46: [12] 30-day average of closing index prices from Exhibit DJG-3
B47: [13-16] Expected dividends = [9]*[12]*(1+[10])n ; Present value = expected dividend / (1+[11]+[20])n
B48: [17] Expected terminal value = expected dividend * (1+[11]) / [20] ; Present value = (expected dividend + expected terminal value) / (1+[11]+[20])n
B49: [18] = Sum([13-17]) present values.
B50: [19] = [20] + [11]
B51: [20] Internal rate of return calculation setting [18] equal to [12] and solving for the discount rate; differences due to rounding

Sheet 3.2 ERP Average growth
B1: ='3.1 Garrett ERP Replicate'!B1 -> Utilities, Inc of Florida
B2: ='3.1 Garrett ERP Replicate'!B2 -> Mr. Garrett's Implied ERP Calculation
B3: Corrected to Reflect the use of Average Annual Growth Rates
D5: [1] | F5: [2] | H5: [3] | J5: [4] | L5: [5] | N5: [6] | P5: [7] | R5: [8]
S6: ARITHMETIC AVERAGE
B7: Year | D7: Market Value | F7: Operating Earnings | H7: Dividends | J7: Buybacks | L7: Earnings Yield | N7: Dividend Yield | P7: Buyback Yield | R7: Gross Cash Yield | S7: =D7 -> Market Value | U7: =F7 -> Operating Earnings | W7: =H7 -> Dividends | Y7: =J7 -> Buybacks
B8: 2014 | D8: ='3.1 Garrett ERP Replicate'!D7 -> 18245.16292 | F8: ='3.1 Garrett ERP Replicate'!F7 -> 1004.223307 | H8: ='3.1 Garrett ERP Replicate'!H7 -> 350.4320904 | J8: ='3.1 Garrett ERP Replicate'!J7 -> 553.275314 | L8: =F8/D8 -> 0.05504052287 | N8: =H8/D8 -> 0.01920684907 | P8: =J8/D8 -> 0.03032449294 | R8: =N8+P8 -> 0.04953134201
B9: 2015 | D9: ='3.1 Garrett ERP Replicate'!D8 -> 17899.55624 | F9: ='3.1 Garrett ERP Replicate'!F8 -> 885.38 | H9: ='3.1 Garrett ERP Replicate'!H8 -> 382.32 | J9: ='3.1 Garrett ERP Replicate'!J8 -> 572.16 | L9: 0.04946379608 | N9: 0.02135918873 | P9: 0.03196503825 | R9: 0.05332422698 | S9: =D9/D8-1 -> -0.01894237243 | U9: =F9/F8-1 -> -0.1183435058 | W9: =H9/H8-1 -> 0.09099597473 | Y9: =J9/J8-1 -> 0.03413252954
B10: 2016 | D10: ='3.1 Garrett ERP Replicate'!D9 -> 19268 | F10: ='3.1 Garrett ERP Replicate'!F9 -> 919.85 | H10: ='3.1 Garrett ERP Replicate'!H9 -> 397.22 | J10: ='3.1 Garrett ERP Replicate'!J9 -> 536.38 | L10: 0.04773977579 | N10: 0.02061552834 | P10: 0.02783786589 | R10: 0.04845339423 | S10: =D10/D9-1 -> 0.07645126709 | U10: =F10/F9-1 -> 0.03893243579 | W10: =H10/H9-1 -> 0.03897258841 | Y10: =J10/J9-1 -> -0.06253495526
B11: 2017 | D11: ='3.1 Garrett ERP Replicate'!D10 -> 22821.24033 | F11: ='3.1 Garrett ERP Replicate'!F10 -> 1065.995204 | H11: ='3.1 Garrett ERP Replicate'!H10 -> 419.77 | J11: ='3.1 Garrett ERP Replicate'!J10 -> 519.4 | L11: 0.04671066027 | N11: 0.01839382934 | P11: 0.02275949915 | R11: 0.04115332849 | S11: =D11/D10-1 -> 0.1844114768 | U11: =F11/F10-1 -> 0.1588793871 | W11: =H11/H10-1 -> 0.05676954836 | Y11: =J11/J10-1 -> -0.03165666132
B12: 2018 | D12: ='3.1 Garrett ERP Replicate'!D11 -> 21026.90163 | F12: ='3.1 Garrett ERP Replicate'!F11 -> 1281.66 | H12: ='3.1 Garrett ERP Replicate'!H11 -> 456.31 | J12: ='3.1 Garrett ERP Replicate'!J11 -> 806.41 | L12: 0.0609533455 | N12: 0.02170124767 | P12: 0.03835134696 | R12: 0.06005259462 | S12: =D12/D11-1 -> -0.07862581848 | U12: =F12/F11-1 -> 0.2023131014 | W12: =H12/H11-1 -> 0.08704766896 | Y12: =J12/J11-1 -> 0.5525798999
B13: 2019 | D13: ='3.1 Garrett ERP Replicate'!D12 -> 26759.68679 | F13: ='3.1 Garrett ERP Replicate'!F12 -> 1304.59 | H13: ='3.1 Garrett ERP Replicate'!H12 -> 485.48 | J13: ='3.1 Garrett ERP Replicate'!J12 -> 728.74 | L13: 0.04875206539 | N13: 0.01814221534 | P13: 0.02723275522 | R13: 0.04537497055 | S13: =D13/D12-1 -> 0.2726405085 | U13: =F13/F12-1 -> 0.01789086029 | W13: =H13/H12-1 -> 0.06392583989 | Y13: =J13/J12-1 -> -0.09631576989
B15: Growth Rate | F15: =(F13/F8)^(1/5)-1 -> 0.05372855639 | H15: =(H13/H8)^(1/5)-1 -> 0.06736631994 | J15: =(J13/J8)^(1/5)-1 -> 0.05663809191 | S15: =AVERAGE(S9:S13) -> 0.08718701228 | U15: =AVERAGE(U9:U13) -> 0.05993445575 | W15: =AVERAGE(W9:W13) -> 0.06754232407 | Y15: =AVERAGE(Y9:Y13) -> 0.07924100859
B16: Cash Yield | D16: =AVERAGE(R8:R13) -> 0.04964830948 | F16: [9]
B17: Growth Rate | D17: =AVERAGE(S15:Y15) -> 0.07347620017 | F17: [10]
B18: Risk-free Rate | D18: ='3.1 Garrett ERP Replicate'!D17 -> 0.0151 | F18: [11]
B19: Current Index Value | D19: ='3.1 Garrett ERP Replicate'!D18 -> 3391 | F19: [12]
D22: [13] | F22: [14] | H22: [15] | J22: [16] | L22: [17]
B24: Year | D24: 1 | F24: 2 | H24: 3 | J24: 4 | L24: 5
B26: Expected Dividends | D26: =$D$16*$D$19*(1+$D$17)^D24 -> 180.7276808 | F26: =$D$16*$D$19*(1+$D$17)^F24 -> 194.006864 | H26: =$D$16*$D$19*(1+$D$17)^H24 -> 208.2617512 | J26: =$D$16*$D$19*(1+$D$17)^J24 -> 223.5640333 | L26: =$D$16*$D$19*(1+$D$17)^L24 -> 239.990669
B27: Expected Terminal Value | L27: =L26*(1+D18)/D34 -> 3764.123472
B28: Present Value | D28: =D26/(1+$D$18+$D$34)^D24 -> 167.368321 | F28: =F26/(1+$D$18+$D$34)^F24 -> 166.3850356 | H28: =H26/(1+$D$18+$D$34)^H24 -> 165.4075269 | J28: =J26/(1+$D$18+$D$34)^J24 -> 164.435761 | L28: =(L26+L27)/(1+$D$18+D34)^L24 -> 2727.40335
B30: Intrinsic Index Value | D30: =SUM(D28,F28,H28,J28,L28) -> 3390.999995 | F30: [18]
B31: % Terminal Value | D31: =((L27/(1+D32)^L24))/D30 -> 0.7560995724
B32: Required Return on Market | D32: =D34+D18 -> 0.07982012139 | F32: [19]
B34: Implied Equity Risk Premium | D34: 0.06472012139 | F34: [20]
B37: Notes:
B38: [1-4] S&P Quarterly Press Releases, data found at www.spdji.com/indices/equity/sp-500 (all dollar figures are in $ billions)
B39: [1] Market value of S&P 500
B40: [5] = [2] / [1]
B41: [6] = [3] / [1]
B42: [7] = [4] / [1]
B43: [8] = [6] + [7]
B44: [9] = Average of [8]
B45: [10] = Average of annual growth rates of [1], [2], [3], and [4]
B46: [11] Risk-free rate from Exhibit DJG-7
B47: [12] 30-day average of closing index prices from Exhibit DJG-3
B48: [13-16] Expected dividends = [9]*[12]*(1+[10])n ; Present value = expected dividend / (1+[11]+[20])n
B49: [17] Expected terminal value = expected dividend * (1+[11]) / [20] ; Present value = (expected dividend + expected terminal value) / (1+[11]+[20])n
B50: [18] = Sum([13-17]) present values.
B51: [19] = [20] + [11]
B52: [20] Internal rate of return calculation setting [18] equal to [12] and solving for the discount rate

Sheet 4.1 Size Study
A1: Utilities, Inc of Florida
A2: Portfolio Ranks by Size and Risk Premiums over CAPM Results
A3: as Compiled by Duff and Phelps 2020 Guide to Cost of Capital
B5: B-1 | F5: B-2 | J5: B-3 | N5: B-4 | R5: B-5 | V5: B-6 | Z5: B-7 | AD5: B-8 | AO5: Book Value of Equity | AQ5: 5-yr average NI | AS5: Assets | AU5: 5-yr EBITDA | AW5: Sales | AX5: Employees
A6: Portfolio Rank by Size | B6: Average Market Val. (in $millions) | D6: RP | F6: Average Book Val. (in $millions) | H6: RP | J6: 5-yr Net Income (in $millions) | L6: RP | N6: MVIC (in $millions) | P6: RP | R6: Total Assets (in $millions) | T6: RP | V6: 5-yr EBITDA (in $millions) | X6: RP | Z6: Sales (in $millions) | AB6: RP | AD6: Average Number of Employees | AF6: RP | AO6: B-2 | AQ6: B-3 | AS6: B-5 | AU6: B-6 | AW6: B-7 | AX6: B-8
A8: 1 | B8: $185,926 and Up | D8: -0.0084 | F8: $41,558 and Up | H8: 0.0138 | J8: $6,822 and Up | L8: 0.0101 | N8: $229,194 and Up | P8: -0.0032 | R8: $114,076 and Up | T8: 0.0109 | V8: $14,974 and Up | X8: 0.0113 | Z8: $90,302 and Up | AB8: 0.0129 | AD8: 229,840 and Up | AF8: 0.0089 | AK8: American States Water Co. | AO8: ='3. AWR'!$C$16/1000000 -> 601.53 | AQ8: =AW21 -> 67.5614 | AS8: =AO46 -> 1641.331 | AU8: =AW33 -> 160.2356 | AW8: =AM46 -> 473.869 | AX8: =AQ46 -> 841
A9: 2 | B9: $56,959 - $185,926 | D9: 0.0049 | F9: $15,115 - $41,558 | H9: 0.0202 | J9: $2,337 - $6,822 | L9: 0.0182 | N9: $78,039 - $229,194 | P9: 0.0075 | R9: $50,546 - $114,076 | T9: 0.0172 | V9: $5,656 - $14,974 | X9: 0.0188 | Z9: $32,344 - $90,302 | AB9: 0.0205 | AD9: 89,648 - 229,840 | AF9: 0.0176 | AK9: American Water Works Company Inc | AO9: ='3. AWK'!$C$16/1000000 -> 6121 | AQ9: 511.6 | AS9: 22682 | AU9: 1661 | AW9: 3610 | AX9: 6800
A10: 3 | B10: $35,409 - $56,959 | D10: 0.0098 | F10: $9,686 - $15,115 | H10: 0.0229 | J10: $1,439 - $2,337 | L10: 0.0213 | N10: $47,251 - $78,039 | P10: 0.0124 | R10: $33,793 - $50,546 | T10: 0.0198 | V10: $3,665 - $5,656 | X10: 0.0218 | Z10: $20,065 - $32,344 | AB10: 0.0244 | AD10: 60,958 - 89,648 | AF10: 0.021 | AK10: Essential Utilities, Inc. | AO10: ='3. WTRG'!$C$16/1000000 -> 3880.86 | AQ10: 218.4482 | AS10: 9361.985 | AU10: 456.3077188 | AW10: 889.692 | AX10: 1583
A11: 4 | B11: $24,895 - $35,409 | D11: 0.0134 | F11: $6,887 - $9,686 | H11: 0.0246 | J11: $970 - $1,439 | L11: 0.0241 | N11: $33,818 - $47,251 | P11: 0.0155 | R11: $23,107 - $33,793 | T11: 0.0222 | V11: $2,644 - $3,665 | X11: 0.0241 | Z11: $15,623 - $20,065 | AB11: 0.0261 | AD11: 45,827 - 60,958 | AF11: 0.0232 | AK11: California Water Service Group | AO11: ='3. CWT'!$C$16/1000000 -> 779.906 | AQ11: 57.9146 | AS11: 3111.308 | AU11: 186.5954 | AW11: 714.557 | AX11: 1207
A12: 5 | B12: $18,621 - $24,895 | D12: 0.0161 | F12: $5,248 - $6,887 | H12: 0.0264 | J12: $753 - $970 | L12: 0.026 | N12: $25,668 - $33,818 | P12: 0.0179 | R12: $16,907 - $23,107 | T12: 0.0245 | V12: $1,996 - $2,644 | X12: 0.0259 | Z12: $11,773 - $15,263 | AB12: 0.0278 | AD12: 35,414 - 45,827 | AF12: 0.0252 | AK12: Middlesex Water Co. | AO12: ='3. MSEX'!$C$16/1000000 -> 323.792 | AQ12: 26.2686 | AS12: 909.878 | AU12: 53.2778 | AW12: 134.598 | AX12: 352
A13: 6 | B13: $14,297 - $18,621 | D13: 0.0187 | F13: $4,392 - $5,248 | H13: 0.0274 | J13: $615 - $753 | L13: 0.0271 | N13: $19,728 - $25,668 | P13: 0.0201 | R13: $13,508 - $16,907 | T13: 0.0259 | V13: $1,559 - $1,996 | X13: 0.0276 | Z13: $9,610 - $11,773 | AB13: 0.0294 | AD13: 28,157 - 35,414 | AF13: 0.027 | AK13: SJW Group | AO13: ='3. SJW'!$C$16/1000000 -> 889.984 | AQ13: 42.843 | AS13: 3132.47 | AU13: 140.3744 | AW13: 420.482 | AX13: 361
A14: 7 | B14: $11,416 - $14,297 | D14: 0.021 | F14: $3,712- $4,392 | H14: 0.0283 | J14: $483 - $615 | L14: 0.0286 | N14: $15,391 - $19,728 | P14: 0.0223 | R14: $10,972 - $13,508 | T14: 0.0273 | V14: $1,270 - $1,559 | X14: 0.0289 | Z14: $8,275 - $9,610 | AB14: 0.0303 | AD14: 23,063 - 28,157 | AF14: 0.0286 | AK14: York Water Co. | AO14: ='3. YORW'!$C$16/1000000 -> 134.185 | AQ14: 13.0174 | AS14: 363.529 | AU14: 29.0456 | AW14: 51.578 | AX14: 106
A15: 8 | B15: $9,274 - $11,416 | D15: 0.0229 | F15: $3,122 - $3,712 | H15: 0.0291 | J15: $388 - $483 | L15: 0.0301 | N15: $12,436 - $15,391 | P15: 0.0242 | R15: $9,164 - $10,972 | T15: 0.0285 | V15: $1,044 - $1,270 | X15: 0.0301 | Z15: $7,157 - $8,275 | AB15: 0.0313 | AD15: 18,965 - 23,063 | AF15: 0.03
A16: 9 | B16: $7,759 - $9,274 | D16: 0.0248 | F16: $2,596 - $3,122 | H16: 0.0301 | J16: $328 - $388 | L16: 0.0312 | N16: $10,361 - $12,436 | P16: 0.0258 | R16: $7,673 - $9,164 | T16: 0.0295 | V16: $852 - $1,044 | X16: 0.0314 | Z16: $6,098 - $7,157 | AB16: 0.0322 | AD16: 15,846 - 18,965 | AF16: 0.0315 | AK16: Water Proxy Group | AO16: =AVERAGE(AO8:AO14) -> 1818.751 | AQ16: =AVERAGE(AQ8:AQ14) -> 133.9504571 | AS16: =AVERAGE(AS8:AS14) -> 5886.071571 | AU16: =AVERAGE(AU8:AU14) -> 383.8337884 | AW16: =AVERAGE(AW8:AW14) -> 899.2537143 | AX16: =AVERAGE(AX8:AX14) -> 1607.142857
A17: 10 | B17: $6,635 - $7,759 | D17: 0.0261 | F17: $2,201 - $2,596 | H17: 0.0311 | J17: $289 - $328 | L17: 0.0322 | N17: $8,701 - $10,361 | P17: 0.0273 | R17: $6,462 - $7,673 | T17: 0.0307 | V17: $721 - $852 | X17: 0.0327 | Z17: $4,991 - $6,098 | AB17: 0.0333 | AD17: 13,921 - 15,846 | AF17: 0.0326
A18: 11 | B18: $5,502 - $6,635 | D18: 0.0277 | F18: $1,911 - $2,201 | H18: 0.0318 | J18: $256 - $289 | L18: 0.0328 | N18: $7,448 - $8,701 | P18: 0.0288 | R18: $5,629 - $6,462 | T18: 0.0317 | V18: $636 - $721 | X18: 0.0335 | Z18: $4,127 - $4,991 | AB18: 0.0347 | AD18: 12,271 - 13,921 | AF18: 0.0335 | AK18: B-3 5 Year Average NI | AM18: Net Income | AO18: Net Income | AQ18: Net Income | AS18: Net Income | AU18: Net Income | AW18: Net Income
A19: 12 | B19: $4,624 - $5,502 | D19: 0.0296 | F19: $1,687 - $1,911 | H19: 0.0325 | J19: $218 - $256 | L19: 0.0337 | N19: $6,594 - $7,448 | P19: 0.0299 | R19: $4,934 - $5,629 | T19: 0.0325 | V19: $555 - $636 | X19: 0.0343 | Z19: $3,550 - $4,127 | AB19: 0.0357 | AD19: 10,760 - 12,271 | AF19: 0.0345 | AM19: 2019Y | AO19: 2018Y | AQ19: 2017Y | AS19: 2016Y | AU19: 2015Y | AW19: Average
A20: 13 | B20: $3,983 - $4,624 | D20: 0.0309 | F20: $1,499 - $1,687 | H20: 0.0331 | J20: $183 - $218 | L20: 0.0348 | N20: $5,781 - $6,594 | P20: 0.0308 | R20: $4,236 - $4,934 | T20: 0.0333 | V20: $485 - $555 | X20: 0.0352 | Z20: $3,093 - $3,550 | AB20: 0.0366 | AD20: 9,489 - 10,760 | AF20: 0.0354 | AM20: Originally Reported | AO20: Originally Reported | AQ20: Originally Reported | AS20: Originally Reported | AU20: Originally Reported | AW20: Calculation
A21: 14 | B21: $3,413 - $3,983 | D21: 0.0323 | F21: $1,312 - $1,499 | H21: 0.0338 | J21: $155 - $183 | L21: 0.0358 | N21: $4,947 - $5,781 | P21: 0.0321 | R21: $3,576 - $4,236 | T21: 0.0344 | V21: $427 - $485 | X21: 0.036 | Z21: $2,723 - $3,093 | AB21: 0.0375 | AD21: 8,303 - 9,489 | AF21: 0.0364 | AK21: American States Water Co. | AM21: ='3. AWR'!C$34/1000000 -> 84.342 | AO21: ='3. AWR'!E$34/1000000 -> 63.871 | AQ21: ='3. AWR'!G$34/1000000 -> 69.367 | AS21: ='3. AWR'!I$34/1000000 -> 59.743 | AU21: ='3. AWR'!K$34/1000000 -> 60.484 | AW21: =AVERAGE(AM21:AU21) -> 67.5614
A22: 15 | B22: $2,975 - $3,413 | D22: 0.0338 | F22: $1,143 - $1,312 | H22: 0.0345 | J22: $132 - $155 | L22: 0.0369 | N22: $4,258 - $4,947 | P22: 0.0334 | R22: $3,062 - $3,576 | T22: 0.0354 | V22: $374 - $427 | X22: 0.0368 | Z22: $2,404 - $2,723 | AB22: 0.0382 | AD22: 7,138 - 8,303 | AF22: 0.0374 | AK22: American Water Works Company Inc | AM22: ='3. AWK'!C$34/1000000 -> 621 | AO22: ='3. AWK'!E$34/1000000 -> 567 | AQ22: ='3. AWK'!G$34/1000000 -> 426 | AS22: ='3. AWK'!I$34/1000000 -> 468 | AU22: ='3. AWK'!K$34/1000000 -> 476 | AW22: 511.6
A23: 16 | B23: $2,644 - $2,975 | D23: 0.0348 | F23: $996 - $1,143 | H23: 0.0352 | J23: $111 - $132 | L23: 0.0378 | N23: $3,684 - $4,258 | P23: 0.0346 | R23: $2,642 - $3,062 | T23: 0.0363 | V23: $323 - $374 | X23: 0.0376 | Z23: $2.137 - $2,404 | AB23: 0.039 | AD23: 6,060 - 7,138 | AF23: 0.0386 | AK23: Essential Utilities, Inc. | AM23: ='3. WTRG'!C$34/1000000 -> 224.543 | AO23: ='3. WTRG'!E$34/1000000 -> 191.988 | AQ23: ='3. WTRG'!G$34/1000000 -> 239.738 | AS23: ='3. WTRG'!I$34/1000000 -> 234.182 | AU23: ='3. WTRG'!K$34/1000000 -> 201.79 | AW23: 218.4482
A24: 17 | B24: $2,313 - $2,644 | D24: 0.0359 | F24: $857 - $996 | H24: 0.0359 | J24: $93 - $111 | L24: 0.039 | N24: $3,188 - $3,684 | P24: 0.0359 | R24: $2,249 - $2,642 | T24: 0.0373 | V24: $274 - $323 | X24: 0.0386 | Z24: $1,916 - $2,137 | AB24: 0.0397 | AD24: 5,130 - 6,060 | AF24: 0.0399 | AK24: California Water Service Group | AM24: ='3. CWT'!C$34/1000000 -> 63.116 | AO24: ='3. CWT'!E$34/1000000 -> 65.584 | AQ24: ='3. CWT'!G$34/1000000 -> 67.181 | AS24: ='3. CWT'!I$34/1000000 -> 48.675 | AU24: ='3. CWT'!K$34/1000000 -> 45.017 | AW24: 57.9146
A25: 18 | B25: $1,932 - $2,313 | D25: 0.0373 | F25: $739 - $857 | H25: 0.0368 | J25: $79 - $93 | L25: 0.04 | N25: $2,722 - $3,188 | P25: 0.037 | R25: $1,898 - $2,249 | T25: 0.0383 | V25: $227 - $274 | X25: 0.0397 | Z25: $1,692 - $1,916 | AB25: 0.0404 | AD25: 4,330 - 5,130 | AF25: 0.0411 | AK25: Middlesex Water Co. | AM25: ='3. MSEX'!C$34/1000000 -> 33.888 | AO25: ='3. MSEX'!E$34/1000000 -> 32.308 | AQ25: ='3. MSEX'!G$34/1000000 -> 22.665 | AS25: ='3. MSEX'!I$34/1000000 -> 22.598 | AU25: ='3. MSEX'!K$34/1000000 -> 19.884 | AW25: 26.2686
A26: 19 | B26: $1,578 - $1,932 | D26: 0.0393 | F26: $649 - $739 | H26: 0.0375 | J26: $67 - $79 | L26: 0.041 | N26: $2,229 - $2,722 | P26: 0.0386 | R26: $1,591 - $1,898 | T26: 0.0394 | V26: $187 - $227 | X26: 0.041 | Z26: $1,446 - $1,692 | AB26: 0.0413 | AD26: 3,605 - 4,330 | AF26: 0.0424 | AK26: SJW Group | AM26: ='3. SJW'!C$34/1000000 -> 23.627 | AO26: ='3. SJW'!E$34/1000000 -> 38.767 | AQ26: ='3. SJW'!G$34/1000000 -> 61.1 | AS26: ='3. SJW'!I$34/1000000 -> 52.839 | AU26: ='3. SJW'!K$34/1000000 -> 37.882 | AW26: 42.843
A27: 20 | B27: $1,320 - $1,578 | D27: 0.0411 | F27: $562 - $649 | H27: 0.0382 | J27: $55 - $67 | L27: 0.0421 | N27: $1,790 - $2,229 | P27: 0.0404 | R27: $1,310 - $1,591 | T27: 0.0405 | V27: $155 - $187 | X27: 0.0422 | Z27: $1,171 - $1,446 | AB27: 0.0424 | AD27: 2,894 - 3,605 | AF27: 0.0439 | AK27: York Water Co. | AM27: ='3. YORW'!C$34/1000000 -> 14.402 | AO27: ='3. YORW'!E$34/1000000 -> 13.376 | AQ27: ='3. YORW'!G$34/1000000 -> 12.974 | AS27: ='3. YORW'!I$34/1000000 -> 11.846 | AU27: ='3. YORW'!K$34/1000000 -> 12.489 | AW27: 13.0174
A28: 21 | B28: $1,080 - $1,320 | D28: 0.0426 | F28: $464 - $562 | H28: 0.039 | J28: $44 - $55 | L28: 0.0433 | N28: $1,457 - $1,790 | P28: 0.0423 | R28: $1,074 - $1,310 | T28: 0.0418 | V28: $127 - $155 | X28: 0.0433 | Z28: $926 - $1,171 | AB28: 0.044 | AD28: 2,247- 2,894 | AF28: 0.0457
A29: 22 | B29: $835 - $1,080 | D29: 0.0448 | F29: $373 - $464 | H29: 0.0402 | J29: $34 - $44 | L29: 0.0449 | N29: $1,169 - $1,457 | P29: 0.0439 | R29: $845 - $1,074 | T29: 0.043 | V29: $98 - $127 | X29: 0.0447 | Z29: $722 - $926 | AB29: 0.0454 | AD29: 1,687 - 2,247 | AF29: 0.0477
A30: 23 | B30: $591 - $835 | D30: 0.0474 | F30: $292 - $373 | H30: 0.0413 | J30: $24 - $34 | L30: 0.0467 | N30: $825 - $1,169 | P30: 0.046 | R30: $594 - $845 | T30: 0.0449 | V30: $70 - $98 | X30: 0.0466 | Z30: $525 - $722 | AB30: 0.0472 | AD30: 1,203 - 1,687 | AF30: 0.0501 | AK30: B-6 5 Year Average EBITDA | AM30: EBITDA | AO30: EBITDA | AQ30: EBITDA | AS30: EBITDA | AU30: EBITDA | AW30: EBITDA
A31: 24 | B31: $306 - $591 | D31: 0.0515 | F31: $168 - $292 | H31: 0.0428 | J31: $12 - $24 | L31: 0.0495 | N31: $412 - $825 | P31: 0.0501 | R31: $320 - $594 | T31: 0.0476 | V31: $38 - $70 | X31: 0.049 | Z31: $284 - $525 | AB31: 0.0495 | AD31: 649 - 1,203 | AF31: 0.0528 | AM31: 2019Y | AO31: 2018Y | AQ31: 2017Y | AS31: 2016Y | AU31: 2015Y | AW31: Average
A32: 25 | B32: Up to $306 | D32: 0.062 | F32: Up to $168 | H32: 0.0482 | J32: Up to $12 | L32: 0.0569 | N32: Up to $412 | P32: 0.0599 | R32: Up to $320 | T32: 0.0538 | V32: Up to $38 | X32: 0.056 | Z32: Up to $284 | AB32: 0.0567 | AD32: Up to 649 | AF32: 0.0614 | AM32: Originally Reported | AO32: Originally Reported | AQ32: Originally Reported | AS32: Originally Reported | AU32: Originally Reported | AW32: Calculation
AK33: American States Water Co. | AM33: ='3. AWR'!C$62/1000000 -> 168.995 | AO33: ='3. AWR'!E$62/1000000 -> 145.746 | AQ33: ='3. AWR'!G$62/1000000 -> 169.954 | AS33: ='3. AWR'!I$62/1000000 -> 155.32 | AU33: ='3. AWR'!K$62/1000000 -> 161.163 | AW33: =AVERAGE(AM33:AU33) -> 160.2356 | AZ33: CUR_MKT_CAP | BA33: AWR US Equity | BB33: AWK US Equity | BC33: CWT US Equity | BD33: WTRG US Equity | BE33: MSEX US Equity | BF33: SJW US Equity | BG33: YORW US Equity
AK34: American Water Works Company Inc | AM34: ='3. AWK'!C$62/1000000 -> 1797 | AO34: ='3. AWK'!E$62/1000000 -> 1682 | AQ34: ='3. AWK'!G$62/1000000 -> 1746 | AS34: ='3. AWK'!I$62/1000000 -> 1565 | AU34: ='3. AWK'!K$62/1000000 -> 1515 | AW34: 1661 | AZ34: 43830 | BA34: 3191.757 | BB34: 22208.3524 | BC34: 2482.3562 | BD34: 10131.5659 | BE34: 1108.0819 | BF34: 2022.1182 | BG34: 598.9028
B35: B-1 Value | D35: Portfolio Ranking | F35: B-2 Value | H35: Portfolio Ranking | J35: B-3 Value | L35: Portfolio Ranking | N35: B-4 Value | P35: Portfolio Ranking | R35: B-5 Value | T35: Portfolio Ranking | V35: B-6 Value | X35: Portfolio Ranking | Z35: B-7 Value | AB35: Portfolio Ranking | AD35: B-8 Value | AF35: Portfolio Ranking | AK35: Essential Utilities, Inc. | AM35: ='3. WTRG'!C$62/1000000 -> 457.328594 | AO35: ='3. WTRG'!E$62/1000000 -> 423.894 | AQ35: ='3. WTRG'!G$62/1000000 -> 481.717 | AS35: ='3. WTRG'!I$62/1000000 -> 468.762 | AU35: ='3. WTRG'!K$62/1000000 -> 449.837 | AW35: 456.3077188 | BA35: =BA34*1000000 -> 3191757000 | BB35: 22208352400 | BC35: 2482356200 | BD35: 10131565900 | BE35: 1108081900 | BF35: 2022118200 | BG35: 598902800
A36: Proxy Group of Seven Water Companies | B36: =AVERAGE(BA35:BG35)/1000000 -> 5963.304914 | D36: 11 | F36: =AO16 -> 1818.751 | H36: 12 | J36: =AQ16 -> 133.9504571 | L36: 15 | N36: =B36+BC46+BE46 -> 8265.283914 | P36: 11 | R36: =AS16 -> 5886.071571 | T36: 11 | V36: =AU16 -> 383.8337884 | X36: 15 | Z36: =AW16 -> 899.2537143 | AB36: 22 | AD36: =AX16 -> 1607.142857 | AF36: 23 | AK36: California Water Service Group | AM36: ='3. CWT'!C$62/1000000 -> 208.446 | AO36: ='3. CWT'!E$62/1000000 -> 208.525 | AQ36: ='3. CWT'!G$62/1000000 -> 211.255 | AS36: ='3. CWT'!I$62/1000000 -> 169.591 | AU36: ='3. CWT'!K$62/1000000 -> 135.16 | AW36: 186.5954 | AZ36: Source: Bloomberg Professional
AK37: Middlesex Water Co. | AM37: ='3. MSEX'!C$62/1000000 -> 54.728 | AO37: ='3. MSEX'!E$62/1000000 -> 55.171 | AQ37: ='3. MSEX'!G$62/1000000 -> 54.261 | AS37: ='3. MSEX'!I$62/1000000 -> 53.302 | AU37: ='3. MSEX'!K$62/1000000 -> 48.927 | AW37: 53.2778
A38: Utilities Inc, of Florida | B38: =F38*BI54*N56 -> 220.1521344 | D38: 25 | F38: 122.446591 | H38: 25 | J38: ='WP 4.1 Size Study_UIF Data'!G2/1000 -> 4.132568074 | L38: 25 | N38: =(F38*N56*BI54)+F38*N55 -> 282.1223541 | P38: 25 | R38: 189.977662 | T38: 25 | V38: ='WP 4.1 Size Study_UIF Data'!G3/1000 -> 13.81385187 | X38: 25 | Z38: 37.283668 | AB38: 25 | AD38: 100 | AF38: 25 | AK38: SJW Group | AM38: ='3. SJW'!C$62/1000000 -> 129.469 | AO38: ='3. SJW'!E$62/1000000 -> 127.765 | AQ38: ='3. SJW'!G$62/1000000 -> 167.714 | AS38: ='3. SJW'!I$62/1000000 -> 152.844 | AU38: ='3. SJW'!K$62/1000000 -> 124.08 | AW38: 140.3744 | BC38: Mkt Value of Debt | BE38: MV of PE
AK39: York Water Co. | AM39: ='3. YORW'!C$62/1000000 -> 29.454 | AO39: ='3. YORW'!E$62/1000000 -> 28.386 | AQ39: ='3. YORW'!G$62/1000000 -> 29.634 | AS39: ='3. YORW'!I$62/1000000 -> 28.942 | AU39: ='3. YORW'!K$62/1000000 -> 28.812 | AW39: 29.0456 | BA39: American States Water Co. | BC39: 376467000 | BE39: 0 | BF39: 10-K PDF
A40: Indicated Risk Premium | B40: =D32-D18 -> 0.0343 | F40: =H32-H19 -> 0.0157 | J40: =L32-L22 -> 0.02 | N40: =P32-P18 -> 0.0311 | R40: =T32-T18 -> 0.0221 | V40: =X32-X22 -> 0.0192 | Z40: =AB32-AB29 -> 0.0113 | AD40: =AF32-AF30 -> 0.0113 | BA40: American Water Works Company Inc | BC40: 9770000000 | BE40: 9000000 | BF40: 10-K PDF
BA41: Essential Utilities, Inc. | BC41: 3324277000 | BE41: 0 | BF41: 10-K PDF
AM42: Total Revenue | AO42: Total Assets | AQ42: Avg Full Time Employees | BA42: California Water Service Group | BC42: 873454000 | BE42: 0 | BF42: 10-K PDF
BA43: Middlesex Water Co. | BC43: =237955000-151361000+160772000 -> 247366000 | BE43: 2084000 | BF43: 10-K PDF
F44: Sources of Information: | AM44: 2019Y | AO44: 2019Y | AQ44: 2019Y | BA44: SJW Group | BC44: 1396205000 | BE44: 0 | BF44: 10-K PDF
G45: Duff & Phelps 2020 Cost of Capital Navigator | AM45: Originally Reported | AO45: Originally Reported | AQ45: Originally Reported | BA45: York Water Co. | BC45: 115000000 | BE45: 0
G46: SNL Financial | AK46: American States Water Co. | AM46: 473.869 | AO46: 1641.331 | AQ46: 841 | AR46: 10-K PDF | BC46: =AVERAGE(BC39:BC45)/1000000 -> 2300.395571 | BE46: =AVERAGE(BE39:BE45)/1000000 -> 1.583428571
G47: Company Annual Reports | AK47: American Water Works Company Inc | AM47: 3610 | AO47: 22682 | AQ47: 6800 | AR47: from annual report
AK48: Essential Utilities, Inc. | AM48: 889.692 | AO48: 9361.985 | AQ48: 1583 | AR48: 10-K PDF
AK49: California Water Service Group | AM49: 714.557 | AO49: 3111.308 | AQ49: 1207 | AR49: 10-K PDF
AK50: Middlesex Water Co. | AM50: 134.598 | AO50: 909.878 | AQ50: 352 | AR50: 10-K PDF
AK51: SJW Group | AM51: 420.482 | AO51: 3132.47 | AQ51: 361 | AR51: 10-K PDF
AK52: York Water Co. | AM52: 51.578 | AO52: 363.529 | AQ52: 106 | AR52: 10-K PDF | BA52: AWR US Equity | BB52: AWK US Equity | BC52: WTRG US Equity | BD52: CWT US Equity | BE52: MSEX US Equity | BF52: SJW US Equity | BG52: YORW US Equity
AZ53: Date | BA53: PX_TO_BOOK_RATIO | BB53: PX_TO_BOOK_RATIO | BC53: PX_TO_BOOK_RATIO | BD53: PX_TO_BOOK_RATIO | BF53: PX_TO_BOOK_RATIO | BG53: PX_TO_BOOK_RATIO
AZ54: 43830 | BA54: 5.3558 | BB54: 3.5876 | BC54: 2.6229 | BD54: 3.2758 | BE54: 3.8424 | BF54: 2.2552 | BG54: 4.5424 | BI54: =AVERAGE(BA54:BG54) -> 3.6403
L55: Debt | N55: =1-N56 -> 0.5061
L56: Equity | N56: 0.4939 | AZ56: Source: Bloomberg Professional

Sheet 5.1 MRP Freq. Dist.
B1: ='3.2 ERP Average growth'!B1 -> Utilities, Inc of Florida
B2: Frequency Distribution of Market Risk Premium, 1926 - 2019
C22: Large Company Stocks Total Returns | D22: Long-Term Government Bond Income Returns | F22: MRP
B23: Year | C23: Jan-Dec* | D23: Jan-Dec* | F23: Jan-Dec* | H23: MRP
B24: 1926 | C24: 0.1162 | D24: 0.0373 | F24: =(C24-D24) -> 0.0789 | H24: Bin | I24: Frequency | J24: Cumulative %
B25: 1927 | C25: 0.3749 | D25: 0.0341 | F25: 0.3408 | H25: -0.5 | I25: =FREQUENCY($F$24:$F$117,$H$25:$H$66) -> 0 | J25: =SUM(I$25:I25)/I$68 -> 0
B26: 1928 | C26: 0.4361 | D26: 0.0322 | F26: 0.4039 | H26: -0.475 | I26: 0 | J26: =SUM(I$25:I26)/I$68 -> 0
B27: 1929 | C27: -0.0842 | D27: 0.0347 | F27: -0.1189 | H27: -0.45 | I27: 1 | J27: =SUM(I$25:I27)/I$68 -> 0.01063829787
B28: 1930 | C28: -0.249 | D28: 0.0332 | F28: -0.2822 | H28: -0.425 | I28: 0 | J28: =SUM(I$25:I28)/I$68 -> 0.01063829787
B29: 1931 | C29: -0.4334 | D29: 0.0333 | F29: -0.4667 | H29: -0.4 | I29: 1 | J29: =SUM(I$25:I29)/I$68 -> 0.02127659574
B30: 1932 | C30: -0.0819 | D30: 0.0369 | F30: -0.1188 | H30: -0.375 | I30: 1 | J30: =SUM(I$25:I30)/I$68 -> 0.03191489362
B31: 1933 | C31: 0.5399 | D31: 0.0312 | F31: 0.5087 | H31: -0.35 | I31: 0 | J31: =SUM(I$25:I31)/I$68 -> 0.03191489362
B32: 1934 | C32: -0.0144 | D32: 0.0318 | F32: -0.0462 | H32: -0.325 | I32: 1 | J32: =SUM(I$25:I32)/I$68 -> 0.04255319149
B33: 1935 | C33: 0.4767 | D33: 0.0281 | F33: 0.4486 | H33: -0.3 | I33: 0 | J33: =SUM(I$25:I33)/I$68 -> 0.04255319149
B34: 1936 | C34: 0.3392 | D34: 0.0277 | F34: 0.3115 | H34: -0.275 | I34: 2 | J34: =SUM(I$25:I34)/I$68 -> 0.06382978723
B35: 1937 | C35: -0.3503 | D35: 0.0266 | F35: -0.3769 | H35: -0.25 | I35: 0 | J35: =SUM(I$25:I35)/I$68 -> 0.06382978723
B36: 1938 | C36: 0.3112 | D36: 0.0264 | F36: 0.2848 | H36: -0.225 | I36: 0 | J36: =SUM(I$25:I36)/I$68 -> 0.06382978723
B37: 1939 | C37: -0.0041 | D37: 0.024 | F37: -0.0281 | H37: -0.2 | I37: 1 | J37: =SUM(I$25:I37)/I$68 -> 0.07446808511
B38: 1940 | C38: -0.0978 | D38: 0.0223 | F38: -0.1201 | H38: -0.175 | I38: 0 | J38: =SUM(I$25:I38)/I$68 -> 0.07446808511
B39: 1941 | C39: -0.1159 | D39: 0.0194 | F39: -0.1353 | H39: -0.15 | I39: 3 | J39: =SUM(I$25:I39)/I$68 -> 0.1063829787
B40: 1942 | C40: 0.2034 | D40: 0.0246 | F40: 0.1788 | H40: -0.125 | I40: 6 | J40: =SUM(I$25:I40)/I$68 -> 0.170212766
B41: 1943 | C41: 0.259 | D41: 0.0244 | F41: 0.2346 | H41: -0.1 | I41: 5 | J41: =SUM(I$25:I41)/I$68 -> 0.2234042553
B42: 1944 | C42: 0.1975 | D42: 0.0246 | F42: 0.1729 | H42: -0.075 | I42: 0 | J42: =SUM(I$25:I42)/I$68 -> 0.2234042553
B43: 1945 | C43: 0.3644 | D43: 0.0234 | F43: 0.341 | H43: -0.05 | I43: 3 | J43: =SUM(I$25:I43)/I$68 -> 0.2553191489
B44: 1946 | C44: -0.0807 | D44: 0.0204 | F44: -0.1011 | H44: -0.025 | I44: 6 | J44: =SUM(I$25:I44)/I$68 -> 0.3191489362
B45: 1947 | C45: 0.0571 | D45: 0.0213 | F45: 0.0358 | H45: 0 | I45: 3 | J45: =SUM(I$25:I45)/I$68 -> 0.3510638298
B46: 1948 | C46: 0.055 | D46: 0.024 | F46: 0.031 | H46: 0.025 | I46: 3 | J46: =SUM(I$25:I46)/I$68 -> 0.3829787234
B47: 1949 | C47: 0.1879 | D47: 0.0225 | F47: 0.1654 | H47: 0.05 | I47: 4 | J47: =SUM(I$25:I47)/I$68 -> 0.4255319149
B48: 1950 | C48: 0.3171 | D48: 0.0212 | F48: 0.2959 | H48: 0.075 | I48: 2 | J48: =SUM(I$25:I48)/I$68 -> 0.4468085106
B49: 1951 | C49: 0.2402 | D49: 0.0238 | F49: 0.2164 | H49: 0.1 | I49: 9 | J49: =SUM(I$25:I49)/I$68 -> 0.5425531915
B50: 1952 | C50: 0.1837 | D50: 0.0266 | F50: 0.1571 | H50: 0.125 | I50: 5 | J50: =SUM(I$25:I50)/I$68 -> 0.5957446809
B51: 1953 | C51: -0.0099 | D51: 0.0284 | F51: -0.0383 | H51: 0.15 | I51: 2 | J51: =SUM(I$25:I51)/I$68 -> 0.6170212766
B52: 1954 | C52: 0.5262 | D52: 0.0279 | F52: 0.4983 | H52: 0.175 | I52: 6 | J52: =SUM(I$25:I52)/I$68 -> 0.6808510638
B53: 1955 | C53: 0.3156 | D53: 0.0275 | F53: 0.2881 | H53: 0.2 | I53: 4 | J53: =SUM(I$25:I53)/I$68 -> 0.7234042553
B54: 1956 | C54: 0.0656 | D54: 0.0299 | F54: 0.0357 | H54: 0.225 | I54: 3 | J54: =SUM(I$25:I54)/I$68 -> 0.7553191489
B55: 1957 | C55: -0.1078 | D55: 0.0344 | F55: -0.1422 | H55: 0.25 | I55: 7 | J55: =SUM(I$25:I55)/I$68 -> 0.829787234
B56: 1958 | C56: 0.4336 | D56: 0.0327 | F56: =(C56-D56) -> 0.4009 | H56: 0.275 | I56: 1 | J56: =SUM(I$25:I56)/I$68 -> 0.8404255319
B57: 1959 | C57: 0.1196 | D57: 0.0401 | F57: 0.0795 | H57: 0.3 | I57: 7 | J57: =SUM(I$25:I57)/I$68 -> 0.914893617
B58: 1960 | C58: 0.0047 | D58: 0.0426 | F58: -0.0379 | H58: 0.325 | I58: 1 | J58: =SUM(I$25:I58)/I$68 -> 0.9255319149
B59: 1961 | C59: 0.2689 | D59: 0.0383 | F59: 0.2306 | H59: 0.35 | I59: 2 | J59: =SUM(I$25:I59)/I$68 -> 0.9468085106
B60: 1962 | C60: -0.0873 | D60: 0.04 | F60: -0.1273 | H60: 0.375 | I60: 0 | J60: =SUM(I$25:I60)/I$68 -> 0.9468085106
B61: 1963 | C61: 0.228 | D61: 0.0389 | F61: 0.1891 | H61: 0.4 | I61: 0 | J61: =SUM(I$25:I61)/I$68 -> 0.9468085106
B62: 1964 | C62: 0.1648 | D62: 0.0415 | F62: 0.1233 | H62: 0.425 | I62: 2 | J62: =SUM(I$25:I62)/I$68 -> 0.9680851064
B63: 1965 | C63: 0.1245 | D63: 0.0419 | F63: 0.0826 | H63: 0.45 | I63: 1 | J63: =SUM(I$25:I63)/I$68 -> 0.9787234043
B64: 1966 | C64: -0.1006 | D64: 0.0449 | F64: -0.1455 | H64: 0.475 | I64: 0 | J64: =SUM(I$25:I64)/I$68 -> 0.9787234043
B65: 1967 | C65: 0.2398 | D65: 0.0459 | F65: 0.1939 | H65: 0.5 | I65: 1 | J65: =SUM(I$25:I65)/I$68 -> 0.9893617021
B66: 1968 | C66: 0.1106 | D66: 0.055 | F66: 0.0556 | H66: 0.51 | I66: 1 | J66: =SUM(I$25:I66)/I$68 -> 1
B67: 1969 | C67: -0.085 | D67: 0.0595 | F67: -0.1445
B68: 1970 | C68: 0.0386 | D68: 0.0674 | F68: -0.0288 | H68: Count: | I68: =SUM(I25:I66) -> 94
B69: 1971 | C69: 0.143 | D69: 0.0632 | F69: 0.0798
B70: 1972 | C70: 0.1899 | D70: 0.0587 | F70: 0.1312 | J70: Rank
B71: 1973 | C71: -0.1469 | D71: 0.0651 | F71: -0.212 | H71: MRP | I71: 0.1194 | J71: =_xlfn.PERCENTRANK.EXC(F24:F117,I71) -> 0.576 | K71: =1-J71 -> 0.424
B72: 1974 | C72: -0.2647 | D72: 0.0727 | F72: -0.3374
B73: 1975 | C73: 0.3723 | D73: 0.0799 | F73: 0.2924
B74: 1976 | C74: 0.2393 | D74: 0.0789 | F74: 0.1604
B75: 1977 | C75: -0.0716 | D75: 0.0714 | F75: -0.143
B76: 1978 | C76: 0.0657 | D76: 0.079 | F76: -0.0133
B77: 1979 | C77: 0.1861 | D77: 0.0886 | F77: 0.0975
B78: 1980 | C78: 0.325 | D78: 0.0997 | F78: 0.2253
B79: 1981 | C79: -0.0492 | D79: 0.1155 | F79: -0.1647
B80: 1982 | C80: 0.2155 | D80: 0.135 | F80: 0.0805
B81: 1983 | C81: 0.2256 | D81: 0.1038 | F81: 0.1218
B82: 1984 | C82: 0.0627 | D82: 0.1174 | F82: -0.0547
B83: 1985 | C83: 0.3173 | D83: 0.1125 | F83: 0.2048
B84: 1986 | C84: 0.1867 | D84: 0.0898 | F84: 0.0969
B85: 1987 | C85: 0.0525 | D85: 0.0792 | F85: -0.0267
B86: 1988 | C86: 0.1661 | D86: 0.0897 | F86: 0.0764
B87: 1989 | C87: 0.3169 | D87: 0.0881 | F87: 0.2288
B88: 1990 | C88: -0.031 | D88: 0.0819 | F88: =(C88-D88) -> -0.1129
B89: 1991 | C89: 0.3047 | D89: 0.0822 | F89: 0.2225
B90: 1992 | C90: 0.0762 | D90: 0.0726 | F90: 0.0036
B91: 1993 | C91: 0.1008 | D91: 0.0717 | F91: 0.0291
B92: 1994 | C92: 0.0132 | D92: 0.0659 | F92: -0.0527
B93: 1995 | C93: 0.3758 | D93: 0.076 | F93: 0.2998
B94: 1996 | C94: 0.2296 | D94: 0.0618 | F94: 0.1678
B95: 1997 | C95: 0.3336 | D95: 0.0664 | F95: 0.2672
B96: 1998 | C96: 0.2858 | D96: 0.0583 | F96: 0.2275
B97: 1999 | C97: 0.2104 | D97: 0.0557 | F97: 0.1547
B98: 2000 | C98: -0.091 | D98: 0.065 | F98: -0.156
B99: 2001 | C99: -0.1189 | D99: 0.0553 | F99: -0.1742
B100: 2002 | C100: -0.221 | D100: 0.0559 | F100: -0.2769
B101: 2003 | C101: 0.2868 | D101: 0.048 | F101: 0.2388
B102: 2004 | C102: 0.1088 | D102: 0.0502 | F102: 0.0586
B103: 2005 | C103: 0.0491 | D103: 0.0469 | F103: 0.0022
B104: 2006 | C104: 0.1579 | D104: 0.0468 | F104: 0.1111
B105: 2007 | C105: 0.0549 | D105: 0.0486 | F105: 0.0063
B106: 2008 | C106: -0.37 | D106: 0.0445 | F106: -0.4145
B107: 2009 | C107: 0.2646 | D107: 0.0347 | F107: 0.2299
B108: 2010 | C108: 0.1506 | D108: 0.0425 | F108: 0.1081
B109: 2011 | C109: 0.0211 | D109: 0.0382 | F109: -0.0171
B110: 2012 | C110: 0.16 | D110: 0.0246 | F110: 0.1354
B111: 2013 | C111: 0.3239 | D111: 0.0288 | F111: 0.2951
B112: 2014 | C112: 0.1369 | D112: 0.0341 | F112: 0.1028
B113: 2015 | C113: 0.0138 | D113: 0.0247 | F113: -0.0109
B114: 2016 | C114: 0.1196 | D114: 0.023 | F114: 0.0966
B115: 2017 | C115: 0.2183 | D115: 0.0267 | F115: 0.1916
B116: 2018 | C116: -0.0438 | D116: 0.0282 | F116: -0.072
B117: 2019 | C117: 0.3149 | D117: 0.0255 | F117: 0.2894
B118: Average | C118: =AVERAGE(C24:C117) -> 0.1209095745 | D118: =AVERAGE(D24:D117) -> 0.04942234043 | F118: =AVERAGE(F24:F117) -> 0.07148723404
B119: Std. Dev. | C119: =STDEV(C24:C117) -> 0.1976108662 | D119: =STDEV(D24:D117) -> 0.02624693799 | F119: =STDEV(F24:F117) -> 0.1986871963
B121: Source: Duff & Phelps, 2020 SBBI Yearbook, Appendix A-1, A-7

Sheet 6.1 Reg Non Reg Risk
A1: Utilities, Inc of Florida
A2: Measurement of the Coefficent of Variation in Net Profit for
A3: Mr. D'Ascendis' Utility and Non-Utility Proxy Groups
A5: Net Profit, as reported in Value Line Investment Survey, Standard Edition
A7: Proxy Group of Seven Water Companies | B7: 2010 | C7: =B7+1 -> 2011 | D7: 2012 | E7: 2013 | F7: 2014 | G7: 2015 | H7: 2016 | I7: 2017 | J7: 2018 | K7: 2019 | L7: Standard Deviation | M7: Average | N7: Coefficient of Variaton
A8: American States Water Co. | B8: 41.4 | C8: 42 | D8: 54.1 | E8: 62.7 | F8: 61.1 | G8: 60.5 | H8: 59.7 | I8: 69.4 | J8: 63.9 | K8: 84.3 | L8: =_xlfn.STDEV.P(B8:K8) -> 11.8641856 | M8: =AVERAGE(B8:K8) -> 59.91 | N8: =L8/M8 -> 0.1980334769
A9: American Water Works Company Inc | B9: 267.8 | C9: 304.9 | D9: 374.3 | E9: 369.3 | F9: 429.8 | G9: 476 | H9: 468 | I9: 426 | J9: 567 | K9: 621 | L9: 103.7160494 | M9: 430.41 | N9: =L9/M9 -> 0.2409703524
A10: California Water Service Group | B10: 37.7 | C10: 36.1 | D10: 42.6 | E10: 47.3 | F10: 56.7 | G10: 45 | H10: 48.7 | I10: 67.2 | J10: 65.6 | K10: 63.1 | L10: 10.85790035 | M10: 51 | N10: 0.2129000069
A11: Essential Utilities, Inc. | B11: 124 | C11: 144.8 | D11: 153.1 | E11: 205 | F11: 213.9 | G11: 201.8 | H11: 234.2 | I11: 239.7 | J11: 192 | K11: 224.5 | L11: 37.68975988 | M11: 193.3 | N11: 0.1949806512
A12: Middlesex Water Co. | B12: 14.3 | C12: 13.4 | D12: 14.4 | E12: 16.6 | F12: 18.4 | G12: 20 | H12: 22.7 | I12: 22.8 | J12: 32.5 | K12: 33.9 | L12: 6.913899045 | M12: 20.9 | N12: 0.3308085667
A13: SJW Group | B13: 15.8 | C13: 20.9 | D13: 22.3 | E13: 23.5 | F13: 51.8 | G13: 37.9 | H13: 52.8 | I13: 59.2 | J13: 38.8 | K13: 38.5 | L13: 14.37909942 | M13: 36.15 | N13: 0.3977620862
A14: York Water Co. | B14: 8.9 | C14: 9.1 | D14: 9.3 | E14: 9.7 | F14: 11.5 | G14: 12.5 | H14: 11.8 | I14: 13 | J14: 13.4 | K14: 14.5 | L14: 1.907380403 | M14: 11.37 | N14: 0.1677555323
M16: Mean | N16: =AVERAGE(N8:N14) -> 0.2490300961
M17: Median | N17: =MEDIAN(N8:N14) -> 0.2129000069
A19: Proxy Group of Twelve Non-Price Regulated Companies | B19: 2010 | C19: =B19+1 -> 2011 | D19: 2012 | E19: 2013 | F19: 2014 | G19: 2015 | H19: 2016 | I19: 2017 | J19: 2018 | K19: 2019 | L19: Standard Deviation | M19: Average | N19: Coefficient of Variaton
A20: Casey's Gen'l Stores | B20: 94.6 | C20: 116.8 | D20: 110.6 | E20: 134.5 | F20: 183 | G20: 226 | H20: 177.5 | I20: 143 | J20: 203.9 | K20: 225 | L20: =_xlfn.STDEV.P(B20:K20) -> 45.65552431 | M20: =AVERAGE(B20:K20) -> 161.49 | N20: =L20/M20 -> 0.2827142505
A21: Cboe Global Markets | B21: 99.4 | C21: 139.4 | D21: 157.4 | E21: 176 | F21: 189.7 | G21: 205 | H21: 185.7 | I21: 400.6 | J21: 425.2 | K21: 370.8 | L21: =_xlfn.STDEV.P(B21:K21) -> 111.558521 | M21: =AVERAGE(B21:K21) -> 234.92 | N21: =L21/M21 -> 0.4748787713
A22: Cracker Barrel | B22: 85.3 | C22: 91.1 | D22: 107.9 | E22: 119 | F22: 135.1 | G22: 163.9 | H22: 189.3 | I22: 201.9 | J22: 222.2 | K22: 223.4 | L22: 50.4871756 | M22: 153.91 | N22: 0.3280305087
A23: Campbell Soup | B23: 844 | C23: 846 | D23: 783 | E23: 786 | F23: 800 | G23: 831 | H23: 914 | I23: 932 | J23: 868 | K23: 696 | L23: 65.0830239 | M23: 830 | N23: 0.07841328181
A24: Dunkin' Brands Group | B24: 95.9 | C24: 101.7 | D24: 149.7 | E24: 165.8 | F24: 186.4 | G24: 188 | H24: 208.7 | I24: 223.8 | J24: 246.3 | K24: 265.1 | L24: 53.58136243 | M24: 183.14 | N24: 0.2925705058
A25: Darden Restaurants | B25: 414.2 | C25: 478.7 | D25: 476.5 | E25: 412.6 | F25: 183.2 | G25: 342.9 | H25: 456.6 | I25: 504.5 | J25: 606.2 | K25: 729.6 | L25: 138.3274738 | M25: 460.5 | N25: 0.3003853936
A26: Hormel Foods | B26: 409 | C26: 474.2 | D26: 500.1 | E26: 526.2 | F26: 602.7 | G26: 713.8 | H26: 890.1 | I26: 846.7 | J26: 1012.1 | K26: 978.8 | L26: 211.6769239 | M26: 695.37 | N26: 0.304409054
A27: Lancaster Colony | B27: 115 | C27: 106.4 | D27: 95.8 | E27: 109.2 | F27: 101 | G27: 101.7 | H27: 121.8 | I27: 115.3 | J27: 135.3 | K27: 150.5 | L27: 16.02310831 | M27: 115.2 | N27: 0.1390894819
A28: Lilly (Eli) | B28: 5239.5 | C28: 4913.5 | D28: 3784 | E28: 4502.6 | F28: 2987.6 | G28: 3656.3 | H28: 3735.6 | I28: 4530.4 | J28: 5734.6 | K28: 5568.2 | L28: 864.182799 | M28: 4465.23 | N28: 0.1935360102
A29: Lamb Weston Holdings | B29: NA | C29: NA | D29: NA | E29: NA | F29: NA | G29: NA | H29: NA | I29: 326.9 | J29: 416.8 | K29: 478.6 | L29: 62.28441931 | M29: 407.4333333 | N29: 0.1528702102
A30: Altria Group | B30: 3905 | C30: 3390 | D30: 4180 | E30: 4535 | F30: 5070 | G30: 5243 | H30: 5925 | I30: 6531 | J30: 7539 | K30: 7895.9 | L30: 1449.149664 | M30: 5421.39 | N30: 0.2673022351
A31: Valvoline Inc. | H31: 273 | I31: 283 | J31: 254 | K31: 263 | L31: 10.84838698 | M31: 268.25 | N31: 0.04044133076
M33: Mean | N33: =AVERAGE(N20:N31) -> 0.2378867528
M34: Median | N34: =MEDIAN(N20:N31) -> 0.2750082428
A35: Source of Information: Value Line Investment Survey, Standard Edition

Sheet WP 2.1 GDP by Industry
A2: Value Added by Industry (Billions of dollars)
A3: Bureau of Economic Analysis
BY4: % of Economy
A5: Line | C5: 1947 | D5: 1948 | E5: 1949 | F5: 1950 | G5: 1951 | H5: 1952 | I5: 1953 | J5: 1954 | K5: 1955 | L5: 1956 | M5: 1957 | N5: 1958 | O5: 1959 | P5: 1960 | Q5: 1961 | R5: 1962 | S5: 1963 | T5: 1964 | U5: 1965 | V5: 1966 | W5: 1967 | X5: 1968 | Y5: 1969 | Z5: 1970 | AA5: 1971 | AB5: 1972 | AC5: 1973 | AD5: 1974 | AE5: 1975 | AF5: 1976 | AG5: 1977 | AH5: 1978 | AI5: 1979 | AJ5: 1980 | AK5: 1981 | AL5: 1982 | AM5: 1983 | AN5: 1984 | AO5: 1985 | AP5: 1986 | AQ5: 1987 | AR5: 1988 | AS5: 1989 | AT5: 1990 | AU5: 1991 | AV5: 1992 | AW5: 1993 | AX5: 1994 | AY5: 1995 | AZ5: 1996 | BA5: 1997 | BB5: 1998 | BC5: 1999 | BD5: 2000 | BE5: 2001 | BF5: 2002 | BG5: 2003 | BH5: 2004 | BI5: 2005 | BJ5: 2006 | BK5: 2007 | BL5: 2008 | BM5: 2009 | BN5: 2010 | BO5: 2011 | BP5: 2012 | BQ5: 2013 | BR5: 2014 | BS5: 2015 | BT5: 2016 | BU5: 2017 | BV5: 2018 | BW5: 2019 | BX5: 1947-2019 | BY5: 1947 | BZ5: 2019 | CA5: Change
A6: 1 | B6: Gross domestic product | C6: 249.6 | D6: 274.5 | E6: 272.5 | F6: 299.8 | G6: 346.9 | H6: 367.3 | I6: 389.2 | J6: 390.5 | K6: 425.5 | L6: 449.4 | M6: 474 | N6: 481.2 | O6: 521.7 | P6: 542.4 | Q6: 562.2 | R6: 603.9 | S6: 637.5 | T6: 684.5 | U6: 742.3 | V6: 813.4 | W6: 860 | X6: 940.7 | Y6: 1017.6 | Z6: 1073.3 | AA6: 1164.9 | AB6: 1279.1 | AC6: 1425.4 | AD6: 1545.2 | AE6: 1684.9 | AF6: 1873.4 | AG6: 2081.8 | AH6: 2351.6 | AI6: 2627.3 | AJ6: 2857.3 | AK6: 3207 | AL6: 3343.8 | AM6: 3634 | AN6: 4037.6 | AO6: 4339 | AP6: 4579.6 | AQ6: 4855.2 | AR6: 5236.4 | AS6: 5641.6 | AT6: 5963.1 | AU6: 6158.1 | AV6: 6520.3 | AW6: 6858.6 | AX6: 7287.2 | AY6: 7639.7 | AZ6: 8073.1 | BA6: 8577.6 | BB6: 9062.8 | BC6: 9630.7 | BD6: 10252.3 | BE6: 10581.8 | BF6: 10936.4 | BG6: 11458.2 | BH6: 12213.7 | BI6: 13036.6 | BJ6: 13814.6 | BK6: 14451.9 | BL6: 14712.8 | BM6: 14448.9 | BN6: 14992.1 | BO6: 15542.6 | BP6: 16197 | BQ6: 16784.9 | BR6: 17527.3 | BS6: 18224.8 | BT6: 18715 | BU6: 19519.4 | BV6: 20580.2 | BW6: 21427.7 | BX6: =($BW6/C6)^(1/($BW$5-C$5))-1 -> 0.06379360363 | BY6: =C6/C$6 -> 1 | BZ6: =BW6/BW$6 -> 1
A7: =A6+1 -> 2 | B7: Private industries | C7: 216.1 | D7: 241.3 | E7: 237.7 | F7: 264.1 | G7: 302.4 | H7: 316.4 | I7: 336 | J7: 335.4 | K7: 367.6 | L7: 387.7 | M7: 407.9 | N7: 410.7 | O7: 447.5 | P7: 463.5 | Q7: 478.3 | R7: 514.3 | S7: 541.3 | T7: 581.4 | U7: 631.9 | V7: 691.2 | W7: 726.2 | X7: 791.7 | Y7: 855.1 | Z7: 894.7 | AA7: 969.8 | AB7: 1067.1 | AC7: 1198 | AD7: 1297.1 | AE7: 1413.1 | AF7: 1581.6 | AG7: 1768.7 | AH7: 2009.9 | AI7: 2256.4 | AJ7: 2449.3 | AK7: 2754 | AL7: 2850.1 | AM7: 3107.5 | AN7: 3468.1 | AO7: 3722.5 | AP7: 3924.1 | AQ7: 4160.1 | AR7: 4487.3 | AS7: 4834.7 | AT7: 5097 | AU7: 5234.1 | AV7: 5544.8 | AW7: 5852.2 | AX7: 6244.3 | AY7: 6563 | AZ7: 6969 | BA7: 7432 | BB7: 7871.5 | BC7: 8378.3 | BD7: 8929.3 | BE7: 9188.9 | BF7: 9462 | BG7: 9905.9 | BH7: 10582.5 | BI7: 11326.4 | BJ7: 12022.6 | BK7: 12564.8 | BL7: 12731.2 | BM7: 12403.9 | BN7: 12884.1 | BO7: 13405.5 | BP7: 14037.5 | BQ7: 14572.3 | BR7: 15255.9 | BS7: 15883.9 | BT7: 16326.1 | BU7: 17065.8 | BV7: 18035.6 | BW7: 18796.8 | BX7: 0.06398747608 | BY7: 0.8657852564 | BZ7: 0.8772196736 | CA7: =BZ7-BY7 -> 0.01143441719
A8: 3 | B8: Agriculture, forestry, fishing, and hunting | C8: 19.9 | D8: 23.2 | E8: 18.6 | F8: 19.9 | G8: 23 | H8: 22.1 | I8: 20 | J8: 19.6 | K8: 18.8 | L8: 18.6 | M8: 18.4 | N8: 20.6 | O8: 19 | P8: 19.9 | Q8: 20 | R8: 20.3 | S8: 20.5 | T8: 19.6 | U8: 22.4 | V8: 23.4 | W8: 22.9 | X8: 23.6 | Y8: 26.3 | Z8: 27.3 | AA8: 29.4 | AB8: 34.3 | AC8: 52.2 | AD8: 50.1 | AE8: 51.4 | AF8: 50.1 | AG8: 51.2 | AH8: 59.5 | AI8: 70.2 | AJ8: 62.2 | AK8: 75.7 | AL8: 71.7 | AM8: 57.3 | AN8: 77 | AO8: 77 | AP8: 74.1 | AQ8: 79.3 | AR8: 78.7 | AS8: 91.7 | AT8: 96.1 | AU8: 88 | AV8: 98.6 | AW8: 90.5 | AX8: 105.3 | AY8: 90.7 | AZ8: 113.6 | BA8: 108.6 | BB8: 99.8 | BC8: 92.6 | BD8: 98.3 | BE8: 99.8 | BF8: 95.6 | BG8: 114 | BH8: 142.9 | BI8: 128.3 | BJ8: 125.1 | BK8: 144.1 | BL8: 147.2 | BM8: 130 | BN8: 146.3 | BO8: 180.9 | BP8: 179.6 | BQ8: 215.6 | BR8: 201 | BS8: 180.7 | BT8: 164.3 | BU8: 174.6 | BV8: 166.5 | BW8: 169.2 | BX8: 0.03017351173 | BY8: 0.0797275641 | BZ8: 0.007896321117 | CA8: -0.07183124299
A9: 4 | B9: Mining | C9: 5.8 | D9: 7.7 | E9: 6.6 | F9: 7.6 | G9: 8.4 | H9: 8.3 | I9: 8.7 | J9: 8.8 | K9: 10 | L9: 10.8 | M9: 10.9 | N9: 10 | O9: 9.8 | P9: 10.1 | Q9: 10.2 | R9: 10.3 | S9: 10.6 | T9: 11 | U9: 11.2 | V9: 11.8 | W9: 12 | X9: 12.9 | Y9: 13.5 | Z9: 15 | AA9: 15.2 | AB9: 15.9 | AC9: 19.1 | AD9: 29.7 | AE9: 34.2 | AF9: 38 | AG9: 44 | AH9: 50.4 | AI9: 59.3 | AJ9: 91.2 | AK9: 122 | AL9: 119.1 | AM9: 103.1 | AN9: 107.5 | AO9: 106.7 | AP9: 70.5 | AQ9: 73.1 | AR9: 74 | AS9: 78.6 | AT9: 88.3 | AU9: 79.4 | AV9: 73.5 | AW9: 74.4 | AX9: 76.1 | AY9: 76.5 | AZ9: 90.1 | BA9: 95.1 | BB9: 81.7 | BC9: 84.5 | BD9: 110.6 | BE9: 123.9 | BF9: 112.4 | BG9: 139 | BH9: 166.5 | BI9: 225.7 | BJ9: 273.3 | BK9: 314 | BL9: 392.2 | BM9: 275.8 | BN9: 305.8 | BO9: 356.3 | BP9: 358.8 | BQ9: 386.5 | BR9: 416.4 | BS9: 259.9 | BT9: 215.6 | BU9: 287.3 | BV9: 346.6 | BW9: 320.3 | BX9: 0.05729513861 | BY9: 0.02323717949 | BZ9: 0.01494794122 | CA9: -0.008289238271
A10: 5 | B10: Utilities | C10: 3.5 | D10: 3.9 | E10: 4.4 | F10: 4.9 | G10: 5.6 | H10: 6.1 | I10: 6.8 | J10: 7.5 | K10: 8.1 | L10: 8.6 | M10: 9.3 | N10: 10 | O10: 11 | P10: 12 | Q10: 12.6 | R10: 13.4 | S10: 14 | T10: 14.9 | U10: 15.6 | V10: 16.7 | W10: 17.5 | X10: 19 | Y10: 20.4 | Z10: 21.7 | AA10: 24.6 | AB10: 27 | AC10: 28.9 | AD10: 30.2 | AE10: 38.4 | AF10: 42.9 | AG10: 47.5 | AH10: 52 | AI10: 53.7 | AJ10: 60.9 | AK10: 72 | AL10: 83.2 | AM10: 94.6 | AN10: 105.9 | AO10: 113.6 | AP10: 117.9 | AQ10: 125.8 | AR10: 125.3 | AS10: 138.5 | AT10: 145.6 | AU10: 153.8 | AV10: 160.1 | AW10: 164.7 | AX10: 172.4 | AY10: 176 | AZ10: 175 | BA10: 171.5 | BB10: 163.7 | BC10: 179.9 | BD10: 180.1 | BE10: 181.3 | BF10: 177.6 | BG10: 184 | BH10: 199.2 | BI10: 198.1 | BJ10: 226.8 | BK10: 231.9 | BL10: 241.7 | BM10: 258.2 | BN10: 278.8 | BO10: 287.5 | BP10: 279.7 | BQ10: 286.3 | BR10: 298.1 | BS10: 299.2 | BT10: 302.4 | BU10: 315.1 | BV10: 325.9 | BW10: 334.6 | BX10: 0.06538446457 | BY10: 0.0140224359 | BZ10: 0.01561530169 | CA10: 0.001592865791
A11: 6 | B11: Construction | C11: 8.9 | D11: 11.1 | E11: 11.2 | F11: 12.8 | G11: 15.2 | H11: 16.4 | I11: 17 | J11: 17.1 | K11: 18.4 | L11: 20.2 | M11: 21.3 | N11: 20.9 | O11: 22.7 | P11: 23.1 | Q11: 24.1 | R11: 25.9 | S11: 27.6 | T11: 30.3 | U11: 33.2 | V11: 36.6 | W11: 38.2 | X11: 41.8 | Y11: 46.6 | Z11: 49.4 | AA11: 54.4 | AB11: 60 | AC11: 68 | AD11: 72.8 | AE11: 73.6 | AF11: 84.2 | AG11: 92.9 | AH11: 109.9 | AI11: 125.1 | AJ11: 131.7 | AK11: 133.2 | AL11: 131 | AM11: 139.2 | AN11: 160.3 | AO11: 177.3 | AP11: 197.5 | AQ11: 211 | AR11: 227.8 | AS11: 241 | AT11: 245.9 | AU11: 230 | AV11: 235 | AW11: 251.4 | AX11: 277.7 | AY11: 292.9 | AZ11: 316.3 | BA11: 339.6 | BB11: 379.8 | BC11: 417.6 | BD11: 461.3 | BE11: 486.5 | BF11: 493.6 | BG11: 525.2 | BH11: 584.6 | BI11: 651.8 | BJ11: 697.1 | BK11: 715.3 | BL11: 648.9 | BM11: 565.6 | BN11: 525.1 | BO11: 524.4 | BP11: 553.4 | BQ11: 587.6 | BR11: 636.9 | BS11: 695.6 | BT11: 745.5 | BU11: 790.4 | BV11: 839.1 | BW11: 886.6 | BX11: 0.06599382894 | BY11: 0.03565705128 | BZ11: 0.0413763493 | CA11: 0.005719298023
A12: 7 | B12: Manufacturing | C12: 63.4 | D12: 71 | E12: 69 | F12: 80.3 | G12: 95.8 | H12: 100 | I12: 109.5 | J12: 103.7 | K12: 117.3 | L12: 122.4 | M12: 127.5 | N12: 120.9 | O12: 136 | P12: 137.8 | Q12: 138.5 | R12: 152.2 | S12: 160.9 | T12: 173 | U12: 191.2 | V12: 212.2 | W12: 217.5 | X12: 236.8 | Y12: 248.7 | Z12: 245.4 | AA12: 258.9 | AB12: 284.6 | AC12: 314.6 | AD12: 331.3 | AE12: 351.5 | AF12: 401.8 | AG12: 455.7 | AH12: 508.7 | AI12: 566.9 | AJ12: 584.5 | AK12: 650.2 | AL12: 640.9 | AM12: 696.9 | AN12: 777 | AO12: 804.1 | AP12: 830.8 | AQ12: 878.8 | AR12: 960.4 | AS12: 1015.8 | AT12: 1035.4 | AU12: 1043 | AV12: 1085.5 | AW12: 1124.3 | AX12: 1193.4 | AY12: 1259.6 | AZ12: 1301.5 | BA12: 1382.9 | BB12: 1430.6 | BC12: 1488.9 | BD12: 1550.2 | BE12: 1473.8 | BF12: 1468.5 | BG12: 1524.2 | BH12: 1608.1 | BI12: 1693.4 | BJ12: 1793.8 | BK12: 1844.7 | BL12: 1800.8 | BM12: 1702.1 | BN12: 1797 | BO12: 1867.6 | BP12: 1927.1 | BQ12: 1991.9 | BR12: 2050.2 | BS12: 2126.5 | BT12: 2101.2 | BU12: 2185.1 | BV12: 2321.2 | BW12: 2359.9 | BX12: 0.05151803775 | BY12: 0.2540064103 | BZ12: 0.1101331454 | CA12: -0.1438732648
A13: 8 | B13: Wholesale trade | C13: 15.6 | D13: 17.1 | E13: 16.6 | F13: 18.7 | G13: 21.3 | H13: 21.5 | I13: 22 | J13: 22.2 | K13: 25.1 | L13: 27 | M13: 28.5 | N13: 29.1 | O13: 33.4 | P13: 34.8 | Q13: 35.8 | R13: 38.3 | S13: 39.8 | T13: 43 | U13: 46.4 | V13: 50.9 | W13: 53.9 | X13: 59.1 | Y13: 63.8 | Z13: 67.7 | AA13: 73.4 | AB13: 81.6 | AC13: 91.8 | AD13: 104.3 | AE13: 114 | AF13: 122.3 | AG13: 134.4 | AH13: 152.6 | AI13: 175 | AJ13: 187 | AK13: 206.9 | AL13: 207.6 | AM13: 223.5 | AN13: 251 | AO13: 271 | AP13: 280.2 | AQ13: 286.2 | AR13: 314.9 | AS13: 336.4 | AT13: 347.8 | AU13: 362.5 | AV13: 380.4 | AW13: 403.5 | AX13: 444.6 | AY13: 462.2 | AZ13: 495.1 | BA13: 527.5 | BB13: 563.7 | BC13: 584 | BD13: 622.6 | BE13: 613.8 | BF13: 613.1 | BG13: 641.4 | BH13: 697.1 | BI13: 754.9 | BJ13: 811.5 | BK13: 857.8 | BL13: 884.3 | BM13: 834.2 | BN13: 888.9 | BO13: 934.9 | BP13: 997.4 | BQ13: 1040.1 | BR13: 1088.2 | BS13: 1142.5 | BT13: 1133.8 | BU13: 1164.6 | BV13: 1212.2 | BW13: 1278.1 | BX13: 0.06310352664 | BY13: 0.0625 | BZ13: 0.05964709232 | CA13: -0.002852907685
A14: 9 | B14: Retail trade | C14: 23.2 | D14: 24.5 | E14: 24.9 | F14: 26 | G14: 28.4 | H14: 29.9 | I14: 30.8 | J14: 31.4 | K14: 33.4 | L14: 34.5 | M14: 36.5 | N14: 37.2 | O14: 40.6 | P14: 41.5 | Q14: 42.5 | R14: 45.7 | S14: 47.6 | T14: 52.4 | U14: 56.1 | V14: 60.5 | W14: 64.8 | X14: 71.6 | Y14: 77.6 | Z14: 83 | AA14: 90.8 | AB14: 98.4 | AC14: 108.4 | AD14: 114 | AE14: 127.8 | AF14: 144.6 | AG14: 159.4 | AH14: 178.2 | AI14: 193.9 | AJ14: 199.2 | AK14: 218.9 | AL14: 227.9 | AM14: 256.4 | AN14: 287.8 | AO14: 310.8 | AP14: 332 | AQ14: 346.1 | AR14: 367.2 | AS14: 391.2 | AT14: 399.9 | AU14: 407.2 | AV14: 426.2 | AW14: 461.9 | AX14: 498.8 | AY14: 522.3 | AZ14: 550.2 | BA14: 579.9 | BB14: 626.9 | BC14: 652.6 | BD14: 685.5 | BE14: 709.5 | BF14: 732.6 | BG14: 769.6 | BH14: 795.6 | BI14: 840.8 | BJ14: 869.9 | BK14: 869.2 | BL14: 848.7 | BM14: 827.6 | BN14: 851.5 | BO14: 871.9 | BP14: 908.4 | BQ14: 949.5 | BR14: 974.5 | BS14: 1024.7 | BT14: 1056.5 | BU14: 1084.3 | BV14: 1126.9 | BW14: 1172.9 | BX14: 0.05599901696 | BY14: 0.09294871795 | BZ14: 0.05473755933 | CA14: -0.03821115862
A15: 10 | B15: Transportation and warehousing | C15: 14.1 | D15: 15.5 | E15: 15.1 | F15: 16.7 | G15: 19 | H15: 19.7 | I15: 20.6 | J15: 19.2 | K15: 20.9 | L15: 22 | M15: 22.8 | N15: 21.7 | O15: 22.9 | P15: 23.2 | Q15: 23.4 | R15: 24.9 | S15: 25.9 | T15: 27.4 | U15: 29.7 | V15: 32.4 | W15: 33.1 | X15: 35.8 | Y15: 38.1 | Z15: 40.2 | AA15: 44.2 | AB15: 48.7 | AC15: 53.7 | AD15: 59 | AE15: 59.9 | AF15: 69.4 | AG15: 77 | AH15: 87.5 | AI15: 97.5 | AJ15: 102.6 | AK15: 110.2 | AL15: 106.3 | AM15: 117.9 | AN15: 131.2 | AO15: 137.4 | AP15: 147.2 | AQ15: 153.1 | AR15: 162.8 | AS15: 168.6 | AT15: 174.9 | AU15: 183.9 | AV15: 194.7 | AW15: 207.4 | AX15: 223.8 | AY15: 229.3 | AZ15: 237.5 | BA15: 257.3 | BB15: 280 | BC15: 290 | BD15: 307.8 | BE15: 308.1 | BF15: 305.7 | BG15: 321.4 | BH15: 352.1 | BI15: 375.8 | BJ15: 410.4 | BK15: 413.9 | BL15: 426.8 | BM15: 404.6 | BN15: 433 | BO15: 451.4 | BP15: 472 | BQ15: 491.1 | BR15: 521.8 | BS15: 564.4 | BT15: 580.8 | BU15: 612.4 | BV15: 658.1 | BW15: 684.5 | BX15: 0.05540418092 | BY15: 0.05649038462 | BZ15: 0.03194463242 | CA15: -0.0245457522
A16: 11 | B16: Information | C16: 7.7 | D16: 8.4 | E16: 9.1 | F16: 9.7 | G16: 10.5 | H16: 11.4 | I16: 12.5 | J16: 12.8 | K16: 14 | L16: 14.8 | M16: 15.9 | N16: 16.6 | O16: 18.3 | P16: 19.1 | Q16: 20.5 | R16: 21.7 | S16: 23.4 | T16: 25.2 | U16: 27.4 | V16: 30.2 | W16: 32.3 | X16: 35.2 | Y16: 38.3 | Z16: 41.2 | AA16: 44.5 | AB16: 49.8 | AC16: 54.4 | AD16: 58.8 | AE16: 65.2 | AF16: 74.5 | AG16: 83.9 | AH16: 96.1 | AI16: 107.4 | AJ16: 118.7 | AK16: 137.2 | AL16: 149.9 | AM16: 169.5 | AN16: 180.3 | AO16: 198.9 | AP16: 210.9 | AQ16: 222.5 | AR16: 233.1 | AS16: 254 | AT16: 269.3 | AU16: 281 | AV16: 299.3 | AW16: 321.4 | AX16: 340.9 | AY16: 356.3 | AZ16: 386.8 | BA16: 394.1 | BB16: 434.6 | BC16: 485 | BD16: 471.3 | BE16: 502.4 | BF16: 550.6 | BG16: 564.9 | BH16: 620.4 | BI16: 642.3 | BJ16: 652 | BK16: 706.9 | BL16: 743 | BM16: 721.9 | BN16: 753.3 | BO16: 759.8 | BP16: 759 | BQ16: 828.9 | BR16: 842.4 | BS16: 898 | BT16: 959.3 | BU16: 997.6 | BV16: 1067.7 | BW16: 1120.3 | BX16: 0.07161675327 | BY16: 0.03084935897 | BZ16: 0.05228279283 | CA16: 0.02143343386
A17: 12 | B17: Finance, insurance, real estate, rental, and leasing | C17: 25.8 | D17: 28.4 | E17: 30.8 | F17: 33.8 | G17: 37.7 | H17: 41.3 | I17: 45.5 | J17: 49.2 | K17: 53.3 | L17: 56.9 | M17: 60.9 | N17: 65.3 | O17: 69.9 | P17: 74.8 | Q17: 79.5 | R17: 84.7 | S17: 89.5 | T17: 95.9 | U17: 102.9 | V17: 110.7 | W17: 119.1 | X17: 129.9 | Y17: 142.6 | Z17: 153.4 | AA17: 170.4 | AB17: 186.1 | AC17: 205 | AD17: 225.5 | AE17: 250.3 | AF17: 275.3 | AG17: 307.2 | AH17: 352.6 | AI17: 395.7 | AJ17: 449.4 | AK17: 505.4 | AL17: 548.1 | AM17: 614.3 | AN17: 679.9 | AO17: 738.6 | AP17: 799.7 | AQ17: 842.1 | AR17: 907 | AS17: 972.8 | AT17: 1037.9 | AU17: 1097.3 | AV17: 1181.2 | AW17: 1248.5 | AX17: 1314.2 | AY17: 1406.5 | AZ17: 1493.2 | BA17: 1612.4 | BB17: 1710.1 | BC17: 1837.1 | BD17: 1974.7 | BE17: 2128.1 | BF17: 2217 | BG17: 2295.9 | BH17: 2389.1 | BI17: 2606.2 | BJ17: 2743.9 | BK17: 2848.3 | BL17: 2762.7 | BM17: 2867.7 | BN17: 2943 | BO17: 3045.3 | BP17: 3261 | BQ17: 3322.8 | BR17: 3548 | BS17: 3753.5 | BT17: 3930.2 | BU17: 4088.5 | BV17: 4301.6 | BW17: 4491.7 | BX17: 0.0742913966 | BY17: 0.1033653846 | BZ17: 0.2096211913 | CA17: 0.1062558066
A18: 13 | B18: Professional and business services | C18: 8.2 | D18: 9 | E18: 9.3 | F18: 10.4 | G18: 12 | H18: 12.9 | I18: 14 | J18: 14.5 | K18: 16.1 | L18: 17.5 | M18: 19 | N18: 19.5 | O18: 21.7 | P18: 22.7 | Q18: 24.2 | R18: 26.4 | S18: 28.1 | T18: 30.8 | U18: 33.7 | V18: 37.8 | W18: 40.7 | X18: 44.2 | Y18: 48.7 | Z18: 52.3 | AA18: 56.7 | AB18: 63 | AC18: 71.7 | AD18: 79.2 | AE18: 87 | AF18: 98.4 | AG18: 115.1 | AH18: 132.9 | AI18: 153.7 | AJ18: 174.9 | AK18: 199.3 | AL18: 215.5 | AM18: 245.1 | AN18: 284 | AO18: 320.7 | AP18: 356.2 | AQ18: 388.6 | AR18: 429.7 | AS18: 477 | AT18: 523.5 | AU18: 531.6 | AV18: 575.8 | AW18: 608 | AX18: 643.5 | AY18: 690 | AZ18: 756.6 | BA18: 840.6 | BB18: 914 | BC18: 997.2 | BD18: 1105.1 | BE18: 1155.5 | BF18: 1189.9 | BG18: 1247.4 | BH18: 1341 | BI18: 1446.4 | BJ18: 1546.6 | BK18: 1666.7 | BL18: 1777.1 | BM18: 1688.7 | BN18: 1766.8 | BO18: 1856.7 | BP18: 1964.7 | BQ18: 2017.3 | BR18: 2118.4 | BS18: 2234.9 | BT18: 2302.5 | BU18: 2427.6 | BV18: 2579.4 | BW18: 2742.2 | BX18: 0.08407547049 | BY18: 0.0328525641 | BZ18: 0.1279745376 | CA18: 0.09512197353
A19: 14 | B19: Educational services, health care, and social assistance | C19: 4.6 | D19: 5.2 | E19: 5.5 | F19: 5.9 | G19: 6.5 | H19: 7.1 | I19: 7.8 | J19: 8.1 | K19: 9.4 | L19: 10 | M19: 11.1 | N19: 12.1 | O19: 13.4 | P19: 14.2 | Q19: 15.2 | R19: 16.7 | S19: 17.9 | T19: 19.9 | U19: 21.7 | V19: 24.4 | W19: 27.6 | X19: 31.2 | Y19: 35.7 | Z19: 40.4 | AA19: 44.9 | AB19: 50.5 | AC19: 56.4 | AD19: 63.4 | AE19: 73.1 | AF19: 82.7 | AG19: 92.3 | AH19: 104.3 | AI19: 118.2 | AJ19: 134.1 | AK19: 152.6 | AL19: 169.1 | AM19: 190 | AN19: 207.6 | AO19: 226.9 | AP19: 246.5 | AQ19: 278.9 | AR19: 302.9 | AS19: 339.2 | AT19: 377.9 | AU19: 414.2 | AV19: 449.4 | AW19: 484.6 | AX19: 516 | AY19: 538.5 | AZ19: 561.9 | BA19: 590.6 | BB19: 615.8 | BC19: 653.9 | BD19: 695.4 | BE19: 749.9 | BF19: 807 | BG19: 862.8 | BH19: 927.3 | BI19: 970.5 | BJ19: 1035.4 | BK19: 1087.9 | BL19: 1184.8 | BM19: 1267.5 | BN19: 1310.7 | BO19: 1354.7 | BP19: 1407.4 | BQ19: 1447.2 | BR19: 1491.9 | BS19: 1571.9 | BT19: 1650.7 | BU19: 1708.9 | BV19: 1792.5 | BW19: 1881.4 | BX19: 0.08711111172 | BY19: 0.01842948718 | BZ19: 0.08780223729 | CA19: 0.06937275011
A20: 15 | B20: Arts, entertainment, recreation, accommodation, and food services | C20: 8 | D20: 8.5 | E20: 8.6 | F20: 8.9 | G20: 9.7 | H20: 10.2 | I20: 10.6 | J20: 10.9 | K20: 11.5 | L20: 12 | M20: 12.8 | N20: 13.1 | O20: 14.3 | P20: 14.8 | Q20: 15.3 | R20: 16.4 | S20: 17.3 | T20: 18.9 | U20: 20.3 | V20: 21.9 | W20: 23.5 | X20: 25.8 | Y20: 27.8 | Z20: 30 | AA20: 32.5 | AB20: 35.3 | AC20: 39.3 | AD20: 41.8 | AE20: 46.6 | AF20: 53.1 | AG20: 60.1 | AH20: 69.4 | AI20: 78.7 | AJ20: 83.8 | AK20: 93.9 | AL20: 101 | AM20: 112.4 | AN20: 121.8 | AO20: 133.3 | AP20: 145 | AQ20: 153.4 | AR20: 170 | AS20: 185.1 | AT20: 200.5 | AU20: 206.6 | AV20: 219.1 | AW20: 232.3 | AX20: 244.2 | AY20: 257.3 | AZ20: 274.9 | BA20: 301.8 | BB20: 322.1 | BC20: 354.1 | BD20: 386.5 | BE20: 390.7 | BF20: 413.5 | BG20: 432.1 | BH20: 461.2 | BI20: 481.2 | BJ20: 511.5 | BK20: 533.5 | BL20: 542.7 | BM20: 533.3 | BN20: 555.8 | BO20: 580.9 | BP20: 621.4 | BQ20: 651.3 | BR20: 691.4 | BS20: 739.7 | BT20: 781.3 | BU20: 815.4 | BV20: 860.6 | BW20: 898.5 | BX20: 0.06777111424 | BY20: 0.03205128205 | BZ20: 0.04193170522 | CA20: 0.009880423171
A21: 16 | B21: Other services, except government | C21: 7.5 | D21: 7.8 | E21: 8 | F21: 8.6 | G21: 9.3 | H21: 9.6 | I21: 10.1 | J21: 10.4 | K21: 11.4 | L21: 12.4 | M21: 13.1 | N21: 13.6 | O21: 14.5 | P21: 15.6 | Q21: 16.2 | R21: 17.3 | S21: 18 | T21: 19.2 | U21: 20.1 | V21: 21.9 | W21: 23.2 | X21: 24.8 | Y21: 26.7 | Z21: 27.8 | AA21: 29.8 | AB21: 31.8 | AC21: 34.5 | AD21: 37.2 | AE21: 39.8 | AF21: 44.4 | AG21: 48 | AH21: 55.8 | AI21: 61.1 | AJ21: 69.1 | AK21: 76.6 | AL21: 78.9 | AM21: 87.4 | AN21: 96.8 | AO21: 106.1 | AP21: 115.6 | AQ21: 121.3 | AR21: 133.3 | AS21: 145 | AT21: 154 | AU21: 155.8 | AV21: 166 | AW21: 179.4 | AX21: 193.3 | AY21: 204.8 | AZ21: 216.4 | BA21: 230.3 | BB21: 248.7 | BC21: 260.8 | BD21: 279.7 | BE21: 265.6 | BF21: 284.9 | BG21: 283.8 | BH21: 297.3 | BI21: 310.7 | BJ21: 325 | BK21: 330.5 | BL21: 330.3 | BM21: 326.5 | BN21: 328 | BO21: 333.1 | BP21: 348 | BQ21: 356.3 | BR21: 376.6 | BS21: 392.4 | BT21: 402.1 | BU21: 414.1 | BV21: 437.2 | BW21: 456.6 | BX21: 0.05872792957 | BY21: 0.03004807692 | BZ21: 0.02130886656 | CA21: -0.008739210363
A22: 17 | B22: Government | C22: 33.5 | D22: 33.2 | E22: 34.8 | F22: 35.7 | G22: 44.5 | H22: 50.9 | I22: 53.3 | J22: 55.1 | K22: 57.9 | L22: 61.6 | M22: 66.1 | N22: 70.5 | O22: 74.2 | P22: 78.9 | Q22: 83.9 | R22: 89.7 | S22: 96.1 | T22: 103.1 | U22: 110.4 | V22: 122.2 | W22: 133.8 | X22: 148.9 | Y22: 162.5 | Z22: 178.6 | AA22: 195.1 | AB22: 212 | AC22: 227.4 | AD22: 248.2 | AE22: 271.8 | AF22: 291.8 | AG22: 313.1 | AH22: 341.7 | AI22: 370.9 | AJ22: 408 | AK22: 453 | AL22: 493.7 | AM22: 526.5 | AN22: 569.5 | AO22: 616.4 | AP22: 655.5 | AQ22: 695.1 | AR22: 749.2 | AS22: 806.8 | AT22: 866.1 | AU22: 924.1 | AV22: 975.6 | AW22: 1006.4 | AX22: 1042.9 | AY22: 1076.8 | AZ22: 1104.1 | BA22: 1145.6 | BB22: 1191.3 | BC22: 1252.3 | BD22: 1323 | BE22: 1392.9 | BF22: 1474.4 | BG22: 1552.3 | BH22: 1631.3 | BI22: 1710.3 | BJ22: 1792 | BK22: 1887.1 | BL22: 1981.6 | BM22: 2045.1 | BN22: 2108 | BO22: 2137.1 | BP22: 2159.5 | BQ22: 2212.5 | BR22: 2271.4 | BS22: 2340.8 | BT22: 2388.9 | BU22: 2453.6 | BV22: 2544.6 | BW22: 2630.9 | BX22: 0.0624787954 | BY22: 0.1342147436 | BZ22: 0.1227803264 | CA22: -0.01143441719
A23: Note. Detail may not add to total due to rounding.
BX24: =COUNTA(BX8:BX22) -> 15

Sheet WP 4.1 Size Study_UIF Data
B1: 2019 | C1: =B1-1 -> 2018 | D1: =C1-1 -> 2017 | E1: =D1-1 -> 2016 | F1: =E1-1 -> 2015 | G1: Average
A2: Net income | B2: =B10 -> 6224.666 | C2: =C10 -> 5559.336 | D2: =D10 -> 2970.93 | E2: =E10 -> 2576.618 | F2: =F10 -> 3331.29037 | G2: =AVERAGE(B2:F2) -> 4132.568074 | H2: (in thousands)
A3: EBITDA | B3: =B15 -> 14843.014 | C3: =C15 -> 15912.879 | D3: =D15 -> 13522.126 | E3: =E15 -> 12579.15 | F3: =F15 -> 12212.09037 | G3: =AVERAGE(B3:F3) -> 13813.85187 | H3: (in thousands)
A8: (in thousands)
A9: EBITDA Calculations | B9: =B1 -> 2019 | C9: =C1 -> 2018 | D9: =D1 -> 2017 | E9: =E1 -> 2016 | F9: =F1 -> 2015
A10: Net Income | B10: 6224.666 | C10: 5559.336 | D10: 2970.93 | E10: =SUM(B20:M20) -> 2576.618 | F10: =SUM(B30:M30) -> 3331.29037
A11: Interest | B11: 2997.896 | C11: 2839.04 | D11: 2580.349 | E11: =SUM(B21:M21) -> 2458.572 | F11: =SUM(B31:M31) -> 2410.568
A12: Taxes | B12: =277.252-1145.013-144.985-2.356 -> -1015.102 | C12: =321.664+1406.787+164.174-2.356 -> 1890.269 | D12: =170.835+1352.944+266.058-2.365 -> 1787.472 | E12: =SUM(B22:M22) -> 1371.963 | F12: =SUM(B32:M32) -> 1465.467
A13: Depr. & Amor. | B13: =6658.441-22.887 -> 6635.554 | C13: =5645.233-20.999 -> 5624.234 | D13: =6204.374-20.999 -> 6183.375 | E13: =SUM(B23:M23) -> 6171.997 | F13: =SUM(B33:M33) -> 5004.765
A15: EBITDA | B15: =SUM(B10:B13) -> 14843.014 | C15: =SUM(C10:C13) -> 15912.879 | D15: =SUM(D10:D13) -> 13522.126 | E15: =SUM(E10:E13) -> 12579.15 | F15: =SUM(F10:F13) -> 12212.09037
A18: (in thousands)
A19: 2016 | B19: Tierra Verde | C19: Lake Placid | D19: Longwood | E19: Cypress Lakes | F19: Eagle Ridge | G19: Mid County | H19: Lusi | I19: UIF | J19: Sanlando | K19: Sandalhaven | L19: Labrador | M19: Pennbrooke
A20: Net Income | B20: -34.812 | C20: 1.384 | D20: 102.146 | E20: 122.745 | F20: 122.314 | G20: 320.761 | H20: 541.926 | I20: 98.248 | J20: 1004.421 | K20: 76.395 | L20: 135.687 | M20: 85.403
A21: Interest | B21: 36.084 | C21: 7.561 | D21: 55.666 | E21: 64.013 | F21: 74.24 | G21: 119.625 | H21: 671.663 | I21: 377.366 | J21: 772.91 | K21: 145.253 | L21: 70.898 | M21: 63.293
A22: Taxes | B22: =-0.213-17.455+2.076 -> -15.592 | C22: =-0.033+0.957-0.125 -> 0.799 | D22: =-2.65+53.852+2.701 -> 53.903 | E22: =-0.177+67.843+2.689 -> 70.355 | F22: =4.405+67.588+8.041 -> 80.034 | G22: =5.11+168.988+1.941 -> 176.039 | H22: =4.181+265.019-18.529 -> 250.671 | I22: =-1.109+41.722+206.762-2.356 -> 245.019 | J22: =-2.142+536.4+14.933 -> 549.191 | K22: =-0.142-207.454+42.91 -> -164.686 | L22: =-0.175+74.746+0.944 -> 75.515 | M22: =-2.908+45.811+7.812 -> 50.715
A23: Depr. & Amor. | B23: 106.422 | C23: =28.24-0.241 -> 27.999 | D23: =109.672 -> 109.672 | E23: =174.014-7.537 -> 166.477 | F23: 151.335 | G23: 199.443 | H23: =2942.155-1.545 -> 2940.61 | I23: =439.236-0.484 -> 438.752 | J23: =1455.692 -> 1455.692 | K23: 326.556 | L23: =164.068-11.185 -> 152.883 | M23: =96.156 -> 96.156
A25: EBITDA | B25: =SUM(B20:B23) -> 92.102 | C25: 37.743 | D25: 321.387 | E25: 423.59 | F25: 427.923 | G25: 815.868 | H25: 4404.87 | I25: 1159.385 | J25: 3782.214 | K25: 383.518 | L25: 434.983 | M25: 295.567
A28: (in thousands)
A29: 2015 | B29: Tierra Verde | C29: Lake Placid | D29: Longwood | E29: Cypress Lakes | F29: Eagle Ridge | G29: Mid County | H29: Lusi | I29: UIF | J29: Sanlando | K29: Sandalhaven | L29: Labrador | M29: Pennbrooke
A30: Net Income | B30: 12.582 | C30: -1.32 | D30: 145.69537 | E30: 152.705 | F30: 219.358 | G30: 309.689 | H30: 1676.101 | I30: 191.048 | J30: 334.489 | K30: -439.046 | L30: 654.935 | M30: 75.054
A31: Interest | B31: 34.352 | C31: 8.318 | D31: 49.265 | E31: 65.97 | F31: 70.343 | G31: 112 | H31: 698.261 | I31: 348.821 | J31: 729.159 | K31: 156.383 | L31: 73.068 | M31: 64.628
A32: Taxes | B32: =1.164-2.669-0.365 -> -1.87 | C32: =0+1.364+0.077 -> 1.441 | D32: =9.634+6.762-0.62 -> 15.776 | E32: =4.192+17.516+6.902 -> 28.61 | F32: =0.82+46.742-42.757 -> 4.805 | G32: =4.47+97.659+17.768 -> 119.897 | H32: =66.685+441.455+62.934 -> 571.074 | I32: =0.002+120.978+20.299-2.357 -> 138.922 | J32: =-0.153+454.632+51.068 -> 505.547 | K32: =0-10.245+33.884 -> 23.639 | L32: =0.001+20.787-7.604 -> 13.184 | M32: =-2.32+35.547+11.215 -> 44.442
A33: Depr. & Amor. | B33: 120.386 | C33: =29.483-0.217 -> 29.266 | D33: =112.223 -> 112.223 | E33: =186.732-7.537 -> 179.195 | F33: =166.706 -> 166.706 | G33: 212.843 | H33: =1208.073-1.545 -> 1206.528 | I33: 523.283 | J33: =1846.642 -> 1846.642 | K33: =277.069 -> 277.069 | L33: =218.819-11.185 -> 207.634 | M33: =122.99 -> 122.99
C34: .
A35: EBITDA | B35: =SUM(B30:B33) -> 165.45 | C35: 37.705 | D35: 322.95937 | E35: 426.48 | F35: 461.212 | G35: 754.429 | H35: 4151.964 | I35: 1202.074 | J35: 3415.837 | K35: 18.045 | L35: 948.821 | M35: 307.114
A38: Source: Company Annual Reports

Sheet Chart 1 PRPM Market Return
B1: Utilities, Inc of Florida
B2: Relationship between Investor-Required Return on the Market
B3: and Authorized Returns for Gas, Electric and Water Utilities 1990 - 2019
C28: Required Market Return (1) | D28: Electric Authorized Return (2) | E28: Gas Authorized Return (3) | F28: Water Authorized Return | G28: Average Utility Authorized Return | H28: Ratio of Authorized Returns to Required Market Returns
B29: 1990 | C29: ='WP Chart 1 PRPM Clustering'!P1148 -> 0.1895186809 | D29: 0.127 | E29: 0.1268 | G29: =AVERAGE(D29:E29) -> 0.1269 | H29: =G29/C29 -> 0.669590984
B30: 1991 | C30: ='WP Chart 1 PRPM Clustering'!AB1148 -> 0.1902338209 | D30: 0.1254 | E30: 0.1245 | G30: 0.12495 | H30: 0.6568232682
B31: 1992 | C31: ='WP Chart 1 PRPM Clustering'!AN1148 -> 0.1792218017 | D31: 0.1209 | E31: 0.1202 | G31: 0.12055 | H31: 0.6726302207
B32: 1993 | C32: ='WP Chart 1 PRPM Clustering'!AZ1148 -> 0.177479691 | D32: 0.1146 | E32: 0.1137 | G32: 0.11415 | H32: 0.6431721813
B33: 1994 | C33: ='WP Chart 1 PRPM Clustering'!BL1148 -> 0.1695080073 | D33: 0.1121 | E33: 0.1124 | G33: 0.11225 | H33: 0.6622106047
B34: 1995 | C34: ='WP Chart 1 PRPM Clustering'!BX1148 -> 0.1801900307 | D34: 0.1158 | E34: 0.1144 | G34: 0.1151 | H34: 0.6387700781
B35: 1996 | C35: ='WP Chart 1 PRPM Clustering'!CJ1148 -> 0.1677164272 | D35: 0.114 | E35: 0.1112 | G35: 0.1126 | H35: 0.6713713253
B36: 1997 | C36: ='WP Chart 1 PRPM Clustering'!CV1148 -> 0.1743394901 | D36: 0.1133 | E36: 0.113 | G36: 0.11315 | H36: 0.6490210563
B37: 1998 | C37: ='WP Chart 1 PRPM Clustering'!DH1148 -> 0.1682944831 | D37: 0.1177 | E37: 0.1151 | G37: 0.1164 | H37: 0.6916447755
B38: 1999 | C38: ='WP Chart 1 PRPM Clustering'!DT1148 -> 0.1684810174 | D38: 0.1072 | E38: 0.1074 | G38: 0.1073 | H38: 0.6368669993
B39: 2000 | C39: ='WP Chart 1 PRPM Clustering'!EF1148 -> 0.1761243107 | D39: 0.1158 | E39: 0.1134 | G39: 0.1146 | H39: 0.6506767835
B40: 2001 | C40: ='WP Chart 1 PRPM Clustering'!ER1148 -> 0.162419784 | D40: 0.1107 | E40: 0.1096 | G40: 0.11015 | H40: 0.6781809292
B41: 2002 | C41: ='WP Chart 1 PRPM Clustering'!FD1148 -> 0.1592549407 | D41: 0.1121 | E41: 0.1117 | G41: 0.1119 | H41: 0.7026469601
B42: 2003 | C42: ='WP Chart 1 PRPM Clustering'!FP1148 -> 0.1505392441 | D42: 0.1096 | E42: 0.1099 | G42: 0.10975 | H42: 0.7290457759
B43: 2004 | C43: ='WP Chart 1 PRPM Clustering'!GB1148 -> 0.1542228533 | D43: 0.1081 | E43: 0.1063 | G43: 0.1072 | H43: 0.6950980202
B44: 2005 | C44: ='WP Chart 1 PRPM Clustering'!GN1148 -> 0.1500204332 | D44: 0.1051 | E44: 0.1041 | G44: 0.1046 | H44: 0.6972383547
B45: 2006 | C45: ='WP Chart 1 PRPM Clustering'!GZ1148 -> 0.1488872438 | D45: 0.1032 | E45: 0.104 | F45: 0.1023 | G45: =AVERAGE(D45:F45) -> 0.1031666667 | H45: 0.6929181039
B46: 2007 | C46: ='WP Chart 1 PRPM Clustering'!HL1148 -> 0.15021675 | D46: 0.103 | E46: 0.1022 | F46: 0.1007 | G46: 0.1019666667 | H46: 0.6787969161
B47: 2008 | C47: ='WP Chart 1 PRPM Clustering'!HX1148 -> 0.1432460506 | D47: 0.1041 | E47: 0.1039 | F47: 0.1024 | G47: 0.1034666667 | H47: 0.7223003093
B48: 2009 | C48: ='WP Chart 1 PRPM Clustering'!IJ1148 -> 0.132636601 | D48: 0.1052 | E48: 0.1022 | F48: 0.1018 | G48: 0.1030666667 | H48: 0.7770605242
B49: 2010 | C49: ='WP Chart 1 PRPM Clustering'!IV1148 -> 0.1422909484 | D49: 0.1037 | E49: 0.1015 | F49: 0.1018 | G49: 0.1023333333 | H49: 0.7191837183
B50: 2011 | C50: ='WP Chart 1 PRPM Clustering'!JH1148 -> 0.1392117701 | D50: 0.1029 | E50: 0.0992 | F50: 0.1004 | G50: 0.1008333333 | H50: 0.72431615
B51: 2012 | C51: ='WP Chart 1 PRPM Clustering'!JT1148 -> 0.12627437 | D51: 0.1017 | E51: 0.0994 | F51: 0.099 | G51: 0.1000333333 | H51: 0.792190318
B52: 2013 | C52: ='WP Chart 1 PRPM Clustering'!KF1148 -> 0.1320154106 | D52: 0.1003 | E52: 0.0968 | F52: 0.0973 | G52: 0.09813333333 | H52: 0.7433475596
B53: 2014 | C53: ='WP Chart 1 PRPM Clustering'!KR1148 -> 0.1382921362 | D53: 0.0991 | E53: 0.0978 | F53: 0.0959 | G53: 0.0976 | H53: 0.7057523493
B54: 2015 | C54: ='WP Chart 1 PRPM Clustering'!LD1148 -> 0.1284722854 | D54: 0.0985 | E54: 0.096 | F54: 0.0976 | G54: 0.09736666667 | H54: 0.7578807085
B55: 2016 | C55: ='WP Chart 1 PRPM Clustering'!LP1148 -> 0.1261881978 | D55: 0.0977 | E55: 0.0954 | F55: 0.0971 | G55: 0.09673333333 | H55: 0.7665798785
B56: 2017 | C56: ='WP Chart 1 PRPM Clustering'!MB1148 -> 0.1309280852 | D56: 0.0974 | E56: 0.0972 | F56: 0.0956 | G56: 0.09673333333 | H56: 0.7388279847
B57: 2018 | C57: ='WP Chart 1 PRPM Clustering'!MN1148 -> 0.1310208581 | D57: 0.0964 | E57: 0.0962 | F57: 0.0943 | G57: 0.09563333333 | H57: 0.7299092277
B58: 2019 | C58: ='WP Chart 1 PRPM Clustering'!MZ1148 -> 0.1308417011 | D58: 0.0964 | F58: 0.0963 | G58: =AVERAGE(D58:F58) -> 0.09635 | H58: 0.7363860236
H60: =AVERAGE(H29:H58) -> 0.701014603
B63: Sources: Exhibit DJG-14; Regulatory Research Associates

Sheet WP Chart 1 PRPM Clustering
A1: =COUNTA(E1:MN1) -> 348 | E1: 1990M01 | F1: 1990M02 | G1: 1990M03 | H1: 1990M04 | I1: 1990M05 | J1: 1990M06 | K1: 1990M07 | L1: 1990M08 | M1: 1990M09 | N1: 1990M10 | O1: 1990M11 | P1: 1990M12 | Q1: 1991M01 | R1: 1991M02 | S1: 1991M03 | T1: 1991M04 | U1: 1991M05 | V1: 1991M06 | W1: 1991M07 | X1: 1991M08 | Y1: 1991M09 | Z1: 1991M10 | AA1: 1991M11 | AB1: 1991M12 | AC1: 1992M01 | AD1: 1992M02 | AE1: 1992M03 | AF1: 1992M04 | AG1: 1992M05 | AH1: 1992M06 | AI1: 1992M07 | AJ1: 1992M08 | AK1: 1992M09 | AL1: 1992M10 | AM1: 1992M11 | AN1: 1992M12 | AO1: 1993M01 | AP1: 1993M02 | AQ1: 1993M03 | AR1: 1993M04 | AS1: 1993M05 | AT1: 1993M06 | AU1: 1993M07 | AV1: 1993M08 | AW1: 1993M09 | AX1: 1993M10 | AY1: 1993M11 | AZ1: 1993M12 | BA1: 1994M01 | BB1: 1994M02 | BC1: 1994M03 | BD1: 1994M04 | BE1: 1994M05 | BF1: 1994M06 | BG1: 1994M07 | BH1: 1994M08 | BI1: 1994M09 | BJ1: 1994M10 | BK1: 1994M11 | BL1: 1994M12 | BM1: 1995M01 | BN1: 1995M02 | BO1: 1995M03 | BP1: 1995M04 | BQ1: 1995M05 | BR1: 1995M06 | BS1: 1995M07 | BT1: 1995M08 | BU1: 1995M09 | BV1: 1995M10 | BW1: 1995M11 | BX1: 1995M12 | BY1: 1996M01 | BZ1: 1996M02 | CA1: 1996M03 | CB1: 1996M04 | CC1: 1996M05 | CD1: 1996M06 | CE1: 1996M07 | CF1: 1996M08 | CG1: 1996M09 | CH1: 1996M10 | CI1: 1996M11 | CJ1: 1996M12 | CK1: 1997M01 | CL1: 1997M02 | CM1: 1997M03 | CN1: 1997M04 | CO1: 1997M05 | CP1: 1997M06 | CQ1: 1997M07 | CR1: 1997M08 | CS1: 1997M09 | CT1: 1997M10 | CU1: 1997M11 | CV1: 1997M12 | CW1: 1998M01 | CX1: 1998M02 | CY1: 1998M03 | CZ1: 1998M04 | DA1: 1998M05 | DB1: 1998M06 | DC1: 1998M07 | DD1: 1998M08 | DE1: 1998M09 | DF1: 1998M10 | DG1: 1998M11 | DH1: 1998M12 | DI1: 1999M01 | DJ1: 1999M02 | DK1: 1999M03 | DL1: 1999M04 | DM1: 1999M05 | DN1: 1999M06 | DO1: 1999M07 | DP1: 1999M08 | DQ1: 1999M09 | DR1: 1999M10 | DS1: 1999M11 | DT1: 1999M12 | DU1: 2000M01 | DV1: 2000M02 | DW1: 2000M03 | DX1: 2000M04 | DY1: 2000M05 | DZ1: 2000M06 | EA1: 2000M07 | EB1: 2000M08 | EC1: 2000M09 | ED1: 2000M10 | EE1: 2000M11 | EF1: 2000M12 | EG1: 2001M01 | EH1: 2001M02 | EI1: 2001M03 | EJ1: 2001M04 | EK1: 2001M05 | EL1: 2001M06 | EM1: 2001M07 | EN1: 2001M08 | EO1: 2001M09 | EP1: 2001M10 | EQ1: 2001M11 | ER1: 2001M12 | ES1: 2002M01 | ET1: 2002M02 | EU1: 2002M03 | EV1: 2002M04 | EW1: 2002M05 | EX1: 2002M06 | EY1: 2002M07 | EZ1: 2002M08 | FA1: 2002M09 | FB1: 2002M10 | FC1: 2002M11 | FD1: 2002M12 | FE1: 2003M01 | FF1: 2003M02 | FG1: 2003M03 | FH1: 2003M04 | FI1: 2003M05 | FJ1: 2003M06 | FK1: 2003M07 | FL1: 2003M08 | FM1: 2003M09 | FN1: 2003M10 | FO1: 2003M11 | FP1: 2003M12 | FQ1: 2004M01 | FR1: 2004M02 | FS1: 2004M03 | FT1: 2004M04 | FU1: 2004M05 | FV1: 2004M06 | FW1: 2004M07 | FX1: 2004M08 | FY1: 2004M09 | FZ1: 2004M10 | GA1: 2004M11 | GB1: 2004M12 | GC1: 2005M01 | GD1: 2005M02 | GE1: 2005M03 | GF1: 2005M04 | GG1: 2005M05 | GH1: 2005M06 | GI1: 2005M07 | GJ1: 2005M08 | GK1: 2005M09 | GL1: 2005M10 | GM1: 2005M11 | GN1: 2005M12 | GO1: 2006M01 | GP1: 2006M02 | GQ1: 2006M03 | GR1: 2006M04 | GS1: 2006M05 | GT1: 2006M06 | GU1: 2006M07 | GV1: 2006M08 | GW1: 2006M09 | GX1: 2006M10 | GY1: 2006M11 | GZ1: 2006M12 | HA1: 2007M01 | HB1: 2007M02 | HC1: 2007M03 | HD1: 2007M04 | HE1: 2007M05 | HF1: 2007M06 | HG1: 2007M07 | HH1: 2007M08 | HI1: 2007M09 | HJ1: 2007M10 | HK1: 2007M11 | HL1: 2007M12 | HM1: 2008M01 | HN1: 2008M02 | HO1: 2008M03 | HP1: 2008M04 | HQ1: 2008M05 | HR1: 2008M06 | HS1: 2008M07 | HT1: 2008M08 | HU1: 2008M09 | HV1: 2008M10 | HW1: 2008M11 | HX1: 2008M12 | HY1: 2009M01 | HZ1: 2009M02 | IA1: 2009M03 | IB1: 2009M04 | IC1: 2009M05 | ID1: 2009M06 | IE1: 2009M07 | IF1: 2009M08 | IG1: 2009M09 | IH1: 2009M10 | II1: 2009M11 | IJ1: 2009M12 | IK1: 2010M01 | IL1: 2010M02 | IM1: 2010M03 | IN1: 2010M04 | IO1: 2010M05 | IP1: 2010M06 | IQ1: 2010M07 | IR1: 2010M08 | IS1: 2010M09 | IT1: 2010M10 | IU1: 2010M11 | IV1: 2010M12 | IW1: 2011M01 | IX1: 2011M02 | IY1: 2011M03 | IZ1: 2011M04 | JA1: 2011M05 | JB1: 2011M06 | JC1: 2011M07 | JD1: 2011M08 | JE1: 2011M09 | JF1: 2011M10 | JG1: 2011M11 | JH1: 2011M12 | JI1: 2012M01 | JJ1: 2012M02 | JK1: 2012M03 | JL1: 2012M04 | JM1: 2012M05 | JN1: 2012M06 | JO1: 2012M07 | JP1: 2012M08 | JQ1: 2012M09 | JR1: 2012M10 | JS1: 2012M11 | JT1: 2012M12 | JU1: 2013M01 | JV1: 2013M02 | JW1: 2013M03 | JX1: 2013M04 | JY1: 2013M05 | JZ1: 2013M06 | KA1: 2013M07 | KB1: 2013M08 | KC1: 2013M09 | KD1: 2013M10 | KE1: 2013M11 | KF1: 2013M12 | KG1: 2014M01 | KH1: 2014M02 | KI1: 2014M03 | KJ1: 2014M04 | KK1: 2014M05 | KL1: 2014M06 | KM1: 2014M07 | KN1: 2014M08 | KO1: 2014M09 | KP1: 2014M10 | KQ1: 2014M11 | KR1: 2014M12 | KS1: 2015M01 | KT1: 2015M02 | KU1: 2015M03 | KV1: 2015M04 | KW1: 2015M05 | KX1: 2015M06 | KY1: 2015M07 | KZ1: 2015M08 | LA1: 2015M09 | LB1: 2015M10 | LC1: 2015M11 | LD1: 2015M12 | LE1: 2016M01 | LF1: 2016M02 | LG1: 2016M03 | LH1: 2016M04 | LI1: 2016M05 | LJ1: 2016M06 | LK1: 2016M07 | LL1: 2016M08 | LM1: 2016M09 | LN1: 2016M10 | LO1: 2016M11 | LP1: 2016M12 | LQ1: 2017M01 | LR1: 2017M02 | LS1: 2017M03 | LT1: 2017M04 | LU1: 2017M05 | LV1: 2017M06 | LW1: 2017M07 | LX1: 2017M08 | LY1: 2017M09 | LZ1: 2017M10 | MA1: 2017M11 | MB1: 2017M12 | MC1: 2018M01 | MD1: 2018M02 | ME1: 2018M03 | MF1: 2018M04 | MG1: 2018M05 | MH1: 2018M06 | MI1: 2018M07 | MJ1: 2018M08 | MK1: 2018M09 | ML1: 2018M10 | MM1: 2018M11 | MN1: 2018M12 | MO1: 2019M01 | MP1: 2019M02 | MQ1: 2019M03 | MR1: 2019M04 | MS1: 2019M05 | MT1: 2019M06 | MU1: 2019M07 | MV1: 2019M08 | MW1: 2019M09 | MX1: 2019M10 | MY1: 2019M11 | MZ1: 2019M12
E2: Last updated: 09/15/20 - 19:42 | F2: Last updated: 09/15/20 - 19:45 | G2: Last updated: 09/15/20 - 19:46 | H2: Last updated: 03/04/19 - 15:26 | I2: Last updated: 03/04/19 - 15:26 | J2: Last updated: 03/04/19 - 15:27 | K2: Last updated: 03/04/19 - 15:27 | L2: Last updated: 03/04/19 - 15:27 | M2: Last updated: 03/04/19 - 15:28 | N2: Last updated: 03/04/19 - 15:28 | O2: Last updated: 03/04/19 - 15:28 | P2: Last updated: 09/15/20 - 19:41 | Q2: Last updated: 03/04/19 - 15:29 | R2: Last updated: 03/04/19 - 15:29 | S2: Last updated: 03/04/19 - 15:30 | T2: Last updated: 03/04/19 - 15:30 | U2: Last updated: 03/04/19 - 15:30 | V2: Last updated: 03/04/19 - 15:31 | W2: Last updated: 03/04/19 - 15:31 | X2: Last updated: 03/04/19 - 15:31 | Y2: Last updated: 03/04/19 - 15:32 | Z2: Last updated: 03/04/19 - 15:32 | AA2: Last updated: 03/04/19 - 15:32 | AB2: Last updated: 03/04/19 - 15:33 | AC2: Last updated: 03/04/19 - 15:33 | AD2: Last updated: 03/04/19 - 15:34 | AE2: Last updated: 03/04/19 - 15:34 | AF2: Last updated: 03/04/19 - 15:34 | AG2: Last updated: 03/04/19 - 15:34 | AH2: Last updated: 03/04/19 - 15:35 | AI2: Last updated: 03/04/19 - 15:35 | AJ2: Last updated: 03/04/19 - 15:36 | AK2: Last updated: 03/04/19 - 15:36 | AL2: Last updated: 03/04/19 - 15:37 | AM2: Last updated: 03/04/19 - 15:37 | AN2: Last updated: 03/04/19 - 15:37 | AO2: Last updated: 03/04/19 - 15:38 | AP2: Last updated: 03/04/19 - 15:38 | AQ2: Last updated: 03/04/19 - 15:38 | AR2: Last updated: 03/04/19 - 15:39 | AS2: Last updated: 03/04/19 - 15:39 | AT2: Last updated: 03/04/19 - 15:39 | AU2: Last updated: 03/04/19 - 15:40 | AV2: Last updated: 03/04/19 - 15:40 | AW2: Last updated: 03/04/19 - 15:40 | AX2: Last updated: 03/04/19 - 15:41 | AY2: Last updated: 03/04/19 - 15:41 | AZ2: Last updated: 03/04/19 - 15:41 | BA2: Last updated: 03/04/19 - 15:42 | BB2: Last updated: 03/04/19 - 15:42 | BC2: Last updated: 03/04/19 - 15:43 | BD2: Last updated: 03/04/19 - 15:43 | BE2: Last updated: 03/04/19 - 15:43 | BF2: Last updated: 03/04/19 - 15:44 | BG2: Last updated: 03/04/19 - 15:44 | BH2: Last updated: 03/04/19 - 15:44 | BI2: Last updated: 03/04/19 - 15:44 | BJ2: Last updated: 03/04/19 - 15:45 | BK2: Last updated: 03/04/19 - 15:45 | BL2: Last updated: 03/04/19 - 15:45 | BM2: Last updated: 03/04/19 - 15:46 | BN2: Last updated: 03/04/19 - 15:46 | BO2: Last updated: 03/04/19 - 15:46 | BP2: Last updated: 03/04/19 - 15:47 | BQ2: Last updated: 03/04/19 - 15:47 | BR2: Last updated: 03/04/19 - 15:47 | BS2: Last updated: 03/04/19 - 15:48 | BT2: Last updated: 03/04/19 - 16:00 | BU2: Last updated: 03/04/19 - 16:00 | BV2: Last updated: 03/04/19 - 16:01 | BW2: Last updated: 03/04/19 - 16:01 | BX2: Last updated: 03/04/19 - 16:02 | BY2: Last updated: 03/04/19 - 16:02 | BZ2: Last updated: 03/04/19 - 16:02 | CA2: Last updated: 03/04/19 - 16:03 | CB2: Last updated: 03/04/19 - 16:03 | CC2: Last updated: 03/04/19 - 16:03 | CD2: Last updated: 03/04/19 - 16:04 | CE2: Last updated: 03/04/19 - 16:04 | CF2: Last updated: 03/04/19 - 16:04 | CG2: Last updated: 03/04/19 - 16:05 | CH2: Last updated: 03/04/19 - 16:05 | CI2: Last updated: 03/04/19 - 16:05 | CJ2: Last updated: 03/04/19 - 16:05 | CK2: Last updated: 03/04/19 - 16:06 | CL2: Last updated: 03/04/19 - 16:06 | CM2: Last updated: 03/04/19 - 16:06 | CN2: Last updated: 03/04/19 - 16:07 | CO2: Last updated: 03/04/19 - 16:07 | CP2: Last updated: 03/04/19 - 16:07 | CQ2: Last updated: 03/04/19 - 16:08 | CR2: Last updated: 03/04/19 - 16:08 | CS2: Last updated: 03/04/19 - 16:09 | CT2: Last updated: 03/04/19 - 16:09 | CU2: Last updated: 03/04/19 - 16:14 | CV2: Last updated: 03/04/19 - 16:15 | CW2: Last updated: 03/04/19 - 16:15 | CX2: Last updated: 03/04/19 - 16:16 | CY2: Last updated: 03/04/19 - 16:16 | CZ2: Last updated: 03/04/19 - 16:16 | DA2: Last updated: 03/04/19 - 16:16 | DB2: Last updated: 03/04/19 - 16:17 | DC2: Last updated: 03/04/19 - 16:17 | DD2: Last updated: 03/04/19 - 16:17 | DE2: Last updated: 03/04/19 - 16:18 | DF2: Last updated: 03/04/19 - 16:19 | DG2: Last updated: 03/04/19 - 16:19 | DH2: Last updated: 03/04/19 - 16:20 | DI2: Last updated: 03/04/19 - 16:20 | DJ2: Last updated: 03/04/19 - 16:20 | DK2: Last updated: 03/04/19 - 16:21 | DL2: Last updated: 03/04/19 - 16:21 | DM2: Last updated: 03/04/19 - 16:21 | DN2: Last updated: 03/04/19 - 16:22 | DO2: Last updated: 03/04/19 - 16:22 | DP2: Last updated: 03/04/19 - 16:22 | DQ2: Last updated: 03/04/19 - 16:23 | DR2: Last updated: 03/04/19 - 16:23 | DS2: Last updated: 03/04/19 - 16:23 | DT2: Last updated: 03/04/19 - 16:24 | DU2: Last updated: 03/04/19 - 16:24 | DV2: Last updated: 03/04/19 - 16:25 | DW2: Last updated: 03/04/19 - 16:25 | DX2: Last updated: 03/04/19 - 16:25 | DY2: Last updated: 03/04/19 - 16:26 | DZ2: Last updated: 03/04/19 - 16:26 | EA2: Last updated: 03/04/19 - 16:27 | EB2: Last updated: 03/04/19 - 16:27 | EC2: Last updated: 03/04/19 - 16:28 | ED2: Last updated: 03/04/19 - 16:28 | EE2: Last updated: 03/04/19 - 16:28 | EF2: Last updated: 03/04/19 - 16:29 | EG2: Last updated: 03/04/19 - 16:29 | EH2: Last updated: 03/04/19 - 16:29 | EI2: Last updated: 03/04/19 - 16:30 | EJ2: Last updated: 03/04/19 - 16:30 | EK2: Last updated: 03/04/19 - 16:30 | EL2: Last updated: 03/04/19 - 16:31 | EM2: Last updated: 03/04/19 - 16:31 | EN2: Last updated: 03/04/19 - 16:31 | EO2: Last updated: 03/04/19 - 16:32 | EP2: Last updated: 03/04/19 - 16:33 | EQ2: Last updated: 03/04/19 - 16:33 | ER2: Last updated: 03/04/19 - 16:33 | ES2: Last updated: 03/04/19 - 16:34 | ET2: Last updated: 03/04/19 - 16:34 | EU2: Last updated: 03/04/19 - 16:34 | EV2: Last updated: 03/04/19 - 16:35 | EW2: Last updated: 03/04/19 - 16:45 | EX2: Last updated: 03/04/19 - 16:45 | EY2: Last updated: 03/04/19 - 16:45 | EZ2: Last updated: 03/04/19 - 16:46 | FA2: Last updated: 03/04/19 - 16:46 | FB2: Last updated: 03/04/19 - 16:46 | FC2: Last updated: 03/04/19 - 16:47 | FD2: Last updated: 03/04/19 - 16:47 | FE2: Last updated: 03/04/19 - 16:47 | FF2: Last updated: 03/04/19 - 16:48 | FG2: Last updated: 03/04/19 - 16:48 | FH2: Last updated: 03/04/19 - 16:49 | FI2: Last updated: 03/04/19 - 16:49 | FJ2: Last updated: 03/04/19 - 16:49 | FK2: Last updated: 03/04/19 - 16:50 | FL2: Last updated: 03/04/19 - 16:50 | FM2: Last updated: 03/04/19 - 16:51 | FN2: Last updated: 03/04/19 - 16:51 | FO2: Last updated: 03/04/19 - 16:52 | FP2: Last updated: 03/04/19 - 16:54 | FQ2: Last updated: 03/04/19 - 16:55 | FR2: Last updated: 03/04/19 - 16:55 | FS2: Last updated: 03/04/19 - 16:55 | FT2: Last updated: 03/04/19 - 16:56 | FU2: Last updated: 03/04/19 - 16:56 | FV2: Last updated: 03/04/19 - 16:56 | FW2: Last updated: 03/04/19 - 16:57 | FX2: Last updated: 03/04/19 - 16:57 | FY2: Last updated: 03/04/19 - 16:57 | FZ2: Last updated: 03/04/19 - 16:58 | GA2: Last updated: 03/04/19 - 16:58 | GB2: Last updated: 03/04/19 - 16:58 | GC2: Last updated: 03/04/19 - 16:59 | GD2: Last updated: 03/04/19 - 16:59 | GE2: Last updated: 03/04/19 - 16:59 | GF2: Last updated: 03/04/19 - 17:00 | GG2: Last updated: 03/04/19 - 17:00 | GH2: Last updated: 03/04/19 - 17:00 | GI2: Last updated: 03/04/19 - 17:01 | GJ2: Last updated: 03/04/19 - 17:01 | GK2: Last updated: 03/04/19 - 17:02 | GL2: Last updated: 03/04/19 - 17:02 | GM2: Last updated: 03/04/19 - 17:02 | GN2: Last updated: 03/04/19 - 17:03 | GO2: Last updated: 03/04/19 - 17:03 | GP2: Last updated: 03/04/19 - 17:03 | GQ2: Last updated: 03/04/19 - 17:04 | GR2: Last updated: 03/04/19 - 17:04 | GS2: Last updated: 03/04/19 - 17:04 | GT2: Last updated: 03/04/19 - 17:05 | GU2: Last updated: 03/04/19 - 17:05 | GV2: Last updated: 03/04/19 - 17:05 | GW2: Last updated: 03/04/19 - 17:06 | GX2: Last updated: 03/04/19 - 17:06 | GY2: Last updated: 03/04/19 - 17:06 | GZ2: Last updated: 03/04/19 - 17:07 | HA2: Last updated: 03/04/19 - 17:07 | HB2: Last updated: 03/04/19 - 17:08 | HC2: Last updated: 03/04/19 - 17:08 | HD2: Last updated: 03/04/19 - 17:09 | HE2: Last updated: 03/04/19 - 17:09 | HF2: Last updated: 03/04/19 - 17:09 | HG2: Last updated: 03/04/19 - 17:10 | HH2: Last updated: 03/04/19 - 17:10 | HI2: Last updated: 03/04/19 - 17:11 | HJ2: Last updated: 03/04/19 - 17:11 | HK2: Last updated: 03/04/19 - 17:12 | HL2: Last updated: 03/04/19 - 17:12 | HM2: Last updated: 03/04/19 - 17:12 | HN2: Last updated: 03/04/19 - 17:13 | HO2: Last updated: 03/04/19 - 17:13 | HP2: Last updated: 03/04/19 - 17:13 | HQ2: Last updated: 03/04/19 - 17:14 | HR2: Last updated: 03/04/19 - 17:14 | HS2: Last updated: 03/04/19 - 17:14 | HT2: Last updated: 03/04/19 - 17:15 | HU2: Last updated: 03/04/19 - 17:15 | HV2: Last updated: 03/04/19 - 17:16 | HW2: Last updated: 03/04/19 - 17:16 | HX2: Last updated: 03/04/19 - 17:16 | HY2: Last updated: 03/04/19 - 17:17 | HZ2: Last updated: 03/04/19 - 17:17 | IA2: Last updated: 03/04/19 - 17:17 | IB2: Last updated: 03/04/19 - 17:18 | IC2: Last updated: 03/04/19 - 17:18 | ID2: Last updated: 03/04/19 - 17:18 | IE2: Last updated: 03/04/19 - 17:19 | IF2: Last updated: 03/04/19 - 17:19 | IG2: Last updated: 03/04/19 - 17:19 | IH2: Last updated: 03/04/19 - 17:20 | II2: Last updated: 03/04/19 - 17:20 | IJ2: Last updated: 03/04/19 - 17:20 | IK2: Last updated: 03/04/19 - 17:21 | IL2: Last updated: 03/04/19 - 17:21 | IM2: Last updated: 03/04/19 - 17:21 | IN2: Last updated: 03/04/19 - 17:22 | IO2: Last updated: 03/04/19 - 17:22 | IP2: Last updated: 03/04/19 - 17:22 | IQ2: Last updated: 03/04/19 - 17:23 | IR2: Last updated: 03/04/19 - 17:23 | IS2: Last updated: 03/04/19 - 17:24 | IT2: Last updated: 03/04/19 - 17:24 | IU2: Last updated: 03/04/19 - 17:24 | IV2: Last updated: 03/04/19 - 17:25 | IW2: Last updated: 03/04/19 - 17:25 | IX2: Last updated: 03/04/19 - 17:25 | IY2: Last updated: 03/04/19 - 17:26 | IZ2: Last updated: 03/04/19 - 17:26 | JA2: Last updated: 03/04/19 - 17:27 | JB2: Last updated: 03/04/19 - 17:27 | JC2: Last updated: 03/04/19 - 17:27 | JD2: Last updated: 03/04/19 - 17:28 | JE2: Last updated: 03/04/19 - 17:28 | JF2: Last updated: 03/04/19 - 17:28 | JG2: Last updated: 03/04/19 - 17:29 | JH2: Last updated: 03/04/19 - 17:29 | JI2: Last updated: 03/04/19 - 17:29 | JJ2: Last updated: 03/04/19 - 17:30 | JK2: Last updated: 03/04/19 - 17:30 | JL2: Last updated: 03/04/19 - 17:31 | JM2: Last updated: 03/04/19 - 17:31 | JN2: Last updated: 03/04/19 - 17:31 | JO2: Last updated: 03/04/19 - 17:32 | JP2: Last updated: 03/04/19 - 17:32 | JQ2: Last updated: 03/04/19 - 17:33 | JR2: Last updated: 03/04/19 - 17:51 | JS2: Last updated: 03/04/19 - 17:51 | JT2: Last updated: 03/04/19 - 17:52 | JU2: Last updated: 03/04/19 - 17:52 | JV2: Last updated: 03/04/19 - 17:52 | JW2: Last updated: 03/04/19 - 17:53 | JX2: Last updated: 03/04/19 - 17:53 | JY2: Last updated: 03/04/19 - 17:53 | JZ2: Last updated: 03/04/19 - 17:53 | KA2: Last updated: 03/04/19 - 17:54 | KB2: Last updated: 03/04/19 - 17:54 | KC2: Last updated: 03/04/19 - 17:56 | KD2: Last updated: 03/04/19 - 17:56 | KE2: Last updated: 03/04/19 - 17:57 | KF2: Last updated: 03/04/19 - 17:57 | KG2: Last updated: 03/04/19 - 17:57 | KH2: Last updated: 03/04/19 - 17:58 | KI2: Last updated: 03/04/19 - 17:58 | KJ2: Last updated: 03/04/19 - 17:58 | KK2: Last updated: 03/04/19 - 18:55 | KL2: Last updated: 03/04/19 - 18:01 | KM2: Last updated: 03/04/19 - 18:03 | KN2: Last updated: 03/04/19 - 18:03 | KO2: Last updated: 03/04/19 - 18:04 | KP2: Last updated: 03/04/19 - 18:04 | KQ2: Last updated: 03/04/19 - 18:05 | KR2: Last updated: 03/04/19 - 18:05 | KS2: Last updated: 03/04/19 - 18:07 | KT2: Last updated: 03/04/19 - 18:08 | KU2: Last updated: 03/04/19 - 18:08 | KV2: Last updated: 03/04/19 - 18:08 | KW2: Last updated: 03/04/19 - 18:09 | KX2: Last updated: 03/04/19 - 18:09 | KY2: Last updated: 03/04/19 - 18:09 | KZ2: Last updated: 03/04/19 - 18:10 | LA2: Last updated: 03/04/19 - 18:15 | LB2: Last updated: 03/04/19 - 18:15 | LC2: Last updated: 03/04/19 - 18:16 | LD2: Last updated: 03/04/19 - 18:16 | LE2: Last updated: 03/04/19 - 18:17 | LF2: Last updated: 03/04/19 - 18:17 | LG2: Last updated: 03/04/19 - 18:17 | LH2: Last updated: 03/04/19 - 18:18 | LI2: Last updated: 03/04/19 - 18:18 | LJ2: Last updated: 03/04/19 - 18:18 | LK2: Last updated: 03/04/19 - 18:19 | LL2: Last updated: 03/04/19 - 18:19 | LM2: Last updated: 03/04/19 - 18:19 | LN2: Last updated: 03/04/19 - 18:20 | LO2: Last updated: 03/04/19 - 18:20 | LP2: Last updated: 03/04/19 - 18:21 | LQ2: Last updated: 03/04/19 - 18:21 | LR2: Last updated: 03/04/19 - 18:21 | LS2: Last updated: 03/04/19 - 18:22 | LT2: Last updated: 03/04/19 - 18:22 | LU2: Last updated: 03/04/19 - 18:23 | LV2: Last updated: 03/04/19 - 18:23 | LW2: Last updated: 03/04/19 - 18:24 | LX2: Last updated: 03/04/19 - 18:24 | LY2: Last updated: 03/04/19 - 18:25 | LZ2: Last updated: 03/04/19 - 18:25 | MA2: Last updated: 03/04/19 - 18:26 | MB2: Last updated: 03/04/19 - 18:26 | MC2: Last updated: 09/15/20 - 19:50 | MD2: Last updated: 09/15/20 - 19:50 | ME2: Last updated: 09/15/20 - 19:51 | MF2: Last updated: 09/15/20 - 19:51 | MG2: Last updated: 09/15/20 - 19:51 | MH2: Last updated: 09/15/20 - 19:52 | MI2: Last updated: 09/15/20 - 19:52 | MJ2: Last updated: 09/15/20 - 20:12 | MK2: Last updated: 09/15/20 - 20:12 | ML2: Last updated: 09/15/20 - 20:13 | MM2: Last updated: 09/15/20 - 20:13 | MN2: Last updated: 09/15/20 - 20:13 | MO2: Last updated: 09/15/20 - 20:15 | MP2: Last updated: 09/15/20 - 20:14 | MQ2: Last updated: 09/15/20 - 20:15 | MR2: Last updated: 09/15/20 - 20:15 | MS2: Last updated: 09/15/20 - 20:16 | MT2: Last updated: 09/15/20 - 20:16 | MU2: Last updated: 09/15/20 - 20:17 | MV2: Last updated: 09/15/20 - 20:17 | MW2: Last updated: 09/15/20 - 20:17 | MX2: Last updated: 09/15/20 - 20:18 | MY2: Last updated: 09/15/20 - 20:18 | MZ2: Last updated: 09/15/20 - 20:19
E3: Modified: 1 769 // Conditional Variance | F3: Modified: 1 770 // Conditional Variance | G3: Modified: 1 771 // Conditional Variance | H3: Modified: 1 772 // Conditional Variance | I3: Modified: 1 773 // Conditional Variance | J3: Modified: 1 774 // Conditional Variance | K3: Modified: 1 775 // Conditional Variance | L3: Modified: 1 776 // Conditional Variance | M3: Modified: 1 777 // Conditional Variance | N3: Modified: 1 778 // Conditional Variance | O3: Modified: 1 779 // Conditional Variance | P3: Modified: 1 780 // Conditional Variance | Q3: Modified: 1 781 // Conditional Variance | R3: Modified: 1 782 // Conditional Variance | S3: Modified: 1 783 // Conditional Variance | T3: Modified: 1 784 // Conditional Variance | U3: Modified: 1 785 // Conditional Variance | V3: Modified: 1 786 // Conditional Variance | W3: Modified: 1 787 // Conditional Variance | X3: Modified: 1 788 // Conditional Variance | Y3: Modified: 1 789 // Conditional Variance | Z3: Modified: 1 790 // Conditional Variance | AA3: Modified: 1 791 // Conditional Variance | AB3: Modified: 1 792 // Conditional Variance | AC3: Modified: 1 793 // Conditional Variance | AD3: Modified: 1 794 // Conditional Variance | AE3: Modified: 1 795 // Conditional Variance | AF3: Modified: 1 796 // Conditional Variance | AG3: Modified: 1 797 // Conditional Variance | AH3: Modified: 1 798 // Conditional Variance | AI3: Modified: 1 799 // Conditional Variance | AJ3: Modified: 1 800 // Conditional Variance | AK3: Modified: 1 801 // Conditional Variance | AL3: Modified: 1 802 // Conditional Variance | AM3: Modified: 1 803 // Conditional Variance | AN3: Modified: 1 804 // Conditional Variance | AO3: Modified: 1 805 // Conditional Variance | AP3: Modified: 1 806 // Conditional Variance | AQ3: Modified: 1 807 // Conditional Variance | AR3: Modified: 1 808 // Conditional Variance | AS3: Modified: 1 809 // Conditional Variance | AT3: Modified: 1 810 // Conditional Variance | AU3: Modified: 1 811 // Conditional Variance | AV3: Modified: 1 812 // Conditional Variance | AW3: Modified: 1 813 // Conditional Variance | AX3: Modified: 1 814 // Conditional Variance | AY3: Modified: 1 815 // Conditional Variance | AZ3: Modified: 1 816 // Conditional Variance | BA3: Modified: 1 817 // Conditional Variance | BB3: Modified: 1 818 // Conditional Variance | BC3: Modified: 1 819 // Conditional Variance | BD3: Modified: 1 820 // Conditional Variance | BE3: Modified: 1 821 // Conditional Variance | BF3: Modified: 1 822 // Conditional Variance | BG3: Modified: 1 823 // Conditional Variance | BH3: Modified: 1 824 // Conditional Variance | BI3: Modified: 1 825 // Conditional Variance | BJ3: Modified: 1 826 // Conditional Variance | BK3: Modified: 1 827 // Conditional Variance | BL3: Modified: 1 828 // Conditional Variance | BM3: Modified: 1 829 // Conditional Variance | BN3: Modified: 1 830 // Conditional Variance | BO3: Modified: 1 831 // Conditional Variance | BP3: Modified: 1 832 // Conditional Variance | BQ3: Modified: 1 833 // Conditional Variance | BR3: Modified: 1 834 // Conditional Variance | BS3: Modified: 1 835 // Conditional Variance | BT3: Modified: 1 836 // Conditional Variance | BU3: Modified: 1 837 // Conditional Variance | BV3: Modified: 1 838 // Conditional Variance | BW3: Modified: 1 839 // Conditional Variance | BX3: Modified: 1 840 // Conditional Variance | BY3: Modified: 1 841 // Conditional Variance | BZ3: Modified: 1 842 // Conditional Variance | CA3: Modified: 1 843 // Conditional Variance | CB3: Modified: 1 844 // Conditional Variance | CC3: Modified: 1 845 // Conditional Variance | CD3: Modified: 1 846 // Conditional Variance | CE3: Modified: 1 847 // Conditional Variance | CF3: Modified: 1 848 // Conditional Variance | CG3: Modified: 1 849 // Conditional Variance | CH3: Modified: 1 850 // Conditional Variance | CI3: Modified: 1 851 // Conditional Variance | CJ3: Modified: 1 852 // Conditional Variance | CK3: Modified: 1 853 // Conditional Variance | CL3: Modified: 1 854 // Conditional Variance | CM3: Modified: 1 855 // Conditional Variance | CN3: Modified: 1 856 // Conditional Variance | CO3: Modified: 1 857 // Conditional Variance | CP3: Modified: 1 858 // Conditional Variance | CQ3: Modified: 1 859 // Conditional Variance | CR3: Modified: 1 860 // Conditional Variance | CS3: Modified: 1 861 // Conditional Variance | CT3: Modified: 1 862 // Conditional Variance | CU3: Modified: 1 863 // Conditional Variance | CV3: Modified: 1 864 // Conditional Variance | CW3: Modified: 1 865 // Conditional Variance | CX3: Modified: 1 866 // Conditional Variance | CY3: Modified: 1 867 // Conditional Variance | CZ3: Modified: 1 868 // Conditional Variance | DA3: Modified: 1 869 // Conditional Variance | DB3: Modified: 1 870 // Conditional Variance | DC3: Modified: 1 871 // Conditional Variance | DD3: Modified: 1 872 // Conditional Variance | DE3: Modified: 1 873 // Conditional Variance | DF3: Modified: 1 874 // Conditional Variance | DG3: Modified: 1 875 // Conditional Variance | DH3: Modified: 1 876 // Conditional Variance | DI3: Modified: 1 877 // Conditional Variance | DJ3: Modified: 1 878 // Conditional Variance | DK3: Modified: 1 879 // Conditional Variance | DL3: Modified: 1 880 // Conditional Variance | DM3: Modified: 1 881 // Conditional Variance | DN3: Modified: 1 882 // Conditional Variance | DO3: Modified: 1 883 // Conditional Variance | DP3: Modified: 1 884 // Conditional Variance | DQ3: Modified: 1 885 // Conditional Variance | DR3: Modified: 1 886 // Conditional Variance | DS3: Modified: 1 887 // Conditional Variance | DT3: Modified: 1 888 // Conditional Variance | DU3: Modified: 1 889 // Conditional Variance | DV3: Modified: 1 890 // Conditional Variance | DW3: Modified: 1 891 // Conditional Variance | DX3: Modified: 1 892 // Conditional Variance | DY3: Modified: 1 893 // Conditional Variance | DZ3: Modified: 1 894 // Conditional Variance | EA3: Modified: 1 895 // Conditional Variance | EB3: Modified: 1 896 // Conditional Variance | EC3: Modified: 1 897 // Conditional Variance | ED3: Modified: 1 898 // Conditional Variance | EE3: Modified: 1 899 // Conditional Variance | EF3: Modified: 1 900 // Conditional Variance | EG3: Modified: 1 901 // Conditional Variance | EH3: Modified: 1 902 // Conditional Variance | EI3: Modified: 1 903 // Conditional Variance | EJ3: Modified: 1 904 // Conditional Variance | EK3: Modified: 1 905 // Conditional Variance | EL3: Modified: 1 906 // Conditional Variance | EM3: Modified: 1 907 // Conditional Variance | EN3: Modified: 1 908 // Conditional Variance | EO3: Modified: 1 909 // Conditional Variance | EP3: Modified: 1 910 // Conditional Variance | EQ3: Modified: 1 911 // Conditional Variance | ER3: Modified: 1 912 // Conditional Variance | ES3: Modified: 1 913 // Conditional Variance | ET3: Modified: 1 914 // Conditional Variance | EU3: Modified: 1 915 // Conditional Variance | EV3: Modified: 1 916 // Conditional Variance | EW3: Modified: 1 917 // Conditional Variance | EX3: Modified: 1 918 // Conditional Variance | EY3: Modified: 1 919 // Conditional Variance | EZ3: Modified: 1 920 // Conditional Variance | FA3: Modified: 1 921 // Conditional Variance | FB3: Modified: 1 922 // Conditional Variance | FC3: Modified: 1 923 // Conditional Variance | FD3: Modified: 1 924 // Conditional Variance | FE3: Modified: 1 925 // Conditional Variance | FF3: Modified: 1 926 // Conditional Variance | FG3: Modified: 1 927 // Conditional Variance | FH3: Modified: 1 928 // Conditional Variance | FI3: Modified: 1 929 // Conditional Variance | FJ3: Modified: 1 930 // Conditional Variance | FK3: Modified: 1 931 // Conditional Variance | FL3: Modified: 1 932 // Conditional Variance | FM3: Modified: 1 933 // Conditional Variance | FN3: Modified: 1 934 // Conditional Variance | FO3: Modified: 1 935 // Conditional Variance | FP3: Modified: 1 936 // Conditional Variance | FQ3: Modified: 1 937 // Conditional Variance | FR3: Modified: 1 938 // Conditional Variance | FS3: Modified: 1 939 // Conditional Variance | FT3: Modified: 1 940 // Conditional Variance | FU3: Modified: 1 941 // Conditional Variance | FV3: Modified: 1 942 // Conditional Variance | FW3: Modified: 1 943 // Conditional Variance | FX3: Modified: 1 944 // Conditional Variance | FY3: Modified: 1 945 // Conditional Variance | FZ3: Modified: 1 946 // Conditional Variance | GA3: Modified: 1 947 // Conditional Variance | GB3: Modified: 1 948 // Conditional Variance | GC3: Modified: 1 949 // Conditional Variance | GD3: Modified: 1 950 // Conditional Variance | GE3: Modified: 1 951 // Conditional Variance | GF3: Modified: 1 952 // Conditional Variance | GG3: Modified: 1 953 // Conditional Variance | GH3: Modified: 1 954 // Conditional Variance | GI3: Modified: 1 955 // Conditional Variance | GJ3: Modified: 1 956 // Conditional Variance | GK3: Modified: 1 957 // Conditional Variance | GL3: Modified: 1 958 // Conditional Variance | GM3: Modified: 1 959 // Conditional Variance | GN3: Modified: 1 960 // Conditional Variance | GO3: Modified: 1 961 // Conditional Variance | GP3: Modified: 1 962 // Conditional Variance | GQ3: Modified: 1 963 // Conditional Variance | GR3: Modified: 1 964 // Conditional Variance | GS3: Modified: 1 965 // Conditional Variance | GT3: Modified: 1 966 // Conditional Variance | GU3: Modified: 1 967 // Conditional Variance | GV3: Modified: 1 968 // Conditional Variance | GW3: Modified: 1 969 // Conditional Variance | GX3: Modified: 1 970 // Conditional Variance | GY3: Modified: 1 971 // Conditional Variance | GZ3: Modified: 1 972 // Conditional Variance | HA3: Modified: 1 973 // Conditional Variance | HB3: Modified: 1 974 // Conditional Variance | HC3: Modified: 1 975 // Conditional Variance | HD3: Modified: 1 976 // Conditional Variance | HE3: Modified: 1 977 // Conditional Variance | HF3: Modified: 1 978 // Conditional Variance | HG3: Modified: 1 979 // Conditional Variance | HH3: Modified: 1 980 // Conditional Variance | HI3: Modified: 1 981 // Conditional Variance | HJ3: Modified: 1 982 // Conditional Variance | HK3: Modified: 1 983 // Conditional Variance | HL3: Modified: 1 984 // Conditional Variance | HM3: Modified: 1 985 // Conditional Variance | HN3: Modified: 1 986 // Conditional Variance | HO3: Modified: 1 987 // Conditional Variance | HP3: Modified: 1 988 // Conditional Variance | HQ3: Modified: 1 989 // Conditional Variance | HR3: Modified: 1 990 // Conditional Variance | HS3: Modified: 1 991 // Conditional Variance | HT3: Modified: 1 992 // Conditional Variance | HU3: Modified: 1 993 // Conditional Variance | HV3: Modified: 1 994 // Conditional Variance | HW3: Modified: 1 995 // Conditional Variance | HX3: Modified: 1 996 // Conditional Variance | HY3: Modified: 1 997 // Conditional Variance | HZ3: Modified: 1 998 // Conditional Variance | IA3: Modified: 1 999 // Conditional Variance | IB3: Modified: 1 1000 // Conditional Variance | IC3: Modified: 1 1001 // Conditional Variance | ID3: Modified: 1 1002 // Conditional Variance | IE3: Modified: 1 1003 // Conditional Variance | IF3: Modified: 1 1004 // Conditional Variance | IG3: Modified: 1 1005 // Conditional Variance | IH3: Modified: 1 1006 // Conditional Variance | II3: Modified: 1 1007 // Conditional Variance | IJ3: Modified: 1 1008 // Conditional Variance | IK3: Modified: 1 1009 // Conditional Variance | IL3: Modified: 1 1010 // Conditional Variance | IM3: Modified: 1 1011 // Conditional Variance | IN3: Modified: 1 1012 // Conditional Variance | IO3: Modified: 1 1013 // Conditional Variance | IP3: Modified: 1 1014 // Conditional Variance | IQ3: Modified: 1 1015 // Conditional Variance | IR3: Modified: 1 1016 // Conditional Variance | IS3: Modified: 1 1017 // Conditional Variance | IT3: Modified: 1 1018 // Conditional Variance | IU3: Modified: 1 1019 // Conditional Variance | IV3: Modified: 1 1020 // Conditional Variance | IW3: Modified: 1 1021 // Conditional Variance | IX3: Modified: 1 1022 // Conditional Variance | IY3: Modified: 1 1023 // Conditional Variance | IZ3: Modified: 1 1024 // Conditional Variance | JA3: Modified: 1 1025 // Conditional Variance | JB3: Modified: 1 1026 // Conditional Variance | JC3: Modified: 1 1027 // Conditional Variance | JD3: Modified: 1 1028 // Conditional Variance | JE3: Modified: 1 1029 // Conditional Variance | JF3: Modified: 1 1030 // Conditional Variance | JG3: Modified: 1 1031 // Conditional Variance | JH3: Modified: 1 1032 // Conditional Variance | JI3: Modified: 1 1033 // Conditional Variance | JJ3: Modified: 1 1034 // Conditional Variance | JK3: Modified: 1 1035 // Conditional Variance | JL3: Modified: 1 1036 // Conditional Variance | JM3: Modified: 1 1037 // Conditional Variance | JN3: Modified: 1 1038 // Conditional Variance | JO3: Modified: 1 1039 // Conditional Variance | JP3: Modified: 1 1040 // Conditional Variance | JQ3: Modified: 1 1041 // Conditional Variance | JR3: Modified: 1 1042 // Conditional Variance | JS3: Modified: 1 1043 // Conditional Variance | JT3: Modified: 1 1044 // Conditional Variance | JU3: Modified: 1 1045 // Conditional Variance | JV3: Modified: 1 1046 // Conditional Variance | JW3: Modified: 1 1047 // Conditional Variance | JX3: Modified: 1 1048 // Conditional Variance | JY3: Modified: 1 1049 // Conditional Variance | JZ3: Modified: 1 1050 // Conditional Variance | KA3: Modified: 1 1051 // Conditional Variance | KB3: Modified: 1 1052 // Conditional Variance | KC3: Modified: 1 1053 // Conditional Variance | KD3: Modified: 1 1054 // Conditional Variance | KE3: Modified: 1 1055 // Conditional Variance | KF3: Modified: 1 1056 // Conditional Variance | KG3: Modified: 1 1057 // Conditional Variance | KH3: Modified: 1 1058 // Conditional Variance | KI3: Modified: 1 1059 // Conditional Variance | KJ3: Modified: 1 1060 // Conditional Variance | KK3: Modified: 1 1061 // Conditional Variance | KL3: Modified: 1 1062 // Conditional Variance | KM3: Modified: 1 1063 // Conditional Variance | KN3: Modified: 1 1064 // Conditional Variance | KO3: Modified: 1 1065 // Conditional Variance | KP3: Modified: 1 1066 // Conditional Variance | KQ3: Modified: 1 1067 // Conditional Variance | KR3: Modified: 1 1068 // Conditional Variance | KS3: Modified: 1 1069 // Conditional Variance | KT3: Modified: 1 1070 // Conditional Variance | KU3: Modified: 1 1071 // Conditional Variance | KV3: Modified: 1 1072 // Conditional Variance | KW3: Modified: 1 1073 // Conditional Variance | KX3: Modified: 1 1074 // Conditional Variance | KY3: Modified: 1 1075 // Conditional Variance | KZ3: Modified: 1 1076 // Conditional Variance | LA3: Modified: 1 1077 // Conditional Variance | LB3: Modified: 1 1078 // Conditional Variance | LC3: Modified: 1 1079 // Conditional Variance | LD3: Modified: 1 1080 // Conditional Variance | LE3: Modified: 1 1081 // Conditional Variance | LF3: Modified: 1 1082 // Conditional Variance | LG3: Modified: 1 1083 // Conditional Variance | LH3: Modified: 1 1084 // Conditional Variance | LI3: Modified: 1 1085 // Conditional Variance | LJ3: Modified: 1 1086 // Conditional Variance | LK3: Modified: 1 1087 // Conditional Variance | LL3: Modified: 1 1088 // Conditional Variance | LM3: Modified: 1 1089 // Conditional Variance | LN3: Modified: 1 1090 // Conditional Variance | LO3: Modified: 1 1091 // Conditional Variance | LP3: Modified: 1 1092 // Conditional Variance | LQ3: Modified: 1 1093 // Conditional Variance | LR3: Modified: 1 1094 // Conditional Variance | LS3: Modified: 1 1095 // Conditional Variance | LT3: Modified: 1 1096 // Conditional Variance | LU3: Modified: 1 1097 // Conditional Variance | LV3: Modified: 1 1098 // Conditional Variance | LW3: Modified: 1 1099 // Conditional Variance | LX3: Modified: 1 1100 // Conditional Variance | LY3: Modified: 1 1101 // Conditional Variance | LZ3: Modified: 1 1102 // Conditional Variance | MA3: Modified: 1 1103 // Conditional Variance | MB3: Modified: 1 1104 // Conditional Variance | MC3: Modified: 1 1105 // Conditional Variance | MD3: Modified: 1 1106 // Conditional Variance | ME3: Modified: 1 1107 // Conditional Variance | MF3: Modified: 1 1108 // Conditional Variance | MG3: Modified: 1 1109 // Conditional Variance | MH3: Modified: 1 1110 // Conditional Variance | MI3: Modified: 1 1111 // Conditional Variance | MJ3: Modified: 1 1112 // Conditional Variance | MK3: Modified: 1 1113 // Conditional Variance | ML3: Modified: 1 1114 // Conditional Variance | MM3: Modified: 1 1115 // Conditional Variance | MN3: Modified: 1 1116 // Conditional Variance | MO3: Modified: 1 1117 // Conditional Variance | MP3: Modified: 1 1118 // Conditional Variance | MQ3: Modified: 1 1119 // Conditional Variance | MR3: Modified: 1 1120 // Conditional Variance | MS3: Modified: 1 1121 // Conditional Variance | MT3: Modified: 1 1122 // Conditional Variance | MU3: Modified: 1 1123 // Conditional Variance | MV3: Modified: 1 1124 // Conditional Variance | MW3: Modified: 1 1125 // Conditional Variance | MX3: Modified: 1 1126 // Conditional Variance | MY3: Modified: 1 1127 // Conditional Variance | MZ3: Modified: 1 1128 // Conditional Variance
A5: 1926M01 | E5: 0.001269496684 | F5: 0.001268956444 | G5: 0.001268668469 | H5: 0.001268294908 | I5: 0.001270082299 | J5: 0.001269351489 | K5: 0.001268765075 | L5: 0.001270489553 | M5: 0.001270305559 | N5: 0.001269511442 | O5: 0.001269741481 | P5: 0.001269447406 | Q5: 0.001269390962 | R5: 0.001269515743 | S5: 0.001269371154 | T5: 0.001269256273 | U5: 0.001269229812 | V5: 0.001268894324 | W5: 0.001268860592 | X5: 0.001268748128 | Y5: 0.001268479958 | Z5: 0.00126837614 | AA5: 0.001268105385 | AB5: 0.001270482442 | AC5: 0.001269762519 | AD5: 0.00126921482 | AE5: 0.001268756849 | AF5: 0.001268560609 | AG5: 0.001268322997 | AH5: 0.00126804163 | AI5: 0.001267989829 | AJ5: 0.001267669822 | AK5: 0.001267444073 | AL5: 0.001267203077 | AM5: 0.001267108418 | AN5: 0.001266830855 | AO5: 0.001266487015 | AP5: 0.001266130541 | AQ5: 0.001265792053 | AR5: 0.001265532212 | AS5: 0.001265181138 | AT5: 0.001264371784 | AU5: 0.001263551695 | AV5: 0.001263724514 | AW5: 0.001262834719 | AX5: 0.001262140123 | AY5: 0.00126127318 | AZ5: 0.001260270588 | BA5: 0.001260253316 | BB5: 0.001260229848 | BC5: 0.001261542265 | BD5: 0.00126040421 | BE5: 0.001259414833 | BF5: 0.001259166239 | BG5: 0.001258900992 | BH5: 0.001259054758 | BI5: 0.001258729193 | BJ5: 0.00125801926 | BK5: 0.001258440551 | BL5: 0.001257522436 | BM5: 0.001256956426 | BN5: 0.001257014811 | BO5: 0.001256637847 | BP5: 0.001256288211 | BQ5: 0.001256373847 | BR5: 0.001255858581 | BS5: 0.001255714696 | BT5: 0.001254892212 | BU5: 0.001255242392 | BV5: 0.001254422434 | BW5: 0.001254905068 | BX5: 0.001254242421 | BY5: 0.001254171748 | BZ5: 0.001253369294 | CA5: 0.001252568699 | CB5: 0.001251830441 | CC5: 0.001251433418 | CD5: 0.001250528713 | CE5: 0.001252078976 | CF5: 0.00125134471 | CG5: 0.001252714683 | CH5: 0.001252222186 | CI5: 0.001254808253 | CJ5: 0.001254174338 | CK5: 0.001255162886 | CL5: 0.001254395983 | CM5: 0.001254531873 | CN5: 0.001255131759 | CO5: 0.001255692606 | CP5: 0.001255657618 | CQ5: 0.001256697714 | CR5: 0.00125685915 | CS5: 0.001256962354 | CT5: 0.001256605049 | CU5: 0.001256565751 | CV5: 0.001256299994 | CW5: 0.001256123692 | CX5: 0.001256332755 | CY5: 0.001256368266 | CZ5: 0.001256151637 | DA5: 0.001255906369 | DB5: 0.001255866844 | DC5: 0.001255646817 | DD5: 0.001259963161 | DE5: 0.001260090334 | DF5: 0.001260603775 | DG5: 0.001260649723 | DH5: 0.001260669057 | DI5: 0.001260660285 | DJ5: 0.001260421334 | DK5: 0.00126048476 | DL5: 0.001260579791 | DM5: 0.001260516536 | DN5: 0.001260354087 | DO5: 0.001260132083 | DP5: 0.001260198388 | DQ5: 0.001260012742 | DR5: 0.001259824106 | DS5: 0.001259850087 | DT5: 0.001259737257 | DU5: 0.001259500357 | DV5: 0.00125918375 | DW5: 0.001260007944 | DX5: 0.001259593986 | DY5: 0.001259190981 | DZ5: 0.001259025532 | EA5: 0.001258786469 | EB5: 0.001258824851 | EC5: 0.001258666774 | ED5: 0.001258333968 | EE5: 0.001258732027 | EF5: 0.001258270496 | EG5: 0.001258153622 | EH5: 0.001258782655 | EI5: 0.001258768907 | EJ5: 0.00125918748 | EK5: 0.001258800931 | EL5: 0.001258491895 | EM5: 0.001258307404 | EN5: 0.001258040487 | EO5: 0.001258107136 | EP5: 0.001257830161 | EQ5: 0.001257966204 | ER5: 0.00125784211 | ES5: 0.001257742853 | ET5: 0.001257676693 | EU5: 0.001257747974 | EV5: 0.001257300702 | EW5: 0.001257194428 | EX5: 0.001256973262 | EY5: 0.001257095491 | EZ5: 0.001256737546 | FA5: 0.001257452946 | FB5: 0.001257912211 | FC5: 0.001257909511 | FD5: 0.001257628592 | FE5: 0.001257330536 | FF5: 0.001257184438 | FG5: 0.001257292112 | FH5: 0.001256959349 | FI5: 0.001256972448 | FJ5: 0.001257168651 | FK5: 0.001257489667 | FL5: 0.001257889485 | FM5: 0.001258221516 | FN5: 0.001257807819 | FO5: 0.001258120285 | FP5: 0.001257880248 | FQ5: 0.001258064399 | FR5: 0.001258275091 | FS5: 0.001258275066 | FT5: 0.001258217651 | FU5: 0.001258255397 | FV5: 0.001258253036 | FW5: 0.001258051715 | FX5: 0.001257756884 | FY5: 0.001257470001 | FZ5: 0.001257188968 | GA5: 0.001257325774 | GB5: 0.001257276091 | GC5: 0.001257006092 | GD5: 0.001256595786 | GE5: 0.001256152845 | GF5: 0.001255717044 | GG5: 0.001255587879 | GH5: 0.001254873529 | GI5: 0.001255037684 | GJ5: 0.001254376228 | GK5: 0.00125366066 | GL5: 0.001253175192 | GM5: 0.001253410079 | GN5: 0.001252608542 | GO5: 0.001252308016 | GP5: 0.00125150545 | GQ5: 0.001250788858 | GR5: 0.001250080332 | GS5: 0.001250309822 | GT5: 0.001249396213 | GU5: 0.001248491019 | GV5: 0.001248076272 | GW5: 0.001247784698 | GX5: 0.001247864866 | GY5: 0.001247260309 | GZ5: 0.001246517381 | HA5: 0.001245786036 | HB5: 0.001245481498 | HC5: 0.001244620432 | HD5: 0.001245689683 | HE5: 0.00124583692 | HF5: 0.001245315554 | HG5: 0.001245525861 | HH5: 0.001244788179 | HI5: 0.001245015742 | HJ5: 0.001244371098 | HK5: 0.001245099781 | HL5: 0.001244358323 | HM5: 0.00124607108 | HN5: 0.001245968912 | HO5: 0.001245225243 | HP5: 0.001245579662 | HQ5: 0.001245030388 | HR5: 0.001247214902 | HS5: 0.001246548869 | HT5: 0.001246039421 | HU5: 0.001247655475 | HV5: 0.001252261171 | HW5: 0.001252005297 | HX5: 0.001251319003 | HY5: 0.001251306088 | HZ5: 0.001251566668 | IA5: 0.001251680661 | IB5: 0.001251838836 | IC5: 0.001251795891 | ID5: 0.001251786517 | IE5: 0.001251706172 | IF5: 0.001251888045 | IG5: 0.001252126024 | IH5: 0.001252417813 | II5: 0.001252217224 | IJ5: 0.00125266995 | IK5: 0.00125262428 | IL5: 0.001252927604 | IM5: 0.001252499124 | IN5: 0.001252861137 | IO5: 0.001252039076 | IP5: 0.001251822667 | IQ5: 0.001251821367 | IR5: 0.00125161737 | IS5: 0.001251741378 | IT5: 0.001251683369 | IU5: 0.001251650515 | IV5: 0.001251532697 | IW5: 0.001251586255 | IX5: 0.001251653247 | IY5: 0.001251825806 | IZ5: 0.001251950835 | JA5: 0.001252089796 | JB5: 0.001252147841 | JC5: 0.001252122545 | JD5: 0.001251867992 | JE5: 0.00125209989 | JF5: 0.001253601286 | JG5: 0.001253098238 | JH5: 0.001252796766 | JI5: 0.001252769361 | JJ5: 0.001252744179 | JK5: 0.001252721363 | JL5: 0.001252685266 | JM5: 0.001252482905 | JN5: 0.001252450942 | JO5: 0.001252365148 | JP5: 0.001252348424 | JQ5: 0.001252351327 | JR5: 0.001252255164 | JS5: 0.001252242179 | JT5: 0.001252242091 | JU5: 0.001252240683 | JV5: 0.001252065941 | JW5: 0.001252064448 | JX5: 0.001251879145 | JY5: 0.001251735061 | JZ5: 0.001251438476 | KA5: 0.001251854807 | KB5: 0.001251672868 | KC5: 0.001251544008 | KD5: 0.00125183468 | KE5: 0.001251681346 | KF5: 0.001251437993 | KG5: 0.001251408819 | KH5: 0.001251686709 | KI5: 0.001251197678 | KJ5: 0.001250753873 | KK5: 0.001250519641 | KL5: 0.001250251303 | KM5: 0.001249867329 | KN5: 0.001250100571 | KO5: 0.001249649705 | KP5: 0.001249402957 | KQ5: 0.001249235801 | KR5: 0.001248675785 | KS5: 0.001248649467 | KT5: 0.00124994791 | KU5: 0.001249402406 | KV5: 0.001248820924 | KW5: 0.001248327696 | KX5: 0.001247965483 | KY5: 0.001247624385 | KZ5: 0.001249060854 | LA5: 0.001248656788 | LB5: 0.001250935064 | LC5: 0.001250265798 | LD5: 0.001249766423 | LE5: 0.001249944655 | LF5: 0.001249413683 | LG5: 0.001250141555 | LH5: 0.001249696263 | LI5: 0.001249425401 | LJ5: 0.001249145494 | LK5: 0.001249131362 | LL5: 0.001248882438 | LM5: 0.001248658297 | LN5: 0.001248438658 | LO5: 0.001248472463 | LP5: 0.001248260186 | LQ5: 0.001248040926 | LR5: 0.001248185335 | LS5: 0.001247773083 | LT5: 0.001247411021 | LU5: 0.001247078252 | LV5: 0.001246655643 | LW5: 0.001246408886 | LX5: 0.00124589546 | LY5: 0.001245633591 | LZ5: 0.001245432344 | MA5: 0.001245524468 | MB5: 0.001244958557 | MC5: 0.001246681931 | MD5: 0.001246895249 | ME5: 0.001246586407 | MF5: 0.001245895791 | MG5: 0.001245583566 | MH5: 0.001245014561 | MI5: 0.001245191814 | MJ5: 0.001245178105 | MK5: 0.001244645963 | ML5: 0.001246557978 | MM5: 0.001246060306 | MN5: 0.001248505061 | MO5: 0.001249622637 | MP5: 0.001249285393 | MQ5: 0.001248926268 | MR5: 0.001248864056 | MS5: 0.001249023085 | MT5: 0.001249402747 | MU5: 0.001249121489 | MV5: 0.00124889397 | MW5: 0.001248803511 | MX5: 0.001248778766 | MY5: 0.001248748465 | MZ5: 0.001248728529
A6: 1926M02 | E6: 0.001208369717 | F6: 0.001207982203 | G6: 0.001207661126 | H6: 0.001206843619 | I6: 0.001210378935 | J6: 0.00120992437 | K6: 0.001209441694 | L6: 0.001211445603 | M6: 0.001210551642 | N6: 0.001210427052 | O6: 0.0012104509 | P6: 0.001210683838 | Q6: 0.001210787596 | R6: 0.001210846245 | S6: 0.001211053492 | T6: 0.00121095789 | U6: 0.001210988158 | V6: 0.001210368743 | W6: 0.001210413245 | X6: 0.001210307841 | Y6: 0.001209596141 | Z6: 0.001209114552 | AA6: 0.001208800578 | AB6: 0.001213776317 | AC6: 0.001213294612 | AD6: 0.001213290296 | AE6: 0.001212708008 | AF6: 0.001212672074 | AG6: 0.001212326099 | AH6: 0.001211598671 | AI6: 0.001211559894 | AJ6: 0.0012107336 | AK6: 0.001209995376 | AL6: 0.001208947316 | AM6: 0.00120864512 | AN6: 0.001207441703 | AO6: 0.001205893687 | AP6: 0.001204280225 | AQ6: 0.001202882527 | AR6: 0.001202358239 | AS6: 0.001201458616 | AT6: 0.00119924397 | AU6: 0.001196963257 | AV6: 0.001197625494 | AW6: 0.001195499994 | AX6: 0.001193848758 | AY6: 0.001191711652 | AZ6: 0.001189245179 | BA6: 0.001189348981 | BB6: 0.0011893232 | BC6: 0.001191840597 | BD6: 0.001190217899 | BE6: 0.001188569055 | BF6: 0.001188009781 | BG6: 0.0011876195 | BH6: 0.001188004837 | BI6: 0.00118730833 | BJ6: 0.001186174448 | BK6: 0.001186850263 | BL6: 0.001185511753 | BM6: 0.001184558729 | BN6: 0.001184782114 | BO6: 0.001184144621 | BP6: 0.00118352055 | BQ6: 0.001183820411 | BR6: 0.001182868069 | BS6: 0.001182663469 | BT6: 0.001180919486 | BU6: 0.00118188968 | BV6: 0.001180223251 | BW6: 0.001181418033 | BX6: 0.001180243136 | BY6: 0.001180202083 | BZ6: 0.001178602389 | CA6: 0.001176799718 | CB6: 0.001174998983 | CC6: 0.001174058584 | CD6: 0.00117176113 | CE6: 0.001175709699 | CF6: 0.001174593393 | CG6: 0.001177185852 | CH6: 0.001176595446 | CI6: 0.001180804299 | CJ6: 0.001180042908 | CK6: 0.001180992887 | CL6: 0.001180535227 | CM6: 0.001180276957 | CN6: 0.001180799139 | CO6: 0.001181194842 | CP6: 0.001181256266 | CQ6: 0.001182040266 | CR6: 0.001181314514 | CS6: 0.001181375564 | CT6: 0.001180787637 | CU6: 0.001180889104 | CV6: 0.001181040026 | CW6: 0.001181012816 | CX6: 0.001181648863 | CY6: 0.00118172007 | CZ6: 0.00118172617 | DA6: 0.001181216374 | DB6: 0.001181256478 | DC6: 0.001180677787 | DD6: 0.001189740824 | DE6: 0.00118986813 | DF6: 0.001189604679 | DG6: 0.001189742326 | DH6: 0.001189888324 | DI6: 0.00119031904 | DJ6: 0.00118997174 | DK6: 0.001190339259 | DL6: 0.001190651764 | DM6: 0.001190348127 | DN6: 0.001190319821 | DO6: 0.001189749463 | DP6: 0.001189702488 | DQ6: 0.001189136048 | DR6: 0.001189324894 | DS6: 0.001189411572 | DT6: 0.001189621165 | DU6: 0.001189037432 | DV6: 0.001188599552 | DW6: 0.001189739609 | DX6: 0.001189253975 | DY6: 0.001188930532 | DZ6: 0.001189127319 | EA6: 0.001188777661 | EB6: 0.001188970455 | EC6: 0.001188334438 | ED6: 0.00118820545 | EE6: 0.001188215922 | EF6: 0.001188355766 | EG6: 0.001188521302 | EH6: 0.001188632309 | EI6: 0.001187685951 | EJ6: 0.001187519565 | EK6: 0.001187969074 | EL6: 0.001187787705 | EM6: 0.001187884573 | EN6: 0.001186978201 | EO6: 0.001185965189 | EP6: 0.001186500105 | EQ6: 0.001186207736 | ER6: 0.001186707794 | ES6: 0.001186758738 | ET6: 0.001186641317 | EU6: 0.001186834192 | EV6: 0.001186106411 | EW6: 0.001186143675 | EX6: 0.00118551706 | EY6: 0.001184641911 | EZ6: 0.001185052758 | FA6: 0.001184356809 | FB6: 0.001183980369 | FC6: 0.001184222466 | FD6: 0.001183376605 | FE6: 0.00118347105 | FF6: 0.001183820489 | FG6: 0.001184485098 | FH6: 0.001183873453 | FI6: 0.001184009366 | FJ6: 0.001184609805 | FK6: 0.001185120322 | FL6: 0.001185516768 | FM6: 0.001185487787 | FN6: 0.001185494575 | FO6: 0.001185576148 | FP6: 0.001185687758 | FQ6: 0.001185653804 | FR6: 0.001185428435 | FS6: 0.001184787873 | FT6: 0.001184045653 | FU6: 0.001183325062 | FV6: 0.001182559594 | FW6: 0.001182508798 | FX6: 0.001181339577 | FY6: 0.001180082982 | FZ6: 0.001178814143 | GA6: 0.001179676482 | GB6: 0.001179667579 | GC6: 0.001179042145 | GD6: 0.001178144024 | GE6: 0.0011770802 | GF6: 0.001176065151 | GG6: 0.001175868117 | GH6: 0.001174245468 | GI6: 0.001174794297 | GJ6: 0.001173331203 | GK6: 0.001171670805 | GL6: 0.001170475574 | GM6: 0.001171181344 | GN6: 0.001169462847 | GO6: 0.001168839253 | GP6: 0.001166952255 | GQ6: 0.001165154227 | GR6: 0.001163292458 | GS6: 0.001164000531 | GT6: 0.001162019231 | GU6: 0.001159896896 | GV6: 0.001158938674 | GW6: 0.001158313625 | GX6: 0.001158628747 | GY6: 0.001157354308 | GZ6: 0.001155680247 | HA6: 0.001153943145 | HB6: 0.001153216428 | HC6: 0.001151269318 | HD6: 0.001153990909 | HE6: 0.001154367833 | HF6: 0.001153370658 | HG6: 0.001153649794 | HH6: 0.001152550403 | HI6: 0.001153064042 | HJ6: 0.001152015886 | HK6: 0.001153329112 | HL6: 0.001152267401 | HM6: 0.001154879215 | HN6: 0.001154493994 | HO6: 0.001153900236 | HP6: 0.001154342432 | HQ6: 0.001153880052 | HR6: 0.001156826959 | HS6: 0.001156667073 | HT6: 0.001156592022 | HU6: 0.001157731839 | HV6: 0.001159707891 | HW6: 0.001158963407 | HX6: 0.001159849455 | HY6: 0.001158728261 | HZ6: 0.00115716292 | IA6: 0.0011571504 | IB6: 0.001156815321 | IC6: 0.001157418685 | ID6: 0.001158288349 | IE6: 0.00115813604 | IF6: 0.001158861926 | IG6: 0.00115947809 | IH6: 0.001159809524 | II6: 0.001159712883 | IJ6: 0.0011603205 | IK6: 0.001159967244 | IL6: 0.001160303399 | IM6: 0.001160166599 | IN6: 0.001160495038 | IO6: 0.001160113651 | IP6: 0.001159439444 | IQ6: 0.001159205348 | IR6: 0.001158716241 | IS6: 0.001158212716 | IT6: 0.001158607926 | IU6: 0.001159018503 | IV6: 0.001158828708 | IW6: 0.00115921754 | IX6: 0.001159430366 | IY6: 0.001159534423 | IZ6: 0.001159602143 | JA6: 0.001159302927 | JB6: 0.001158842297 | JC6: 0.001158305395 | JD6: 0.001158685878 | JE6: 0.001158993456 | JF6: 0.001159737107 | JG6: 0.00116007904 | JH6: 0.001160425742 | JI6: 0.001160525403 | JJ6: 0.001160617967 | JK6: 0.001160753905 | JL6: 0.001160666991 | JM6: 0.001160420233 | JN6: 0.001160496325 | JO6: 0.001160540612 | JP6: 0.001160500737 | JQ6: 0.001160403202 | JR6: 0.001159869405 | JS6: 0.00115933083 | JT6: 0.001158637231 | JU6: 0.001159919803 | JV6: 0.001159380932 | JW6: 0.001159599548 | JX6: 0.001159079213 | JY6: 0.001158635176 | JZ6: 0.001157664239 | KA6: 0.001159301565 | KB6: 0.001158875943 | KC6: 0.001158740858 | KD6: 0.001159389387 | KE6: 0.001159242001 | KF6: 0.00115890264 | KG6: 0.00115876432 | KH6: 0.001159289677 | KI6: 0.001158680462 | KJ6: 0.001157882505 | KK6: 0.001157396418 | KL6: 0.001156763443 | KM6: 0.001155723418 | KN6: 0.00115652948 | KO6: 0.001155537096 | KP6: 0.001155053257 | KQ6: 0.001154750355 | KR6: 0.001153424026 | KS6: 0.001153386544 | KT6: 0.001156185157 | KU6: 0.001155434076 | KV6: 0.001154651642 | KW6: 0.001153798949 | KX6: 0.001152984249 | KY6: 0.001152316375 | KZ6: 0.001155413507 | LA6: 0.001154835308 | LB6: 0.001157568319 | LC6: 0.00115745445 | LD6: 0.001157059887 | LE6: 0.001156867711 | LF6: 0.001156605249 | LG6: 0.001157371874 | LH6: 0.00115726288 | LI6: 0.001157119265 | LJ6: 0.001156716158 | LK6: 0.00115680398 | LL6: 0.001156228009 | LM6: 0.001155462931 | LN6: 0.001154690532 | LO6: 0.001155019611 | LP6: 0.001154468725 | LQ6: 0.00115381988 | LR6: 0.001154502875 | LS6: 0.001153506779 | LT6: 0.001152482525 | LU6: 0.001151447804 | LV6: 0.001150037453 | LW6: 0.001149268993 | LX6: 0.001147604608 | LY6: 0.001146833493 | LZ6: 0.00114632838 | MA6: 0.001146729213 | MB6: 0.001145412503 | MC6: 0.001149803419 | MD6: 0.001149866155 | ME6: 0.001149356253 | MF6: 0.001148611514 | MG6: 0.00114821837 | MH6: 0.001147270761 | MI6: 0.001147754485 | MJ6: 0.001147819813 | MK6: 0.001146889421 | ML6: 0.001150721158 | MM6: 0.001150502641 | MN6: 0.001152900053 | MO6: 0.001152897955 | MP6: 0.001153149027 | MQ6: 0.001153371395 | MR6: 0.001153454903 | MS6: 0.001153037876 | MT6: 0.001152960332 | MU6: 0.001153247674 | MV6: 0.001153154088 | MW6: 0.001153243786 | MX6: 0.001153240028 | MY6: 0.001153273792 | MZ6: 0.001153237815
A7: 1926M03 | E7: 0.001369822053 | F7: 0.001368583882 | G7: 0.001367997284 | H7: 0.001366785791 | I7: 0.001371786952 | J7: 0.001370014034 | K7: 0.00136855972 | L7: 0.001372243464 | M7: 0.001371286571 | N7: 0.001369400584 | O7: 0.001370223782 | P7: 0.001369745172 | Q7: 0.001369856382 | R7: 0.00137042722 | S7: 0.001370293921 | T7: 0.001370019823 | U7: 0.001370179011 | V7: 0.001368971051 | W7: 0.001369127472 | X7: 0.001368980937 | Y7: 0.001368096871 | Z7: 0.001367811755 | AA7: 0.001366869598 | AB7: 0.001373411728 | AC7: 0.001371588733 | AD7: 0.001370445463 | AE7: 0.00136914916 | AF7: 0.001368844282 | AG7: 0.001368240076 | AH7: 0.001367320507 | AI7: 0.001367390065 | AJ7: 0.001366337536 | AK7: 0.001365694363 | AL7: 0.001364895502 | AM7: 0.001364778967 | AN7: 0.001363932811 | AO7: 0.001362826881 | AP7: 0.001361719734 | AQ7: 0.001360750898 | AR7: 0.001359883652 | AS7: 0.001359038184 | AT7: 0.00135672649 | AU7: 0.001354324599 | AV7: 0.001355051893 | AW7: 0.001352525195 | AX7: 0.001350708055 | AY7: 0.001348206308 | AZ7: 0.001345450762 | BA7: 0.001345609574 | BB7: 0.001345370049 | BC7: 0.001348596759 | BD7: 0.001345730207 | BE7: 0.001343203942 | BF7: 0.00134234532 | BG7: 0.001341827675 | BH7: 0.001342457717 | BI7: 0.001341398136 | BJ7: 0.001339657996 | BK7: 0.001340510291 | BL7: 0.001338196644 | BM7: 0.00133682834 | BN7: 0.001337201416 | BO7: 0.001336363403 | BP7: 0.001335592153 | BQ7: 0.001336037462 | BR7: 0.001334805336 | BS7: 0.001334608096 | BT7: 0.001332390994 | BU7: 0.00133358065 | BV7: 0.001331342347 | BW7: 0.001332884678 | BX7: 0.001331248959 | BY7: 0.001331253839 | BZ7: 0.001329160027 | CA7: 0.001327013017 | CB7: 0.001325023928 | CC7: 0.001324052458 | CD7: 0.001321504556 | CE7: 0.001325597507 | CF7: 0.001323783557 | CG7: 0.001327681267 | CH7: 0.001326583126 | CI7: 0.00133348108 | CJ7: 0.001331751818 | CK7: 0.001334407736 | CL7: 0.001332644049 | CM7: 0.001332591575 | CN7: 0.001334300263 | CO7: 0.001335877905 | CP7: 0.001336029712 | CQ7: 0.001338679415 | CR7: 0.001338458692 | CS7: 0.001338953724 | CT7: 0.001337788549 | CU7: 0.001337953437 | CV7: 0.00133750625 | CW7: 0.001337194407 | CX7: 0.001337975725 | CY7: 0.001338292532 | CZ7: 0.001337915185 | DA7: 0.001337162088 | DB7: 0.001337284377 | DC7: 0.001336618419 | DD7: 0.001347201914 | DE7: 0.001347813184 | DF7: 0.001349225334 | DG7: 0.001349638326 | DH7: 0.001349982252 | DI7: 0.001350301677 | DJ7: 0.001349508128 | DK7: 0.001349957033 | DL7: 0.001350463829 | DM7: 0.001350127898 | DN7: 0.001349975777 | DO7: 0.001349146277 | DP7: 0.001349268667 | DQ7: 0.001348540803 | DR7: 0.001348389619 | DS7: 0.001348596041 | DT7: 0.001348592744 | DU7: 0.001347557591 | DV7: 0.001346615026 | DW7: 0.001348912646 | DX7: 0.001347672777 | DY7: 0.001346541715 | DZ7: 0.001346329031 | EA7: 0.00134559564 | EB7: 0.001345975215 | EC7: 0.001345129095 | ED7: 0.001344288789 | EE7: 0.001344738349 | EF7: 0.001343694361 | EG7: 0.001343622288 | EH7: 0.001344575978 | EI7: 0.001343964125 | EJ7: 0.001345228675 | EK7: 0.001344444104 | EL7: 0.001343519505 | EM7: 0.001343006484 | EN7: 0.001341857219 | EO7: 0.001341387086 | EP7: 0.001340895902 | EQ7: 0.001341491145 | ER7: 0.001341329005 | ES7: 0.00134098929 | ET7: 0.001340657357 | EU7: 0.001341027418 | EV7: 0.001339512551 | EW7: 0.001339177526 | EX7: 0.001338189879 | EY7: 0.001337893656 | EZ7: 0.001337122991 | FA7: 0.001338148817 | FB7: 0.00133949244 | FC7: 0.00133979739 | FD7: 0.001338608038 | FE7: 0.001337759831 | FF7: 0.001337362119 | FG7: 0.001337734538 | FH7: 0.001337198537 | FI7: 0.00133748989 | FJ7: 0.001338139889 | FK7: 0.00133907529 | FL7: 0.001340173306 | FM7: 0.001340852381 | FN7: 0.001340139751 | FO7: 0.001340930908 | FP7: 0.001340611886 | FQ7: 0.001341146777 | FR7: 0.00134168207 | FS7: 0.001341467066 | FT7: 0.00134108736 | FU7: 0.001341094816 | FV7: 0.001341028486 | FW7: 0.001340352568 | FX7: 0.001339438926 | FY7: 0.001338565479 | FZ7: 0.001337729495 | GA7: 0.00133840652 | GB7: 0.001338454977 | GC7: 0.001337556331 | GD7: 0.001336547926 | GE7: 0.001335202343 | GF7: 0.001333870443 | GG7: 0.001333688639 | GH7: 0.00133171286 | GI7: 0.001332379539 | GJ7: 0.001330501882 | GK7: 0.001328552553 | GL7: 0.001327077627 | GM7: 0.001327943455 | GN7: 0.001325737534 | GO7: 0.00132504855 | GP7: 0.001322816709 | GQ7: 0.00132084633 | GR7: 0.001318881972 | GS7: 0.001319385457 | GT7: 0.001316835272 | GU7: 0.001314290766 | GV7: 0.001313234874 | GW7: 0.001312551559 | GX7: 0.001312960197 | GY7: 0.001311387758 | GZ7: 0.001309381683 | HA7: 0.001307384799 | HB7: 0.001306399509 | HC7: 0.001304015015 | HD7: 0.001307281753 | HE7: 0.001307866166 | HF7: 0.001306340916 | HG7: 0.001306698722 | HH7: 0.001304810665 | HI7: 0.00130562562 | HJ7: 0.001303983569 | HK7: 0.001305706156 | HL7: 0.001303696215 | HM7: 0.001307913884 | HN7: 0.001307384146 | HO7: 0.00130546525 | HP7: 0.001306611591 | HQ7: 0.001305297009 | HR7: 0.001310502823 | HS7: 0.001308852712 | HT7: 0.001307711054 | HU7: 0.001311219414 | HV7: 0.001321429459 | HW7: 0.00132022108 | HX7: 0.001318791661 | HY7: 0.001318044325 | HZ7: 0.001317768249 | IA7: 0.001318413662 | IB7: 0.001319114327 | IC7: 0.001319396568 | ID7: 0.001319561928 | IE7: 0.001319653041 | IF7: 0.001320430548 | IG7: 0.001321326747 | IH7: 0.001321999344 | II7: 0.001321761915 | IJ7: 0.001323094003 | IK7: 0.001322706335 | IL7: 0.001323660081 | IM7: 0.001322852096 | IN7: 0.001323901412 | IO7: 0.001321320676 | IP7: 0.001320354437 | IQ7: 0.001320570067 | IR7: 0.00131972601 | IS7: 0.001320157907 | IT7: 0.001320322448 | IU7: 0.001320390334 | IV7: 0.001320288239 | IW7: 0.001320675558 | IX7: 0.00132108046 | IY7: 0.001321581355 | IZ7: 0.001322072522 | JA7: 0.001322324986 | JB7: 0.001322301335 | JC7: 0.001322029324 | JD7: 0.001321173818 | JE7: 0.001321365551 | JF7: 0.001325196205 | JG7: 0.001324134972 | JH7: 0.001323600436 | JI7: 0.001323771657 | JJ7: 0.00132394193 | JK7: 0.001324112438 | JL7: 0.001324041544 | JM7: 0.001323110376 | JN7: 0.00132325221 | JO7: 0.001323181152 | JP7: 0.001323287979 | JQ7: 0.001323438302 | JR7: 0.001323033422 | JS7: 0.001322963032 | JT7: 0.001322903508 | JU7: 0.001323320808 | JV7: 0.001322923523 | JW7: 0.001323129699 | JX7: 0.001322735825 | JY7: 0.00132246111 | JZ7: 0.001321534493 | KA7: 0.001322972754 | KB7: 0.001322296761 | KC7: 0.001322130708 | KD7: 0.00132310037 | KE7: 0.001322880169 | KF7: 0.001322403508 | KG7: 0.001322085849 | KH7: 0.001323009165 | KI7: 0.001321840345 | KJ7: 0.001320727712 | KK7: 0.001320224786 | KL7: 0.001319605777 | KM7: 0.001318445105 | KN7: 0.001319309944 | KO7: 0.001318002385 | KP7: 0.001317463677 | KQ7: 0.001317155422 | KR7: 0.001315594876 | KS7: 0.00131535373 | KT7: 0.001319115638 | KU7: 0.001317622983 | KV7: 0.001316179572 | KW7: 0.001314941081 | KX7: 0.001313825512 | KY7: 0.001313003342 | KZ7: 0.001316628552 | LA7: 0.001315425863 | LB7: 0.001321489956 | LC7: 0.001319953451 | LD7: 0.001318638623 | LE7: 0.001318724687 | LF7: 0.001317421997 | LG7: 0.001319500612 | LH7: 0.001318491956 | LI7: 0.001317949017 | LJ7: 0.001317261404 | LK7: 0.001317417498 | LL7: 0.001316770853 | LM7: 0.001316131776 | LN7: 0.001315378787 | LO7: 0.001315689148 | LP7: 0.001315204974 | LQ7: 0.001314682383 | LR7: 0.001315309949 | LS7: 0.001314192674 | LT7: 0.001313226644 | LU7: 0.001312338338 | LV7: 0.001311123859 | LW7: 0.001310508061 | LX7: 0.001309002636 | LY7: 0.001308345838 | LZ7: 0.001307894074 | MA7: 0.001308334594 | MB7: 0.001306816561 | MC7: 0.001311854359 | MD7: 0.001312142135 | ME7: 0.001311171751 | MF7: 0.001309416239 | MG7: 0.001308724555 | MH7: 0.001307233345 | MI7: 0.00130791207 | MJ7: 0.001308046093 | MK7: 0.00130666366 | ML7: 0.001311464816 | MM7: 0.001310356837 | MN7: 0.001316022742 | MO7: 0.00131891333 | MP7: 0.00131835091 | MQ7: 0.001317691856 | MR7: 0.00131776103 | MS7: 0.001317610435 | MT7: 0.0013187029 | MU7: 0.001318227531 | MV7: 0.001317630716 | MW7: 0.001317578002 | MX7: 0.001317675285 | MY7: 0.001317790316 | MZ7: 0.001317912969
A8: 1926M04 | E8: 0.001741287066 | F8: 0.001738317013 | G8: 0.001737207839 | H8: 0.001735737511 | I8: 0.001741840332 | J8: 0.001737412008 | K8: 0.001734077863 | L8: 0.001740901239 | M8: 0.001740596411 | N8: 0.001734883671 | O8: 0.001737268973 | P8: 0.001734922533 | Q8: 0.001734807502 | R8: 0.001736356735 | S8: 0.001735178694 | T8: 0.001734488744 | U8: 0.001734745071 | V8: 0.00173287278 | W8: 0.001733079875 | X8: 0.001732761808 | Y8: 0.001731974136 | Z8: 0.001732321695 | AA8: 0.001730388377 | AB8: 0.001737542512 | AC8: 0.001733078789 | AD8: 0.001729303094 | AE8: 0.001726837711 | AF8: 0.001725813216 | AG8: 0.001724783559 | AH8: 0.001723926577 | AI8: 0.001724105676 | AJ8: 0.001723131896 | AK8: 0.001723086368 | AL8: 0.001723456792 | AM8: 0.001723802454 | AN8: 0.001724427477 | AO8: 0.001725223612 | AP8: 0.001726181362 | AQ8: 0.001726945018 | AR8: 0.001725744447 | AS8: 0.001725470769 | AT8: 0.001724330455 | AU8: 0.001723126029 | AV8: 0.001723427404 | AW8: 0.001721388802 | AX8: 0.001720171571 | AY8: 0.00171826628 | AZ8: 0.001716413778 | BA8: 0.00171649005 | BB8: 0.001715893152 | BC8: 0.001719261708 | BD8: 0.001714643593 | BE8: 0.001711180953 | BF8: 0.001710114366 | BG8: 0.001709436311 | BH8: 0.001710208491 | BI8: 0.00170888667 | BJ8: 0.001706444085 | BK8: 0.001707411144 | BL8: 0.001703749005 | BM8: 0.001701975946 | BN8: 0.001702390675 | BO8: 0.00170139718 | BP8: 0.001700578454 | BQ8: 0.001701011029 | BR8: 0.001699660182 | BS8: 0.001699476629 | BT8: 0.001697302924 | BU8: 0.00169821388 | BV8: 0.001695780158 | BW8: 0.001697180408 | BX8: 0.0016951874 | BY8: 0.001695185789 | BZ8: 0.001692969749 | CA8: 0.001691173436 | CB8: 0.001689870144 | CC8: 0.001689334483 | CD8: 0.00168771299 | CE8: 0.00168977249 | CF8: 0.001687065027 | CG8: 0.001692012849 | CH8: 0.001690060076 | CI8: 0.001700157992 | CJ8: 0.00169684432 | CK8: 0.001702522535 | CL8: 0.001698093441 | CM8: 0.001698869357 | CN8: 0.001702713104 | CO8: 0.001706509242 | CP8: 0.001706657868 | CQ8: 0.001712912414 | CR8: 0.001714584977 | CS8: 0.001715823104 | CT8: 0.001713890599 | CU8: 0.001713956492 | CV8: 0.001711953 | CW8: 0.00171090174 | CX8: 0.001711590561 | CY8: 0.001712254306 | CZ8: 0.001710890833 | DA8: 0.001709935768 | DB8: 0.00171005843 | DC8: 0.00170954229 | DD8: 0.001719229346 | DE8: 0.001720616212 | DF8: 0.001725713823 | DG8: 0.0017264452 | DH8: 0.001726937132 | DI8: 0.001726527868 | DJ8: 0.001725041098 | DK8: 0.001725235255 | DL8: 0.001725773311 | DM8: 0.001725582241 | DN8: 0.00172504611 | DO8: 0.001724111337 | DP8: 0.001724561736 | DQ8: 0.001723922367 | DR8: 0.001722817147 | DS8: 0.001723075525 | DT8: 0.001722376621 | DU8: 0.001721018303 | DV8: 0.001719277349 | DW8: 0.001723496859 | DX8: 0.001720999973 | DY8: 0.001718342151 | DZ8: 0.001716960273 | EA8: 0.001715619764 | EB8: 0.001716170666 | EC8: 0.001715547903 | ED8: 0.001713191448 | EE8: 0.001715088677 | EF8: 0.001711293036 | EG8: 0.001710441268 | EH8: 0.001713755375 | EI8: 0.001714772808 | EJ8: 0.001719107098 | EK8: 0.001715240469 | EL8: 0.001712854175 | EM8: 0.001710928062 | EN8: 0.001710134251 | EO8: 0.001711918526 | EP8: 0.001708727109 | EQ8: 0.00171130767 | ER8: 0.001709269979 | ES8: 0.001708038607 | ET8: 0.001707337325 | EU8: 0.001707817814 | EV8: 0.001705364888 | EW8: 0.001704168518 | EX8: 0.001703160645 | EY8: 0.001705087694 | EZ8: 0.001701395741 | FA8: 0.001707246279 | FB8: 0.001712428392 | FC8: 0.001712524771 | FD8: 0.001711367561 | FE8: 0.001708436337 | FF8: 0.001706171534 | FG8: 0.001705381459 | FH8: 0.001705301215 | FI8: 0.001705678781 | FJ8: 0.001705911776 | FK8: 0.001707302055 | FL8: 0.00170953261 | FM8: 0.001711742012 | FN8: 0.001709350286 | FO8: 0.001711520465 | FP8: 0.001710081342 | FQ8: 0.001711739047 | FR8: 0.001713950673 | FS8: 0.0017150751 | FT8: 0.001715972819 | FU8: 0.001717930065 | FV8: 0.001719771013 | FW8: 0.001717896481 | FX8: 0.001718240835 | FY8: 0.0017189412 | FZ8: 0.001719785693 | GA8: 0.001719381331 | GB8: 0.00171943913 | GC8: 0.001718424191 | GD8: 0.001717653869 | GE8: 0.00171642588 | GF8: 0.001715113053 | GG8: 0.001714975046 | GH8: 0.001713254141 | GI8: 0.001713697853 | GJ8: 0.001711876072 | GK8: 0.001710329384 | GL8: 0.001709071878 | GM8: 0.001709700566 | GN8: 0.001707534863 | GO8: 0.001707008829 | GP8: 0.001705236505 | GQ8: 0.001704019568 | GR8: 0.00170300617 | GS8: 0.001702694902 | GT8: 0.001700212219 | GU8: 0.00169814271 | GV8: 0.00169742793 | GW8: 0.001696939264 | GX8: 0.001697226718 | GY8: 0.001695777623 | GZ8: 0.001694108165 | HA8: 0.001692652816 | HB8: 0.001691650933 | HC8: 0.001689590972 | HD8: 0.001692081323 | HE8: 0.001692747337 | HF8: 0.001690783905 | HG8: 0.001691236911 | HH8: 0.001688308008 | HI8: 0.001689312045 | HJ8: 0.001687006416 | HK8: 0.001688916913 | HL8: 0.001685560632 | HM8: 0.00169182261 | HN8: 0.001691355802 | HO8: 0.001686944244 | HP8: 0.001689192432 | HQ8: 0.001686249408 | HR8: 0.001694963981 | HS8: 0.001690164475 | HT8: 0.001686658572 | HU8: 0.001695111193 | HV8: 0.001723110804 | HW8: 0.001721657057 | HX8: 0.001714540878 | HY8: 0.001715678819 | HZ8: 0.001719679905 | IA8: 0.001721530774 | IB8: 0.001724489571 | IC8: 0.001723463989 | ID8: 0.001721412898 | IE8: 0.001721962003 | IF8: 0.00172216314 | IG8: 0.001723049303 | IH8: 0.001724183513 | II8: 0.001723568781 | IJ8: 0.001725868892 | IK8: 0.001725724118 | IL8: 0.001727605544 | IM8: 0.001725360473 | IN8: 0.001727570399 | IO8: 0.001721094142 | IP8: 0.001720151309 | IQ8: 0.001721388583 | IR8: 0.001720242404 | IS8: 0.001723020435 | IT8: 0.001722238611 | IU8: 0.001721168175 | IV8: 0.001721304254 | IW8: 0.001721247896 | IX8: 0.001721752072 | IY8: 0.001722909064 | IZ8: 0.001724103878 | JA8: 0.001725677054 | JB8: 0.001726876322 | JC8: 0.001727539823 | JD8: 0.001724069547 | JE8: 0.001724208758 | JF8: 0.001734387841 | JG8: 0.001729972962 | JH8: 0.001727171714 | JI8: 0.001727279812 | JJ8: 0.001727407327 | JK8: 0.001727399497 | JL8: 0.001727326732 | JM8: 0.001725418699 | JN8: 0.001725507997 | JO8: 0.001725016645 | JP8: 0.001725317174 | JQ8: 0.001725921 | JR8: 0.001726136953 | JS8: 0.00172732404 | JT8: 0.001728979593 | JU8: 0.001726640808 | JV8: 0.001726782637 | JW8: 0.001726709457 | JX8: 0.001726805371 | JY8: 0.001727065219 | JZ8: 0.001726861711 | KA8: 0.001726736803 | KB8: 0.001725884581 | KC8: 0.001725620002 | KD8: 0.001726762774 | KE8: 0.001726357104 | KF8: 0.001725682152 | KG8: 0.001725200586 | KH8: 0.001726536983 | KI8: 0.001724464406 | KJ8: 0.001723109599 | KK8: 0.001722777123 | KL8: 0.001722496444 | KM8: 0.001721767622 | KN8: 0.001722125835 | KO8: 0.001720799959 | KP8: 0.001720358388 | KQ8: 0.001720131953 | KR8: 0.001718910771 | KS8: 0.001718349043 | KT8: 0.001722275194 | KU8: 0.001719691128 | KV8: 0.001717263731 | KW8: 0.001715676641 | KX8: 0.001714492177 | KY8: 0.001713689585 | KZ8: 0.001716715394 | LA8: 0.00171460751 | LB8: 0.001726084826 | LC8: 0.00172147644 | LD8: 0.001718434003 | LE8: 0.001719452568 | LF8: 0.001716027378 | LG8: 0.001720376129 | LH8: 0.001717407509 | LI8: 0.001715974995 | LJ8: 0.001714853637 | LK8: 0.001714982811 | LL8: 0.001714480625 | LM8: 0.0017145458 | LN8: 0.001714361491 | LO8: 0.001714307498 | LP8: 0.001714223937 | LQ8: 0.001714298867 | LR8: 0.001714260248 | LS8: 0.001713479974 | LT8: 0.001713237867 | LU8: 0.001713268708 | LV8: 0.001713358246 | LW8: 0.0017134948 | LX8: 0.00171340942 | LY8: 0.001713431552 | LZ8: 0.00171334359 | MA8: 0.001713495907 | MB8: 0.001712371724 | MC8: 0.001715816228 | MD8: 0.001716679777 | ME8: 0.001715125951 | MF8: 0.001711653356 | MG8: 0.001710485595 | MH8: 0.001708409456 | MI8: 0.001709073788 | MJ8: 0.00170920309 | MK8: 0.00170741126 | ML8: 0.001712169011 | MM8: 0.001709194393 | MN8: 0.001720885662 | MO8: 0.00172989898 | MP8: 0.001727271979 | MQ8: 0.001724431459 | MR8: 0.001724269888 | MS8: 0.001725312972 | MT8: 0.001728899534 | MU8: 0.001726451754 | MV8: 0.001724797881 | MW8: 0.001724230651 | MX8: 0.001724395892 | MY8: 0.001724533726 | MZ8: 0.001724879362
A9: 1926M05 | E9: 0.00163214579 | F9: 0.00162982105 | G9: 0.001628708132 | H9: 0.001627236458 | I9: 0.001633967798 | J9: 0.001630727784 | K9: 0.00162814701 | L9: 0.001634826747 | M9: 0.001634192675 | N9: 0.001630338759 | O9: 0.001631758745 | P9: 0.001630203975 | Q9: 0.001630013245 | R9: 0.001631066485 | S9: 0.001630229133 | T9: 0.001629535875 | U9: 0.001629549729 | V9: 0.001628169361 | W9: 0.001628173133 | X9: 0.00162769017 | Y9: 0.001626636711 | Z9: 0.001626343707 | AA9: 0.00162507725 | AB9: 0.001633827745 | AC9: 0.001630585602 | AD9: 0.001627982709 | AE9: 0.001625954729 | AF9: 0.001625080331 | AG9: 0.001624018622 | AH9: 0.001622903158 | AI9: 0.001622838105 | AJ9: 0.001621623331 | AK9: 0.001620937536 | AL9: 0.001620335544 | AM9: 0.001620201339 | AN9: 0.001619650883 | AO9: 0.001619002057 | AP9: 0.001618410777 | AQ9: 0.001617836146 | AR9: 0.001616753144 | AS9: 0.001615849648 | AT9: 0.001613588536 | AU9: 0.001611275119 | AV9: 0.001611766251 | AW9: 0.001609033634 | AX9: 0.001607069965 | AY9: 0.001604434693 | AZ9: 0.001601577612 | BA9: 0.001601559278 | BB9: 0.001601199474 | BC9: 0.001605170935 | BD9: 0.001601075003 | BE9: 0.001597691921 | BF9: 0.001596673802 | BG9: 0.001595852748 | BH9: 0.001596464135 | BI9: 0.001595189631 | BJ9: 0.001592766419 | BK9: 0.001593950095 | BL9: 0.001590624348 | BM9: 0.001588741784 | BN9: 0.00158902329 | BO9: 0.001587838297 | BP9: 0.001586775138 | BQ9: 0.001587121797 | BR9: 0.001585506541 | BS9: 0.00158512487 | BT9: 0.00158251798 | BU9: 0.001583619117 | BV9: 0.001580914737 | BW9: 0.001582482225 | BX9: 0.001580320484 | BY9: 0.001580165185 | BZ9: 0.001577608894 | CA9: 0.001575204256 | CB9: 0.001573119113 | CC9: 0.001572058918 | CD9: 0.001569493925 | CE9: 0.001573579214 | CF9: 0.001571008876 | CG9: 0.001575804526 | CH9: 0.001574034635 | CI9: 0.001583422675 | CJ9: 0.001580785149 | CK9: 0.001585007701 | CL9: 0.001581732321 | CM9: 0.001582233902 | CN9: 0.001584972926 | CO9: 0.001587606153 | CP9: 0.001587591391 | CQ9: 0.001592247802 | CR9: 0.001593137107 | CS9: 0.001593825959 | CT9: 0.00159226131 | CU9: 0.001592207397 | CV9: 0.001590820933 | CW9: 0.001589931134 | CX9: 0.00159093809 | CY9: 0.001591294261 | CZ9: 0.001590226191 | DA9: 0.001589211434 | DB9: 0.001589168654 | DC9: 0.001588354806 | DD9: 0.001602887721 | DE9: 0.001603681197 | DF9: 0.001606678985 | DG9: 0.001607059908 | DH9: 0.001607294897 | DI9: 0.001607090968 | DJ9: 0.001605891704 | DK9: 0.001606032786 | DL9: 0.001606359957 | DM9: 0.00160596433 | DN9: 0.001605527299 | DO9: 0.00160458232 | DP9: 0.001604656212 | DQ9: 0.001603878834 | DR9: 0.001603333099 | DS9: 0.001603332003 | DT9: 0.001603015342 | DU9: 0.001602065153 | DV9: 0.001600609862 | DW9: 0.001604464519 | DX9: 0.001602565008 | DY9: 0.00160060748 | DZ9: 0.001599653798 | EA9: 0.001598483909 | EB9: 0.001598946232 | EC9: 0.001598408083 | ED9: 0.001596684646 | EE9: 0.00159855099 | EF9: 0.001596058153 | EG9: 0.001595438952 | EH9: 0.001598437941 | EI9: 0.001598738394 | EJ9: 0.00160133101 | EK9: 0.001598972424 | EL9: 0.001597272972 | EM9: 0.001595970903 | EN9: 0.001595210009 | EO9: 0.001596207146 | EP9: 0.001594310127 | EQ9: 0.001595766528 | ER9: 0.001594583518 | ES9: 0.001593707564 | ET9: 0.001593090428 | EU9: 0.001593343405 | EV9: 0.001591674928 | EW9: 0.001590792109 | EX9: 0.001590210061 | EY9: 0.001591359282 | EZ9: 0.001589075989 | FA9: 0.001593259336 | FB9: 0.001596302373 | FC9: 0.001596348169 | FD9: 0.00159523327 | FE9: 0.001593337773 | FF9: 0.001591976457 | FG9: 0.001591688249 | FH9: 0.00159133576 | FI9: 0.001591519949 | FJ9: 0.001591831468 | FK9: 0.001592824281 | FL9: 0.001594280565 | FM9: 0.001595520748 | FN9: 0.001593993856 | FO9: 0.00159522234 | FP9: 0.001594337218 | FQ9: 0.001595169525 | FR9: 0.001596233192 | FS9: 0.001596447332 | FT9: 0.001596463408 | FU9: 0.00159707308 | FV9: 0.001597586706 | FW9: 0.001596470259 | FX9: 0.001595816381 | FY9: 0.001595327409 | FZ9: 0.001594925363 | GA9: 0.00159513143 | GB9: 0.001595045696 | GC9: 0.001594028018 | GD9: 0.001592844273 | GE9: 0.001591376713 | GF9: 0.001589895496 | GG9: 0.001589566417 | GH9: 0.001587370947 | GI9: 0.001587894849 | GJ9: 0.001585770088 | GK9: 0.00158365538 | GL9: 0.001582098436 | GM9: 0.001582836902 | GN9: 0.001580317141 | GO9: 0.001579482548 | GP9: 0.001577110036 | GQ9: 0.001575135004 | GR9: 0.00157325655 | GS9: 0.001573562131 | GT9: 0.001570705417 | GU9: 0.001568023668 | GV9: 0.001566884288 | GW9: 0.001566088931 | GX9: 0.001566360303 | GY9: 0.001564560135 | GZ9: 0.001562388585 | HA9: 0.00156032148 | HB9: 0.001559251261 | HC9: 0.001556687054 | HD9: 0.001559852835 | HE9: 0.001560404923 | HF9: 0.001558532778 | HG9: 0.001559072291 | HH9: 0.001556430014 | HI9: 0.001557287002 | HJ9: 0.001555067335 | HK9: 0.001557270891 | HL9: 0.001554414829 | HM9: 0.001560416347 | HN9: 0.001559954265 | HO9: 0.001556680414 | HP9: 0.0015583123 | HQ9: 0.001556008944 | HR9: 0.001564188776 | HS9: 0.001560919954 | HT9: 0.001558472217 | HU9: 0.001565348335 | HV9: 0.001586223239 | HW9: 0.001585026615 | HX9: 0.001580884159 | HY9: 0.001581205919 | HZ9: 0.001583248211 | IA9: 0.001584245093 | IB9: 0.001585796682 | IC9: 0.001585288998 | ID9: 0.001584307211 | IE9: 0.001584450224 | IF9: 0.001584767841 | IG9: 0.001585455768 | IH9: 0.001586206796 | II9: 0.00158567055 | IJ9: 0.001587217348 | IK9: 0.001586916938 | IL9: 0.001588070434 | IM9: 0.001586581942 | IN9: 0.001587915852 | IO9: 0.001584384976 | IP9: 0.001583544252 | IQ9: 0.001584166812 | IR9: 0.001583220036 | IS9: 0.00158482402 | IT9: 0.001584367591 | IU9: 0.001583741409 | IV9: 0.001583712209 | IW9: 0.001583688749 | IX9: 0.001583940924 | IY9: 0.001584524204 | IZ9: 0.001585121119 | JA9: 0.001585774375 | JB9: 0.001586138645 | JC9: 0.001586159175 | JD9: 0.001584581278 | JE9: 0.001585362737 | JF9: 0.001592704083 | JG9: 0.001589983688 | JH9: 0.001588243792 | JI9: 0.00158822832 | JJ9: 0.001588221865 | JK9: 0.001588119009 | JL9: 0.001587851273 | JM9: 0.001586876523 | JN9: 0.001586839649 | JO9: 0.001586361656 | JP9: 0.001586338248 | JQ9: 0.001586482568 | JR9: 0.001586207986 | JS9: 0.001586445565 | JT9: 0.001586883092 | JU9: 0.001586258554 | JV9: 0.001585851394 | JW9: 0.001585847824 | JX9: 0.001585432792 | JY9: 0.001585179252 | JZ9: 0.001584387117 | KA9: 0.001585330893 | KB9: 0.00158457478 | KC9: 0.001584201284 | KD9: 0.00158525751 | KE9: 0.001584782593 | KF9: 0.001584012365 | KG9: 0.001583724754 | KH9: 0.001584816503 | KI9: 0.001583010843 | KJ9: 0.00158154363 | KK9: 0.00158090612 | KL9: 0.001580212576 | KM9: 0.001579073665 | KN9: 0.00157971778 | KO9: 0.001578236577 | KP9: 0.001577547305 | KQ9: 0.001577107112 | KR9: 0.001575456481 | KS9: 0.001575142266 | KT9: 0.001579350013 | KU9: 0.00157723584 | KV9: 0.00157512675 | KW9: 0.001573499311 | KX9: 0.001572249879 | KY9: 0.001571229114 | KZ9: 0.001575427934 | LA9: 0.001573756767 | LB9: 0.001582867588 | LC9: 0.001579794606 | LD9: 0.001577584955 | LE9: 0.001578297856 | LF9: 0.001575874802 | LG9: 0.001579140125 | LH9: 0.001577069018 | LI9: 0.001575922518 | LJ9: 0.00157482832 | LK9: 0.001574859245 | LL9: 0.001574052641 | LM9: 0.001573495262 | LN9: 0.001572865203 | LO9: 0.001572947126 | LP9: 0.001572425166 | LQ9: 0.001571946839 | LR9: 0.00157227377 | LS9: 0.00157107399 | LT9: 0.001570185811 | LU9: 0.001569466702 | LV9: 0.001568578263 | LW9: 0.001568097027 | LX9: 0.001566973733 | LY9: 0.001566429766 | LZ9: 0.001565975359 | MA9: 0.001566212128 | MB9: 0.001564644309 | MC9: 0.001569485935 | MD9: 0.001570166581 | ME9: 0.001568911505 | MF9: 0.001566212941 | MG9: 0.001565135328 | MH9: 0.001563179352 | MI9: 0.001563794623 | MJ9: 0.001563811014 | MK9: 0.001562037246 | ML9: 0.001567903549 | MM9: 0.001565788146 | MN9: 0.001575346411 | MO9: 0.001580942457 | MP9: 0.001579299969 | MQ9: 0.001577498576 | MR9: 0.001577305196 | MS9: 0.001578061887 | MT9: 0.001580249977 | MU9: 0.001578718854 | MV9: 0.001577527911 | MW9: 0.001577036903 | MX9: 0.001576946855 | MY9: 0.001576924364 | MZ9: 0.001576960426
A10: 1926M06 | E10: 0.001519510704 | F10: 0.001517763012 | G10: 0.001516700301 | H10: 0.001515135416 | I10: 0.001522541897 | J10: 0.001520302998 | K10: 0.001518358086 | L10: 0.00152467053 | M10: 0.001523593659 | N10: 0.001521328025 | O10: 0.001522017954 | P10: 0.001521228848 | Q10: 0.001521068841 | R10: 0.001521753667 | S10: 0.00152130253 | T10: 0.001520647663 | U10: 0.001520541299 | V10: 0.001519421703 | W10: 0.001519338539 | X10: 0.001518786013 | Y10: 0.001517456406 | Z10: 0.001516647888 | AA10: 0.001515832142 | AB10: 0.001526056069 | AC10: 0.001523822296 | AD10: 0.001522282718 | AE10: 0.001520580221 | AF10: 0.001519908056 | AG10: 0.00151884088 | AH10: 0.001517454944 | AI10: 0.001517255547 | AJ10: 0.001515764447 | AK10: 0.001514532951 | AL10: 0.001513067133 | AM10: 0.001512575975 | AN10: 0.001510996289 | AO10: 0.001509056668 | AP10: 0.001507092372 | AQ10: 0.001505348867 | AR10: 0.001504291042 | AS10: 0.001502858068 | AT10: 0.001499522362 | AU10: 0.001496121896 | AV10: 0.001496889254 | AW10: 0.001493426953 | AX10: 0.001490770104 | AY10: 0.001487363788 | AZ10: 0.001483515643 | BA10: 0.001483492931 | BB10: 0.001483286282 | BC10: 0.001487838954 | BD10: 0.001484104275 | BE10: 0.001480711378 | BF10: 0.001479654355 | BG10: 0.001478751606 | BH10: 0.001479326426 | BI10: 0.001478003973 | BJ10: 0.001475570609 | BK10: 0.001476904696 | BL10: 0.001473807759 | BM10: 0.001471821435 | BN10: 0.001472076079 | BO10: 0.001470748465 | BP10: 0.001469499027 | BQ10: 0.001469861996 | BR10: 0.001468017112 | BS10: 0.001467520552 | BT10: 0.001464450406 | BU10: 0.0014658449 | BV10: 0.001462806336 | BW10: 0.001464662899 | BX10: 0.001462329324 | BY10: 0.001462107411 | BZ10: 0.00145918869 | CA10: 0.00145617489 | CB10: 0.001453337016 | CC10: 0.001451820126 | CD10: 0.001448304246 | CE10: 0.00145427461 | CF10: 0.001451784342 | CG10: 0.001456698323 | CH10: 0.001455101761 | CI10: 0.001464172101 | CJ10: 0.001462029264 | CK10: 0.001465145052 | CL10: 0.001462855929 | CM10: 0.001463006743 | CN10: 0.001464916251 | CO10: 0.001466658334 | CP10: 0.001466590882 | CQ10: 0.001469951046 | CR10: 0.001469976545 | CS10: 0.001470294409 | CT10: 0.001468938141 | CU10: 0.001468877207 | CV10: 0.001468093436 | CW10: 0.001467406368 | CX10: 0.001468717028 | CY10: 0.001468892372 | CZ10: 0.001468144921 | DA10: 0.001467046202 | DB10: 0.001466944437 | DC10: 0.001465860314 | DD10: 0.001484250058 | DE10: 0.001484655311 | DF10: 0.001485953796 | DG10: 0.001486149033 | DH10: 0.001486274932 | DI10: 0.0014863774 | DJ10: 0.001485366772 | DK10: 0.001485589288 | DL10: 0.00148586098 | DM10: 0.001485268169 | DN10: 0.001484973731 | DO10: 0.001483935369 | DP10: 0.001483734823 | DQ10: 0.00148276704 | DR10: 0.001482737606 | DS10: 0.00148260732 | DT10: 0.001482666131 | DU10: 0.001481869231 | DV10: 0.00148061236 | DW10: 0.001484169823 | DX10: 0.001482696031 | DY10: 0.001481287047 | DZ10: 0.001480779937 | EA10: 0.001479728334 | EB10: 0.001480181467 | EC10: 0.001479532756 | ED10: 0.001478354415 | EE10: 0.001479943988 | EF10: 0.001478590307 | EG10: 0.001478254561 | EH10: 0.001480696638 | EI10: 0.001480188088 | EJ10: 0.001481390878 | EK10: 0.001480375239 | EL10: 0.001479219187 | EM10: 0.001478460568 | EN10: 0.00147751142 | EO10: 0.001477566963 | EP10: 0.001476852952 | EQ10: 0.001477410439 | ER10: 0.001477036176 | ES10: 0.00147646979 | ET10: 0.001475908665 | EU10: 0.001476061284 | EV10: 0.001474841382 | EW10: 0.001474241708 | EX10: 0.001473788235 | EY10: 0.001474023444 | EZ10: 0.001472995692 | FA10: 0.001475412579 | FB10: 0.001476707253 | FC10: 0.001476821266 | FD10: 0.00147556649 | FE10: 0.001474533661 | FF10: 0.001473966604 | FG10: 0.001474199956 | FH10: 0.001473617536 | FI10: 0.00147372975 | FJ10: 0.001474222129 | FK10: 0.001474992773 | FL10: 0.0014759036 | FM10: 0.001476353079 | FN10: 0.001475597009 | FO10: 0.00147610619 | FP10: 0.001475742492 | FQ10: 0.001475955112 | FR10: 0.001476111668 | FS10: 0.001475525113 | FT10: 0.001474752161 | FU10: 0.001474242037 | FV10: 0.001473654106 | FW10: 0.001473098325 | FX10: 0.001471557488 | FY10: 0.001470025618 | FZ10: 0.001468537221 | GA10: 0.001469373657 | GB10: 0.001469228887 | GC10: 0.001468125475 | GD10: 0.001466582014 | GE10: 0.001464814389 | GF10: 0.001463091071 | GG10: 0.001462646888 | GH10: 0.001459947304 | GI10: 0.001460641711 | GJ10: 0.00145814842 | GK10: 0.001455457097 | GL10: 0.001453535035 | GM10: 0.00145448291 | GN10: 0.001451543153 | GO10: 0.001450453935 | GP10: 0.001447444671 | GQ10: 0.001444720797 | GR10: 0.001441997847 | GS10: 0.001442825865 | GT10: 0.001439495038 | GU10: 0.001436132613 | GV10: 0.001434600813 | GW10: 0.001433544652 | GX10: 0.001433887238 | GY10: 0.001431724189 | GZ10: 0.001429019658 | HA10: 0.00142632055 | HB10: 0.001425101177 | HC10: 0.001421961223 | HD10: 0.00142599619 | HE10: 0.001426545849 | HF10: 0.001424640596 | HG10: 0.001425222642 | HH10: 0.001422751163 | HI10: 0.001423592385 | HJ10: 0.001421388018 | HK10: 0.001423863158 | HL10: 0.001421326388 | HM10: 0.001427191788 | HN10: 0.001426641746 | HO10: 0.001424264133 | HP10: 0.001425489157 | HQ10: 0.001423718436 | HR10: 0.001431425064 | HS10: 0.001429420588 | HT10: 0.001427893304 | HU10: 0.001433278044 | HV10: 0.00144782131 | HW10: 0.001446636651 | HX10: 0.001445058042 | HY10: 0.001444443862 | HZ10: 0.001444511964 | IA10: 0.001444921056 | IB10: 0.001445392691 | IC10: 0.001445471246 | ID10: 0.001445503975 | IE10: 0.001445385187 | IF10: 0.001445969627 | IG10: 0.001446657684 | IH10: 0.001447158519 | II10: 0.001446745057 | IJ10: 0.001447835417 | IK10: 0.001447336348 | IL10: 0.001448023979 | IM10: 0.001447174057 | IN10: 0.001447919874 | IO10: 0.001446439903 | IP10: 0.001445517755 | IQ10: 0.001445667722 | IR10: 0.001444770129 | IS10: 0.001445370083 | IT10: 0.001445309351 | IU10: 0.001445148493 | IV10: 0.001445003621 | IW10: 0.001445135829 | IX10: 0.001445290862 | IY10: 0.001445486031 | IZ10: 0.001445687973 | JA10: 0.001445604372 | JB10: 0.00144526453 | JC10: 0.001444712561 | JD10: 0.001444548041 | JE10: 0.001445673784 | JF10: 0.001450682341 | JG10: 0.001449418989 | JH10: 0.001448642562 | JI10: 0.001448612217 | JJ10: 0.001448580645 | JK10: 0.00144849602 | JL10: 0.001448111948 | JM10: 0.001447700599 | JN10: 0.001447640711 | JO10: 0.001447250916 | JP10: 0.001447037426 | JQ10: 0.00144687461 | JR10: 0.001446160761 | JS10: 0.001445636755 | JT10: 0.00144508315 | JU10: 0.001445981997 | JV10: 0.00144514384 | JW10: 0.001445270801 | JX10: 0.001444459229 | JY10: 0.001443812772 | JZ10: 0.001442463602 | KA10: 0.001444447073 | KB10: 0.001443688805 | KC10: 0.001443275779 | KD10: 0.001444367353 | KE10: 0.001443886243 | KF10: 0.001443071417 | KG10: 0.001442862451 | KH10: 0.001443854159 | KI10: 0.001442258111 | KJ10: 0.001440672526 | KK10: 0.001439801424 | KL10: 0.00143877147 | KM10: 0.001437203644 | KN10: 0.001438203619 | KO10: 0.001436503008 | KP10: 0.001435621372 | KQ10: 0.001435034232 | KR10: 0.001432930406 | KS10: 0.001432766352 | KT10: 0.001437492358 | KU10: 0.001435682492 | KV10: 0.001433796076 | KW10: 0.001432097534 | KX10: 0.001430700478 | KY10: 0.001429486436 | KZ10: 0.001434763891 | LA10: 0.001433363976 | LB10: 0.00144079555 | LC10: 0.001438990806 | LD10: 0.00143742052 | LE10: 0.001437766082 | LF10: 0.001436157113 | LG10: 0.001438640436 | LH10: 0.001437332008 | LI10: 0.001436466339 | LJ10: 0.001435401968 | LK10: 0.00143541923 | LL10: 0.001434356863 | LM10: 0.001433263852 | LN10: 0.001432195635 | LO10: 0.00143247059 | LP10: 0.001431597841 | LQ10: 0.001430665085 | LR10: 0.00143139754 | LS10: 0.001429797504 | LT10: 0.001428332685 | LU10: 0.001426953079 | LV10: 0.001425170518 | LW10: 0.001424162392 | LX10: 0.001422059195 | LY10: 0.001421026132 | LZ10: 0.001420272248 | MA10: 0.001420669421 | MB10: 0.001418642065 | MC10: 0.001425062989 | MD10: 0.001425537587 | ME10: 0.001424439357 | MF10: 0.001422309105 | MG10: 0.001421313563 | MH10: 0.001419385768 | MI10: 0.00142006415 | MJ10: 0.00142005054 | MK10: 0.001418229424 | ML10: 0.001425144844 | MM10: 0.001423748285 | MN10: 0.001431527149 | MO10: 0.001434437744 | MP10: 0.001433681205 | MQ10: 0.001432802537 | MR10: 0.00143266443 | MS10: 0.001432977906 | MT10: 0.00143407564 | MU10: 0.001433377314 | MV10: 0.001432568015 | MW10: 0.001432223039 | MX10: 0.001432006416 | MY10: 0.001431924268 | MZ10: 0.001431781625
A11: 1926M07 | E11: 0.001573125741 | F11: 0.001571149415 | G11: 0.001569836278 | H11: 0.001568489205 | I11: 0.001575873483 | J11: 0.001573487462 | K11: 0.001571429072 | L11: 0.001579011311 | M11: 0.001578436648 | N11: 0.001576008436 | O11: 0.00157638418 | P11: 0.001575262541 | Q11: 0.001574768578 | R11: 0.00157519095 | S11: 0.001574429458 | T11: 0.001573675326 | U11: 0.001573263053 | V11: 0.001572565848 | W11: 0.001572166551 | X11: 0.001571375611 | Y11: 0.001570169804 | Z11: 0.001569261905 | AA11: 0.001568766964 | AB11: 0.001579216394 | AC11: 0.001576938596 | AD11: 0.001575090779 | AE11: 0.001573465539 | AF11: 0.001572513176 | AG11: 0.001571349458 | AH11: 0.001570081297 | AI11: 0.001569602045 | AJ11: 0.00156827428 | AK11: 0.001566979586 | AL11: 0.001565553863 | AM11: 0.00156484076 | AN11: 0.00156323852 | AO11: 0.0015613534 | AP11: 0.001559408393 | AQ11: 0.001557608284 | AR11: 0.001556739628 | AS11: 0.001555132029 | AT11: 0.001551857351 | AU11: 0.001548591435 | AV11: 0.001549057541 | AW11: 0.001545689342 | AX11: 0.001542913778 | AY11: 0.001539640099 | AZ11: 0.001535783835 | BA11: 0.001535507477 | BB11: 0.001535503252 | BC11: 0.001540452524 | BD11: 0.001536509044 | BE11: 0.001532943088 | BF11: 0.001532088433 | BG11: 0.0015309365 | BH11: 0.001531246422 | BI11: 0.001530117491 | BJ11: 0.001527464121 | BK11: 0.00152913913 | BL11: 0.001525847153 | BM11: 0.001523649426 | BN11: 0.001523642034 | BO11: 0.001522079674 | BP11: 0.001520601173 | BQ11: 0.001520707782 | BR11: 0.001518645283 | BS11: 0.001517906709 | BT11: 0.001514779106 | BU11: 0.001515906778 | BV11: 0.001512849614 | BW11: 0.001514449014 | BX11: 0.0015119051 | BY11: 0.001511441545 | BZ11: 0.001508390387 | CA11: 0.001505296043 | CB11: 0.001502383319 | CC11: 0.001500705837 | CD11: 0.001497226102 | CE11: 0.0015034638 | CF11: 0.001500750903 | CG11: 0.001505486619 | CH11: 0.001503608948 | CI11: 0.001512852904 | CJ11: 0.001510734082 | CK11: 0.001513823956 | CL11: 0.001511208481 | CM11: 0.001511828358 | CN11: 0.001513603503 | CO11: 0.001515236073 | CP11: 0.001514871036 | CQ11: 0.001518390186 | CR11: 0.00151914522 | CS11: 0.001519187452 | CT11: 0.001518061206 | CU11: 0.001517675499 | CV11: 0.001516577945 | CW11: 0.001515675054 | CX11: 0.001516810508 | CY11: 0.001516719898 | CZ11: 0.001515715774 | DA11: 0.001514689346 | DB11: 0.001514309433 | DC11: 0.00151326284 | DD11: 0.001533575183 | DE11: 0.001533632562 | DF11: 0.0015347958 | DG11: 0.001534632747 | DH11: 0.001534401964 | DI11: 0.001534099295 | DJ11: 0.001533247 | DK11: 0.00153312164 | DL11: 0.001533068182 | DM11: 0.001532617112 | DN11: 0.001532013676 | DO11: 0.001531219186 | DP11: 0.001531013176 | DQ11: 0.00153027505 | DR11: 0.001529909363 | DS11: 0.001529570024 | DT11: 0.001529332637 | DU11: 0.001529037466 | DV11: 0.001527866791 | DW11: 0.001531445029 | DX11: 0.001530124076 | DY11: 0.001528773541 | DZ11: 0.00152798942 | EA11: 0.001527011425 | EB11: 0.001527174774 | EC11: 0.001527032792 | ED11: 0.001525782675 | EE11: 0.001528187567 | EF11: 0.00152663487 | EG11: 0.001526009155 | EH11: 0.001529424587 | EI11: 0.001529548293 | EJ11: 0.001530525473 | EK11: 0.001529254329 | EL11: 0.001528202286 | EM11: 0.001527447109 | EN11: 0.001527029171 | EO11: 0.001527860342 | EP11: 0.001526878918 | EQ11: 0.001527155286 | ER11: 0.001526582451 | ES11: 0.001526070557 | ET11: 0.001525644517 | EU11: 0.001525556951 | EV11: 0.001524782793 | EW11: 0.001524205954 | EX11: 0.001524297113 | EY11: 0.001525275944 | EZ11: 0.001524052043 | FA11: 0.001527581639 | FB11: 0.001528676272 | FC11: 0.001528419437 | FD11: 0.001527654157 | FE11: 0.001526683689 | FF11: 0.001526119223 | FG11: 0.001526233995 | FH11: 0.001525286207 | FI11: 0.001525087244 | FJ11: 0.00152540113 | FK11: 0.001526026911 | FL11: 0.001526829155 | FM11: 0.001527425092 | FN11: 0.00152628294 | FO11: 0.001526754005 | FP11: 0.001526061264 | FQ11: 0.001526148802 | FR11: 0.001526243522 | FS11: 0.001525823176 | FT11: 0.001525232807 | FU11: 0.001524732169 | FV11: 0.001524123913 | FW11: 0.001523757685 | FX11: 0.001522280917 | FY11: 0.001520789145 | FZ11: 0.001519320225 | GA11: 0.001519827835 | GB11: 0.001519460454 | GC11: 0.001518542882 | GD11: 0.00151685849 | GE11: 0.001515241705 | GF11: 0.001513678251 | GG11: 0.001513027686 | GH11: 0.001510350632 | GI11: 0.001510787916 | GJ11: 0.001508374507 | GK11: 0.001505668428 | GL11: 0.001503909449 | GM11: 0.001504593954 | GN11: 0.001501671694 | GO11: 0.001500421574 | GP11: 0.001497447208 | GQ11: 0.001494721716 | GR11: 0.001492012542 | GS11: 0.001492989386 | GT11: 0.001489712073 | GU11: 0.00148641424 | GV11: 0.001484779756 | GW11: 0.001483582308 | GX11: 0.001483703763 | GY11: 0.001481436263 | GZ11: 0.001478685374 | HA11: 0.001475961766 | HB11: 0.001474904721 | HC11: 0.001471773055 | HD11: 0.001475444228 | HE11: 0.001475783203 | HF11: 0.001473978972 | HG11: 0.001474809207 | HH11: 0.001472176273 | HI11: 0.001472798082 | HJ11: 0.001470438841 | HK11: 0.001473243739 | HL11: 0.001470670107 | HM11: 0.001477118502 | HN11: 0.001476847741 | HO11: 0.00147433255 | HP11: 0.001475355378 | HQ11: 0.001473359341 | HR11: 0.001482035119 | HS11: 0.001479841082 | HT11: 0.001478024026 | HU11: 0.001484510222 | HV11: 0.001501816817 | HW11: 0.001501222858 | HX11: 0.001499176917 | HY11: 0.001499373622 | HZ11: 0.00150056898 | IA11: 0.001500576173 | IB11: 0.00150072091 | IC11: 0.001500332071 | ID11: 0.001500130116 | IE11: 0.001499653654 | IF11: 0.001499887306 | IG11: 0.001500258066 | IH11: 0.001500852867 | II11: 0.00150009429 | IJ11: 0.001501013616 | IK11: 0.001500800774 | IL11: 0.001501296285 | IM11: 0.001500075356 | IN11: 0.001500692599 | IO11: 0.001499760343 | IP11: 0.001499279457 | IQ11: 0.001499184421 | IR11: 0.001498616839 | IS11: 0.001499130603 | IT11: 0.001498689188 | IU11: 0.001498327481 | IV11: 0.001497946769 | IW11: 0.001497778651 | IX11: 0.001497656513 | IY11: 0.001497774627 | IZ11: 0.001497773387 | JA11: 0.001497791301 | JB11: 0.001497624721 | JC11: 0.001497280052 | JD11: 0.001497367736 | JE11: 0.00149905472 | JF11: 0.001504370379 | JG11: 0.001502770613 | JH11: 0.001501666379 | JI11: 0.001501344699 | JJ11: 0.001501029625 | JK11: 0.00150066198 | JL11: 0.001500218508 | JM11: 0.001500295045 | JN11: 0.00149996337 | JO11: 0.001499365962 | JP11: 0.001498953476 | JQ11: 0.001498603591 | JR11: 0.001498029788 | JS11: 0.001497509596 | JT11: 0.001496986958 | JU11: 0.00149744553 | JV11: 0.001496497175 | JW11: 0.001496381816 | JX11: 0.001495428041 | JY11: 0.00149463331 | JZ11: 0.001493408745 | KA11: 0.001495056484 | KB11: 0.001494505225 | KC11: 0.001493875155 | KD11: 0.001494756285 | KE11: 0.001494044889 | KF11: 0.001493013165 | KG11: 0.001493078843 | KH11: 0.001493871046 | KI11: 0.001492091828 | KJ11: 0.001490393183 | KK11: 0.001489360815 | KL11: 0.001488195809 | KM11: 0.001486753827 | KN11: 0.001487489039 | KO11: 0.001485877785 | KP11: 0.001484839498 | KQ11: 0.001484079949 | KR11: 0.001482013905 | KS11: 0.001482042139 | KT11: 0.001486503775 | KU11: 0.001484707578 | KV11: 0.001482663522 | KW11: 0.001480842705 | KX11: 0.001479588547 | KY11: 0.001478247271 | KZ11: 0.001483874905 | LA11: 0.001482592372 | LB11: 0.001490164817 | LC11: 0.001488050854 | LD11: 0.001486434237 | LE11: 0.00148723678 | LF11: 0.001485466791 | LG11: 0.001487840835 | LH11: 0.001486300503 | LI11: 0.001485205458 | LJ11: 0.001484043207 | LK11: 0.001483834827 | LL11: 0.001482721451 | LM11: 0.00148164348 | LN11: 0.00148074019 | LO11: 0.001480766022 | LP11: 0.001479776358 | LQ11: 0.001478749067 | LR11: 0.001479215738 | LS11: 0.001477602451 | LT11: 0.001476107491 | LU11: 0.001474701119 | LV11: 0.001472986027 | LW11: 0.001471910515 | LX11: 0.00146992829 | LY11: 0.00146882951 | LZ11: 0.001467964207 | MA11: 0.001468141885 | MB11: 0.00146608801 | MC11: 0.001472111848 | MD11: 0.001472916215 | ME11: 0.001471963505 | MF11: 0.001469688505 | MG11: 0.00146850867 | MH11: 0.001466508558 | MI11: 0.001466962929 | MJ11: 0.001466751865 | MK11: 0.001464848674 | ML11: 0.001472255405 | MM11: 0.001470574763 | MN11: 0.001479509754 | MO11: 0.001482574653 | MP11: 0.001481413086 | MQ11: 0.001480169131 | MR11: 0.001479754717 | MS11: 0.001480747726 | MT11: 0.001481780344 | MU11: 0.001480744142 | MV11: 0.001479899466 | MW11: 0.001479320504 | MX11: 0.001478902108 | MY11: 0.001478590547 | MZ11: 0.001478238047
A12: 1926M08 | E12: 0.001637410056 | F12: 0.001635183922 | G12: 0.001633628407 | H12: 0.00163250713 | I12: 0.00163979063 | J12: 0.001637211755 | K12: 0.001635011427 | L12: 0.001643822608 | M12: 0.001643770973 | N12: 0.001641093489 | O12: 0.001641211964 | P12: 0.001639714058 | Q12: 0.001638891478 | R12: 0.001639098401 | S12: 0.00163800218 | T12: 0.001637137334 | U12: 0.001636435035 | V12: 0.001636147681 | W12: 0.001635447824 | X12: 0.001634424299 | Y12: 0.001633357801 | Z12: 0.001632381664 | AA12: 0.001632179264 | AB12: 0.001642708271 | AC12: 0.001640336364 | AD12: 0.00163812532 | AE12: 0.001636560261 | AF12: 0.001635320408 | AG12: 0.001634059497 | AH12: 0.001632925083 | AI12: 0.001632183078 | AJ12: 0.001631038063 | AK12: 0.001629719645 | AL12: 0.00162839383 | AM12: 0.001627491135 | AN12: 0.001625945042 | AO12: 0.001624213077 | AP12: 0.00162239558 | AQ12: 0.001620636051 | AR12: 0.001619954907 | AS12: 0.001618230107 | AT12: 0.001615127069 | AU12: 0.00161210548 | AV12: 0.001612248885 | AW12: 0.001609064482 | AX12: 0.001606257212 | AY12: 0.001603207445 | AZ12: 0.001599465691 | BA12: 0.001598941731 | BB12: 0.001599116808 | BC12: 0.001604337833 | BD12: 0.001600222449 | BE12: 0.001596538433 | BF12: 0.001595889166 | BG12: 0.001594512503 | BH12: 0.001594557774 | BI12: 0.001593630315 | BJ12: 0.00159079814 | BK12: 0.001592767504 | BL12: 0.001589313529 | BM12: 0.001586944178 | BN12: 0.001586678975 | BO12: 0.00158491565 | BP12: 0.001583243555 | BQ12: 0.001583093417 | BR12: 0.001580860316 | BS12: 0.001579900062 | BT12: 0.001576789886 | BU12: 0.001577616871 | BV12: 0.001574604749 | BW12: 0.001575906553 | BX12: 0.001573203035 | BY12: 0.001572510963 | BZ12: 0.001569397294 | CA12: 0.001566309624 | CB12: 0.001563417321 | CC12: 0.001561636673 | CD12: 0.001558309834 | CE12: 0.001564585466 | CF12: 0.001561687241 | CG12: 0.001566169831 | CH12: 0.001564029436 | CI12: 0.00157334721 | CJ12: 0.001571240462 | CK12: 0.001574341864 | CL12: 0.001571369389 | CM12: 0.001572461448 | CN12: 0.001574142604 | CO12: 0.001575712741 | CP12: 0.001575063805 | CQ12: 0.001578800331 | CR12: 0.001580318152 | CS12: 0.001580117201 | CT12: 0.001579207492 | CU12: 0.001578508723 | CV12: 0.001577064614 | CW12: 0.001575933194 | CX12: 0.001576891838 | CY12: 0.001576558143 | CZ12: 0.001575280481 | DA12: 0.001574330151 | DB12: 0.001573685941 | DC12: 0.001572693682 | DD12: 0.001594525466 | DE12: 0.001594269473 | DF12: 0.001595413407 | DG12: 0.001594916112 | DH12: 0.001594347985 | DI12: 0.001593625447 | DJ12: 0.001592910393 | DK12: 0.00159243278 | DL12: 0.001592058246 | DM12: 0.001591747096 | DN12: 0.00159084889 | DO12: 0.001590297222 | DP12: 0.001590085297 | DQ12: 0.001589580634 | DR12: 0.001588878468 | DS12: 0.001588332981 | DT12: 0.001587798703 | DU12: 0.001587992779 | DV12: 0.001586892371 | DW12: 0.001590523405 | DX12: 0.001589327206 | DY12: 0.001587998052 | DZ12: 0.001586909049 | EA12: 0.001585990034 | EB12: 0.001585885695 | EC12: 0.001586254767 | ED12: 0.001584894712 | EE12: 0.001588123858 | EF12: 0.001586300032 | EG12: 0.00158537004 | EH12: 0.00158978592 | EI12: 0.001590586624 | EJ12: 0.001591441089 | EK12: 0.001589824793 | EL12: 0.001588832721 | EM12: 0.001588030229 | EN12: 0.001588167787 | EO12: 0.001589844192 | EP12: 0.001588512418 | EQ12: 0.001588595309 | ER12: 0.001587757189 | ES12: 0.001587261139 | ET12: 0.001586947094 | EU12: 0.001586622134 | EV12: 0.001586288787 | EW12: 0.0015856989 | EX12: 0.00158634881 | EY12: 0.001588136614 | EZ12: 0.001586629406 | FA12: 0.001591393057 | FB12: 0.001592413119 | FC12: 0.001591789129 | FD12: 0.001591521104 | FE12: 0.001590546186 | FF12: 0.00158991259 | FG12: 0.00158984509 | FH12: 0.001588608822 | FI12: 0.001588110553 | FJ12: 0.001588207709 | FK12: 0.001588673169 | FL12: 0.001589370499 | FM12: 0.001590127981 | FN12: 0.001588591389 | FO12: 0.001589043307 | FP12: 0.001588014946 | FQ12: 0.001588003527 | FR12: 0.001588079599 | FS12: 0.001587865151 | FT12: 0.001587498936 | FU12: 0.001587074441 | FV12: 0.001586516722 | FW12: 0.001586301816 | FX12: 0.001584955601 | FY12: 0.001583583876 | FZ12: 0.001582219704 | GA12: 0.001582358963 | GB12: 0.001581782089 | GC12: 0.00158105824 | GD12: 0.001579281625 | GE12: 0.001577849084 | GF12: 0.001576474295 | GG12: 0.001575637738 | GH12: 0.001573052115 | GI12: 0.001573219291 | GJ12: 0.001570939893 | GK12: 0.00156829663 | GL12: 0.001566742735 | GM12: 0.001567143796 | GN12: 0.001564309189 | GO12: 0.001562936596 | GP12: 0.001560084006 | GQ12: 0.00155744983 | GR12: 0.001554854267 | GS12: 0.001555918901 | GT12: 0.00155277777 | GU12: 0.001549642865 | GV12: 0.001547960106 | GW12: 0.001546660131 | GX12: 0.001546555299 | GY12: 0.001544247429 | GZ12: 0.001541533738 | HA12: 0.00153887571 | HB12: 0.001538000349 | HC12: 0.001534970513 | HD12: 0.001538158689 | HE12: 0.001538282789 | HF12: 0.001536605153 | HG12: 0.001537655895 | HH12: 0.001534895067 | HI12: 0.001535290374 | HJ12: 0.001532815209 | HK12: 0.001535876753 | HL12: 0.00153328225 | HM12: 0.001540218837 | HN12: 0.001540226487 | HO12: 0.001537547816 | HP12: 0.001538386316 | HQ12: 0.001536157336 | HR12: 0.001545724772 | HS12: 0.001543282894 | HT12: 0.001541137087 | HU12: 0.001548751103 | HV12: 0.00156903891 | HW12: 0.001569022193 | HX12: 0.001566367176 | HY12: 0.001567417488 | HZ12: 0.001569842261 | IA12: 0.001569499252 | IB12: 0.001569405757 | IC12: 0.001568517419 | ID12: 0.001567993277 | IE12: 0.001567202448 | IF12: 0.001567050638 | IG12: 0.001567085185 | IH12: 0.001567745455 | II12: 0.001566664418 | IJ12: 0.001567401202 | IK12: 0.00156746819 | IL12: 0.001567777365 | IM12: 0.001566196197 | IN12: 0.0015666888 | IO12: 0.001566240944 | IP12: 0.00156620386 | IQ12: 0.001565921508 | IR12: 0.001565673591 | IS12: 0.001566201326 | IT12: 0.001565359053 | IU12: 0.001564753476 | IV12: 0.001564174916 | IW12: 0.001563688722 | IX12: 0.001563293081 | IY12: 0.001563335115 | IZ12: 0.001563148489 | JA12: 0.001563290197 | JB12: 0.001563320519 | JC12: 0.001563203042 | JD12: 0.001563468851 | JE12: 0.001565687801 | JF12: 0.001571435408 | JG12: 0.001569425556 | JH12: 0.001567941181 | JI12: 0.00156733945 | JJ12: 0.001566752396 | JK12: 0.001566104969 | JL12: 0.001565598157 | JM12: 0.001566132299 | JN12: 0.001565539907 | JO12: 0.001564727547 | JP12: 0.001564127196 | JQ12: 0.001563610241 | JR12: 0.001563194651 | JS12: 0.001562718069 | JT12: 0.001562281585 | JU12: 0.001562225104 | JV12: 0.00156120192 | JW12: 0.001560845083 | JX12: 0.001559786654 | JY12: 0.001558880505 | JZ12: 0.001557823547 | KA12: 0.001559059658 | KB12: 0.001558712024 | KC12: 0.001557881007 | KD12: 0.001558543905 | KE12: 0.00155761779 | KF12: 0.001556390969 | KG12: 0.001556712849 | KH12: 0.00155730747 | KI12: 0.00155535847 | KJ12: 0.001553578153 | KK12: 0.001552416925 | KL12: 0.001551157473 | KM12: 0.001549882235 | KN12: 0.001550325456 | KO12: 0.001548835158 | KP12: 0.001547671476 | KQ12: 0.00154676417 | KR12: 0.001544794429 | KS12: 0.001544993637 | KT12: 0.001549099018 | KU12: 0.001547318876 | KV12: 0.00154513582 | KW12: 0.001543226545 | KX12: 0.001542135172 | KY12: 0.001540701911 | KZ12: 0.001546520725 | LA12: 0.001545347919 | LB12: 0.001553076793 | LC12: 0.001550605021 | LD12: 0.001548916815 | LE12: 0.001550176182 | LF12: 0.001548212237 | LG12: 0.001550515157 | LH12: 0.001548711789 | LI12: 0.001547382696 | LJ12: 0.001546128698 | LK12: 0.001545705034 | LL12: 0.001544564563 | LM12: 0.001543541927 | LN12: 0.001542832229 | LO12: 0.001542604028 | LP12: 0.001541533952 | LQ12: 0.001540455997 | LR12: 0.00154063186 | LS12: 0.001539052012 | LT12: 0.00153758566 | LU12: 0.001536216612 | LV12: 0.001534651597 | LW12: 0.00153356153 | LX12: 0.001531793908 | LY12: 0.001530681177 | LZ12: 0.001529740876 | MA12: 0.001529688758 | MB12: 0.001527675735 | MC12: 0.001533107315 | MD12: 0.001534226182 | ME12: 0.001533413964 | MF12: 0.001530994484 | MG12: 0.001529647178 | MH12: 0.00152760452 | MI12: 0.001527828495 | MJ12: 0.001527429424 | MK12: 0.001525477935 | ML12: 0.001533193439 | MM12: 0.001531211935 | MN12: 0.001541286331 | MO12: 0.001544642057 | MP12: 0.001543043336 | MQ12: 0.001541395106 | MR12: 0.001540713497 | MS12: 0.001542389658 | MT12: 0.001543431144 | MU12: 0.001542016538 | MV12: 0.001541109579 | MW12: 0.001540290056 | MX12: 0.001539679132 | MY12: 0.001539152313 | MZ12: 0.00153860826
A13: 1926M09 | E13: 0.001544043188 | F13: 0.001542292805 | G13: 0.001540815858 | H13: 0.001539606764 | I13: 0.001547347042 | J13: 0.00154555553 | K13: 0.001543862132 | L13: 0.001552185581 | M13: 0.001551743285 | N13: 0.001550301839 | O13: 0.001549904811 | P13: 0.001549032267 | Q13: 0.001548276669 | R13: 0.001548236005 | S13: 0.001547473405 | T13: 0.001546654267 | U13: 0.001545901951 | V13: 0.001545764964 | W13: 0.001545041049 | X13: 0.001543999693 | Y13: 0.0015427188 | Z13: 0.001541373551 | AA13: 0.00154147444 | AB13: 0.001553009248 | AC13: 0.001551420475 | AD13: 0.001550062837 | AE13: 0.001548746952 | AF13: 0.001547699516 | AG13: 0.001546453784 | AH13: 0.001545110244 | AI13: 0.001544303177 | AJ13: 0.001542940042 | AK13: 0.001541226418 | AL13: 0.001539254562 | AM13: 0.001538114812 | AN13: 0.001535808459 | AO13: 0.001533113197 | AP13: 0.00153027665 | AQ13: 0.001527660809 | AR13: 0.001526980657 | AS13: 0.001524892471 | AT13: 0.001520999561 | AU13: 0.001517169404 | AV13: 0.001517554871 | AW13: 0.001513834917 | AX13: 0.001510542485 | AY13: 0.00150692039 | AZ13: 0.001502463073 | BA13: 0.001501970137 | BB13: 0.001502234244 | BC13: 0.001507808131 | BD13: 0.00150401462 | BE13: 0.001500367867 | BF13: 0.001499670007 | BG13: 0.001498270737 | BH13: 0.00149831998 | BI13: 0.001497339848 | BJ13: 0.001494544332 | BK13: 0.001496573526 | BL13: 0.001493336371 | BM13: 0.00149092941 | BN13: 0.001490676479 | BO13: 0.001488845143 | BP13: 0.00148707107 | BQ13: 0.00148696447 | BR13: 0.001484598941 | BS13: 0.001483587416 | BT13: 0.001480156056 | BU13: 0.001481229485 | BV13: 0.001477987172 | BW13: 0.00147952855 | BX13: 0.0014767368 | BY13: 0.001476028002 | BZ13: 0.001472676286 | CA13: 0.001469159838 | CB13: 0.001465729714 | CC13: 0.001463636853 | CD13: 0.001459612721 | CE13: 0.00146723149 | CF13: 0.00146443407 | CG13: 0.001469004457 | CH13: 0.001467037769 | CI13: 0.001476051891 | CJ13: 0.001474321049 | CK13: 0.001476588088 | CL13: 0.001474403733 | CM13: 0.001475171904 | CN13: 0.001476245212 | CO13: 0.001477160796 | CP13: 0.001476514611 | CQ13: 0.001479252467 | CR13: 0.001480028181 | CS13: 0.00147959082 | CT13: 0.001478809508 | CU13: 0.001478152228 | CV13: 0.001477203734 | CW13: 0.001476258665 | CX13: 0.001477455079 | CY13: 0.001477024329 | CZ13: 0.001476025709 | DA13: 0.00147501023 | DB13: 0.001474362942 | DC13: 0.001473173257 | DD13: 0.001497480378 | DE13: 0.001496981952 | DF13: 0.00149687802 | DG13: 0.001496293293 | DH13: 0.001495694934 | DI13: 0.001495257809 | DJ13: 0.00149466644 | DK13: 0.001494299859 | DL13: 0.001493932249 | DM13: 0.001493461419 | DN13: 0.001492712202 | DO13: 0.001492062788 | DP13: 0.001491655269 | DQ13: 0.001490983367 | DR13: 0.001490705474 | DS13: 0.001490099286 | DT13: 0.001489880808 | DU13: 0.001490116698 | DV13: 0.001489158406 | DW13: 0.001492541007 | DX13: 0.001491645493 | DY13: 0.001490722172 | DZ13: 0.001490007158 | EA13: 0.001489173004 | EB13: 0.001489097361 | EC13: 0.001489314901 | ED13: 0.001488376838 | EE13: 0.001491274156 | EF13: 0.001490332262 | EG13: 0.00148965525 | EH13: 0.001493505407 | EI13: 0.001493621005 | EJ13: 0.001493465386 | EK13: 0.001492889136 | EL13: 0.001492295249 | EM13: 0.001491903595 | EN13: 0.001491832699 | EO13: 0.001492700218 | EP13: 0.001492292531 | EQ13: 0.001491736305 | ER13: 0.001491532105 | ES13: 0.001491265384 | ET13: 0.001490980726 | EU13: 0.001490613062 | EV13: 0.001490559882 | EW13: 0.001490184169 | EX13: 0.001490859623 | EY13: 0.00149186412 | EZ13: 0.001491330756 | FA13: 0.001494609462 | FB13: 0.00149433605 | FC13: 0.001493810771 | FD13: 0.001493382273 | FE13: 0.001493053048 | FF13: 0.001493019476 | FG13: 0.001493358072 | FH13: 0.001491997548 | FI13: 0.001491484359 | FJ13: 0.001491738507 | FK13: 0.001492053611 | FL13: 0.001492354254 | FM13: 0.001492502163 | FN13: 0.001491594352 | FO13: 0.001491514567 | FP13: 0.00149091954 | FQ13: 0.001490464232 | FR13: 0.001489875707 | FS13: 0.001489048829 | FT13: 0.001488077682 | FU13: 0.001486826626 | FV13: 0.00148546132 | FW13: 0.001485636834 | FX13: 0.001483634039 | FY13: 0.001481493936 | FZ13: 0.001479332355 | GA13: 0.001479980772 | GB13: 0.00147939352 | GC13: 0.001478584992 | GD13: 0.001476570017 | GE13: 0.001474902292 | GF13: 0.001473333623 | GG13: 0.001472443962 | GH13: 0.001469493973 | GI13: 0.001469821747 | GJ13: 0.001467268875 | GK13: 0.001464212315 | GL13: 0.001462373461 | GM13: 0.001462963915 | GN13: 0.001459827348 | GO13: 0.001458293918 | GP13: 0.001454976552 | GQ13: 0.001451798769 | GR13: 0.001448586493 | GS13: 0.00145001437 | GT13: 0.001446525784 | GU13: 0.001442889007 | GV13: 0.001440935531 | GW13: 0.00143946614 | GX13: 0.001439444844 | GY13: 0.001436889332 | GZ13: 0.001433795148 | HA13: 0.001430680116 | HB13: 0.001429676146 | HC13: 0.001426226608 | HD13: 0.00143009958 | HE13: 0.001430251202 | HF13: 0.001428540006 | HG13: 0.001429587929 | HH13: 0.001426981165 | HI13: 0.001427394199 | HJ13: 0.001424956717 | HK13: 0.001428168258 | HL13: 0.001425821461 | HM13: 0.001432559724 | HN13: 0.001432466482 | HO13: 0.001430477458 | HP13: 0.001431039123 | HQ13: 0.001429241204 | HR13: 0.001438291976 | HS13: 0.001436819807 | HT13: 0.001435402153 | HU13: 0.001441733276 | HV13: 0.001456877983 | HW13: 0.001456790335 | HX13: 0.001456104945 | HY13: 0.001456350605 | HZ13: 0.00145715198 | IA13: 0.00145642917 | IB13: 0.001455581423 | IC13: 0.001455195021 | ID13: 0.001455458742 | IE13: 0.001454525155 | IF13: 0.001454623732 | IG13: 0.001454707428 | IH13: 0.0014551759 | II13: 0.001454235287 | IJ13: 0.001454667232 | IK13: 0.001454550444 | IL13: 0.001454550952 | IM13: 0.001453490171 | IN13: 0.001453577349 | IO13: 0.001454538131 | IP13: 0.001454379229 | IQ13: 0.001453780305 | IR13: 0.001453524858 | IS13: 0.001453315556 | IT13: 0.001452822853 | IU13: 0.001452594826 | IV13: 0.001451961958 | IW13: 0.001451638427 | IX13: 0.001451215187 | IY13: 0.00145099019 | IZ13: 0.001450548191 | JA13: 0.001450142063 | JB13: 0.001449637666 | JC13: 0.001449076025 | JD13: 0.001450329763 | JE13: 0.00145270473 | JF13: 0.001456667455 | JG13: 0.0014557821 | JH13: 0.001455059234 | JI13: 0.001454491334 | JJ13: 0.001453929643 | JK13: 0.001453341259 | JL13: 0.001452764888 | JM13: 0.001453632561 | JN13: 0.001453065245 | JO13: 0.00145235425 | JP13: 0.001451649204 | JQ13: 0.001450939744 | JR13: 0.001450187682 | JS13: 0.001449160864 | JT13: 0.001448002999 | JU13: 0.00144911831 | JV13: 0.0014478027 | JW13: 0.001447578393 | JX13: 0.001446256912 | JY13: 0.001445090754 | JZ13: 0.001443613509 | KA13: 0.001445653811 | KB13: 0.001445275008 | KC13: 0.001444450654 | KD13: 0.001445170541 | KE13: 0.001444277688 | KF13: 0.001443054706 | KG13: 0.001443392003 | KH13: 0.001443943997 | KI13: 0.00144217959 | KJ13: 0.001440334482 | KK13: 0.001439030991 | KL13: 0.001437550589 | KM13: 0.001435947131 | KN13: 0.001436690177 | KO13: 0.001435029178 | KP13: 0.001433751852 | KQ13: 0.001432766189 | KR13: 0.001430463117 | KS13: 0.00143074296 | KT13: 0.001435263621 | KU13: 0.001433704246 | KV13: 0.001431709273 | KW13: 0.001429769064 | KX13: 0.001428550494 | KY13: 0.001426997901 | KZ13: 0.001433539636 | LA13: 0.00143254881 | LB13: 0.00143902325 | LC13: 0.001437523585 | LD13: 0.001436311078 | LE13: 0.001437231115 | LF13: 0.001435889451 | LG13: 0.001437632147 | LH13: 0.001436424154 | LI13: 0.001435339064 | LJ13: 0.00143412733 | LK13: 0.001433729139 | LL13: 0.001432415841 | LM13: 0.001431006859 | LN13: 0.001429957238 | LO13: 0.001429907931 | LP13: 0.001428604283 | LQ13: 0.00142721403 | LR13: 0.001427725481 | LS13: 0.001425859718 | LT13: 0.001423981805 | LU13: 0.001422139591 | LV13: 0.001419916838 | LW13: 0.001418456533 | LX13: 0.001415959289 | LY13: 0.001414502992 | LZ13: 0.001413363953 | MA13: 0.001413465254 | MB13: 0.001411120671 | MC13: 0.001417767779 | MD13: 0.001418687751 | ME13: 0.001417965867 | MF13: 0.001415978491 | MG13: 0.001414719825 | MH13: 0.001412707799 | MI13: 0.001413014896 | MJ13: 0.001412626801 | MK13: 0.001410652598 | ML13: 0.001419046229 | MM13: 0.001417629747 | MN13: 0.001426221714 | MO13: 0.001427615643 | MP13: 0.001426723172 | MQ13: 0.001425802675 | MR13: 0.001425207944 | MS13: 0.001426446965 | MT13: 0.001426709227 | MU13: 0.001425954833 | MV13: 0.00142533462 | MW13: 0.001424665209 | MX13: 0.001424002889 | MY13: 0.00142347287 | MZ13: 0.001422838925
A14: 1926M10 | E14: 0.001468851746 | F14: 0.001467440639 | G14: 0.001466024481 | H14: 0.001464730124 | I14: 0.001472856938 | J14: 0.001471620056 | K14: 0.001470284512 | L14: 0.001478247723 | M14: 0.00147749269 | N14: 0.001476941127 | O14: 0.001476179493 | P14: 0.001475778503 | Q14: 0.001475086621 | R14: 0.001474856381 | S14: 0.001474358248 | T14: 0.001473590591 | U14: 0.001472814545 | V14: 0.001472748165 | W14: 0.001472017492 | X14: 0.001470978873 | Y14: 0.001469534448 | Z14: 0.001467930989 | AA14: 0.001468225374 | AB14: 0.001480551054 | AC14: 0.001479514326 | AD14: 0.001478782194 | AE14: 0.001477636112 | AF14: 0.001476740686 | AG14: 0.001475512857 | AH14: 0.001474008774 | AI14: 0.001473162982 | AJ14: 0.001471625559 | AK14: 0.001469621499 | AL14: 0.001467169432 | AM14: 0.00146586101 | AN14: 0.001462986419 | AO14: 0.001459566209 | AP14: 0.001455962473 | AQ14: 0.001452701601 | AR14: 0.001452005649 | AS14: 0.001449636521 | AT14: 0.001445109496 | AU14: 0.001440627861 | AV14: 0.001441218532 | AW14: 0.001437042914 | AX14: 0.001433350146 | AY14: 0.001429243946 | AZ14: 0.001424186917 | BA14: 0.001423729669 | BB14: 0.001424058774 | BC14: 0.00142997914 | BD14: 0.001426347454 | BE14: 0.00142266283 | BF14: 0.001421911566 | BG14: 0.001420488681 | BH14: 0.001420566055 | BI14: 0.001419523805 | BJ14: 0.001416713519 | BK14: 0.0014188108 | BL14: 0.001415676002 | BM14: 0.001413210598 | BN14: 0.001412984319 | BO14: 0.001411087024 | BP14: 0.001409223718 | BQ14: 0.001409168948 | BR14: 0.001406678322 | BS14: 0.001405631075 | BT14: 0.001401905712 | BU14: 0.001403201558 | BV14: 0.001399731282 | BW14: 0.001401499914 | BX14: 0.001398602427 | BY14: 0.00139788911 | BZ14: 0.001394306535 | CA14: 0.001390415791 | CB14: 0.001386534641 | CC14: 0.00138418895 | CD14: 0.001379576128 | CE14: 0.001388300142 | CF14: 0.00138552799 | CG14: 0.001390282301 | CH14: 0.001388418307 | CI14: 0.001397391105 | CJ14: 0.001395893728 | CK14: 0.001397622979 | CL14: 0.001395977673 | CM14: 0.001396501543 | CN14: 0.001397176273 | CO14: 0.001397655041 | CP14: 0.001397023926 | CQ14: 0.001399082003 | CR14: 0.001399293647 | CS14: 0.001398704318 | CT14: 0.001397988705 | CU14: 0.001397376227 | CV14: 0.001396799269 | CW14: 0.001396005986 | CX14: 0.001397362996 | CY14: 0.001396873836 | CZ14: 0.001396091316 | DA14: 0.001395023111 | DB14: 0.001394386585 | DC14: 0.00139305296 | DD14: 0.001419186853 | DE14: 0.001418535072 | DF14: 0.00141755064 | DG14: 0.001416921959 | DH14: 0.001416320019 | DI14: 0.001416118553 | DJ14: 0.001415610159 | DK14: 0.001415356668 | DL14: 0.001415027411 | DM14: 0.001414450257 | DN14: 0.001413802329 | DO14: 0.001413067467 | DP14: 0.001412549941 | DQ14: 0.001411747286 | DR14: 0.001411753332 | DS14: 0.001411134408 | DT14: 0.001411133713 | DU14: 0.001411349304 | DV14: 0.001410485117 | DW14: 0.001413676712 | DX14: 0.001412976503 | DY14: 0.001412334617 | DZ14: 0.001411909635 | EA14: 0.001411137016 | EB14: 0.001411078893 | EC14: 0.001411142198 | ED14: 0.001410512891 | EE14: 0.001413112327 | EF14: 0.00141281245 | EG14: 0.001412336074 | EH14: 0.001415710358 | EI14: 0.001415289835 | EJ14: 0.001414417504 | EK14: 0.001414608562 | EL14: 0.00141430052 | EM14: 0.001414223527 | EN14: 0.001413937614 | EO14: 0.001414145845 | EP14: 0.001414431949 | EQ14: 0.001413400363 | ER14: 0.001413687628 | ES14: 0.001413606438 | ET14: 0.001413358279 | EU14: 0.001412986329 | EV14: 0.001413059815 | EW14: 0.001412860153 | EX14: 0.00141347693 | EY14: 0.001413848779 | EZ14: 0.001414040548 | FA14: 0.001416153102 | FB14: 0.001414947181 | FC14: 0.001414512211 | FD14: 0.00141392821 | FE14: 0.001414073463 | FF14: 0.001414500337 | FG14: 0.00141518328 | FH14: 0.001413674914 | FI14: 0.001413165691 | FJ14: 0.001413585148 | FK14: 0.001413846751 | FL14: 0.001413917197 | FM14: 0.001413666939 | FN14: 0.001413183336 | FO14: 0.001412765698 | FP14: 0.001412470493 | FQ14: 0.001411728904 | FR14: 0.001410693919 | FS14: 0.001409431687 | FT14: 0.001408025156 | FU14: 0.001406192944 | FV14: 0.001404256054 | FW14: 0.001404692177 | FX14: 0.001402201337 | FY14: 0.001399491718 | FZ14: 0.001396739069 | GA14: 0.001397780497 | GB14: 0.001397194503 | GC14: 0.001396301958 | GD14: 0.001394092357 | GE14: 0.001392219271 | GF14: 0.001390474942 | GG14: 0.001389548569 | GH14: 0.001386279905 | GI14: 0.001386751468 | GJ14: 0.00138394751 | GK14: 0.001380535201 | GL14: 0.001378447494 | GM14: 0.001379210022 | GN14: 0.001375788268 | GO14: 0.001374122439 | GP14: 0.001370398557 | GQ14: 0.001366764467 | GR14: 0.001363041486 | GS14: 0.001364753835 | GT14: 0.001360928924 | GU14: 0.001356841819 | GV14: 0.001354660052 | GW14: 0.001353049619 | GX14: 0.001353111227 | GY14: 0.001350324597 | GZ14: 0.001346885264 | HA14: 0.00134336849 | HB14: 0.001342239971 | HC14: 0.001338399353 | HD14: 0.001342898556 | HE14: 0.001343099156 | HF14: 0.001341313399 | HG14: 0.001342374494 | HH14: 0.00133981785 | HI14: 0.00134028 | HJ14: 0.001337817453 | HK14: 0.0013411937 | HL14: 0.001338963009 | HM14: 0.001345675933 | HN14: 0.001345492882 | HO14: 0.001343950949 | HP14: 0.001344352043 | HQ14: 0.00134283597 | HR14: 0.001351606724 | HS14: 0.001350799895 | HT14: 0.00134989195 | HU14: 0.001355324219 | HV14: 0.00136686812 | HW14: 0.001366687377 | HX14: 0.001367405358 | HY14: 0.001367026986 | HZ14: 0.001366604369 | IA14: 0.001365631499 | IB14: 0.0013642549 | IC14: 0.001364262499 | ID14: 0.001365140461 | IE14: 0.001364102476 | IF14: 0.001364441775 | IG14: 0.001364623697 | IH14: 0.001365016595 | II14: 0.001364164257 | IJ14: 0.001364465995 | IK14: 0.001364217614 | IL14: 0.001364061919 | IM14: 0.001363325241 | IN14: 0.001363197473 | IO14: 0.001364976837 | IP14: 0.001364688404 | IQ14: 0.001363850695 | IR14: 0.001363564919 | IS14: 0.001362791876 | IT14: 0.001362577467 | IU14: 0.001362656448 | IV14: 0.001361963165 | IW14: 0.001361798634 | IX14: 0.001361390667 | IY14: 0.00136102507 | IZ14: 0.001360439668 | JA14: 0.001359678733 | JB14: 0.001358814776 | JC14: 0.001357945033 | JD14: 0.001359833036 | JE14: 0.001362267464 | JF14: 0.001364992122 | JG14: 0.001364898711 | JH14: 0.00136472987 | JI14: 0.001364202181 | JJ14: 0.001363674763 | JK14: 0.001363152946 | JL14: 0.00136255229 | JM14: 0.001363587621 | JN14: 0.001363053339 | JO14: 0.001362438828 | JP14: 0.001361684804 | JQ14: 0.001360862015 | JR14: 0.001359873799 | JS14: 0.001358476898 | JT14: 0.001356826188 | JU14: 0.001358773843 | JV14: 0.001357254386 | JW14: 0.001357136833 | JX14: 0.001355629161 | JY14: 0.001354280956 | JZ14: 0.001352482927 | KA14: 0.001355140409 | KB14: 0.001354718935 | KC14: 0.001353903196 | KD14: 0.001354699518 | KE14: 0.001353832854 | KF14: 0.001352607294 | KG14: 0.001352942439 | KH14: 0.001353499042 | KI14: 0.001351838496 | KJ14: 0.001349920858 | KK14: 0.001348509082 | KL14: 0.001346859862 | KM14: 0.001344988734 | KN14: 0.001345981635 | KO14: 0.001344159192 | KP14: 0.001342790333 | KQ14: 0.001341746248 | KR14: 0.001339155305 | KS14: 0.001339485379 | KT14: 0.001344433103 | KU14: 0.001342984198 | KV14: 0.00134108063 | KW14: 0.00133908254 | KX14: 0.001337738045 | KY14: 0.001336078665 | KZ14: 0.001343235028 | LA14: 0.001342336754 | LB14: 0.001348093571 | LC14: 0.001347246293 | LD14: 0.001346339132 | LE14: 0.00134700708 | LF14: 0.00134608139 | LG14: 0.00134747453 | LH14: 0.001346675358 | LI14: 0.001345763977 | LJ14: 0.001344578421 | LK14: 0.001344210447 | LL14: 0.001342769795 | LM14: 0.001341080392 | LN14: 0.001339772361 | LO14: 0.001339866273 | LP14: 0.001338391575 | LQ14: 0.00133677201 | LR14: 0.001337548741 | LS14: 0.001335449386 | LT14: 0.001333252747 | LU14: 0.001331049385 | LV14: 0.001328319572 | LW14: 0.001326579777 | LX14: 0.001323509057 | LY14: 0.00132178912 | LZ14: 0.001320497946 | MA14: 0.001320735159 | MB14: 0.001318097321 | MC14: 0.001325806936 | MD14: 0.001326595771 | ME14: 0.001325904504 | MF14: 0.001324164568 | MG14: 0.001322951273 | MH14: 0.0013209112 | MI14: 0.001321311043 | MJ14: 0.001320944299 | MK14: 0.001318908185 | ML14: 0.001327913666 | MM14: 0.001326868877 | MN14: 0.001334529913 | MO14: 0.001334629793 | MP14: 0.00133423228 | MQ14: 0.001333823037 | MR14: 0.001333304636 | MS14: 0.00133419267 | MT14: 0.00133392833 | MU14: 0.00133364827 | MV14: 0.001333231026 | MW14: 0.001332691874 | MX14: 0.00133202137 | MY14: 0.001331504331 | MZ14: 0.001330827896
A15: 1926M11 | E15: 0.001507309993 | F15: 0.001505675672 | G15: 0.001504273301 | H15: 0.001502633992 | I15: 0.001511636848 | J15: 0.001509954769 | K15: 0.001508275618 | L15: 0.001516320672 | M15: 0.001515173653 | N15: 0.00151404178 | O15: 0.001513774258 | P15: 0.001513304304 | Q15: 0.001512812091 | R15: 0.00151297009 | S15: 0.001512520985 | T15: 0.001511704269 | U15: 0.001511153219 | V15: 0.001510589052 | W15: 0.00151008787 | X15: 0.001509144975 | Y15: 0.001507489542 | Z15: 0.001505956176 | AA15: 0.00150581303 | AB15: 0.001519059044 | AC15: 0.001517512326 | AD15: 0.001516532183 | AE15: 0.001515017896 | AF15: 0.001514170172 | AG15: 0.001512850178 | AH15: 0.001511126702 | AI15: 0.001510477986 | AJ15: 0.001508681664 | AK15: 0.001506672264 | AL15: 0.001504188245 | AM15: 0.001503050818 | AN15: 0.00150022151 | AO15: 0.001496812761 | AP15: 0.001493268794 | AQ15: 0.001490105394 | AR15: 0.001489124548 | AS15: 0.001486820259 | AT15: 0.001482079658 | AU15: 0.001477327441 | AV15: 0.001478158286 | AW15: 0.001473641609 | AX15: 0.001469856537 | AY15: 0.001465398566 | AZ15: 0.001460088521 | BA15: 0.001459805316 | BB15: 0.00145991896 | BC15: 0.001466016028 | BD15: 0.001461936129 | BE15: 0.00145791773 | BF15: 0.00145688652 | BG15: 0.001455535924 | BH15: 0.001455884709 | BI15: 0.001454535228 | BJ15: 0.001451549997 | BK15: 0.001453547061 | BL15: 0.001450066527 | BM15: 0.001447503173 | BN15: 0.001447500709 | BO15: 0.00144562143 | BP15: 0.001443793878 | BQ15: 0.001443962522 | BR15: 0.001441428903 | BS15: 0.001440510865 | BT15: 0.001436521284 | BU15: 0.001438118112 | BV15: 0.001434325817 | BW15: 0.001436454219 | BX15: 0.001433423872 | BY15: 0.001432864258 | BZ15: 0.001429061654 | CA15: 0.001424964907 | CB15: 0.001420935282 | CC15: 0.001418607598 | CD15: 0.001413724316 | CE15: 0.001422606043 | CF15: 0.001419615749 | CG15: 0.001425154392 | CH15: 0.001423214761 | CI15: 0.001433424218 | CJ15: 0.001431478124 | CK15: 0.00143395438 | CL15: 0.001431953313 | CM15: 0.001432263837 | CN15: 0.001433520673 | CO15: 0.001434558948 | CP15: 0.001434139524 | CQ15: 0.001436910556 | CR15: 0.001436852097 | CS15: 0.001436601334 | CT15: 0.001435477168 | CU15: 0.001435084661 | CV15: 0.001434449252 | CW15: 0.001433651211 | CX15: 0.001435238637 | CY15: 0.001435009321 | CZ15: 0.001434210306 | DA15: 0.001432957869 | DB15: 0.001432516577 | DC15: 0.001431075878 | DD15: 0.001457443822 | DE15: 0.001457191531 | DF15: 0.001456932927 | DG15: 0.001456630065 | DH15: 0.001456322717 | DI15: 0.001456331677 | DJ15: 0.001455517594 | DK15: 0.001455510275 | DL15: 0.001455454741 | DM15: 0.001454742545 | DN15: 0.001454235275 | DO15: 0.001453208777 | DP15: 0.001452731254 | DQ15: 0.001451682164 | DR15: 0.001451789333 | DS15: 0.001451325746 | DT15: 0.001451444825 | DU15: 0.0014511649 | DV15: 0.001450008854 | DW15: 0.001453779057 | DX15: 0.001452652301 | DY15: 0.001451624261 | DZ15: 0.001451197414 | EA15: 0.001450189885 | EB15: 0.001450405688 | EC15: 0.001450060897 | ED15: 0.001449167172 | EE15: 0.001451511341 | EF15: 0.001450856897 | EG15: 0.001450456921 | EH15: 0.001453665257 | EI15: 0.001452948325 | EJ15: 0.001452769988 | EK15: 0.001452637132 | EL15: 0.001451946706 | EM15: 0.001451609087 | EN15: 0.001450881956 | EO15: 0.001450820221 | EP15: 0.001450876327 | EQ15: 0.001450363136 | ER15: 0.001450514799 | ES15: 0.00145022479 | ET15: 0.001449778554 | EU15: 0.001449615097 | EV15: 0.001449108568 | EW15: 0.001448723968 | EX15: 0.001448886311 | EY15: 0.001449024657 | EZ15: 0.00144887719 | FA15: 0.001451040116 | FB15: 0.001450613749 | FC15: 0.001450434317 | FD15: 0.001449370432 | FE15: 0.001449094863 | FF15: 0.001449222306 | FG15: 0.001449869139 | FH15: 0.00144861876 | FI15: 0.001448359608 | FJ15: 0.001448910645 | FK15: 0.001449422662 | FL15: 0.001449822121 | FM15: 0.001449723755 | FN15: 0.001449214969 | FO15: 0.001449069722 | FP15: 0.001448823984 | FQ15: 0.001448352912 | FR15: 0.001447614173 | FS15: 0.001446361831 | FT15: 0.001444927273 | FU15: 0.001443316565 | FV15: 0.001441611054 | FW15: 0.001441683177 | FX15: 0.00143917552 | FY15: 0.001436512844 | FZ15: 0.001433842497 | GA15: 0.001435054854 | GB15: 0.00143462153 | GC15: 0.001433468212 | GD15: 0.001431243983 | GE15: 0.001429102349 | GF15: 0.001427072683 | GG15: 0.001426261635 | GH15: 0.001422741478 | GI15: 0.001423442668 | GJ15: 0.001420336666 | GK15: 0.001416719017 | GL15: 0.001414348612 | GM15: 0.001415370537 | GN15: 0.001411639479 | GO15: 0.001410004251 | GP15: 0.001406008394 | GQ15: 0.001402199283 | GR15: 0.001398316838 | GS15: 0.001399894961 | GT15: 0.001395687367 | GU15: 0.001391261963 | GV15: 0.001389041613 | GW15: 0.001387450918 | GX15: 0.001387697413 | GY15: 0.001384770999 | GZ15: 0.001381119029 | HA15: 0.001377401932 | HB15: 0.001376023671 | HC15: 0.001371874807 | HD15: 0.001376979374 | HE15: 0.001377410351 | HF15: 0.001375281528 | HG15: 0.001376245916 | HH15: 0.001373384115 | HI15: 0.001374130099 | HJ15: 0.001371441927 | HK15: 0.001374880297 | HL15: 0.001372205711 | HM15: 0.001379420621 | HN15: 0.001378988224 | HO15: 0.001376933134 | HP15: 0.001377773668 | HQ15: 0.001376000293 | HR15: 0.001385357594 | HS15: 0.00138402752 | HT15: 0.001382836154 | HU15: 0.001388707202 | HV15: 0.001402241138 | HW15: 0.001401470303 | HX15: 0.001401542238 | HY15: 0.001400775659 | HZ15: 0.001400142371 | IA15: 0.001399685383 | IB15: 0.001398925518 | IC15: 0.00139910317 | ID15: 0.00139985717 | IE15: 0.00139913011 | IF15: 0.001399727047 | IG15: 0.001400236737 | IH15: 0.001400717067 | II15: 0.00140001032 | IJ15: 0.001400733968 | IK15: 0.001400274452 | IL15: 0.001400499802 | IM15: 0.001399705033 | IN15: 0.001399960517 | IO15: 0.001400508059 | IP15: 0.001399799001 | IQ15: 0.001399292275 | IR15: 0.001398630832 | IS15: 0.00139829489 | IT15: 0.001398225141 | IU15: 0.001398289528 | IV15: 0.001397771752 | IW15: 0.001397796019 | IX15: 0.001397637697 | IY15: 0.001397476958 | IZ15: 0.001397186447 | JA15: 0.001396570679 | JB15: 0.001395754986 | JC15: 0.001394838807 | JD15: 0.001396086506 | JE15: 0.001398173304 | JF15: 0.00140209 | JG15: 0.001401615829 | JH15: 0.001401281193 | JI15: 0.001400960181 | JJ15: 0.001400636805 | JK15: 0.001400299611 | JL15: 0.001399725939 | JM15: 0.001400182322 | JN15: 0.001399839021 | JO15: 0.001399292628 | JP15: 0.001398709024 | JQ15: 0.001398090553 | JR15: 0.001397037758 | JS15: 0.001395799684 | JT15: 0.001394356104 | JU15: 0.001396273177 | JV15: 0.001394845326 | JW15: 0.001394877487 | JX15: 0.001393476582 | JY15: 0.001392261954 | JZ15: 0.001390354416 | KA15: 0.001393215092 | KB15: 0.001392540099 | KC15: 0.001391830922 | KD15: 0.001392922954 | KE15: 0.001392152125 | KF15: 0.001390976418 | KG15: 0.001391064605 | KH15: 0.001391936458 | KI15: 0.00139011103 | KJ15: 0.001388080815 | KK15: 0.001386728989 | KL15: 0.001385129531 | KM15: 0.001383074752 | KN15: 0.001384291508 | KO15: 0.001382226456 | KP15: 0.001380898875 | KQ15: 0.001379936299 | KR15: 0.001377149558 | KS15: 0.001377276073 | KT15: 0.001382944591 | KU15: 0.00138112808 | KV15: 0.001378990166 | KW15: 0.001376850362 | KX15: 0.00137524656 | KY15: 0.001373557288 | KZ15: 0.001380910406 | LA15: 0.001379642842 | LB15: 0.001386897021 | LC15: 0.001385615256 | LD15: 0.001384318303 | LE15: 0.001384826843 | LF15: 0.001383534213 | LG15: 0.001385599284 | LH15: 0.001384542959 | LI15: 0.001383584461 | LJ15: 0.001382308044 | LK15: 0.00138210579 | LL15: 0.001380628646 | LM15: 0.001378937912 | LN15: 0.001377496058 | LO15: 0.001377745986 | LP15: 0.001376336016 | LQ15: 0.001374788551 | LR15: 0.001375734564 | LS15: 0.001373534431 | LT15: 0.001371322766 | LU15: 0.001369140249 | LV15: 0.00136637745 | LW15: 0.001364700292 | LX15: 0.001361536266 | LY15: 0.001359861511 | LZ15: 0.001358630163 | MA15: 0.00135903392 | MB15: 0.001356250468 | MC15: 0.001364714915 | MD15: 0.001365412135 | ME15: 0.001364407136 | MF15: 0.001362270501 | MG15: 0.001361012214 | MH15: 0.001358724083 | MI15: 0.001359365562 | MJ15: 0.001359146468 | MK15: 0.001356908145 | ML15: 0.001366268464 | MM15: 0.001364991051 | MN15: 0.001373532815 | MO15: 0.00137480088 | MP15: 0.001374298354 | MQ15: 0.001373729468 | MR15: 0.001373370071 | MS15: 0.00137395722 | MT15: 0.001374238839 | MU15: 0.001373837012 | MV15: 0.001373213665 | MW15: 0.001372751362 | MX15: 0.001372240149 | MY15: 0.001371893807 | MZ15: 0.001371406072
A16: 1926M12 | E16: 0.00148543556 | F16: 0.001483893278 | G16: 0.001482446301 | H16: 0.001480894199 | I16: 0.001489862419 | J16: 0.001488401429 | K16: 0.00148687209 | L16: 0.00149510319 | M16: 0.001494048514 | N16: 0.001493273279 | O16: 0.001492714709 | P16: 0.001492333788 | Q16: 0.001491744477 | R16: 0.001491692415 | S16: 0.001491250219 | T16: 0.001490443584 | U16: 0.001489768272 | V16: 0.001489415331 | W16: 0.001488790935 | X16: 0.00148777693 | Y16: 0.001486139421 | Z16: 0.00148448943 | AA16: 0.001484564142 | AB16: 0.001497963511 | AC16: 0.001496678432 | AD16: 0.001495874653 | AE16: 0.001494503519 | AF16: 0.001493629882 | AG16: 0.001492312698 | AH16: 0.001490606978 | AI16: 0.001489839122 | AJ16: 0.0014880723 | AK16: 0.001485952642 | AL16: 0.001483325626 | AM16: 0.001482045295 | AN16: 0.001479011865 | AO16: 0.001475371635 | AP16: 0.001471564312 | AQ16: 0.001468152262 | AR16: 0.001467263148 | AS16: 0.001464804969 | AT16: 0.001459892882 | AU16: 0.001454991837 | AV16: 0.001455778282 | AW16: 0.001451176472 | AX16: 0.001447229875 | AY16: 0.001442688325 | AZ16: 0.001437197007 | BA16: 0.001436833771 | BB16: 0.001437061728 | BC16: 0.001443380258 | BD16: 0.001439347775 | BE16: 0.001435304242 | BF16: 0.001434353054 | BG16: 0.001432913967 | BH16: 0.001433165116 | BI16: 0.00143189286 | BJ16: 0.00142885879 | BK16: 0.001430996881 | BL16: 0.001427535791 | BM16: 0.001424902417 | BN16: 0.001424808114 | BO16: 0.001422836105 | BP16: 0.001420907369 | BQ16: 0.001420994992 | BR16: 0.001418359616 | BS16: 0.001417344969 | BT16: 0.001413266901 | BU16: 0.001414831144 | BV16: 0.001410991721 | BW16: 0.001413085768 | BX16: 0.001409971506 | BY16: 0.001409323894 | BZ16: 0.001405425842 | CA16: 0.001401196709 | CB16: 0.00139700266 | CC16: 0.001394537857 | CD16: 0.001389486422 | CE16: 0.001398821759 | CF16: 0.001395796364 | CG16: 0.001401265775 | CH16: 0.001399287433 | CI16: 0.00140939075 | CJ16: 0.001407587727 | CK16: 0.001409785186 | CL16: 0.001407918057 | CM16: 0.00140830858 | CN16: 0.001409319678 | CO16: 0.001410108557 | CP16: 0.001409584847 | CQ16: 0.001412072336 | CR16: 0.001412064185 | CS16: 0.001411642401 | CT16: 0.001410661612 | CU16: 0.001410166364 | CV16: 0.001409584199 | CW16: 0.001408789461 | CX16: 0.001410327641 | CY16: 0.001409969283 | CZ16: 0.001409183438 | DA16: 0.001407967327 | DB16: 0.001407428602 | DC16: 0.001405975446 | DD16: 0.001433343687 | DE16: 0.001432889661 | DF16: 0.001432195297 | DG16: 0.001431734879 | DH16: 0.001431288381 | DI16: 0.001431241887 | DJ16: 0.001430550998 | DK16: 0.001430460093 | DL16: 0.001430298649 | DM16: 0.001429622454 | DN16: 0.001429036846 | DO16: 0.001428096354 | DP16: 0.001427594271 | DQ16: 0.001426607674 | DR16: 0.001426683241 | DS16: 0.001426150288 | DT16: 0.001426231063 | DU16: 0.001426141551 | DV16: 0.001425089992 | DW16: 0.001428682562 | DX16: 0.001427727199 | DY16: 0.001426870645 | DZ16: 0.001426474525 | EA16: 0.001425551862 | EB16: 0.001425643418 | EC16: 0.001425435003 | ED16: 0.001424672818 | EE16: 0.001427147681 | EF16: 0.00142671309 | EG16: 0.001426296666 | EH16: 0.001429597952 | EI16: 0.001428911729 | EJ16: 0.001428327007 | EK16: 0.001428437942 | EL16: 0.001427936456 | EM16: 0.001427758295 | EN16: 0.001427149851 | EO16: 0.001427091931 | EP16: 0.0014273539 | EQ16: 0.001426513521 | ER16: 0.001426811959 | ES16: 0.001426645599 | ET16: 0.00142629293 | EU16: 0.001426041677 | EV16: 0.001425757452 | EW16: 0.001425481763 | EX16: 0.001425808488 | EY16: 0.001425947531 | EZ16: 0.001426052852 | FA16: 0.001428073946 | FB16: 0.00142715849 | FC16: 0.00142687374 | FD16: 0.001425957588 | FE16: 0.001425930867 | FF16: 0.001426275122 | FG16: 0.001427034781 | FH16: 0.001425561503 | FI16: 0.001425184284 | FJ16: 0.001425745478 | FK16: 0.00142618736 | FL16: 0.001426456842 | FM16: 0.001426268545 | FN16: 0.001425779345 | FO16: 0.001425494506 | FP16: 0.001425239741 | FQ16: 0.00142461641 | FR16: 0.001423687347 | FS16: 0.001422347454 | FT16: 0.001420834218 | FU16: 0.001419016462 | FV16: 0.001417095483 | FW16: 0.001417353566 | FX16: 0.001414711796 | FY16: 0.001411871854 | FZ16: 0.001409005682 | GA16: 0.0014102335 | GB16: 0.001409719832 | GC16: 0.00140862703 | GD16: 0.001406300018 | GE16: 0.001404168192 | GF16: 0.001402162506 | GG16: 0.001401267347 | GH16: 0.001397675845 | GI16: 0.001398326536 | GJ16: 0.001395194571 | GK16: 0.00139147464 | GL16: 0.001389101651 | GM16: 0.001390078888 | GN16: 0.001386288697 | GO16: 0.001384558518 | GP16: 0.001380461902 | GQ16: 0.00137651326 | GR16: 0.001372474923 | GS16: 0.001374214197 | GT16: 0.001369942583 | GU16: 0.001365411539 | GV16: 0.001363085321 | GW16: 0.001361402338 | GX16: 0.00136159653 | GY16: 0.001358570074 | GZ16: 0.001354801426 | HA16: 0.00135095301 | HB16: 0.001349606851 | HC16: 0.001345347414 | HD16: 0.001350513645 | HE16: 0.001350880901 | HF16: 0.001348789247 | HG16: 0.001349848579 | HH16: 0.001346979659 | HI16: 0.001347654416 | HJ16: 0.001344929238 | HK16: 0.001348523509 | HL16: 0.001345917803 | HM16: 0.001353251377 | HN16: 0.001352900142 | HO16: 0.001351007119 | HP16: 0.001351691094 | HQ16: 0.001349974243 | HR16: 0.001359437068 | HS16: 0.001358333481 | HT16: 0.00135726363 | HU16: 0.001363077787 | HV16: 0.001375924552 | HW16: 0.001375363721 | HX16: 0.001375844275 | HY16: 0.001375146266 | HZ16: 0.001374444429 | IA16: 0.001373728669 | IB16: 0.001372622142 | IC16: 0.001372785331 | ID16: 0.001373714424 | IE16: 0.00137280558 | IF16: 0.001373373905 | IG16: 0.001373809649 | IH16: 0.001374315847 | II16: 0.001373511549 | IJ16: 0.001374130025 | IK16: 0.001373746978 | IL16: 0.001373847229 | IM16: 0.001373032153 | IN16: 0.001373168181 | IO16: 0.001374203021 | IP16: 0.00137362271 | IQ16: 0.001372912945 | IR16: 0.001372383536 | IS16: 0.001371753948 | IT16: 0.001371659009 | IU16: 0.001371788743 | IV16: 0.001371145772 | IW16: 0.001371131836 | IX16: 0.001370882958 | IY16: 0.001370656504 | IZ16: 0.001370242613 | JA16: 0.001369548057 | JB16: 0.001368680251 | JC16: 0.001367745207 | JD16: 0.001369313093 | JE16: 0.001371588458 | JF16: 0.001375013494 | JG16: 0.001374748964 | JH16: 0.001374530072 | JI16: 0.001374117736 | JJ16: 0.0013737039 | JK16: 0.001373294971 | JL16: 0.001372711962 | JM16: 0.001373405064 | JN16: 0.001372975824 | JO16: 0.001372408288 | JP16: 0.001371745191 | JQ16: 0.001371024128 | JR16: 0.001369956253 | JS16: 0.00136859959 | JT16: 0.001366999937 | JU16: 0.001369043315 | JV16: 0.001367517143 | JW16: 0.001367497321 | JX16: 0.001365989893 | JY16: 0.001364664221 | JZ16: 0.001362707592 | KA16: 0.001365643554 | KB16: 0.001365045843 | KC16: 0.00136426725 | KD16: 0.001365292044 | KE16: 0.001364454743 | KF16: 0.001363212285 | KG16: 0.001363408633 | KH16: 0.001364191564 | KI16: 0.001362366363 | KJ16: 0.001360294878 | KK16: 0.001358857604 | KL16: 0.001357161612 | KM16: 0.001355079463 | KN16: 0.001356278759 | KO16: 0.001354214649 | KP16: 0.001352808746 | KQ16: 0.001351770176 | KR16: 0.00134892042 | KS16: 0.001349144188 | KT16: 0.001354805148 | KU16: 0.001353066693 | KV16: 0.001350935298 | KW16: 0.001348755079 | KX16: 0.001347180816 | KY16: 0.001345423001 | KZ16: 0.001353055613 | LA16: 0.001351892679 | LB16: 0.001358793321 | LC16: 0.001357678682 | LD16: 0.001356512375 | LE16: 0.001357088139 | LF16: 0.001355928034 | LG16: 0.001357765203 | LH16: 0.001356807936 | LI16: 0.001355851519 | LJ16: 0.001354575047 | LK16: 0.001354300564 | LL16: 0.001352781246 | LM16: 0.001351014608 | LN16: 0.001349558878 | LO16: 0.001349766294 | LP16: 0.001348265159 | LQ16: 0.001346613111 | LR16: 0.001347550151 | LS16: 0.001345283877 | LT16: 0.001342964129 | LU16: 0.001340656499 | LV16: 0.001337753045 | LW16: 0.001335960436 | LX16: 0.001332652817 | LY16: 0.001330868877 | LZ16: 0.001329550227 | MA16: 0.001329922195 | MB16: 0.001327043712 | MC16: 0.001335679299 | MD16: 0.00133644663 | ME16: 0.001335526727 | MF16: 0.0013334624 | MG16: 0.001332169099 | MH16: 0.001329872443 | MI16: 0.001330458804 | MJ16: 0.00133017711 | MK16: 0.001327912184 | ML16: 0.001337571252 | MM16: 0.001336352969 | MN16: 0.001344822493 | MO16: 0.001345604337 | MP16: 0.001345155118 | MQ16: 0.001344665684 | MR16: 0.001344237552 | MS16: 0.001344927972 | MT16: 0.001344956763 | MU16: 0.001344630717 | MV16: 0.001344096427 | MW16: 0.001343613605 | MX16: 0.001343038441 | MY16: 0.001342615583 | MZ16: 0.0013420417
A17: 1927M01 | E17: 0.001401621396 | F17: 0.001400437212 | G17: 0.001399086681 | H17: 0.001397443757 | I17: 0.001406705976 | J17: 0.001405796591 | K17: 0.001404631858 | L17: 0.001412319904 | M17: 0.001410924465 | N17: 0.00141101832 | O17: 0.001410146431 | P17: 0.001410257002 | Q17: 0.001409769658 | R17: 0.001409549523 | S17: 0.001409402526 | T17: 0.00140867362 | U17: 0.001408013654 | V17: 0.001407678758 | W17: 0.001407085136 | X17: 0.001406113133 | Y17: 0.001404325307 | Z17: 0.001402461008 | AA17: 0.00140268119 | AB17: 0.001416693403 | AC17: 0.001415946115 | AD17: 0.001415777228 | AE17: 0.001414572567 | AF17: 0.00141388366 | AG17: 0.001412611338 | AH17: 0.001410758886 | AI17: 0.001409989666 | AJ17: 0.001408055816 | AK17: 0.001405686995 | AL17: 0.001402622895 | AM17: 0.001401215267 | AN17: 0.001397666404 | AO17: 0.001393356324 | AP17: 0.001388841707 | AQ17: 0.001384842197 | AR17: 0.001383925732 | AS17: 0.001381230308 | AT17: 0.001375729371 | AU17: 0.001370215184 | AV17: 0.001371227942 | AW17: 0.001366199165 | AX17: 0.0013618968 | AY17: 0.001356896405 | AZ17: 0.0013508501 | BA17: 0.001350551571 | BB17: 0.001350824953 | BC17: 0.001357422771 | BD17: 0.001353568677 | BE17: 0.001349512902 | BF17: 0.00134849666 | BG17: 0.0013470666 | BH17: 0.001347375956 | BI17: 0.001346031532 | BJ17: 0.001343012234 | BK17: 0.001345178986 | BL17: 0.001341840073 | BM17: 0.00133918002 | BN17: 0.001339142535 | BO17: 0.001337139039 | BP17: 0.001335156391 | BQ17: 0.001335323676 | BR17: 0.001332599695 | BS17: 0.00133158208 | BT17: 0.001327240444 | BU17: 0.00132904435 | BV17: 0.001324998982 | BW17: 0.00132733585 | BX17: 0.001324149661 | BY17: 0.001323528121 | BZ17: 0.001319432372 | CA17: 0.001314865104 | CB17: 0.001310259841 | CC17: 0.001307579381 | CD17: 0.001301974054 | CE17: 0.001312311589 | CF17: 0.001309336244 | CG17: 0.001314998542 | CH17: 0.00131315068 | CI17: 0.001323179059 | CJ17: 0.001321599001 | CK17: 0.001323291423 | CL17: 0.001321972073 | CM17: 0.001322083028 | CN17: 0.001322731204 | CO17: 0.001323117672 | CP17: 0.001322643312 | CQ17: 0.001324455349 | CR17: 0.001323836988 | CS17: 0.001323302874 | CT17: 0.00132236745 | CU17: 0.001321952135 | CV17: 0.001321765095 | CW17: 0.001321151099 | CX17: 0.001322831268 | CY17: 0.00132244571 | CZ17: 0.001321904074 | DA17: 0.00132064425 | DB17: 0.001320148873 | DC17: 0.001318571528 | DD17: 0.00134724561 | DE17: 0.0013466862 | DF17: 0.001345171842 | DG17: 0.001344709723 | DH17: 0.001344299553 | DI17: 0.001344524878 | DJ17: 0.00134390876 | DK17: 0.001343969513 | DL17: 0.001343886761 | DM17: 0.001343111168 | DN17: 0.001342648769 | DO17: 0.001341613119 | DP17: 0.001341027384 | DQ17: 0.001339905909 | DR17: 0.001340266647 | DS17: 0.001339758375 | DT17: 0.001340063916 | DU17: 0.001339895347 | DV17: 0.001338937627 | DW17: 0.001342292743 | DX17: 0.001341516184 | DY17: 0.001340932006 | DZ17: 0.001340850927 | EA17: 0.001339994229 | EB17: 0.00134012013 | EC17: 0.001339705849 | ED17: 0.001339258234 | EE17: 0.00134132542 | EF17: 0.001341531396 | EG17: 0.001341344037 | EH17: 0.001344038793 | EI17: 0.001342776834 | EJ17: 0.001341533085 | EK17: 0.001342408453 | EL17: 0.001342179656 | EM17: 0.001342316024 | EN17: 0.001341433293 | EO17: 0.001340643641 | EP17: 0.001341602499 | EQ17: 0.001340329288 | ER17: 0.001341129451 | ES17: 0.001341150615 | ET17: 0.001340836274 | EU17: 0.001340616925 | EV17: 0.00134038088 | EW17: 0.001340288066 | EX17: 0.001340468271 | EY17: 0.001339905056 | EZ17: 0.001340729508 | FA17: 0.00134147169 | FB17: 0.001339692381 | FC17: 0.001339536292 | FD17: 0.00133842285 | FE17: 0.001338850254 | FF17: 0.001339646272 | FG17: 0.00134076536 | FH17: 0.001339161103 | FI17: 0.001338824635 | FJ17: 0.001339581523 | FK17: 0.001340010463 | FL17: 0.001340097381 | FM17: 0.001339543527 | FN17: 0.00133947784 | FO17: 0.001338901926 | FP17: 0.001338954284 | FQ17: 0.001338092488 | FR17: 0.001336769111 | FS17: 0.001335019107 | FT17: 0.001333093543 | FU17: 0.001330746367 | FV17: 0.001328305547 | FW17: 0.001328787407 | FX17: 0.001325695873 | FY17: 0.001322331023 | FZ17: 0.001318920239 | GA17: 0.001320548225 | GB17: 0.001320061902 | GC17: 0.001318876954 | GD17: 0.001316388626 | GE17: 0.001314056003 | GF17: 0.001311875896 | GG17: 0.001310971412 | GH17: 0.001307085915 | GI17: 0.001307899716 | GJ17: 0.001304530465 | GK17: 0.00130048395 | GL17: 0.00129786613 | GM17: 0.001299034284 | GN17: 0.001294979074 | GO17: 0.001293145116 | GP17: 0.001288666935 | GQ17: 0.001284293147 | GR17: 0.001279776364 | GS17: 0.001281769999 | GT17: 0.00127717742 | GU17: 0.001272216435 | GV17: 0.001269688589 | GW17: 0.001267890466 | GX17: 0.001268190023 | GY17: 0.00126495757 | GZ17: 0.00126086833 | HA17: 0.001256643477 | HB17: 0.001255165215 | HC17: 0.001250533348 | HD17: 0.00125633651 | HE17: 0.001256777177 | HF17: 0.00125460525 | HG17: 0.001255654625 | HH17: 0.001252847794 | HI17: 0.001253597119 | HJ17: 0.001250864275 | HK17: 0.001254579568 | HL17: 0.001252086032 | HM17: 0.001259327056 | HN17: 0.001258864422 | HO17: 0.001257406581 | HP17: 0.001257964165 | HQ17: 0.001256539687 | HR17: 0.001265597347 | HS17: 0.001265141554 | HT17: 0.001264586574 | HU17: 0.001269400694 | HV17: 0.001278484859 | HW17: 0.001277778794 | HX17: 0.001279628755 | HY17: 0.001278258286 | HZ17: 0.001276279542 | IA17: 0.00127537244 | IB17: 0.001273799887 | IC17: 0.001274390192 | ID17: 0.001275941398 | IE17: 0.001274966468 | IF17: 0.001275815959 | IG17: 0.001276395619 | IH17: 0.001276849067 | II17: 0.001276156315 | IJ17: 0.001276698385 | IK17: 0.001276174579 | IL17: 0.001276168296 | IM17: 0.001275675905 | IN17: 0.001275649041 | IO17: 0.001277326865 | IP17: 0.001276577119 | IQ17: 0.001275656204 | IR17: 0.001275068917 | IS17: 0.001273890817 | IT17: 0.00127410545 | IU17: 0.001274562238 | IV17: 0.001273873453 | IW17: 0.001274055389 | IX17: 0.001273861084 | IY17: 0.001273533072 | IZ17: 0.001273019323 | JA17: 0.001272002873 | JB17: 0.001270798716 | JC17: 0.001269569013 | JD17: 0.001271677642 | JE17: 0.001273918095 | JF17: 0.001276103285 | JG17: 0.001276623028 | JH17: 0.001276968076 | JI17: 0.001276626936 | JJ17: 0.001276278059 | JK17: 0.001275969308 | JL17: 0.001275386955 | JM17: 0.001276165615 | JN17: 0.001275799146 | JO17: 0.00127535778 | JP17: 0.001274681807 | JQ17: 0.00127388462 | JR17: 0.001272595163 | JS17: 0.001270908934 | JT17: 0.001268861503 | JU17: 0.001271710346 | JV17: 0.001270015748 | JW17: 0.001270120801 | JX17: 0.001268462031 | JY17: 0.001266987935 | JZ17: 0.001264727571 | KA17: 0.001268266075 | KB17: 0.001267611779 | KC17: 0.001266867014 | KD17: 0.001267983215 | KE17: 0.001267197616 | KF17: 0.001265979607 | KG17: 0.001266147851 | KH17: 0.001266954461 | KI17: 0.001265251543 | KJ17: 0.001263130781 | KK17: 0.00126161382 | KL17: 0.001259778992 | KM17: 0.00125744008 | KN17: 0.001258900053 | KO17: 0.001256681353 | KP17: 0.00125520958 | KQ17: 0.001254137303 | KR17: 0.00125101874 | KS17: 0.001251272741 | KT17: 0.00125735392 | KU17: 0.001255721918 | KV17: 0.001253696067 | KW17: 0.001251478305 | KX17: 0.001249776161 | KY17: 0.001247935099 | KZ17: 0.001256090771 | LA17: 0.001255006746 | LB17: 0.001261198786 | LC17: 0.001260731648 | LD17: 0.001259863035 | LE17: 0.001260153375 | LF17: 0.001259407679 | LG17: 0.001260913861 | LH17: 0.00126037208 | LI17: 0.00125961061 | LJ17: 0.001258380144 | LK17: 0.001258158654 | LL17: 0.001256536666 | LM17: 0.001254517582 | LN17: 0.001252811921 | LO17: 0.001253178756 | LP17: 0.001251536265 | LQ17: 0.001249685812 | LR17: 0.001250897181 | LS17: 0.001248420213 | LT17: 0.001245811002 | LU17: 0.001243173048 | LV17: 0.001239792647 | LW17: 0.001237748684 | LX17: 0.001233894396 | LY17: 0.001231872772 | LZ17: 0.001230425416 | MA17: 0.001230950478 | MB17: 0.001227799738 | MC17: 0.001237470698 | MD17: 0.001238085007 | ME17: 0.001237182506 | MF17: 0.001235366566 | MG17: 0.001234137322 | MH17: 0.001231824457 | MI17: 0.001232522944 | MJ17: 0.001232284247 | MK17: 0.001229972488 | ML17: 0.00124012986 | MM17: 0.001239291679 | MN17: 0.001246733354 | MO17: 0.001246281209 | MP17: 0.001246341072 | MQ17: 0.001246375095 | MR17: 0.001246049829 | MS17: 0.001246331045 | MT17: 0.001245862402 | MU17: 0.00124602509 | MV17: 0.00124569715 | MW17: 0.001245371759 | MX17: 0.001244820424 | MY17: 0.001244435929 | MZ17: 0.001243849656
